Workbook

Sheet Start (hidden)
I2: Betreuungsart | J2: NppQ1 | K2: NppQ2 | L2: NppQ3 | M2: NppQ4 | Q2: Altersstufe | R2: Q1 | S2: Q2 | T2: Q3 | U2: Q4
B3: Jahr | C3: =intAntragsJahr -> 2020 | I3: Krippe bis 6 Std. | J3: =VLOOKUP($C$3,tabBetreuKeys,31,FALSE) -> 0.16 | K3: =VLOOKUP($C$3,tabBetreuKeys,30,FALSE) -> 0.16 | L3: =VLOOKUP($C$3,tabBetreuKeys,32,FALSE) -> 0.16 | M3: =VLOOKUP($C$3,tabBetreuKeys,33,FALSE) -> 0.16 | Q3: Krippe | R3: =VLOOKUP($C$3,tabFinanzQuartFaktoren[],14,FALSE) -> 0.886 | S3: =VLOOKUP($C$3,tabFinanzQuartFaktoren[],15,FALSE) -> 0.886 | T3: =VLOOKUP($C$3,tabFinanzQuartFaktoren[],16,FALSE) -> 0.886 | U3: =VLOOKUP($C$3,tabFinanzQuartFaktoren[],17,FALSE) -> 0.886
I4: Krippe mehr als 6 Std. | J4: =VLOOKUP($C$3,tabBetreuKeys,14,FALSE) -> 0.2 | K4: =VLOOKUP($C$3,tabBetreuKeys,15,FALSE) -> 0.2 | L4: =VLOOKUP($C$3,tabBetreuKeys,16,FALSE) -> 0.2 | M4: =VLOOKUP($C$3,tabBetreuKeys,17,FALSE) -> 0.2 | Q4: Kiga | R4: =VLOOKUP($C$3,tabFinanzQuartFaktoren[],30,FALSE) -> 0.864 | S4: =VLOOKUP($C$3,tabFinanzQuartFaktoren[],31,FALSE) -> 0.864 | T4: =VLOOKUP($C$3,tabFinanzQuartFaktoren[],32,FALSE) -> 0.872 | U4: =VLOOKUP($C$3,tabFinanzQuartFaktoren[],33,FALSE) -> 0.876
C5: &H0000FFFF& | I5: Kindergarten bis 6 Std. | J5: =VLOOKUP($C$3,tabBetreuKeys,62,FALSE) -> 0.07272727273 | K5: =VLOOKUP($C$3,tabBetreuKeys,63,FALSE) -> 0.07272727273 | L5: =VLOOKUP($C$3,tabBetreuKeys,64,FALSE) -> 0.07757575758 | M5: =VLOOKUP($C$3,tabBetreuKeys,65,FALSE) -> 0.08 | Q5: Hort | R5: =VLOOKUP($C$3,tabFinanzQuartFaktoren[],46,FALSE) -> 0.84 | S5: =VLOOKUP($C$3,tabFinanzQuartFaktoren[],47,FALSE) -> 0.84 | T5: =VLOOKUP($C$3,tabFinanzQuartFaktoren[],48,FALSE) -> 0.84 | U5: =VLOOKUP($C$3,tabFinanzQuartFaktoren[],49,FALSE) -> 0.84
I6: Kindergarten mehr als 6 Std. | J6: =VLOOKUP($C$3,tabBetreuKeys,46,FALSE) -> 0.09090909091 | K6: =VLOOKUP($C$3,tabBetreuKeys,47,FALSE) -> 0.09090909091 | L6: =VLOOKUP($C$3,tabBetreuKeys,48,FALSE) -> 0.09696969697 | M6: =VLOOKUP($C$3,tabBetreuKeys,49,FALSE) -> 0.1 | Q6: Leitung | R6: =VLOOKUP($C$3,tabFinanzQuartFaktoren[],62,FALSE) -> 0.84 | S6: =VLOOKUP($C$3,tabFinanzQuartFaktoren[],63,FALSE) -> 0.84 | T6: =VLOOKUP($C$3,tabFinanzQuartFaktoren[],64,FALSE) -> 0.84 | U6: =VLOOKUP($C$3,tabFinanzQuartFaktoren[],65,FALSE) -> 0.84
I7: Hort bis 4 Std. | J7: =VLOOKUP($C$3,tabBetreuKeys,94,FALSE) -> 0.04 | K7: =VLOOKUP($C$3,tabBetreuKeys,95,FALSE) -> 0.04 | L7: =VLOOKUP($C$3,tabBetreuKeys,96,FALSE) -> 0.04 | M7: =VLOOKUP($C$3,tabBetreuKeys,97,FALSE) -> 0.04
I8: Hort mehr als 4 Std. | J8: =VLOOKUP($C$3,tabBetreuKeys,78,FALSE) -> 0.05333333333 | K8: =VLOOKUP($C$3,tabBetreuKeys,79,FALSE) -> 0.05333333333 | L8: =VLOOKUP($C$3,tabBetreuKeys,80,FALSE) -> 0.05333333333 | M8: =VLOOKUP($C$3,tabBetreuKeys,81,FALSE) -> 0.05333333333
Q10: DsFinanzAltersstufe | R10: Q1 | S10: Q2 | T10: Q3 | U10: Q4
Q11: Krippe | R11: =KripQ1FinanzFakt -> 0.886 | S11: =ROUND((KripQ1FinanzFakt+KripQ2FinanzFakt)/2,5) -> 0.886 | T11: =ROUND((KripQ1FinanzFakt+KripQ2FinanzFakt+KripQ3FinanzFakt)/3,5) -> 0.886 | U11: =ROUND((KripQ1FinanzFakt+KripQ2FinanzFakt+KripQ3FinanzFakt+KripQ4FinanzFakt)/4,5) -> 0.886
E12: =IF(intAntragsJahr<=2017,0.7,0.8) -> 0.8 | Q12: Kiga | R12: =Q1KigaFinanzFakt -> 0.864 | S12: =ROUND((Q1KigaFinanzFakt+KigaQ2FinanzFakt)/2,5) -> 0.864 | T12: =ROUND((Q1KigaFinanzFakt+KigaQ2FinanzFakt+KigaQ3FinanzFakt)/3,5) -> 0.86667 | U12: =ROUND((Q1KigaFinanzFakt+KigaQ2FinanzFakt+KigaQ3FinanzFakt+KigaQ4FinanzFakt)/4,5) -> 0.869
Q13: Hort | R13: =Q1HortFinanzFakt -> 0.84 | S13: =ROUND((Q1HortFinanzFakt+Q2HortFinanzFakt)/2,5) -> 0.84 | T13: =ROUND((Q1HortFinanzFakt+Q2HortFinanzFakt+HortQ3FinanzFakt)/3,5) -> 0.84 | U13: =ROUND((Q1HortFinanzFakt+Q2HortFinanzFakt+HortQ3FinanzFakt+HortQ4FinanzFakt)/4,5) -> 0.84
Q14: Leitung | R14: =LtgQ1FinanzFakt -> 0.84 | S14: =ROUND((LtgQ1FinanzFakt+LtgQ2FinanzFakt)/2,5) -> 0.84 | T14: =ROUND((LtgQ1FinanzFakt+LtgQ2FinanzFakt+LtgQ3FinanzFakt)/3,5) -> 0.84 | U14: =ROUND((LtgQ1FinanzFakt+LtgQ2FinanzFakt+LtgQ3FinanzFakt+LtgQ4FinanzFakt)/4,5) -> 0.84
R15: =CONCATENATE('HT Keys'!I5," - ") -> 0,2 -
I17: Wochenarbeitszeit | J17: 40
Q18: Stichtage | R18: Q1 | S18: Q2 | T18: Q3 | U18: Q4
I19: Version | J19: 2020.1.0.1 | R19: =CONCATENATE("01.12.",Jahr-1) -> 01.12.2019 | S19: =CONCATENATE("01.03.",Jahr) -> 01.03.2020 | T19: =CONCATENATE("01.06.",Jahr) -> 01.06.2020 | U19: =CONCATENATE("01.09.",Jahr) -> 01.09.2020
I20: Versionsdatum | J20: 2020-11-24
Q21: Auswahl_IstP10_2b4 | S21: Neuanlage
Q22: 0 | S22: ja
Q23: 1 | S23: nein
Q24: 2
Q25: 3
Q26: 4
Q27: 5
Q29: LtgStufe | R29: Q1 | S29: Q2 | T29: Q3 | U29: Q4 | V29: DsBisQ1 | W29: DsBisQ2 | X29: DsBisQ3 | Y29: DsBisQ4
Q30: LtgBis4 | R30: =VLOOKUP(Jahr,tabLtgKeys,14,FALSE) -> 0.1875 | S30: =VLOOKUP(Jahr,tabLtgKeys,15,FALSE) -> 0.1875 | T30: =VLOOKUP(Jahr,tabLtgKeys,16,FALSE) -> 0.1875 | U30: =VLOOKUP(Jahr,tabLtgKeys,17,FALSE) -> 0.1875 | V30: =LtgBis4Q1 -> 0.1875 | W30: =ROUND((LtgBis4Q1+LtgBis4Q2)/2,4) -> 0.1875 | X30: =ROUND((LtgBis4Q1+LtgBis4Q2+LtgBis4Q3)/3,4) -> 0.1875 | Y30: =ROUND((LtgBis4Q1+LtgBis4Q2+LtgBis4Q3+LtgBis4Q4)/4,4) -> 0.1875
Q31: LtgGr4Bis10 | R31: =VLOOKUP(Jahr,tabLtgKeys,30,FALSE) -> 0.3125 | S31: =VLOOKUP(Jahr,tabLtgKeys,31,FALSE) -> 0.3125 | T31: =VLOOKUP(Jahr,tabLtgKeys,32,FALSE) -> 0.3125 | U31: =VLOOKUP(Jahr,tabLtgKeys,33,FALSE) -> 0.3125 | V31: =LtgGr4Bis10Q1 -> 0.3125 | W31: =ROUND((LtgGr4Bis10Q1+LtgGr4Bis10Q2)/2,4) -> 0.3125 | X31: =ROUND((LtgGr4Bis10Q1+LtgGr4Bis10Q2+LtgGr4Bis10Q3)/3,4) -> 0.3125 | Y31: =ROUND((LtgGr4Bis10Q1+LtgGr4Bis10Q2+LtgGr4Bis10Q3+LtgGr4Bis10Q4)/4,4) -> 0.3125
Q32: LtgGr10Bis15 | R32: =VLOOKUP(Jahr,tabLtgKeys,46,FALSE) -> 0.4375 | S32: =VLOOKUP(Jahr,tabLtgKeys,47,FALSE) -> 0.4375 | T32: =VLOOKUP(Jahr,tabLtgKeys,48,FALSE) -> 0.4375 | U32: =VLOOKUP(Jahr,tabLtgKeys,49,FALSE) -> 0.4375 | V32: =LtgGr10Bis15Q1 -> 0.4375 | W32: =ROUND((LtgGr10Bis15Q1+LtgGr10Bis15Q2)/2,4) -> 0.4375 | X32: =ROUND((LtgGr10Bis15Q1+LtgGr10Bis15Q2+LtgGr10Bis15Q3)/3,4) -> 0.4375 | Y32: =ROUND((LtgGr10Bis15Q1+LtgGr10Bis15Q2+LtgGr10Bis15Q3+LtgGr10Bis15Q4)/4,4) -> 0.4375
Q33: LtgGr15 | R33: =VLOOKUP(Jahr,tabLtgKeys,62,FALSE) -> 0.5625 | S33: =VLOOKUP(Jahr,tabLtgKeys,63,FALSE) -> 0.5625 | T33: =VLOOKUP(Jahr,tabLtgKeys,64,FALSE) -> 0.5625 | U33: =VLOOKUP(Jahr,tabLtgKeys,65,FALSE) -> 0.5625 | V33: =LtgGr15Q1 -> 0.5625 | W33: =ROUND((LtgGr15Q1+LtgGr15Q2)/2,4) -> 0.5625 | X33: =ROUND((LtgGr15Q1+LtgGr15Q2+LtgGr15Q3)/3,4) -> 0.5625 | Y33: =ROUND((LtgGr15Q1+LtgGr15Q2+LtgGr15Q3+LtgGr15Q4)/4,4) -> 0.5625
A35: 2017.1.0.1 | B35: Version-Änderung | C35: 2017-06-13

Sheet Info
B2: =CONCATENATE("Personalbe- und abrechnungsdatei Land Brandenburg ",) -> Personalbe- und abrechnungsdatei Land Brandenburg | J2: =CONCATENATE("Version ",Version,"",", ",TEXT(Start!J20,"TT.MM.JJJJ")) -> Version 2020.1.0.1, 24.11.2020
B4: Bedienungshinweise
B6: 1. | C6: Das Excel-Tool wurde im Auftrag des Ministeriums für Bildung, Jugend und Sport des Landes Brandenburg im Mai 2017 durch die Firma Edgar Hasse, Softwareentwicklung und EDV-Beratung, www.SmartLEX.de entwickelt. Das Excel-Tool ist ab der Microsoft-Office/Excel-Version 2010 nutzbar. Es stellt ein Angebot zur Nutzung in Kitas, Trägern der freien und der öffentlichen Jugendhilfe sowie für die örtlichen Träger der öffentlichen Jugendhilfe im Land Brandenburg dar. Das Excel-Tool berücksichtigt die Änderungen des § 10 Absatz 1 KitaG durch Erstes Gesetz zur Qualitäts- und Teilhabeverbesserung in der 7. Legislaturperiode in der Kinder- und Jugendhilfe vom 25. Juni 2020.
B15: 2. | C15: Das Tool beinhaltet folgende Funktionen
C16: a) Stichtagsmeldungen zu den Quartalen gemäß § 3 Abs. 1 KitaBKNV
C17: b) Jahresabrechnung zu der Personalkostenzuschüsse gemäß § 16 Abs. 2 KitaG
C18: c) Controlling des notwendigen pädagogischen Personals in der Kita und beim Einrichtungsträger
B20: 3. | C20: Das Excel-Tool bietet dem Anwender neben diesem Informationsarbeitsblatt folgende Arbeitsblätter:
D21: "QUART I", "QUART II", "QUART III" und "QUART IV" zur Bearbeitung der Stichtagsmeldungen für die entsprechenden Quartale
D22: "Personal" für die Eingabe und Bearbeitung des pädagogischen Personals der Kita
D23: "Ltg-Personal" für die Eingabe und Bearbeitung des Leitungspersonals der Kita
B25: 4. | C25: Eingaben in den Arbeitsblättern zur quartalsweisen Stichtagsmeldung kann der Anwender in den gelb unterlegten Feldern vornehmen. Nach der Eingabe des Antragsjahres auf dem Arbeitsblatt „QUART I“ werden automatisch alle notwendigen Berechnungsgrößen auf die bisher geltenden Werte dieses Jahres umgestellt. Nach jetzigem Versions-Stand können Antragsjahre zwischen 2016 und 2030 ausgewählt werden. Die Eingabe der Angaben für das pädagogische und das Leitungspersonal erfolgt über spezielle Eingabedialoge. Auf dem Arbeitsblatt „Personal“ ist dafür ein Button mit der Beschriftung „Pädag. Personal bearbeiten“ vorhanden. Durch Mausklick darauf wird dann der entsprechende Eingabe-Dialog eingeblendet und kann vom Nutzer bearbeitet werden. Analog geschieht dies auf dem Arbeitsblatt „Ltg-Personal“ über den Button „Leitungs-Personal bearbeiten“. Bei der Eingabe ist die Trennung von „pädagogischem Personal“ und „Leitungs-Personal wichtig. Auch wenn es sich um die gleiche Person handelt, muss dies getrennt eingegeben werden. Dabei können selbstverständlich die gleichen „Personalnummern“ genutzt werden. Die Anzahl der einzugebenden pädagogischen Mitarbeiter bzw. des Leitungspersonals ist praktisch unbegrenzt.
B27: Firmendaten:
B28: Edgar Hasse
B29: Softwareentwicklung & EDV-Beratung
B30: Rudolf-Breitscheid-Str. 38, 12529 Schönefeld
B31: E-Mail: | D31: e.hasse@SmartLEX.de
B32: Internet: | D32: www.SmartLEX.de
B33: Telefon: | D33: 03379-4498680

Sheet HT Keys (hidden)
A2: 1 | B2: =A2+1 -> 2 | C2: =B2+1 -> 3 | D2: 4 | E2: 5 | F2: 6 | G2: 7 | H2: 8 | I2: 9 | J2: 10 | K2: 11 | L2: 12 | M2: 13 | N2: 14 | O2: 15 | P2: 16 | Q2: 17 | R2: 18 | S2: 19 | T2: 20 | U2: 21 | V2: 22 | W2: 23 | X2: 24 | Y2: 25 | Z2: 26 | AA2: 27 | AB2: 28 | AC2: 29 | AD2: 30 | AE2: 31 | AF2: 32 | AG2: 33 | AH2: 34 | AI2: 35 | AJ2: 36 | AK2: 37 | AL2: 38 | AM2: 39 | AN2: 40 | AO2: 41 | AP2: 42 | AQ2: 43 | AR2: 44 | AS2: 45 | AT2: 46 | AU2: 47 | AV2: 48 | AW2: 49 | AX2: 50 | AY2: 51 | AZ2: 52 | BA2: 53 | BB2: 54 | BC2: 55 | BD2: 56 | BE2: 57 | BF2: 58 | BG2: 59 | BH2: 60 | BI2: 61 | BJ2: 62 | BK2: 63 | BL2: 64 | BM2: 65 | BN2: 66 | BO2: =BN2+1 -> 67 | BP2: 68 | BQ2: 69 | BR2: 70 | BS2: 71 | BT2: 72 | BU2: 73 | BV2: 74 | BW2: 75 | BX2: 76 | BY2: 77 | BZ2: 78 | CA2: 79 | CB2: 80 | CC2: 81 | CD2: 82 | CE2: 83 | CF2: 84 | CG2: 85 | CH2: 86 | CI2: 87 | CJ2: 88 | CK2: 89 | CL2: 90 | CM2: 91 | CN2: 92 | CO2: 93 | CP2: 94 | CQ2: 95 | CR2: 96 | CS2: 97
B3: Krippe über 6 Stunden - Monate | N3: Krippe über 6 Stunden - Quartale | R3: Krippe bis 6 Stunden - Monate | AD3: Krippe bis 6 Stunden - Quartale | AH3: Kindergarten über 6 Stunden - Monate | AT3: KG über 6Stunden - Quartale | AX3: Kindergarten bis 6 Stunden - Monate | BJ3: Kindergarten bis 6 Stunden - Quartale | BN3: Hort über 4 Stunden - Monate | BZ3: Hort über 4 Stunden - Quartale | CD3: Hort bis 4 Stunden - Monate | CP3: Hort bis 4 Stunden - Quartale
A4: Jahr | B4: Kru6M01 | C4: Kru6M02 | D4: Kru6M03 | E4: Kru6M04 | F4: Kru6M05 | G4: Kru6M06 | H4: Kru6M07 | I4: Kru6M08 | J4: Kru6M09 | K4: Kru6M10 | L4: Kru6M11 | M4: Kru6M12 | N4: Kru6Q1 | O4: Kru6Q2 | P4: Kru6Q3 | Q4: Kru6Q4 | R4: Krb6M01 | S4: Krb6M02 | T4: Krb6M03 | U4: Krb6M04 | V4: Krb6M05 | W4: Krb6M06 | X4: Krb6M07 | Y4: Krb6M08 | Z4: Krb6M09 | AA4: Krb6M10 | AB4: Krb6M11 | AC4: Krb6M12 | AD4: Krb6Q1 | AE4: Krb6Q2 | AF4: Krb6Q3 | AG4: Krb6Q4 | AH4: Kgu6M01 | AI4: Kgu6M02 | AJ4: Kgu6M03 | AK4: Kgu6M04 | AL4: Kgu6M05 | AM4: Kgu6M06 | AN4: Kgu6M07 | AO4: Kgu6M08 | AP4: Kgu6M09 | AQ4: Kgu6M10 | AR4: Kgu6M11 | AS4: Kgu6M12 | AT4: Kgu6Q1 | AU4: Kgu6Q2 | AV4: Kgu6Q3 | AW4: Kgu6Q4 | AX4: Kgb6M01 | AY4: Kgb6M02 | AZ4: Kgb6M03 | BA4: Kgb6M04 | BB4: Kgb6M05 | BC4: Kgb6M06 | BD4: Kgb6M07 | BE4: Kgb6M08 | BF4: Kgb6M09 | BG4: Kgb6M10 | BH4: Kgb6M11 | BI4: Kgb6M12 | BJ4: Kgb6Q1 | BK4: Kgb6Q2 | BL4: Kgb6Q3 | BM4: Kgb6Q4 | BN4: Hou4M01 | BO4: Hou4M02 | BP4: Hou4M03 | BQ4: Hou4M04 | BR4: Hou4M05 | BS4: Hou4M06 | BT4: Hou4M07 | BU4: Hou4M08 | BV4: Hou4M09 | BW4: Hou4M10 | BX4: Hou4M11 | BY4: Hou4M12 | BZ4: Hou4Q1 | CA4: Hou4Q2 | CB4: Hou4Q3 | CC4: Hou4Q4 | CD4: Hob4M01 | CE4: Hob4M02 | CF4: Hob4M03 | CG4: Hob4M04 | CH4: Hob4M05 | CI4: Hob4M06 | CJ4: Hob4M07 | CK4: Hob4M08 | CL4: Hob4M09 | CM4: Hob4M10 | CN4: Hob4M11 | CO4: Hob4M12 | CP4: Hob4Q1 | CQ4: Hob4Q2 | CR4: Hob4Q3 | CS4: Hob4Q4
A5: 2016 | B5: =1/5.5 -> 0.1818181818 | C5: 0.1818181818 | D5: 0.1818181818 | E5: 0.1818181818 | F5: 0.1818181818 | G5: 0.1818181818 | H5: 0.1818181818 | I5: =1/5 -> 0.2 | J5: =1/5 -> 0.2 | K5: =1/5 -> 0.2 | L5: =1/5 -> 0.2 | M5: =1/5 -> 0.2 | N5: =(tabNppJahresKeys[[#This Row],[Kru6M01]]+tabNppJahresKeys[[#This Row],[Kru6M02]]+tabNppJahresKeys[[#This Row],[Kru6M03]])/3 -> 0.1818181818 | O5: =(tabNppJahresKeys[[#This Row],[Kru6M04]]+tabNppJahresKeys[[#This Row],[Kru6M05]]+tabNppJahresKeys[[#This Row],[Kru6M06]])/3 -> 0.1818181818 | P5: =(tabNppJahresKeys[[#This Row],[Kru6M07]]+tabNppJahresKeys[[#This Row],[Kru6M08]]+tabNppJahresKeys[[#This Row],[Kru6M09]])/3 -> 0.1939393939 | Q5: =(tabNppJahresKeys[[#This Row],[Kru6M10]]+tabNppJahresKeys[[#This Row],[Kru6M11]]+tabNppJahresKeys[[#This Row],[Kru6M12]])/3 -> 0.2 | R5: =0.8/5.5 -> 0.1454545455 | S5: =0.8/5.5 -> 0.1454545455 | T5: 0.1454545455 | U5: 0.1454545455 | V5: 0.1454545455 | W5: 0.1454545455 | X5: 0.1454545455 | Y5: =0.8/5 -> 0.16 | Z5: =0.8/5 -> 0.16 | AA5: =0.8/5 -> 0.16 | AB5: =0.8/5 -> 0.16 | AC5: =0.8/5 -> 0.16 | AD5: =(tabNppJahresKeys[[#This Row],[Krb6M01]]+tabNppJahresKeys[[#This Row],[Krb6M02]]+tabNppJahresKeys[[#This Row],[Krb6M03]])/3 -> 0.1454545455 | AE5: =(tabNppJahresKeys[[#This Row],[Krb6M04]]+tabNppJahresKeys[[#This Row],[Krb6M05]]+tabNppJahresKeys[[#This Row],[Krb6M06]])/3 -> 0.1454545455 | AF5: =(tabNppJahresKeys[[#This Row],[Krb6M07]]+tabNppJahresKeys[[#This Row],[Krb6M08]]+tabNppJahresKeys[[#This Row],[Krb6M09]])/3 -> 0.1551515152 | AG5: =(tabNppJahresKeys[[#This Row],[Krb6M10]]+tabNppJahresKeys[[#This Row],[Krb6M11]]+tabNppJahresKeys[[#This Row],[Krb6M12]])/3 -> 0.16 | AH5: =1/12 -> 0.08333333333 | AI5: 0.08333333333 | AJ5: 0.08333333333 | AK5: 0.08333333333 | AL5: 0.08333333333 | AM5: 0.08333333333 | AN5: 0.08333333333 | AO5: 0.08333333333 | AP5: 0.08333333333 | AQ5: 0.08333333333 | AR5: 0.08333333333 | AS5: 0.08333333333 | AT5: =(tabNppJahresKeys[[#This Row],[Kgu6M01]]+tabNppJahresKeys[[#This Row],[Kgu6M02]]+tabNppJahresKeys[[#This Row],[Kgu6M03]])/3 -> 0.08333333333 | AU5: =(tabNppJahresKeys[[#This Row],[Kgu6M04]]+tabNppJahresKeys[[#This Row],[Kgu6M05]]+tabNppJahresKeys[[#This Row],[Kgu6M06]])/3 -> 0.08333333333 | AV5: =(tabNppJahresKeys[[#This Row],[Kgu6M07]]+tabNppJahresKeys[[#This Row],[Kgu6M08]]+tabNppJahresKeys[[#This Row],[Kgu6M09]])/3 -> 0.08333333333 | AW5: =(tabNppJahresKeys[[#This Row],[Kgu6M10]]+tabNppJahresKeys[[#This Row],[Kgu6M11]]+tabNppJahresKeys[[#This Row],[Kgu6M12]])/3 -> 0.08333333333 | AX5: =0.8/12 -> 0.06666666667 | AY5: 0.06666666667 | AZ5: 0.06666666667 | BA5: 0.06666666667 | BB5: 0.06666666667 | BC5: 0.06666666667 | BD5: 0.06666666667 | BE5: 0.06666666667 | BF5: 0.06666666667 | BG5: 0.06666666667 | BH5: 0.06666666667 | BI5: 0.06666666667 | BJ5: =(tabNppJahresKeys[[#This Row],[Kgb6M01]]+tabNppJahresKeys[[#This Row],[Kgb6M02]]+tabNppJahresKeys[[#This Row],[Kgb6M03]])/3 -> 0.06666666667 | BK5: =(tabNppJahresKeys[[#This Row],[Kgb6M04]]+tabNppJahresKeys[[#This Row],[Kgb6M05]]+tabNppJahresKeys[[#This Row],[Kgb6M06]])/3 -> 0.06666666667 | BL5: =(tabNppJahresKeys[[#This Row],[Kgb6M07]]+tabNppJahresKeys[[#This Row],[Kgb6M08]]+tabNppJahresKeys[[#This Row],[Kgb6M09]])/3 -> 0.06666666667 | BM5: =(tabNppJahresKeys[[#This Row],[Kgb6M10]]+tabNppJahresKeys[[#This Row],[Kgb6M11]]+tabNppJahresKeys[[#This Row],[Kgb6M12]])/3 -> 0.06666666667 | BN5: =0.8/15 -> 0.05333333333 | BO5: 0.05333333333 | BP5: 0.05333333333 | BQ5: 0.05333333333 | BR5: 0.05333333333 | BS5: 0.05333333333 | BT5: 0.05333333333 | BU5: 0.05333333333 | BV5: 0.05333333333 | BW5: 0.05333333333 | BX5: 0.05333333333 | BY5: 0.05333333333 | BZ5: =(tabNppJahresKeys[[#This Row],[Hou4M01]]+tabNppJahresKeys[[#This Row],[Hou4M02]]+tabNppJahresKeys[[#This Row],[Hou4M03]])/3 -> 0.05333333333 | CA5: =(tabNppJahresKeys[[#This Row],[Hou4M04]]+tabNppJahresKeys[[#This Row],[Hou4M05]]+tabNppJahresKeys[[#This Row],[Hou4M06]])/3 -> 0.05333333333 | CB5: =(tabNppJahresKeys[[#This Row],[Hou4M07]]+tabNppJahresKeys[[#This Row],[Hou4M08]]+tabNppJahresKeys[[#This Row],[Hou4M09]])/3 -> 0.05333333333 | CC5: =(tabNppJahresKeys[[#This Row],[Hou4M10]]+tabNppJahresKeys[[#This Row],[Hou4M11]]+tabNppJahresKeys[[#This Row],[Hou4M12]])/3 -> 0.05333333333 | CD5: =0.6/15 -> 0.04 | CE5: 0.04 | CF5: 0.04 | CG5: 0.04 | CH5: 0.04 | CI5: 0.04 | CJ5: 0.04 | CK5: 0.04 | CL5: 0.04 | CM5: 0.04 | CN5: 0.04 | CO5: 0.04 | CP5: =(tabNppJahresKeys[[#This Row],[Hob4M01]]+tabNppJahresKeys[[#This Row],[Hob4M02]]+tabNppJahresKeys[[#This Row],[Hob4M03]])/3 -> 0.04 | CQ5: =(tabNppJahresKeys[[#This Row],[Hob4M04]]+tabNppJahresKeys[[#This Row],[Hob4M05]]+tabNppJahresKeys[[#This Row],[Hob4M06]])/3 -> 0.04 | CR5: =(tabNppJahresKeys[[#This Row],[Hob4M07]]+tabNppJahresKeys[[#This Row],[Hob4M08]]+tabNppJahresKeys[[#This Row],[Hob4M09]])/3 -> 0.04 | CS5: =(tabNppJahresKeys[[#This Row],[Hob4M10]]+tabNppJahresKeys[[#This Row],[Hob4M11]]+tabNppJahresKeys[[#This Row],[Hob4M12]])/3 -> 0.04
A6: 2017 | B6: =1/5 -> 0.2 | C6: 0.2 | D6: 0.2 | E6: 0.2 | F6: 0.2 | G6: 0.2 | H6: 0.2 | I6: 0.2 | J6: 0.2 | K6: 0.2 | L6: 0.2 | M6: 0.2 | N6: =(tabNppJahresKeys[[#This Row],[Kru6M01]]+tabNppJahresKeys[[#This Row],[Kru6M02]]+tabNppJahresKeys[[#This Row],[Kru6M03]])/3 -> 0.2 | O6: =(tabNppJahresKeys[[#This Row],[Kru6M04]]+tabNppJahresKeys[[#This Row],[Kru6M05]]+tabNppJahresKeys[[#This Row],[Kru6M06]])/3 -> 0.2 | P6: =(tabNppJahresKeys[[#This Row],[Kru6M07]]+tabNppJahresKeys[[#This Row],[Kru6M08]]+tabNppJahresKeys[[#This Row],[Kru6M09]])/3 -> 0.2 | Q6: =(tabNppJahresKeys[[#This Row],[Kru6M10]]+tabNppJahresKeys[[#This Row],[Kru6M11]]+tabNppJahresKeys[[#This Row],[Kru6M12]])/3 -> 0.2 | R6: =0.8/5 -> 0.16 | S6: =0.8/5 -> 0.16 | T6: =0.8/5 -> 0.16 | U6: =0.8/5 -> 0.16 | V6: =0.8/5 -> 0.16 | W6: =0.8/5 -> 0.16 | X6: =0.8/5 -> 0.16 | Y6: =0.8/5 -> 0.16 | Z6: =0.8/5 -> 0.16 | AA6: =0.8/5 -> 0.16 | AB6: =0.8/5 -> 0.16 | AC6: =0.8/5 -> 0.16 | AD6: =(tabNppJahresKeys[[#This Row],[Krb6M01]]+tabNppJahresKeys[[#This Row],[Krb6M02]]+tabNppJahresKeys[[#This Row],[Krb6M03]])/3 -> 0.16 | AE6: =(tabNppJahresKeys[[#This Row],[Krb6M04]]+tabNppJahresKeys[[#This Row],[Krb6M05]]+tabNppJahresKeys[[#This Row],[Krb6M06]])/3 -> 0.16 | AF6: =(tabNppJahresKeys[[#This Row],[Krb6M07]]+tabNppJahresKeys[[#This Row],[Krb6M08]]+tabNppJahresKeys[[#This Row],[Krb6M09]])/3 -> 0.16 | AG6: =(tabNppJahresKeys[[#This Row],[Krb6M10]]+tabNppJahresKeys[[#This Row],[Krb6M11]]+tabNppJahresKeys[[#This Row],[Krb6M12]])/3 -> 0.16 | AH6: =1/12 -> 0.08333333333 | AI6: 0.08333333333 | AJ6: 0.08333333333 | AK6: 0.08333333333 | AL6: 0.08333333333 | AM6: 0.08333333333 | AN6: 0.08333333333 | AO6: =1/11.5 -> 0.08695652174 | AP6: =1/11.5 -> 0.08695652174 | AQ6: =1/11.5 -> 0.08695652174 | AR6: =1/11.5 -> 0.08695652174 | AS6: =1/11.5 -> 0.08695652174 | AT6: =(tabNppJahresKeys[[#This Row],[Kgu6M01]]+tabNppJahresKeys[[#This Row],[Kgu6M02]]+tabNppJahresKeys[[#This Row],[Kgu6M03]])/3 -> 0.08333333333 | AU6: =(tabNppJahresKeys[[#This Row],[Kgu6M04]]+tabNppJahresKeys[[#This Row],[Kgu6M05]]+tabNppJahresKeys[[#This Row],[Kgu6M06]])/3 -> 0.08333333333 | AV6: =(tabNppJahresKeys[[#This Row],[Kgu6M07]]+tabNppJahresKeys[[#This Row],[Kgu6M08]]+tabNppJahresKeys[[#This Row],[Kgu6M09]])/3 -> 0.08574879227 | AW6: =(tabNppJahresKeys[[#This Row],[Kgu6M10]]+tabNppJahresKeys[[#This Row],[Kgu6M11]]+tabNppJahresKeys[[#This Row],[Kgu6M12]])/3 -> 0.08695652174 | AX6: =0.8/12 -> 0.06666666667 | AY6: 0.06666666667 | AZ6: 0.06666666667 | BA6: 0.06666666667 | BB6: 0.06666666667 | BC6: 0.06666666667 | BD6: 0.06666666667 | BE6: =0.8/11.5 -> 0.06956521739 | BF6: =0.8/11.5 -> 0.06956521739 | BG6: =0.8/11.5 -> 0.06956521739 | BH6: =0.8/11.5 -> 0.06956521739 | BI6: =0.8/11.5 -> 0.06956521739 | BJ6: =(tabNppJahresKeys[[#This Row],[Kgb6M01]]+tabNppJahresKeys[[#This Row],[Kgb6M02]]+tabNppJahresKeys[[#This Row],[Kgb6M03]])/3 -> 0.06666666667 | BK6: =(tabNppJahresKeys[[#This Row],[Kgb6M04]]+tabNppJahresKeys[[#This Row],[Kgb6M05]]+tabNppJahresKeys[[#This Row],[Kgb6M06]])/3 -> 0.06666666667 | BL6: =(tabNppJahresKeys[[#This Row],[Kgb6M07]]+tabNppJahresKeys[[#This Row],[Kgb6M08]]+tabNppJahresKeys[[#This Row],[Kgb6M09]])/3 -> 0.06859903382 | BM6: =(tabNppJahresKeys[[#This Row],[Kgb6M10]]+tabNppJahresKeys[[#This Row],[Kgb6M11]]+tabNppJahresKeys[[#This Row],[Kgb6M12]])/3 -> 0.06956521739 | BN6: 0.05333333333 | BO6: 0.05333333333 | BP6: 0.05333333333 | BQ6: 0.05333333333 | BR6: 0.05333333333 | BS6: 0.05333333333 | BT6: 0.05333333333 | BU6: 0.05333333333 | BV6: 0.05333333333 | BW6: 0.05333333333 | BX6: 0.05333333333 | BY6: 0.05333333333 | BZ6: =(tabNppJahresKeys[[#This Row],[Hou4M01]]+tabNppJahresKeys[[#This Row],[Hou4M02]]+tabNppJahresKeys[[#This Row],[Hou4M03]])/3 -> 0.05333333333 | CA6: =(tabNppJahresKeys[[#This Row],[Hou4M04]]+tabNppJahresKeys[[#This Row],[Hou4M05]]+tabNppJahresKeys[[#This Row],[Hou4M06]])/3 -> 0.05333333333 | CB6: =(tabNppJahresKeys[[#This Row],[Hou4M07]]+tabNppJahresKeys[[#This Row],[Hou4M08]]+tabNppJahresKeys[[#This Row],[Hou4M09]])/3 -> 0.05333333333 | CC6: =(tabNppJahresKeys[[#This Row],[Hou4M10]]+tabNppJahresKeys[[#This Row],[Hou4M11]]+tabNppJahresKeys[[#This Row],[Hou4M12]])/3 -> 0.05333333333 | CD6: 0.04 | CE6: 0.04 | CF6: 0.04 | CG6: 0.04 | CH6: 0.04 | CI6: 0.04 | CJ6: 0.04 | CK6: 0.04 | CL6: 0.04 | CM6: 0.04 | CN6: 0.04 | CO6: 0.04 | CP6: =(tabNppJahresKeys[[#This Row],[Hob4M01]]+tabNppJahresKeys[[#This Row],[Hob4M02]]+tabNppJahresKeys[[#This Row],[Hob4M03]])/3 -> 0.04 | CQ6: =(tabNppJahresKeys[[#This Row],[Hob4M04]]+tabNppJahresKeys[[#This Row],[Hob4M05]]+tabNppJahresKeys[[#This Row],[Hob4M06]])/3 -> 0.04 | CR6: =(tabNppJahresKeys[[#This Row],[Hob4M07]]+tabNppJahresKeys[[#This Row],[Hob4M08]]+tabNppJahresKeys[[#This Row],[Hob4M09]])/3 -> 0.04 | CS6: =(tabNppJahresKeys[[#This Row],[Hob4M10]]+tabNppJahresKeys[[#This Row],[Hob4M11]]+tabNppJahresKeys[[#This Row],[Hob4M12]])/3 -> 0.04
A7: 2018 | B7: 0.2 | C7: 0.2 | D7: 0.2 | E7: 0.2 | F7: 0.2 | G7: 0.2 | H7: 0.2 | I7: 0.2 | J7: 0.2 | K7: 0.2 | L7: 0.2 | M7: 0.2 | N7: =(tabNppJahresKeys[[#This Row],[Kru6M01]]+tabNppJahresKeys[[#This Row],[Kru6M02]]+tabNppJahresKeys[[#This Row],[Kru6M03]])/3 -> 0.2 | O7: =(tabNppJahresKeys[[#This Row],[Kru6M04]]+tabNppJahresKeys[[#This Row],[Kru6M05]]+tabNppJahresKeys[[#This Row],[Kru6M06]])/3 -> 0.2 | P7: =(tabNppJahresKeys[[#This Row],[Kru6M07]]+tabNppJahresKeys[[#This Row],[Kru6M08]]+tabNppJahresKeys[[#This Row],[Kru6M09]])/3 -> 0.2 | Q7: =(tabNppJahresKeys[[#This Row],[Kru6M10]]+tabNppJahresKeys[[#This Row],[Kru6M11]]+tabNppJahresKeys[[#This Row],[Kru6M12]])/3 -> 0.2 | R7: =0.8/5 -> 0.16 | S7: 0.16 | T7: 0.16 | U7: 0.16 | V7: 0.16 | W7: 0.16 | X7: 0.16 | Y7: 0.16 | Z7: 0.16 | AA7: 0.16 | AB7: 0.16 | AC7: 0.16 | AD7: =(tabNppJahresKeys[[#This Row],[Krb6M01]]+tabNppJahresKeys[[#This Row],[Krb6M02]]+tabNppJahresKeys[[#This Row],[Krb6M03]])/3 -> 0.16 | AE7: =(tabNppJahresKeys[[#This Row],[Krb6M04]]+tabNppJahresKeys[[#This Row],[Krb6M05]]+tabNppJahresKeys[[#This Row],[Krb6M06]])/3 -> 0.16 | AF7: =(tabNppJahresKeys[[#This Row],[Krb6M07]]+tabNppJahresKeys[[#This Row],[Krb6M08]]+tabNppJahresKeys[[#This Row],[Krb6M09]])/3 -> 0.16 | AG7: =(tabNppJahresKeys[[#This Row],[Krb6M10]]+tabNppJahresKeys[[#This Row],[Krb6M11]]+tabNppJahresKeys[[#This Row],[Krb6M12]])/3 -> 0.16 | AH7: =1/11.5 -> 0.08695652174 | AI7: 0.08695652174 | AJ7: 0.08695652174 | AK7: 0.08695652174 | AL7: 0.08695652174 | AM7: 0.08695652174 | AN7: 0.08695652174 | AO7: =1/11 -> 0.09090909091 | AP7: =1/11 -> 0.09090909091 | AQ7: =1/11 -> 0.09090909091 | AR7: 0.09090909091 | AS7: 0.09090909091 | AT7: =(tabNppJahresKeys[[#This Row],[Kgu6M01]]+tabNppJahresKeys[[#This Row],[Kgu6M02]]+tabNppJahresKeys[[#This Row],[Kgu6M03]])/3 -> 0.08695652174 | AU7: =(tabNppJahresKeys[[#This Row],[Kgu6M04]]+tabNppJahresKeys[[#This Row],[Kgu6M05]]+tabNppJahresKeys[[#This Row],[Kgu6M06]])/3 -> 0.08695652174 | AV7: =(tabNppJahresKeys[[#This Row],[Kgu6M07]]+tabNppJahresKeys[[#This Row],[Kgu6M08]]+tabNppJahresKeys[[#This Row],[Kgu6M09]])/3 -> 0.08959156785 | AW7: =(tabNppJahresKeys[[#This Row],[Kgu6M10]]+tabNppJahresKeys[[#This Row],[Kgu6M11]]+tabNppJahresKeys[[#This Row],[Kgu6M12]])/3 -> 0.09090909091 | AX7: =0.8/11.5 -> 0.06956521739 | AY7: 0.06956521739 | AZ7: 0.06956521739 | BA7: 0.06956521739 | BB7: 0.06956521739 | BC7: 0.06956521739 | BD7: 0.06956521739 | BE7: =0.8/11 -> 0.07272727273 | BF7: =0.8/11 -> 0.07272727273 | BG7: =0.8/11 -> 0.07272727273 | BH7: 0.07272727273 | BI7: 0.07272727273 | BJ7: =(tabNppJahresKeys[[#This Row],[Kgb6M01]]+tabNppJahresKeys[[#This Row],[Kgb6M02]]+tabNppJahresKeys[[#This Row],[Kgb6M03]])/3 -> 0.06956521739 | BK7: =(tabNppJahresKeys[[#This Row],[Kgb6M04]]+tabNppJahresKeys[[#This Row],[Kgb6M05]]+tabNppJahresKeys[[#This Row],[Kgb6M06]])/3 -> 0.06956521739 | BL7: =(tabNppJahresKeys[[#This Row],[Kgb6M07]]+tabNppJahresKeys[[#This Row],[Kgb6M08]]+tabNppJahresKeys[[#This Row],[Kgb6M09]])/3 -> 0.07167325428 | BM7: =(tabNppJahresKeys[[#This Row],[Kgb6M10]]+tabNppJahresKeys[[#This Row],[Kgb6M11]]+tabNppJahresKeys[[#This Row],[Kgb6M12]])/3 -> 0.07272727273 | BN7: 0.05333333333 | BO7: 0.05333333333 | BP7: 0.05333333333 | BQ7: 0.05333333333 | BR7: 0.05333333333 | BS7: 0.05333333333 | BT7: 0.05333333333 | BU7: 0.05333333333 | BV7: 0.05333333333 | BW7: 0.05333333333 | BX7: 0.05333333333 | BY7: 0.05333333333 | BZ7: =(tabNppJahresKeys[[#This Row],[Hou4M01]]+tabNppJahresKeys[[#This Row],[Hou4M02]]+tabNppJahresKeys[[#This Row],[Hou4M03]])/3 -> 0.05333333333 | CA7: =(tabNppJahresKeys[[#This Row],[Hou4M04]]+tabNppJahresKeys[[#This Row],[Hou4M05]]+tabNppJahresKeys[[#This Row],[Hou4M06]])/3 -> 0.05333333333 | CB7: =(tabNppJahresKeys[[#This Row],[Hou4M07]]+tabNppJahresKeys[[#This Row],[Hou4M08]]+tabNppJahresKeys[[#This Row],[Hou4M09]])/3 -> 0.05333333333 | CC7: =(tabNppJahresKeys[[#This Row],[Hou4M10]]+tabNppJahresKeys[[#This Row],[Hou4M11]]+tabNppJahresKeys[[#This Row],[Hou4M12]])/3 -> 0.05333333333 | CD7: 0.04 | CE7: 0.04 | CF7: 0.04 | CG7: 0.04 | CH7: 0.04 | CI7: 0.04 | CJ7: 0.04 | CK7: 0.04 | CL7: 0.04 | CM7: 0.04 | CN7: 0.04 | CO7: 0.04 | CP7: =(tabNppJahresKeys[[#This Row],[Hob4M01]]+tabNppJahresKeys[[#This Row],[Hob4M02]]+tabNppJahresKeys[[#This Row],[Hob4M03]])/3 -> 0.04 | CQ7: =(tabNppJahresKeys[[#This Row],[Hob4M04]]+tabNppJahresKeys[[#This Row],[Hob4M05]]+tabNppJahresKeys[[#This Row],[Hob4M06]])/3 -> 0.04 | CR7: =(tabNppJahresKeys[[#This Row],[Hob4M07]]+tabNppJahresKeys[[#This Row],[Hob4M08]]+tabNppJahresKeys[[#This Row],[Hob4M09]])/3 -> 0.04 | CS7: =(tabNppJahresKeys[[#This Row],[Hob4M10]]+tabNppJahresKeys[[#This Row],[Hob4M11]]+tabNppJahresKeys[[#This Row],[Hob4M12]])/3 -> 0.04
A8: 2019 | B8: 0.2 | C8: 0.2 | D8: 0.2 | E8: 0.2 | F8: 0.2 | G8: 0.2 | H8: 0.2 | I8: 0.2 | J8: 0.2 | K8: 0.2 | L8: 0.2 | M8: 0.2 | N8: =(tabNppJahresKeys[[#This Row],[Kru6M01]]+tabNppJahresKeys[[#This Row],[Kru6M02]]+tabNppJahresKeys[[#This Row],[Kru6M03]])/3 -> 0.2 | O8: =(tabNppJahresKeys[[#This Row],[Kru6M04]]+tabNppJahresKeys[[#This Row],[Kru6M05]]+tabNppJahresKeys[[#This Row],[Kru6M06]])/3 -> 0.2 | P8: =(tabNppJahresKeys[[#This Row],[Kru6M07]]+tabNppJahresKeys[[#This Row],[Kru6M08]]+tabNppJahresKeys[[#This Row],[Kru6M09]])/3 -> 0.2 | Q8: =(tabNppJahresKeys[[#This Row],[Kru6M10]]+tabNppJahresKeys[[#This Row],[Kru6M11]]+tabNppJahresKeys[[#This Row],[Kru6M12]])/3 -> 0.2 | R8: 0.16 | S8: 0.16 | T8: 0.16 | U8: 0.16 | V8: 0.16 | W8: 0.16 | X8: 0.16 | Y8: 0.16 | Z8: 0.16 | AA8: 0.16 | AB8: 0.16 | AC8: 0.16 | AD8: =(tabNppJahresKeys[[#This Row],[Krb6M01]]+tabNppJahresKeys[[#This Row],[Krb6M02]]+tabNppJahresKeys[[#This Row],[Krb6M03]])/3 -> 0.16 | AE8: =(tabNppJahresKeys[[#This Row],[Krb6M04]]+tabNppJahresKeys[[#This Row],[Krb6M05]]+tabNppJahresKeys[[#This Row],[Krb6M06]])/3 -> 0.16 | AF8: =(tabNppJahresKeys[[#This Row],[Krb6M07]]+tabNppJahresKeys[[#This Row],[Krb6M08]]+tabNppJahresKeys[[#This Row],[Krb6M09]])/3 -> 0.16 | AG8: =(tabNppJahresKeys[[#This Row],[Krb6M10]]+tabNppJahresKeys[[#This Row],[Krb6M11]]+tabNppJahresKeys[[#This Row],[Krb6M12]])/3 -> 0.16 | AH8: =1/11 -> 0.09090909091 | AI8: =1/11 -> 0.09090909091 | AJ8: 0.09090909091 | AK8: 0.09090909091 | AL8: 0.09090909091 | AM8: 0.09090909091 | AN8: 0.09090909091 | AO8: 0.09090909091 | AP8: =1/11 -> 0.09090909091 | AQ8: 0.09090909091 | AR8: 0.09090909091 | AS8: 0.09090909091 | AT8: =(tabNppJahresKeys[[#This Row],[Kgu6M01]]+tabNppJahresKeys[[#This Row],[Kgu6M02]]+tabNppJahresKeys[[#This Row],[Kgu6M03]])/3 -> 0.09090909091 | AU8: =(tabNppJahresKeys[[#This Row],[Kgu6M04]]+tabNppJahresKeys[[#This Row],[Kgu6M05]]+tabNppJahresKeys[[#This Row],[Kgu6M06]])/3 -> 0.09090909091 | AV8: =(tabNppJahresKeys[[#This Row],[Kgu6M07]]+tabNppJahresKeys[[#This Row],[Kgu6M08]]+tabNppJahresKeys[[#This Row],[Kgu6M09]])/3 -> 0.09090909091 | AW8: =(tabNppJahresKeys[[#This Row],[Kgu6M10]]+tabNppJahresKeys[[#This Row],[Kgu6M11]]+tabNppJahresKeys[[#This Row],[Kgu6M12]])/3 -> 0.09090909091 | AX8: =0.8/11 -> 0.07272727273 | AY8: =0.8/11 -> 0.07272727273 | AZ8: 0.07272727273 | BA8: 0.07272727273 | BB8: 0.07272727273 | BC8: 0.07272727273 | BD8: 0.07272727273 | BE8: 0.07272727273 | BF8: =0.8/11 -> 0.07272727273 | BG8: 0.07272727273 | BH8: 0.07272727273 | BI8: 0.07272727273 | BJ8: =(tabNppJahresKeys[[#This Row],[Kgb6M01]]+tabNppJahresKeys[[#This Row],[Kgb6M02]]+tabNppJahresKeys[[#This Row],[Kgb6M03]])/3 -> 0.07272727273 | BK8: =(tabNppJahresKeys[[#This Row],[Kgb6M04]]+tabNppJahresKeys[[#This Row],[Kgb6M05]]+tabNppJahresKeys[[#This Row],[Kgb6M06]])/3 -> 0.07272727273 | BL8: =(tabNppJahresKeys[[#This Row],[Kgb6M07]]+tabNppJahresKeys[[#This Row],[Kgb6M08]]+tabNppJahresKeys[[#This Row],[Kgb6M09]])/3 -> 0.07272727273 | BM8: =(tabNppJahresKeys[[#This Row],[Kgb6M10]]+tabNppJahresKeys[[#This Row],[Kgb6M11]]+tabNppJahresKeys[[#This Row],[Kgb6M12]])/3 -> 0.07272727273 | BN8: 0.05333333333 | BO8: 0.05333333333 | BP8: 0.05333333333 | BQ8: 0.05333333333 | BR8: 0.05333333333 | BS8: 0.05333333333 | BT8: 0.05333333333 | BU8: 0.05333333333 | BV8: 0.05333333333 | BW8: 0.05333333333 | BX8: 0.05333333333 | BY8: 0.05333333333 | BZ8: =(tabNppJahresKeys[[#This Row],[Hou4M01]]+tabNppJahresKeys[[#This Row],[Hou4M02]]+tabNppJahresKeys[[#This Row],[Hou4M03]])/3 -> 0.05333333333 | CA8: =(tabNppJahresKeys[[#This Row],[Hou4M04]]+tabNppJahresKeys[[#This Row],[Hou4M05]]+tabNppJahresKeys[[#This Row],[Hou4M06]])/3 -> 0.05333333333 | CB8: =(tabNppJahresKeys[[#This Row],[Hou4M07]]+tabNppJahresKeys[[#This Row],[Hou4M08]]+tabNppJahresKeys[[#This Row],[Hou4M09]])/3 -> 0.05333333333 | CC8: =(tabNppJahresKeys[[#This Row],[Hou4M10]]+tabNppJahresKeys[[#This Row],[Hou4M11]]+tabNppJahresKeys[[#This Row],[Hou4M12]])/3 -> 0.05333333333 | CD8: 0.04 | CE8: 0.04 | CF8: 0.04 | CG8: 0.04 | CH8: 0.04 | CI8: 0.04 | CJ8: 0.04 | CK8: 0.04 | CL8: 0.04 | CM8: 0.04 | CN8: 0.04 | CO8: 0.04 | CP8: =(tabNppJahresKeys[[#This Row],[Hob4M01]]+tabNppJahresKeys[[#This Row],[Hob4M02]]+tabNppJahresKeys[[#This Row],[Hob4M03]])/3 -> 0.04 | CQ8: =(tabNppJahresKeys[[#This Row],[Hob4M04]]+tabNppJahresKeys[[#This Row],[Hob4M05]]+tabNppJahresKeys[[#This Row],[Hob4M06]])/3 -> 0.04 | CR8: =(tabNppJahresKeys[[#This Row],[Hob4M07]]+tabNppJahresKeys[[#This Row],[Hob4M08]]+tabNppJahresKeys[[#This Row],[Hob4M09]])/3 -> 0.04 | CS8: =(tabNppJahresKeys[[#This Row],[Hob4M10]]+tabNppJahresKeys[[#This Row],[Hob4M11]]+tabNppJahresKeys[[#This Row],[Hob4M12]])/3 -> 0.04
A9: 2020 | B9: 0.2 | C9: 0.2 | D9: 0.2 | E9: 0.2 | F9: 0.2 | G9: 0.2 | H9: 0.2 | I9: 0.2 | J9: 0.2 | K9: 0.2 | L9: 0.2 | M9: 0.2 | N9: =(tabNppJahresKeys[[#This Row],[Kru6M01]]+tabNppJahresKeys[[#This Row],[Kru6M02]]+tabNppJahresKeys[[#This Row],[Kru6M03]])/3 -> 0.2 | O9: =(tabNppJahresKeys[[#This Row],[Kru6M04]]+tabNppJahresKeys[[#This Row],[Kru6M05]]+tabNppJahresKeys[[#This Row],[Kru6M06]])/3 -> 0.2 | P9: =(tabNppJahresKeys[[#This Row],[Kru6M07]]+tabNppJahresKeys[[#This Row],[Kru6M08]]+tabNppJahresKeys[[#This Row],[Kru6M09]])/3 -> 0.2 | Q9: =(tabNppJahresKeys[[#This Row],[Kru6M10]]+tabNppJahresKeys[[#This Row],[Kru6M11]]+tabNppJahresKeys[[#This Row],[Kru6M12]])/3 -> 0.2 | R9: 0.16 | S9: 0.16 | T9: 0.16 | U9: 0.16 | V9: 0.16 | W9: 0.16 | X9: 0.16 | Y9: 0.16 | Z9: 0.16 | AA9: 0.16 | AB9: 0.16 | AC9: 0.16 | AD9: =(tabNppJahresKeys[[#This Row],[Krb6M01]]+tabNppJahresKeys[[#This Row],[Krb6M02]]+tabNppJahresKeys[[#This Row],[Krb6M03]])/3 -> 0.16 | AE9: =(tabNppJahresKeys[[#This Row],[Krb6M04]]+tabNppJahresKeys[[#This Row],[Krb6M05]]+tabNppJahresKeys[[#This Row],[Krb6M06]])/3 -> 0.16 | AF9: =(tabNppJahresKeys[[#This Row],[Krb6M07]]+tabNppJahresKeys[[#This Row],[Krb6M08]]+tabNppJahresKeys[[#This Row],[Krb6M09]])/3 -> 0.16 | AG9: =(tabNppJahresKeys[[#This Row],[Krb6M10]]+tabNppJahresKeys[[#This Row],[Krb6M11]]+tabNppJahresKeys[[#This Row],[Krb6M12]])/3 -> 0.16 | AH9: =1/11 -> 0.09090909091 | AI9: 0.09090909091 | AJ9: 0.09090909091 | AK9: 0.09090909091 | AL9: 0.09090909091 | AM9: 0.09090909091 | AN9: 0.09090909091 | AO9: =1/10 -> 0.1 | AP9: =1/10 -> 0.1 | AQ9: =1/10 -> 0.1 | AR9: 0.1 | AS9: 0.1 | AT9: =(tabNppJahresKeys[[#This Row],[Kgu6M01]]+tabNppJahresKeys[[#This Row],[Kgu6M02]]+tabNppJahresKeys[[#This Row],[Kgu6M03]])/3 -> 0.09090909091 | AU9: =(tabNppJahresKeys[[#This Row],[Kgu6M04]]+tabNppJahresKeys[[#This Row],[Kgu6M05]]+tabNppJahresKeys[[#This Row],[Kgu6M06]])/3 -> 0.09090909091 | AV9: =(tabNppJahresKeys[[#This Row],[Kgu6M07]]+tabNppJahresKeys[[#This Row],[Kgu6M08]]+tabNppJahresKeys[[#This Row],[Kgu6M09]])/3 -> 0.09696969697 | AW9: =(tabNppJahresKeys[[#This Row],[Kgu6M10]]+tabNppJahresKeys[[#This Row],[Kgu6M11]]+tabNppJahresKeys[[#This Row],[Kgu6M12]])/3 -> 0.1 | AX9: =0.8/11 -> 0.07272727273 | AY9: 0.07272727273 | AZ9: 0.07272727273 | BA9: 0.07272727273 | BB9: 0.07272727273 | BC9: 0.07272727273 | BD9: 0.07272727273 | BE9: =0.8/10 -> 0.08 | BF9: =0.8/10 -> 0.08 | BG9: =0.8/10 -> 0.08 | BH9: 0.08 | BI9: 0.08 | BJ9: =(tabNppJahresKeys[[#This Row],[Kgb6M01]]+tabNppJahresKeys[[#This Row],[Kgb6M02]]+tabNppJahresKeys[[#This Row],[Kgb6M03]])/3 -> 0.07272727273 | BK9: =(tabNppJahresKeys[[#This Row],[Kgb6M04]]+tabNppJahresKeys[[#This Row],[Kgb6M05]]+tabNppJahresKeys[[#This Row],[Kgb6M06]])/3 -> 0.07272727273 | BL9: =(tabNppJahresKeys[[#This Row],[Kgb6M07]]+tabNppJahresKeys[[#This Row],[Kgb6M08]]+tabNppJahresKeys[[#This Row],[Kgb6M09]])/3 -> 0.07757575758 | BM9: =(tabNppJahresKeys[[#This Row],[Kgb6M10]]+tabNppJahresKeys[[#This Row],[Kgb6M11]]+tabNppJahresKeys[[#This Row],[Kgb6M12]])/3 -> 0.08 | BN9: 0.05333333333 | BO9: 0.05333333333 | BP9: 0.05333333333 | BQ9: 0.05333333333 | BR9: 0.05333333333 | BS9: 0.05333333333 | BT9: 0.05333333333 | BU9: 0.05333333333 | BV9: 0.05333333333 | BW9: 0.05333333333 | BX9: 0.05333333333 | BY9: 0.05333333333 | BZ9: =(tabNppJahresKeys[[#This Row],[Hou4M01]]+tabNppJahresKeys[[#This Row],[Hou4M02]]+tabNppJahresKeys[[#This Row],[Hou4M03]])/3 -> 0.05333333333 | CA9: =(tabNppJahresKeys[[#This Row],[Hou4M04]]+tabNppJahresKeys[[#This Row],[Hou4M05]]+tabNppJahresKeys[[#This Row],[Hou4M06]])/3 -> 0.05333333333 | CB9: =(tabNppJahresKeys[[#This Row],[Hou4M07]]+tabNppJahresKeys[[#This Row],[Hou4M08]]+tabNppJahresKeys[[#This Row],[Hou4M09]])/3 -> 0.05333333333 | CC9: =(tabNppJahresKeys[[#This Row],[Hou4M10]]+tabNppJahresKeys[[#This Row],[Hou4M11]]+tabNppJahresKeys[[#This Row],[Hou4M12]])/3 -> 0.05333333333 | CD9: 0.04 | CE9: 0.04 | CF9: 0.04 | CG9: 0.04 | CH9: 0.04 | CI9: 0.04 | CJ9: 0.04 | CK9: 0.04 | CL9: 0.04 | CM9: 0.04 | CN9: 0.04 | CO9: 0.04 | CP9: =(tabNppJahresKeys[[#This Row],[Hob4M01]]+tabNppJahresKeys[[#This Row],[Hob4M02]]+tabNppJahresKeys[[#This Row],[Hob4M03]])/3 -> 0.04 | CQ9: =(tabNppJahresKeys[[#This Row],[Hob4M04]]+tabNppJahresKeys[[#This Row],[Hob4M05]]+tabNppJahresKeys[[#This Row],[Hob4M06]])/3 -> 0.04 | CR9: =(tabNppJahresKeys[[#This Row],[Hob4M07]]+tabNppJahresKeys[[#This Row],[Hob4M08]]+tabNppJahresKeys[[#This Row],[Hob4M09]])/3 -> 0.04 | CS9: =(tabNppJahresKeys[[#This Row],[Hob4M10]]+tabNppJahresKeys[[#This Row],[Hob4M11]]+tabNppJahresKeys[[#This Row],[Hob4M12]])/3 -> 0.04
A10: 2021 | B10: 0.2 | C10: 0.2 | D10: 0.2 | E10: 0.2 | F10: 0.2 | G10: 0.2 | H10: 0.2 | I10: 0.2 | J10: 0.2 | K10: 0.2 | L10: 0.2 | M10: 0.2 | N10: =(tabNppJahresKeys[[#This Row],[Kru6M01]]+tabNppJahresKeys[[#This Row],[Kru6M02]]+tabNppJahresKeys[[#This Row],[Kru6M03]])/3 -> 0.2 | O10: =(tabNppJahresKeys[[#This Row],[Kru6M04]]+tabNppJahresKeys[[#This Row],[Kru6M05]]+tabNppJahresKeys[[#This Row],[Kru6M06]])/3 -> 0.2 | P10: =(tabNppJahresKeys[[#This Row],[Kru6M07]]+tabNppJahresKeys[[#This Row],[Kru6M08]]+tabNppJahresKeys[[#This Row],[Kru6M09]])/3 -> 0.2 | Q10: =(tabNppJahresKeys[[#This Row],[Kru6M10]]+tabNppJahresKeys[[#This Row],[Kru6M11]]+tabNppJahresKeys[[#This Row],[Kru6M12]])/3 -> 0.2 | R10: 0.16 | S10: 0.16 | T10: 0.16 | U10: 0.16 | V10: 0.16 | W10: 0.16 | X10: 0.16 | Y10: 0.16 | Z10: 0.16 | AA10: 0.16 | AB10: 0.16 | AC10: 0.16 | AD10: =(tabNppJahresKeys[[#This Row],[Krb6M01]]+tabNppJahresKeys[[#This Row],[Krb6M02]]+tabNppJahresKeys[[#This Row],[Krb6M03]])/3 -> 0.16 | AE10: =(tabNppJahresKeys[[#This Row],[Krb6M04]]+tabNppJahresKeys[[#This Row],[Krb6M05]]+tabNppJahresKeys[[#This Row],[Krb6M06]])/3 -> 0.16 | AF10: =(tabNppJahresKeys[[#This Row],[Krb6M07]]+tabNppJahresKeys[[#This Row],[Krb6M08]]+tabNppJahresKeys[[#This Row],[Krb6M09]])/3 -> 0.16 | AG10: =(tabNppJahresKeys[[#This Row],[Krb6M10]]+tabNppJahresKeys[[#This Row],[Krb6M11]]+tabNppJahresKeys[[#This Row],[Krb6M12]])/3 -> 0.16 | AH10: =1/10 -> 0.1 | AI10: =1/10 -> 0.1 | AJ10: 0.1 | AK10: 0.1 | AL10: 0.1 | AM10: 0.1 | AN10: 0.1 | AO10: 0.1 | AP10: 0.1 | AQ10: 0.1 | AR10: 0.1 | AS10: 0.1 | AT10: =(tabNppJahresKeys[[#This Row],[Kgu6M01]]+tabNppJahresKeys[[#This Row],[Kgu6M02]]+tabNppJahresKeys[[#This Row],[Kgu6M03]])/3 -> 0.1 | AU10: =(tabNppJahresKeys[[#This Row],[Kgu6M04]]+tabNppJahresKeys[[#This Row],[Kgu6M05]]+tabNppJahresKeys[[#This Row],[Kgu6M06]])/3 -> 0.1 | AV10: =(tabNppJahresKeys[[#This Row],[Kgu6M07]]+tabNppJahresKeys[[#This Row],[Kgu6M08]]+tabNppJahresKeys[[#This Row],[Kgu6M09]])/3 -> 0.1 | AW10: =(tabNppJahresKeys[[#This Row],[Kgu6M10]]+tabNppJahresKeys[[#This Row],[Kgu6M11]]+tabNppJahresKeys[[#This Row],[Kgu6M12]])/3 -> 0.1 | AX10: =0.8/10 -> 0.08 | AY10: =0.8/10 -> 0.08 | AZ10: 0.08 | BA10: 0.08 | BB10: 0.08 | BC10: 0.08 | BD10: 0.08 | BE10: 0.08 | BF10: 0.08 | BG10: 0.08 | BH10: 0.08 | BI10: 0.08 | BJ10: =(tabNppJahresKeys[[#This Row],[Kgb6M01]]+tabNppJahresKeys[[#This Row],[Kgb6M02]]+tabNppJahresKeys[[#This Row],[Kgb6M03]])/3 -> 0.08 | BK10: =(tabNppJahresKeys[[#This Row],[Kgb6M04]]+tabNppJahresKeys[[#This Row],[Kgb6M05]]+tabNppJahresKeys[[#This Row],[Kgb6M06]])/3 -> 0.08 | BL10: =(tabNppJahresKeys[[#This Row],[Kgb6M07]]+tabNppJahresKeys[[#This Row],[Kgb6M08]]+tabNppJahresKeys[[#This Row],[Kgb6M09]])/3 -> 0.08 | BM10: =(tabNppJahresKeys[[#This Row],[Kgb6M10]]+tabNppJahresKeys[[#This Row],[Kgb6M11]]+tabNppJahresKeys[[#This Row],[Kgb6M12]])/3 -> 0.08 | BN10: 0.05333333333 | BO10: 0.05333333333 | BP10: 0.05333333333 | BQ10: 0.05333333333 | BR10: 0.05333333333 | BS10: 0.05333333333 | BT10: 0.05333333333 | BU10: 0.05333333333 | BV10: 0.05333333333 | BW10: 0.05333333333 | BX10: 0.05333333333 | BY10: 0.05333333333 | BZ10: =(tabNppJahresKeys[[#This Row],[Hou4M01]]+tabNppJahresKeys[[#This Row],[Hou4M02]]+tabNppJahresKeys[[#This Row],[Hou4M03]])/3 -> 0.05333333333 | CA10: =(tabNppJahresKeys[[#This Row],[Hou4M04]]+tabNppJahresKeys[[#This Row],[Hou4M05]]+tabNppJahresKeys[[#This Row],[Hou4M06]])/3 -> 0.05333333333 | CB10: =(tabNppJahresKeys[[#This Row],[Hou4M07]]+tabNppJahresKeys[[#This Row],[Hou4M08]]+tabNppJahresKeys[[#This Row],[Hou4M09]])/3 -> 0.05333333333 | CC10: =(tabNppJahresKeys[[#This Row],[Hou4M10]]+tabNppJahresKeys[[#This Row],[Hou4M11]]+tabNppJahresKeys[[#This Row],[Hou4M12]])/3 -> 0.05333333333 | CD10: 0.04 | CE10: 0.04 | CF10: 0.04 | CG10: 0.04 | CH10: 0.04 | CI10: 0.04 | CJ10: 0.04 | CK10: 0.04 | CL10: 0.04 | CM10: 0.04 | CN10: 0.04 | CO10: 0.04 | CP10: =(tabNppJahresKeys[[#This Row],[Hob4M01]]+tabNppJahresKeys[[#This Row],[Hob4M02]]+tabNppJahresKeys[[#This Row],[Hob4M03]])/3 -> 0.04 | CQ10: =(tabNppJahresKeys[[#This Row],[Hob4M04]]+tabNppJahresKeys[[#This Row],[Hob4M05]]+tabNppJahresKeys[[#This Row],[Hob4M06]])/3 -> 0.04 | CR10: =(tabNppJahresKeys[[#This Row],[Hob4M07]]+tabNppJahresKeys[[#This Row],[Hob4M08]]+tabNppJahresKeys[[#This Row],[Hob4M09]])/3 -> 0.04 | CS10: =(tabNppJahresKeys[[#This Row],[Hob4M10]]+tabNppJahresKeys[[#This Row],[Hob4M11]]+tabNppJahresKeys[[#This Row],[Hob4M12]])/3 -> 0.04
A11: 2022 | B11: 0.2 | C11: 0.2 | D11: 0.2 | E11: 0.2 | F11: 0.2 | G11: 0.2 | H11: 0.2 | I11: 0.2 | J11: 0.2 | K11: 0.2 | L11: 0.2 | M11: 0.2 | N11: =(tabNppJahresKeys[[#This Row],[Kru6M01]]+tabNppJahresKeys[[#This Row],[Kru6M02]]+tabNppJahresKeys[[#This Row],[Kru6M03]])/3 -> 0.2 | O11: =(tabNppJahresKeys[[#This Row],[Kru6M04]]+tabNppJahresKeys[[#This Row],[Kru6M05]]+tabNppJahresKeys[[#This Row],[Kru6M06]])/3 -> 0.2 | P11: =(tabNppJahresKeys[[#This Row],[Kru6M07]]+tabNppJahresKeys[[#This Row],[Kru6M08]]+tabNppJahresKeys[[#This Row],[Kru6M09]])/3 -> 0.2 | Q11: =(tabNppJahresKeys[[#This Row],[Kru6M10]]+tabNppJahresKeys[[#This Row],[Kru6M11]]+tabNppJahresKeys[[#This Row],[Kru6M12]])/3 -> 0.2 | R11: 0.16 | S11: 0.16 | T11: 0.16 | U11: 0.16 | V11: 0.16 | W11: 0.16 | X11: 0.16 | Y11: 0.16 | Z11: 0.16 | AA11: 0.16 | AB11: 0.16 | AC11: 0.16 | AD11: =(tabNppJahresKeys[[#This Row],[Krb6M01]]+tabNppJahresKeys[[#This Row],[Krb6M02]]+tabNppJahresKeys[[#This Row],[Krb6M03]])/3 -> 0.16 | AE11: =(tabNppJahresKeys[[#This Row],[Krb6M04]]+tabNppJahresKeys[[#This Row],[Krb6M05]]+tabNppJahresKeys[[#This Row],[Krb6M06]])/3 -> 0.16 | AF11: =(tabNppJahresKeys[[#This Row],[Krb6M07]]+tabNppJahresKeys[[#This Row],[Krb6M08]]+tabNppJahresKeys[[#This Row],[Krb6M09]])/3 -> 0.16 | AG11: =(tabNppJahresKeys[[#This Row],[Krb6M10]]+tabNppJahresKeys[[#This Row],[Krb6M11]]+tabNppJahresKeys[[#This Row],[Krb6M12]])/3 -> 0.16 | AH11: =1/10 -> 0.1 | AI11: 0.1 | AJ11: 0.1 | AK11: 0.1 | AL11: 0.1 | AM11: 0.1 | AN11: 0.1 | AO11: 0.1 | AP11: 0.1 | AQ11: 0.1 | AR11: 0.1 | AS11: 0.1 | AT11: =(tabNppJahresKeys[[#This Row],[Kgu6M01]]+tabNppJahresKeys[[#This Row],[Kgu6M02]]+tabNppJahresKeys[[#This Row],[Kgu6M03]])/3 -> 0.1 | AU11: =(tabNppJahresKeys[[#This Row],[Kgu6M04]]+tabNppJahresKeys[[#This Row],[Kgu6M05]]+tabNppJahresKeys[[#This Row],[Kgu6M06]])/3 -> 0.1 | AV11: =(tabNppJahresKeys[[#This Row],[Kgu6M07]]+tabNppJahresKeys[[#This Row],[Kgu6M08]]+tabNppJahresKeys[[#This Row],[Kgu6M09]])/3 -> 0.1 | AW11: =(tabNppJahresKeys[[#This Row],[Kgu6M10]]+tabNppJahresKeys[[#This Row],[Kgu6M11]]+tabNppJahresKeys[[#This Row],[Kgu6M12]])/3 -> 0.1 | AX11: =0.8/10 -> 0.08 | AY11: 0.08 | AZ11: 0.08 | BA11: 0.08 | BB11: 0.08 | BC11: 0.08 | BD11: 0.08 | BE11: 0.08 | BF11: 0.08 | BG11: 0.08 | BH11: 0.08 | BI11: 0.08 | BJ11: =(tabNppJahresKeys[[#This Row],[Kgb6M01]]+tabNppJahresKeys[[#This Row],[Kgb6M02]]+tabNppJahresKeys[[#This Row],[Kgb6M03]])/3 -> 0.08 | BK11: =(tabNppJahresKeys[[#This Row],[Kgb6M04]]+tabNppJahresKeys[[#This Row],[Kgb6M05]]+tabNppJahresKeys[[#This Row],[Kgb6M06]])/3 -> 0.08 | BL11: =(tabNppJahresKeys[[#This Row],[Kgb6M07]]+tabNppJahresKeys[[#This Row],[Kgb6M08]]+tabNppJahresKeys[[#This Row],[Kgb6M09]])/3 -> 0.08 | BM11: =(tabNppJahresKeys[[#This Row],[Kgb6M10]]+tabNppJahresKeys[[#This Row],[Kgb6M11]]+tabNppJahresKeys[[#This Row],[Kgb6M12]])/3 -> 0.08 | BN11: 0.05333333333 | BO11: 0.05333333333 | BP11: 0.05333333333 | BQ11: 0.05333333333 | BR11: 0.05333333333 | BS11: 0.05333333333 | BT11: 0.05333333333 | BU11: 0.05333333333 | BV11: 0.05333333333 | BW11: 0.05333333333 | BX11: 0.05333333333 | BY11: 0.05333333333 | BZ11: =(tabNppJahresKeys[[#This Row],[Hou4M01]]+tabNppJahresKeys[[#This Row],[Hou4M02]]+tabNppJahresKeys[[#This Row],[Hou4M03]])/3 -> 0.05333333333 | CA11: =(tabNppJahresKeys[[#This Row],[Hou4M04]]+tabNppJahresKeys[[#This Row],[Hou4M05]]+tabNppJahresKeys[[#This Row],[Hou4M06]])/3 -> 0.05333333333 | CB11: =(tabNppJahresKeys[[#This Row],[Hou4M07]]+tabNppJahresKeys[[#This Row],[Hou4M08]]+tabNppJahresKeys[[#This Row],[Hou4M09]])/3 -> 0.05333333333 | CC11: =(tabNppJahresKeys[[#This Row],[Hou4M10]]+tabNppJahresKeys[[#This Row],[Hou4M11]]+tabNppJahresKeys[[#This Row],[Hou4M12]])/3 -> 0.05333333333 | CD11: 0.04 | CE11: 0.04 | CF11: 0.04 | CG11: 0.04 | CH11: 0.04 | CI11: 0.04 | CJ11: 0.04 | CK11: 0.04 | CL11: 0.04 | CM11: 0.04 | CN11: 0.04 | CO11: 0.04 | CP11: =(tabNppJahresKeys[[#This Row],[Hob4M01]]+tabNppJahresKeys[[#This Row],[Hob4M02]]+tabNppJahresKeys[[#This Row],[Hob4M03]])/3 -> 0.04 | CQ11: =(tabNppJahresKeys[[#This Row],[Hob4M04]]+tabNppJahresKeys[[#This Row],[Hob4M05]]+tabNppJahresKeys[[#This Row],[Hob4M06]])/3 -> 0.04 | CR11: =(tabNppJahresKeys[[#This Row],[Hob4M07]]+tabNppJahresKeys[[#This Row],[Hob4M08]]+tabNppJahresKeys[[#This Row],[Hob4M09]])/3 -> 0.04 | CS11: =(tabNppJahresKeys[[#This Row],[Hob4M10]]+tabNppJahresKeys[[#This Row],[Hob4M11]]+tabNppJahresKeys[[#This Row],[Hob4M12]])/3 -> 0.04
A12: 2023 | B12: 0.2 | C12: 0.2 | D12: 0.2 | E12: 0.2 | F12: 0.2 | G12: 0.2 | H12: 0.2 | I12: 0.2 | J12: 0.2 | K12: 0.2 | L12: 0.2 | M12: 0.2 | N12: =(tabNppJahresKeys[[#This Row],[Kru6M01]]+tabNppJahresKeys[[#This Row],[Kru6M02]]+tabNppJahresKeys[[#This Row],[Kru6M03]])/3 -> 0.2 | O12: =(tabNppJahresKeys[[#This Row],[Kru6M04]]+tabNppJahresKeys[[#This Row],[Kru6M05]]+tabNppJahresKeys[[#This Row],[Kru6M06]])/3 -> 0.2 | P12: =(tabNppJahresKeys[[#This Row],[Kru6M07]]+tabNppJahresKeys[[#This Row],[Kru6M08]]+tabNppJahresKeys[[#This Row],[Kru6M09]])/3 -> 0.2 | Q12: =(tabNppJahresKeys[[#This Row],[Kru6M10]]+tabNppJahresKeys[[#This Row],[Kru6M11]]+tabNppJahresKeys[[#This Row],[Kru6M12]])/3 -> 0.2 | R12: 0.16 | S12: 0.16 | T12: 0.16 | U12: 0.16 | V12: 0.16 | W12: 0.16 | X12: 0.16 | Y12: 0.16 | Z12: 0.16 | AA12: 0.16 | AB12: 0.16 | AC12: 0.16 | AD12: =(tabNppJahresKeys[[#This Row],[Krb6M01]]+tabNppJahresKeys[[#This Row],[Krb6M02]]+tabNppJahresKeys[[#This Row],[Krb6M03]])/3 -> 0.16 | AE12: =(tabNppJahresKeys[[#This Row],[Krb6M04]]+tabNppJahresKeys[[#This Row],[Krb6M05]]+tabNppJahresKeys[[#This Row],[Krb6M06]])/3 -> 0.16 | AF12: =(tabNppJahresKeys[[#This Row],[Krb6M07]]+tabNppJahresKeys[[#This Row],[Krb6M08]]+tabNppJahresKeys[[#This Row],[Krb6M09]])/3 -> 0.16 | AG12: =(tabNppJahresKeys[[#This Row],[Krb6M10]]+tabNppJahresKeys[[#This Row],[Krb6M11]]+tabNppJahresKeys[[#This Row],[Krb6M12]])/3 -> 0.16 | AH12: 0.1 | AI12: 0.1 | AJ12: 0.1 | AK12: 0.1 | AL12: 0.1 | AM12: 0.1 | AN12: 0.1 | AO12: 0.1 | AP12: 0.1 | AQ12: 0.1 | AR12: 0.1 | AS12: 0.1 | AT12: =(tabNppJahresKeys[[#This Row],[Kgu6M01]]+tabNppJahresKeys[[#This Row],[Kgu6M02]]+tabNppJahresKeys[[#This Row],[Kgu6M03]])/3 -> 0.1 | AU12: =(tabNppJahresKeys[[#This Row],[Kgu6M04]]+tabNppJahresKeys[[#This Row],[Kgu6M05]]+tabNppJahresKeys[[#This Row],[Kgu6M06]])/3 -> 0.1 | AV12: =(tabNppJahresKeys[[#This Row],[Kgu6M07]]+tabNppJahresKeys[[#This Row],[Kgu6M08]]+tabNppJahresKeys[[#This Row],[Kgu6M09]])/3 -> 0.1 | AW12: =(tabNppJahresKeys[[#This Row],[Kgu6M10]]+tabNppJahresKeys[[#This Row],[Kgu6M11]]+tabNppJahresKeys[[#This Row],[Kgu6M12]])/3 -> 0.1 | AX12: 0.08 | AY12: 0.08 | AZ12: 0.08 | BA12: 0.08 | BB12: 0.08 | BC12: 0.08 | BD12: 0.08 | BE12: 0.08 | BF12: 0.08 | BG12: 0.08 | BH12: 0.08 | BI12: 0.08 | BJ12: =(tabNppJahresKeys[[#This Row],[Kgb6M01]]+tabNppJahresKeys[[#This Row],[Kgb6M02]]+tabNppJahresKeys[[#This Row],[Kgb6M03]])/3 -> 0.08 | BK12: =(tabNppJahresKeys[[#This Row],[Kgb6M04]]+tabNppJahresKeys[[#This Row],[Kgb6M05]]+tabNppJahresKeys[[#This Row],[Kgb6M06]])/3 -> 0.08 | BL12: =(tabNppJahresKeys[[#This Row],[Kgb6M07]]+tabNppJahresKeys[[#This Row],[Kgb6M08]]+tabNppJahresKeys[[#This Row],[Kgb6M09]])/3 -> 0.08 | BM12: =(tabNppJahresKeys[[#This Row],[Kgb6M10]]+tabNppJahresKeys[[#This Row],[Kgb6M11]]+tabNppJahresKeys[[#This Row],[Kgb6M12]])/3 -> 0.08 | BN12: 0.05333333333 | BO12: 0.05333333333 | BP12: 0.05333333333 | BQ12: 0.05333333333 | BR12: 0.05333333333 | BS12: 0.05333333333 | BT12: 0.05333333333 | BU12: 0.05333333333 | BV12: 0.05333333333 | BW12: 0.05333333333 | BX12: 0.05333333333 | BY12: 0.05333333333 | BZ12: =(tabNppJahresKeys[[#This Row],[Hou4M01]]+tabNppJahresKeys[[#This Row],[Hou4M02]]+tabNppJahresKeys[[#This Row],[Hou4M03]])/3 -> 0.05333333333 | CA12: =(tabNppJahresKeys[[#This Row],[Hou4M04]]+tabNppJahresKeys[[#This Row],[Hou4M05]]+tabNppJahresKeys[[#This Row],[Hou4M06]])/3 -> 0.05333333333 | CB12: =(tabNppJahresKeys[[#This Row],[Hou4M07]]+tabNppJahresKeys[[#This Row],[Hou4M08]]+tabNppJahresKeys[[#This Row],[Hou4M09]])/3 -> 0.05333333333 | CC12: =(tabNppJahresKeys[[#This Row],[Hou4M10]]+tabNppJahresKeys[[#This Row],[Hou4M11]]+tabNppJahresKeys[[#This Row],[Hou4M12]])/3 -> 0.05333333333 | CD12: 0.04 | CE12: 0.04 | CF12: 0.04 | CG12: 0.04 | CH12: 0.04 | CI12: 0.04 | CJ12: 0.04 | CK12: 0.04 | CL12: 0.04 | CM12: 0.04 | CN12: 0.04 | CO12: 0.04 | CP12: =(tabNppJahresKeys[[#This Row],[Hob4M01]]+tabNppJahresKeys[[#This Row],[Hob4M02]]+tabNppJahresKeys[[#This Row],[Hob4M03]])/3 -> 0.04 | CQ12: =(tabNppJahresKeys[[#This Row],[Hob4M04]]+tabNppJahresKeys[[#This Row],[Hob4M05]]+tabNppJahresKeys[[#This Row],[Hob4M06]])/3 -> 0.04 | CR12: =(tabNppJahresKeys[[#This Row],[Hob4M07]]+tabNppJahresKeys[[#This Row],[Hob4M08]]+tabNppJahresKeys[[#This Row],[Hob4M09]])/3 -> 0.04 | CS12: =(tabNppJahresKeys[[#This Row],[Hob4M10]]+tabNppJahresKeys[[#This Row],[Hob4M11]]+tabNppJahresKeys[[#This Row],[Hob4M12]])/3 -> 0.04
A13: 2024 | B13: 0.2 | C13: 0.2 | D13: 0.2 | E13: 0.2 | F13: 0.2 | G13: 0.2 | H13: 0.2 | I13: 0.2 | J13: 0.2 | K13: 0.2 | L13: 0.2 | M13: 0.2 | N13: =(tabNppJahresKeys[[#This Row],[Kru6M01]]+tabNppJahresKeys[[#This Row],[Kru6M02]]+tabNppJahresKeys[[#This Row],[Kru6M03]])/3 -> 0.2 | O13: =(tabNppJahresKeys[[#This Row],[Kru6M04]]+tabNppJahresKeys[[#This Row],[Kru6M05]]+tabNppJahresKeys[[#This Row],[Kru6M06]])/3 -> 0.2 | P13: =(tabNppJahresKeys[[#This Row],[Kru6M07]]+tabNppJahresKeys[[#This Row],[Kru6M08]]+tabNppJahresKeys[[#This Row],[Kru6M09]])/3 -> 0.2 | Q13: =(tabNppJahresKeys[[#This Row],[Kru6M10]]+tabNppJahresKeys[[#This Row],[Kru6M11]]+tabNppJahresKeys[[#This Row],[Kru6M12]])/3 -> 0.2 | R13: 0.16 | S13: 0.16 | T13: 0.16 | U13: 0.16 | V13: 0.16 | W13: 0.16 | X13: 0.16 | Y13: 0.16 | Z13: 0.16 | AA13: 0.16 | AB13: 0.16 | AC13: 0.16 | AD13: =(tabNppJahresKeys[[#This Row],[Krb6M01]]+tabNppJahresKeys[[#This Row],[Krb6M02]]+tabNppJahresKeys[[#This Row],[Krb6M03]])/3 -> 0.16 | AE13: =(tabNppJahresKeys[[#This Row],[Krb6M04]]+tabNppJahresKeys[[#This Row],[Krb6M05]]+tabNppJahresKeys[[#This Row],[Krb6M06]])/3 -> 0.16 | AF13: =(tabNppJahresKeys[[#This Row],[Krb6M07]]+tabNppJahresKeys[[#This Row],[Krb6M08]]+tabNppJahresKeys[[#This Row],[Krb6M09]])/3 -> 0.16 | AG13: =(tabNppJahresKeys[[#This Row],[Krb6M10]]+tabNppJahresKeys[[#This Row],[Krb6M11]]+tabNppJahresKeys[[#This Row],[Krb6M12]])/3 -> 0.16 | AH13: 0.1 | AI13: 0.1 | AJ13: 0.1 | AK13: 0.1 | AL13: 0.1 | AM13: 0.1 | AN13: 0.1 | AO13: 0.1 | AP13: 0.1 | AQ13: 0.1 | AR13: 0.1 | AS13: 0.1 | AT13: =(tabNppJahresKeys[[#This Row],[Kgu6M01]]+tabNppJahresKeys[[#This Row],[Kgu6M02]]+tabNppJahresKeys[[#This Row],[Kgu6M03]])/3 -> 0.1 | AU13: =(tabNppJahresKeys[[#This Row],[Kgu6M04]]+tabNppJahresKeys[[#This Row],[Kgu6M05]]+tabNppJahresKeys[[#This Row],[Kgu6M06]])/3 -> 0.1 | AV13: =(tabNppJahresKeys[[#This Row],[Kgu6M07]]+tabNppJahresKeys[[#This Row],[Kgu6M08]]+tabNppJahresKeys[[#This Row],[Kgu6M09]])/3 -> 0.1 | AW13: =(tabNppJahresKeys[[#This Row],[Kgu6M10]]+tabNppJahresKeys[[#This Row],[Kgu6M11]]+tabNppJahresKeys[[#This Row],[Kgu6M12]])/3 -> 0.1 | AX13: 0.08 | AY13: 0.08 | AZ13: 0.08 | BA13: 0.08 | BB13: 0.08 | BC13: 0.08 | BD13: 0.08 | BE13: 0.08 | BF13: 0.08 | BG13: 0.08 | BH13: 0.08 | BI13: 0.08 | BJ13: =(tabNppJahresKeys[[#This Row],[Kgb6M01]]+tabNppJahresKeys[[#This Row],[Kgb6M02]]+tabNppJahresKeys[[#This Row],[Kgb6M03]])/3 -> 0.08 | BK13: =(tabNppJahresKeys[[#This Row],[Kgb6M04]]+tabNppJahresKeys[[#This Row],[Kgb6M05]]+tabNppJahresKeys[[#This Row],[Kgb6M06]])/3 -> 0.08 | BL13: =(tabNppJahresKeys[[#This Row],[Kgb6M07]]+tabNppJahresKeys[[#This Row],[Kgb6M08]]+tabNppJahresKeys[[#This Row],[Kgb6M09]])/3 -> 0.08 | BM13: =(tabNppJahresKeys[[#This Row],[Kgb6M10]]+tabNppJahresKeys[[#This Row],[Kgb6M11]]+tabNppJahresKeys[[#This Row],[Kgb6M12]])/3 -> 0.08 | BN13: 0.05333333333 | BO13: 0.05333333333 | BP13: 0.05333333333 | BQ13: 0.05333333333 | BR13: 0.05333333333 | BS13: 0.05333333333 | BT13: 0.05333333333 | BU13: 0.05333333333 | BV13: 0.05333333333 | BW13: 0.05333333333 | BX13: 0.05333333333 | BY13: 0.05333333333 | BZ13: =(tabNppJahresKeys[[#This Row],[Hou4M01]]+tabNppJahresKeys[[#This Row],[Hou4M02]]+tabNppJahresKeys[[#This Row],[Hou4M03]])/3 -> 0.05333333333 | CA13: =(tabNppJahresKeys[[#This Row],[Hou4M04]]+tabNppJahresKeys[[#This Row],[Hou4M05]]+tabNppJahresKeys[[#This Row],[Hou4M06]])/3 -> 0.05333333333 | CB13: =(tabNppJahresKeys[[#This Row],[Hou4M07]]+tabNppJahresKeys[[#This Row],[Hou4M08]]+tabNppJahresKeys[[#This Row],[Hou4M09]])/3 -> 0.05333333333 | CC13: =(tabNppJahresKeys[[#This Row],[Hou4M10]]+tabNppJahresKeys[[#This Row],[Hou4M11]]+tabNppJahresKeys[[#This Row],[Hou4M12]])/3 -> 0.05333333333 | CD13: 0.04 | CE13: 0.04 | CF13: 0.04 | CG13: 0.04 | CH13: 0.04 | CI13: 0.04 | CJ13: 0.04 | CK13: 0.04 | CL13: 0.04 | CM13: 0.04 | CN13: 0.04 | CO13: 0.04 | CP13: =(tabNppJahresKeys[[#This Row],[Hob4M01]]+tabNppJahresKeys[[#This Row],[Hob4M02]]+tabNppJahresKeys[[#This Row],[Hob4M03]])/3 -> 0.04 | CQ13: =(tabNppJahresKeys[[#This Row],[Hob4M04]]+tabNppJahresKeys[[#This Row],[Hob4M05]]+tabNppJahresKeys[[#This Row],[Hob4M06]])/3 -> 0.04 | CR13: =(tabNppJahresKeys[[#This Row],[Hob4M07]]+tabNppJahresKeys[[#This Row],[Hob4M08]]+tabNppJahresKeys[[#This Row],[Hob4M09]])/3 -> 0.04 | CS13: =(tabNppJahresKeys[[#This Row],[Hob4M10]]+tabNppJahresKeys[[#This Row],[Hob4M11]]+tabNppJahresKeys[[#This Row],[Hob4M12]])/3 -> 0.04
A14: 2025 | B14: 0.2 | C14: 0.2 | D14: 0.2 | E14: 0.2 | F14: 0.2 | G14: 0.2 | H14: 0.2 | I14: 0.2 | J14: 0.2 | K14: 0.2 | L14: 0.2 | M14: 0.2 | N14: =(tabNppJahresKeys[[#This Row],[Kru6M01]]+tabNppJahresKeys[[#This Row],[Kru6M02]]+tabNppJahresKeys[[#This Row],[Kru6M03]])/3 -> 0.2 | O14: =(tabNppJahresKeys[[#This Row],[Kru6M04]]+tabNppJahresKeys[[#This Row],[Kru6M05]]+tabNppJahresKeys[[#This Row],[Kru6M06]])/3 -> 0.2 | P14: =(tabNppJahresKeys[[#This Row],[Kru6M07]]+tabNppJahresKeys[[#This Row],[Kru6M08]]+tabNppJahresKeys[[#This Row],[Kru6M09]])/3 -> 0.2 | Q14: =(tabNppJahresKeys[[#This Row],[Kru6M10]]+tabNppJahresKeys[[#This Row],[Kru6M11]]+tabNppJahresKeys[[#This Row],[Kru6M12]])/3 -> 0.2 | R14: 0.16 | S14: 0.16 | T14: 0.16 | U14: 0.16 | V14: 0.16 | W14: 0.16 | X14: 0.16 | Y14: 0.16 | Z14: 0.16 | AA14: 0.16 | AB14: 0.16 | AC14: 0.16 | AD14: =(tabNppJahresKeys[[#This Row],[Krb6M01]]+tabNppJahresKeys[[#This Row],[Krb6M02]]+tabNppJahresKeys[[#This Row],[Krb6M03]])/3 -> 0.16 | AE14: =(tabNppJahresKeys[[#This Row],[Krb6M04]]+tabNppJahresKeys[[#This Row],[Krb6M05]]+tabNppJahresKeys[[#This Row],[Krb6M06]])/3 -> 0.16 | AF14: =(tabNppJahresKeys[[#This Row],[Krb6M07]]+tabNppJahresKeys[[#This Row],[Krb6M08]]+tabNppJahresKeys[[#This Row],[Krb6M09]])/3 -> 0.16 | AG14: =(tabNppJahresKeys[[#This Row],[Krb6M10]]+tabNppJahresKeys[[#This Row],[Krb6M11]]+tabNppJahresKeys[[#This Row],[Krb6M12]])/3 -> 0.16 | AH14: 0.1 | AI14: 0.1 | AJ14: 0.1 | AK14: 0.1 | AL14: 0.1 | AM14: 0.1 | AN14: 0.1 | AO14: 0.1 | AP14: 0.1 | AQ14: 0.1 | AR14: 0.1 | AS14: 0.1 | AT14: =(tabNppJahresKeys[[#This Row],[Kgu6M01]]+tabNppJahresKeys[[#This Row],[Kgu6M02]]+tabNppJahresKeys[[#This Row],[Kgu6M03]])/3 -> 0.1 | AU14: =(tabNppJahresKeys[[#This Row],[Kgu6M04]]+tabNppJahresKeys[[#This Row],[Kgu6M05]]+tabNppJahresKeys[[#This Row],[Kgu6M06]])/3 -> 0.1 | AV14: =(tabNppJahresKeys[[#This Row],[Kgu6M07]]+tabNppJahresKeys[[#This Row],[Kgu6M08]]+tabNppJahresKeys[[#This Row],[Kgu6M09]])/3 -> 0.1 | AW14: =(tabNppJahresKeys[[#This Row],[Kgu6M10]]+tabNppJahresKeys[[#This Row],[Kgu6M11]]+tabNppJahresKeys[[#This Row],[Kgu6M12]])/3 -> 0.1 | AX14: 0.08 | AY14: 0.08 | AZ14: 0.08 | BA14: 0.08 | BB14: 0.08 | BC14: 0.08 | BD14: 0.08 | BE14: 0.08 | BF14: 0.08 | BG14: 0.08 | BH14: 0.08 | BI14: 0.08 | BJ14: =(tabNppJahresKeys[[#This Row],[Kgb6M01]]+tabNppJahresKeys[[#This Row],[Kgb6M02]]+tabNppJahresKeys[[#This Row],[Kgb6M03]])/3 -> 0.08 | BK14: =(tabNppJahresKeys[[#This Row],[Kgb6M04]]+tabNppJahresKeys[[#This Row],[Kgb6M05]]+tabNppJahresKeys[[#This Row],[Kgb6M06]])/3 -> 0.08 | BL14: =(tabNppJahresKeys[[#This Row],[Kgb6M07]]+tabNppJahresKeys[[#This Row],[Kgb6M08]]+tabNppJahresKeys[[#This Row],[Kgb6M09]])/3 -> 0.08 | BM14: =(tabNppJahresKeys[[#This Row],[Kgb6M10]]+tabNppJahresKeys[[#This Row],[Kgb6M11]]+tabNppJahresKeys[[#This Row],[Kgb6M12]])/3 -> 0.08 | BN14: 0.05333333333 | BO14: 0.05333333333 | BP14: 0.05333333333 | BQ14: 0.05333333333 | BR14: 0.05333333333 | BS14: 0.05333333333 | BT14: 0.05333333333 | BU14: 0.05333333333 | BV14: 0.05333333333 | BW14: 0.05333333333 | BX14: 0.05333333333 | BY14: 0.05333333333 | BZ14: =(tabNppJahresKeys[[#This Row],[Hou4M01]]+tabNppJahresKeys[[#This Row],[Hou4M02]]+tabNppJahresKeys[[#This Row],[Hou4M03]])/3 -> 0.05333333333 | CA14: =(tabNppJahresKeys[[#This Row],[Hou4M04]]+tabNppJahresKeys[[#This Row],[Hou4M05]]+tabNppJahresKeys[[#This Row],[Hou4M06]])/3 -> 0.05333333333 | CB14: =(tabNppJahresKeys[[#This Row],[Hou4M07]]+tabNppJahresKeys[[#This Row],[Hou4M08]]+tabNppJahresKeys[[#This Row],[Hou4M09]])/3 -> 0.05333333333 | CC14: =(tabNppJahresKeys[[#This Row],[Hou4M10]]+tabNppJahresKeys[[#This Row],[Hou4M11]]+tabNppJahresKeys[[#This Row],[Hou4M12]])/3 -> 0.05333333333 | CD14: 0.04 | CE14: 0.04 | CF14: 0.04 | CG14: 0.04 | CH14: 0.04 | CI14: 0.04 | CJ14: 0.04 | CK14: 0.04 | CL14: 0.04 | CM14: 0.04 | CN14: 0.04 | CO14: 0.04 | CP14: =(tabNppJahresKeys[[#This Row],[Hob4M01]]+tabNppJahresKeys[[#This Row],[Hob4M02]]+tabNppJahresKeys[[#This Row],[Hob4M03]])/3 -> 0.04 | CQ14: =(tabNppJahresKeys[[#This Row],[Hob4M04]]+tabNppJahresKeys[[#This Row],[Hob4M05]]+tabNppJahresKeys[[#This Row],[Hob4M06]])/3 -> 0.04 | CR14: =(tabNppJahresKeys[[#This Row],[Hob4M07]]+tabNppJahresKeys[[#This Row],[Hob4M08]]+tabNppJahresKeys[[#This Row],[Hob4M09]])/3 -> 0.04 | CS14: =(tabNppJahresKeys[[#This Row],[Hob4M10]]+tabNppJahresKeys[[#This Row],[Hob4M11]]+tabNppJahresKeys[[#This Row],[Hob4M12]])/3 -> 0.04
A15: 2026 | B15: 0.2 | C15: 0.2 | D15: 0.2 | E15: 0.2 | F15: 0.2 | G15: 0.2 | H15: 0.2 | I15: 0.2 | J15: 0.2 | K15: 0.2 | L15: 0.2 | M15: 0.2 | N15: =(tabNppJahresKeys[[#This Row],[Kru6M01]]+tabNppJahresKeys[[#This Row],[Kru6M02]]+tabNppJahresKeys[[#This Row],[Kru6M03]])/3 -> 0.2 | O15: =(tabNppJahresKeys[[#This Row],[Kru6M04]]+tabNppJahresKeys[[#This Row],[Kru6M05]]+tabNppJahresKeys[[#This Row],[Kru6M06]])/3 -> 0.2 | P15: =(tabNppJahresKeys[[#This Row],[Kru6M07]]+tabNppJahresKeys[[#This Row],[Kru6M08]]+tabNppJahresKeys[[#This Row],[Kru6M09]])/3 -> 0.2 | Q15: =(tabNppJahresKeys[[#This Row],[Kru6M10]]+tabNppJahresKeys[[#This Row],[Kru6M11]]+tabNppJahresKeys[[#This Row],[Kru6M12]])/3 -> 0.2 | R15: 0.16 | S15: 0.16 | T15: 0.16 | U15: 0.16 | V15: 0.16 | W15: 0.16 | X15: 0.16 | Y15: 0.16 | Z15: 0.16 | AA15: 0.16 | AB15: 0.16 | AC15: 0.16 | AD15: =(tabNppJahresKeys[[#This Row],[Krb6M01]]+tabNppJahresKeys[[#This Row],[Krb6M02]]+tabNppJahresKeys[[#This Row],[Krb6M03]])/3 -> 0.16 | AE15: =(tabNppJahresKeys[[#This Row],[Krb6M04]]+tabNppJahresKeys[[#This Row],[Krb6M05]]+tabNppJahresKeys[[#This Row],[Krb6M06]])/3 -> 0.16 | AF15: =(tabNppJahresKeys[[#This Row],[Krb6M07]]+tabNppJahresKeys[[#This Row],[Krb6M08]]+tabNppJahresKeys[[#This Row],[Krb6M09]])/3 -> 0.16 | AG15: =(tabNppJahresKeys[[#This Row],[Krb6M10]]+tabNppJahresKeys[[#This Row],[Krb6M11]]+tabNppJahresKeys[[#This Row],[Krb6M12]])/3 -> 0.16 | AH15: 0.1 | AI15: 0.1 | AJ15: 0.1 | AK15: 0.1 | AL15: 0.1 | AM15: 0.1 | AN15: 0.1 | AO15: 0.1 | AP15: 0.1 | AQ15: 0.1 | AR15: 0.1 | AS15: 0.1 | AT15: =(tabNppJahresKeys[[#This Row],[Kgu6M01]]+tabNppJahresKeys[[#This Row],[Kgu6M02]]+tabNppJahresKeys[[#This Row],[Kgu6M03]])/3 -> 0.1 | AU15: =(tabNppJahresKeys[[#This Row],[Kgu6M04]]+tabNppJahresKeys[[#This Row],[Kgu6M05]]+tabNppJahresKeys[[#This Row],[Kgu6M06]])/3 -> 0.1 | AV15: =(tabNppJahresKeys[[#This Row],[Kgu6M07]]+tabNppJahresKeys[[#This Row],[Kgu6M08]]+tabNppJahresKeys[[#This Row],[Kgu6M09]])/3 -> 0.1 | AW15: =(tabNppJahresKeys[[#This Row],[Kgu6M10]]+tabNppJahresKeys[[#This Row],[Kgu6M11]]+tabNppJahresKeys[[#This Row],[Kgu6M12]])/3 -> 0.1 | AX15: 0.08 | AY15: 0.08 | AZ15: 0.08 | BA15: 0.08 | BB15: 0.08 | BC15: 0.08 | BD15: 0.08 | BE15: 0.08 | BF15: 0.08 | BG15: 0.08 | BH15: 0.08 | BI15: 0.08 | BJ15: =(tabNppJahresKeys[[#This Row],[Kgb6M01]]+tabNppJahresKeys[[#This Row],[Kgb6M02]]+tabNppJahresKeys[[#This Row],[Kgb6M03]])/3 -> 0.08 | BK15: =(tabNppJahresKeys[[#This Row],[Kgb6M04]]+tabNppJahresKeys[[#This Row],[Kgb6M05]]+tabNppJahresKeys[[#This Row],[Kgb6M06]])/3 -> 0.08 | BL15: =(tabNppJahresKeys[[#This Row],[Kgb6M07]]+tabNppJahresKeys[[#This Row],[Kgb6M08]]+tabNppJahresKeys[[#This Row],[Kgb6M09]])/3 -> 0.08 | BM15: =(tabNppJahresKeys[[#This Row],[Kgb6M10]]+tabNppJahresKeys[[#This Row],[Kgb6M11]]+tabNppJahresKeys[[#This Row],[Kgb6M12]])/3 -> 0.08 | BN15: 0.05333333333 | BO15: 0.05333333333 | BP15: 0.05333333333 | BQ15: 0.05333333333 | BR15: 0.05333333333 | BS15: 0.05333333333 | BT15: 0.05333333333 | BU15: 0.05333333333 | BV15: 0.05333333333 | BW15: 0.05333333333 | BX15: 0.05333333333 | BY15: 0.05333333333 | BZ15: =(tabNppJahresKeys[[#This Row],[Hou4M01]]+tabNppJahresKeys[[#This Row],[Hou4M02]]+tabNppJahresKeys[[#This Row],[Hou4M03]])/3 -> 0.05333333333 | CA15: =(tabNppJahresKeys[[#This Row],[Hou4M04]]+tabNppJahresKeys[[#This Row],[Hou4M05]]+tabNppJahresKeys[[#This Row],[Hou4M06]])/3 -> 0.05333333333 | CB15: =(tabNppJahresKeys[[#This Row],[Hou4M07]]+tabNppJahresKeys[[#This Row],[Hou4M08]]+tabNppJahresKeys[[#This Row],[Hou4M09]])/3 -> 0.05333333333 | CC15: =(tabNppJahresKeys[[#This Row],[Hou4M10]]+tabNppJahresKeys[[#This Row],[Hou4M11]]+tabNppJahresKeys[[#This Row],[Hou4M12]])/3 -> 0.05333333333 | CD15: 0.04 | CE15: 0.04 | CF15: 0.04 | CG15: 0.04 | CH15: 0.04 | CI15: 0.04 | CJ15: 0.04 | CK15: 0.04 | CL15: 0.04 | CM15: 0.04 | CN15: 0.04 | CO15: 0.04 | CP15: =(tabNppJahresKeys[[#This Row],[Hob4M01]]+tabNppJahresKeys[[#This Row],[Hob4M02]]+tabNppJahresKeys[[#This Row],[Hob4M03]])/3 -> 0.04 | CQ15: =(tabNppJahresKeys[[#This Row],[Hob4M04]]+tabNppJahresKeys[[#This Row],[Hob4M05]]+tabNppJahresKeys[[#This Row],[Hob4M06]])/3 -> 0.04 | CR15: =(tabNppJahresKeys[[#This Row],[Hob4M07]]+tabNppJahresKeys[[#This Row],[Hob4M08]]+tabNppJahresKeys[[#This Row],[Hob4M09]])/3 -> 0.04 | CS15: =(tabNppJahresKeys[[#This Row],[Hob4M10]]+tabNppJahresKeys[[#This Row],[Hob4M11]]+tabNppJahresKeys[[#This Row],[Hob4M12]])/3 -> 0.04
A16: 2027 | B16: 0.2 | C16: 0.2 | D16: 0.2 | E16: 0.2 | F16: 0.2 | G16: 0.2 | H16: 0.2 | I16: 0.2 | J16: 0.2 | K16: 0.2 | L16: 0.2 | M16: 0.2 | N16: =(tabNppJahresKeys[[#This Row],[Kru6M01]]+tabNppJahresKeys[[#This Row],[Kru6M02]]+tabNppJahresKeys[[#This Row],[Kru6M03]])/3 -> 0.2 | O16: =(tabNppJahresKeys[[#This Row],[Kru6M04]]+tabNppJahresKeys[[#This Row],[Kru6M05]]+tabNppJahresKeys[[#This Row],[Kru6M06]])/3 -> 0.2 | P16: =(tabNppJahresKeys[[#This Row],[Kru6M07]]+tabNppJahresKeys[[#This Row],[Kru6M08]]+tabNppJahresKeys[[#This Row],[Kru6M09]])/3 -> 0.2 | Q16: =(tabNppJahresKeys[[#This Row],[Kru6M10]]+tabNppJahresKeys[[#This Row],[Kru6M11]]+tabNppJahresKeys[[#This Row],[Kru6M12]])/3 -> 0.2 | R16: 0.16 | S16: 0.16 | T16: 0.16 | U16: 0.16 | V16: 0.16 | W16: 0.16 | X16: 0.16 | Y16: 0.16 | Z16: 0.16 | AA16: 0.16 | AB16: 0.16 | AC16: 0.16 | AD16: =(tabNppJahresKeys[[#This Row],[Krb6M01]]+tabNppJahresKeys[[#This Row],[Krb6M02]]+tabNppJahresKeys[[#This Row],[Krb6M03]])/3 -> 0.16 | AE16: =(tabNppJahresKeys[[#This Row],[Krb6M04]]+tabNppJahresKeys[[#This Row],[Krb6M05]]+tabNppJahresKeys[[#This Row],[Krb6M06]])/3 -> 0.16 | AF16: =(tabNppJahresKeys[[#This Row],[Krb6M07]]+tabNppJahresKeys[[#This Row],[Krb6M08]]+tabNppJahresKeys[[#This Row],[Krb6M09]])/3 -> 0.16 | AG16: =(tabNppJahresKeys[[#This Row],[Krb6M10]]+tabNppJahresKeys[[#This Row],[Krb6M11]]+tabNppJahresKeys[[#This Row],[Krb6M12]])/3 -> 0.16 | AH16: 0.1 | AI16: 0.1 | AJ16: 0.1 | AK16: 0.1 | AL16: 0.1 | AM16: 0.1 | AN16: 0.1 | AO16: 0.1 | AP16: 0.1 | AQ16: 0.1 | AR16: 0.1 | AS16: 0.1 | AT16: =(tabNppJahresKeys[[#This Row],[Kgu6M01]]+tabNppJahresKeys[[#This Row],[Kgu6M02]]+tabNppJahresKeys[[#This Row],[Kgu6M03]])/3 -> 0.1 | AU16: =(tabNppJahresKeys[[#This Row],[Kgu6M04]]+tabNppJahresKeys[[#This Row],[Kgu6M05]]+tabNppJahresKeys[[#This Row],[Kgu6M06]])/3 -> 0.1 | AV16: =(tabNppJahresKeys[[#This Row],[Kgu6M07]]+tabNppJahresKeys[[#This Row],[Kgu6M08]]+tabNppJahresKeys[[#This Row],[Kgu6M09]])/3 -> 0.1 | AW16: =(tabNppJahresKeys[[#This Row],[Kgu6M10]]+tabNppJahresKeys[[#This Row],[Kgu6M11]]+tabNppJahresKeys[[#This Row],[Kgu6M12]])/3 -> 0.1 | AX16: 0.08 | AY16: 0.08 | AZ16: 0.08 | BA16: 0.08 | BB16: 0.08 | BC16: 0.08 | BD16: 0.08 | BE16: 0.08 | BF16: 0.08 | BG16: 0.08 | BH16: 0.08 | BI16: 0.08 | BJ16: =(tabNppJahresKeys[[#This Row],[Kgb6M01]]+tabNppJahresKeys[[#This Row],[Kgb6M02]]+tabNppJahresKeys[[#This Row],[Kgb6M03]])/3 -> 0.08 | BK16: =(tabNppJahresKeys[[#This Row],[Kgb6M04]]+tabNppJahresKeys[[#This Row],[Kgb6M05]]+tabNppJahresKeys[[#This Row],[Kgb6M06]])/3 -> 0.08 | BL16: =(tabNppJahresKeys[[#This Row],[Kgb6M07]]+tabNppJahresKeys[[#This Row],[Kgb6M08]]+tabNppJahresKeys[[#This Row],[Kgb6M09]])/3 -> 0.08 | BM16: =(tabNppJahresKeys[[#This Row],[Kgb6M10]]+tabNppJahresKeys[[#This Row],[Kgb6M11]]+tabNppJahresKeys[[#This Row],[Kgb6M12]])/3 -> 0.08 | BN16: 0.05333333333 | BO16: 0.05333333333 | BP16: 0.05333333333 | BQ16: 0.05333333333 | BR16: 0.05333333333 | BS16: 0.05333333333 | BT16: 0.05333333333 | BU16: 0.05333333333 | BV16: 0.05333333333 | BW16: 0.05333333333 | BX16: 0.05333333333 | BY16: 0.05333333333 | BZ16: =(tabNppJahresKeys[[#This Row],[Hou4M01]]+tabNppJahresKeys[[#This Row],[Hou4M02]]+tabNppJahresKeys[[#This Row],[Hou4M03]])/3 -> 0.05333333333 | CA16: =(tabNppJahresKeys[[#This Row],[Hou4M04]]+tabNppJahresKeys[[#This Row],[Hou4M05]]+tabNppJahresKeys[[#This Row],[Hou4M06]])/3 -> 0.05333333333 | CB16: =(tabNppJahresKeys[[#This Row],[Hou4M07]]+tabNppJahresKeys[[#This Row],[Hou4M08]]+tabNppJahresKeys[[#This Row],[Hou4M09]])/3 -> 0.05333333333 | CC16: =(tabNppJahresKeys[[#This Row],[Hou4M10]]+tabNppJahresKeys[[#This Row],[Hou4M11]]+tabNppJahresKeys[[#This Row],[Hou4M12]])/3 -> 0.05333333333 | CD16: 0.04 | CE16: 0.04 | CF16: 0.04 | CG16: 0.04 | CH16: 0.04 | CI16: 0.04 | CJ16: 0.04 | CK16: 0.04 | CL16: 0.04 | CM16: 0.04 | CN16: 0.04 | CO16: 0.04 | CP16: =(tabNppJahresKeys[[#This Row],[Hob4M01]]+tabNppJahresKeys[[#This Row],[Hob4M02]]+tabNppJahresKeys[[#This Row],[Hob4M03]])/3 -> 0.04 | CQ16: =(tabNppJahresKeys[[#This Row],[Hob4M04]]+tabNppJahresKeys[[#This Row],[Hob4M05]]+tabNppJahresKeys[[#This Row],[Hob4M06]])/3 -> 0.04 | CR16: =(tabNppJahresKeys[[#This Row],[Hob4M07]]+tabNppJahresKeys[[#This Row],[Hob4M08]]+tabNppJahresKeys[[#This Row],[Hob4M09]])/3 -> 0.04 | CS16: =(tabNppJahresKeys[[#This Row],[Hob4M10]]+tabNppJahresKeys[[#This Row],[Hob4M11]]+tabNppJahresKeys[[#This Row],[Hob4M12]])/3 -> 0.04
A17: 2028 | B17: 0.2 | C17: 0.2 | D17: 0.2 | E17: 0.2 | F17: 0.2 | G17: 0.2 | H17: 0.2 | I17: 0.2 | J17: 0.2 | K17: 0.2 | L17: 0.2 | M17: 0.2 | N17: =(tabNppJahresKeys[[#This Row],[Kru6M01]]+tabNppJahresKeys[[#This Row],[Kru6M02]]+tabNppJahresKeys[[#This Row],[Kru6M03]])/3 -> 0.2 | O17: =(tabNppJahresKeys[[#This Row],[Kru6M04]]+tabNppJahresKeys[[#This Row],[Kru6M05]]+tabNppJahresKeys[[#This Row],[Kru6M06]])/3 -> 0.2 | P17: =(tabNppJahresKeys[[#This Row],[Kru6M07]]+tabNppJahresKeys[[#This Row],[Kru6M08]]+tabNppJahresKeys[[#This Row],[Kru6M09]])/3 -> 0.2 | Q17: =(tabNppJahresKeys[[#This Row],[Kru6M10]]+tabNppJahresKeys[[#This Row],[Kru6M11]]+tabNppJahresKeys[[#This Row],[Kru6M12]])/3 -> 0.2 | R17: 0.16 | S17: 0.16 | T17: 0.16 | U17: 0.16 | V17: 0.16 | W17: 0.16 | X17: 0.16 | Y17: 0.16 | Z17: 0.16 | AA17: 0.16 | AB17: 0.16 | AC17: 0.16 | AD17: =(tabNppJahresKeys[[#This Row],[Krb6M01]]+tabNppJahresKeys[[#This Row],[Krb6M02]]+tabNppJahresKeys[[#This Row],[Krb6M03]])/3 -> 0.16 | AE17: =(tabNppJahresKeys[[#This Row],[Krb6M04]]+tabNppJahresKeys[[#This Row],[Krb6M05]]+tabNppJahresKeys[[#This Row],[Krb6M06]])/3 -> 0.16 | AF17: =(tabNppJahresKeys[[#This Row],[Krb6M07]]+tabNppJahresKeys[[#This Row],[Krb6M08]]+tabNppJahresKeys[[#This Row],[Krb6M09]])/3 -> 0.16 | AG17: =(tabNppJahresKeys[[#This Row],[Krb6M10]]+tabNppJahresKeys[[#This Row],[Krb6M11]]+tabNppJahresKeys[[#This Row],[Krb6M12]])/3 -> 0.16 | AH17: 0.1 | AI17: 0.1 | AJ17: 0.1 | AK17: 0.1 | AL17: 0.1 | AM17: 0.1 | AN17: 0.1 | AO17: 0.1 | AP17: 0.1 | AQ17: 0.1 | AR17: 0.1 | AS17: 0.1 | AT17: =(tabNppJahresKeys[[#This Row],[Kgu6M01]]+tabNppJahresKeys[[#This Row],[Kgu6M02]]+tabNppJahresKeys[[#This Row],[Kgu6M03]])/3 -> 0.1 | AU17: =(tabNppJahresKeys[[#This Row],[Kgu6M04]]+tabNppJahresKeys[[#This Row],[Kgu6M05]]+tabNppJahresKeys[[#This Row],[Kgu6M06]])/3 -> 0.1 | AV17: =(tabNppJahresKeys[[#This Row],[Kgu6M07]]+tabNppJahresKeys[[#This Row],[Kgu6M08]]+tabNppJahresKeys[[#This Row],[Kgu6M09]])/3 -> 0.1 | AW17: =(tabNppJahresKeys[[#This Row],[Kgu6M10]]+tabNppJahresKeys[[#This Row],[Kgu6M11]]+tabNppJahresKeys[[#This Row],[Kgu6M12]])/3 -> 0.1 | AX17: 0.08 | AY17: 0.08 | AZ17: 0.08 | BA17: 0.08 | BB17: 0.08 | BC17: 0.08 | BD17: 0.08 | BE17: 0.08 | BF17: 0.08 | BG17: 0.08 | BH17: 0.08 | BI17: 0.08 | BJ17: =(tabNppJahresKeys[[#This Row],[Kgb6M01]]+tabNppJahresKeys[[#This Row],[Kgb6M02]]+tabNppJahresKeys[[#This Row],[Kgb6M03]])/3 -> 0.08 | BK17: =(tabNppJahresKeys[[#This Row],[Kgb6M04]]+tabNppJahresKeys[[#This Row],[Kgb6M05]]+tabNppJahresKeys[[#This Row],[Kgb6M06]])/3 -> 0.08 | BL17: =(tabNppJahresKeys[[#This Row],[Kgb6M07]]+tabNppJahresKeys[[#This Row],[Kgb6M08]]+tabNppJahresKeys[[#This Row],[Kgb6M09]])/3 -> 0.08 | BM17: =(tabNppJahresKeys[[#This Row],[Kgb6M10]]+tabNppJahresKeys[[#This Row],[Kgb6M11]]+tabNppJahresKeys[[#This Row],[Kgb6M12]])/3 -> 0.08 | BN17: 0.05333333333 | BO17: 0.05333333333 | BP17: 0.05333333333 | BQ17: 0.05333333333 | BR17: 0.05333333333 | BS17: 0.05333333333 | BT17: 0.05333333333 | BU17: 0.05333333333 | BV17: 0.05333333333 | BW17: 0.05333333333 | BX17: 0.05333333333 | BY17: 0.05333333333 | BZ17: =(tabNppJahresKeys[[#This Row],[Hou4M01]]+tabNppJahresKeys[[#This Row],[Hou4M02]]+tabNppJahresKeys[[#This Row],[Hou4M03]])/3 -> 0.05333333333 | CA17: =(tabNppJahresKeys[[#This Row],[Hou4M04]]+tabNppJahresKeys[[#This Row],[Hou4M05]]+tabNppJahresKeys[[#This Row],[Hou4M06]])/3 -> 0.05333333333 | CB17: =(tabNppJahresKeys[[#This Row],[Hou4M07]]+tabNppJahresKeys[[#This Row],[Hou4M08]]+tabNppJahresKeys[[#This Row],[Hou4M09]])/3 -> 0.05333333333 | CC17: =(tabNppJahresKeys[[#This Row],[Hou4M10]]+tabNppJahresKeys[[#This Row],[Hou4M11]]+tabNppJahresKeys[[#This Row],[Hou4M12]])/3 -> 0.05333333333 | CD17: 0.04 | CE17: 0.04 | CF17: 0.04 | CG17: 0.04 | CH17: 0.04 | CI17: 0.04 | CJ17: 0.04 | CK17: 0.04 | CL17: 0.04 | CM17: 0.04 | CN17: 0.04 | CO17: 0.04 | CP17: =(tabNppJahresKeys[[#This Row],[Hob4M01]]+tabNppJahresKeys[[#This Row],[Hob4M02]]+tabNppJahresKeys[[#This Row],[Hob4M03]])/3 -> 0.04 | CQ17: =(tabNppJahresKeys[[#This Row],[Hob4M04]]+tabNppJahresKeys[[#This Row],[Hob4M05]]+tabNppJahresKeys[[#This Row],[Hob4M06]])/3 -> 0.04 | CR17: =(tabNppJahresKeys[[#This Row],[Hob4M07]]+tabNppJahresKeys[[#This Row],[Hob4M08]]+tabNppJahresKeys[[#This Row],[Hob4M09]])/3 -> 0.04 | CS17: =(tabNppJahresKeys[[#This Row],[Hob4M10]]+tabNppJahresKeys[[#This Row],[Hob4M11]]+tabNppJahresKeys[[#This Row],[Hob4M12]])/3 -> 0.04
A18: 2029 | B18: 0.2 | C18: 0.2 | D18: 0.2 | E18: 0.2 | F18: 0.2 | G18: 0.2 | H18: 0.2 | I18: 0.2 | J18: 0.2 | K18: 0.2 | L18: 0.2 | M18: 0.2 | N18: =(tabNppJahresKeys[[#This Row],[Kru6M01]]+tabNppJahresKeys[[#This Row],[Kru6M02]]+tabNppJahresKeys[[#This Row],[Kru6M03]])/3 -> 0.2 | O18: =(tabNppJahresKeys[[#This Row],[Kru6M04]]+tabNppJahresKeys[[#This Row],[Kru6M05]]+tabNppJahresKeys[[#This Row],[Kru6M06]])/3 -> 0.2 | P18: =(tabNppJahresKeys[[#This Row],[Kru6M07]]+tabNppJahresKeys[[#This Row],[Kru6M08]]+tabNppJahresKeys[[#This Row],[Kru6M09]])/3 -> 0.2 | Q18: =(tabNppJahresKeys[[#This Row],[Kru6M10]]+tabNppJahresKeys[[#This Row],[Kru6M11]]+tabNppJahresKeys[[#This Row],[Kru6M12]])/3 -> 0.2 | R18: 0.16 | S18: 0.16 | T18: 0.16 | U18: 0.16 | V18: 0.16 | W18: 0.16 | X18: 0.16 | Y18: 0.16 | Z18: 0.16 | AA18: 0.16 | AB18: 0.16 | AC18: 0.16 | AD18: =(tabNppJahresKeys[[#This Row],[Krb6M01]]+tabNppJahresKeys[[#This Row],[Krb6M02]]+tabNppJahresKeys[[#This Row],[Krb6M03]])/3 -> 0.16 | AE18: =(tabNppJahresKeys[[#This Row],[Krb6M04]]+tabNppJahresKeys[[#This Row],[Krb6M05]]+tabNppJahresKeys[[#This Row],[Krb6M06]])/3 -> 0.16 | AF18: =(tabNppJahresKeys[[#This Row],[Krb6M07]]+tabNppJahresKeys[[#This Row],[Krb6M08]]+tabNppJahresKeys[[#This Row],[Krb6M09]])/3 -> 0.16 | AG18: =(tabNppJahresKeys[[#This Row],[Krb6M10]]+tabNppJahresKeys[[#This Row],[Krb6M11]]+tabNppJahresKeys[[#This Row],[Krb6M12]])/3 -> 0.16 | AH18: 0.1 | AI18: 0.1 | AJ18: 0.1 | AK18: 0.1 | AL18: 0.1 | AM18: 0.1 | AN18: 0.1 | AO18: 0.1 | AP18: 0.1 | AQ18: 0.1 | AR18: 0.1 | AS18: 0.1 | AT18: =(tabNppJahresKeys[[#This Row],[Kgu6M01]]+tabNppJahresKeys[[#This Row],[Kgu6M02]]+tabNppJahresKeys[[#This Row],[Kgu6M03]])/3 -> 0.1 | AU18: =(tabNppJahresKeys[[#This Row],[Kgu6M04]]+tabNppJahresKeys[[#This Row],[Kgu6M05]]+tabNppJahresKeys[[#This Row],[Kgu6M06]])/3 -> 0.1 | AV18: =(tabNppJahresKeys[[#This Row],[Kgu6M07]]+tabNppJahresKeys[[#This Row],[Kgu6M08]]+tabNppJahresKeys[[#This Row],[Kgu6M09]])/3 -> 0.1 | AW18: =(tabNppJahresKeys[[#This Row],[Kgu6M10]]+tabNppJahresKeys[[#This Row],[Kgu6M11]]+tabNppJahresKeys[[#This Row],[Kgu6M12]])/3 -> 0.1 | AX18: 0.08 | AY18: 0.08 | AZ18: 0.08 | BA18: 0.08 | BB18: 0.08 | BC18: 0.08 | BD18: 0.08 | BE18: 0.08 | BF18: 0.08 | BG18: 0.08 | BH18: 0.08 | BI18: 0.08 | BJ18: =(tabNppJahresKeys[[#This Row],[Kgb6M01]]+tabNppJahresKeys[[#This Row],[Kgb6M02]]+tabNppJahresKeys[[#This Row],[Kgb6M03]])/3 -> 0.08 | BK18: =(tabNppJahresKeys[[#This Row],[Kgb6M04]]+tabNppJahresKeys[[#This Row],[Kgb6M05]]+tabNppJahresKeys[[#This Row],[Kgb6M06]])/3 -> 0.08 | BL18: =(tabNppJahresKeys[[#This Row],[Kgb6M07]]+tabNppJahresKeys[[#This Row],[Kgb6M08]]+tabNppJahresKeys[[#This Row],[Kgb6M09]])/3 -> 0.08 | BM18: =(tabNppJahresKeys[[#This Row],[Kgb6M10]]+tabNppJahresKeys[[#This Row],[Kgb6M11]]+tabNppJahresKeys[[#This Row],[Kgb6M12]])/3 -> 0.08 | BN18: 0.05333333333 | BO18: 0.05333333333 | BP18: 0.05333333333 | BQ18: 0.05333333333 | BR18: 0.05333333333 | BS18: 0.05333333333 | BT18: 0.05333333333 | BU18: 0.05333333333 | BV18: 0.05333333333 | BW18: 0.05333333333 | BX18: 0.05333333333 | BY18: 0.05333333333 | BZ18: =(tabNppJahresKeys[[#This Row],[Hou4M01]]+tabNppJahresKeys[[#This Row],[Hou4M02]]+tabNppJahresKeys[[#This Row],[Hou4M03]])/3 -> 0.05333333333 | CA18: =(tabNppJahresKeys[[#This Row],[Hou4M04]]+tabNppJahresKeys[[#This Row],[Hou4M05]]+tabNppJahresKeys[[#This Row],[Hou4M06]])/3 -> 0.05333333333 | CB18: =(tabNppJahresKeys[[#This Row],[Hou4M07]]+tabNppJahresKeys[[#This Row],[Hou4M08]]+tabNppJahresKeys[[#This Row],[Hou4M09]])/3 -> 0.05333333333 | CC18: =(tabNppJahresKeys[[#This Row],[Hou4M10]]+tabNppJahresKeys[[#This Row],[Hou4M11]]+tabNppJahresKeys[[#This Row],[Hou4M12]])/3 -> 0.05333333333 | CD18: 0.04 | CE18: 0.04 | CF18: 0.04 | CG18: 0.04 | CH18: 0.04 | CI18: 0.04 | CJ18: 0.04 | CK18: 0.04 | CL18: 0.04 | CM18: 0.04 | CN18: 0.04 | CO18: 0.04 | CP18: =(tabNppJahresKeys[[#This Row],[Hob4M01]]+tabNppJahresKeys[[#This Row],[Hob4M02]]+tabNppJahresKeys[[#This Row],[Hob4M03]])/3 -> 0.04 | CQ18: =(tabNppJahresKeys[[#This Row],[Hob4M04]]+tabNppJahresKeys[[#This Row],[Hob4M05]]+tabNppJahresKeys[[#This Row],[Hob4M06]])/3 -> 0.04 | CR18: =(tabNppJahresKeys[[#This Row],[Hob4M07]]+tabNppJahresKeys[[#This Row],[Hob4M08]]+tabNppJahresKeys[[#This Row],[Hob4M09]])/3 -> 0.04 | CS18: =(tabNppJahresKeys[[#This Row],[Hob4M10]]+tabNppJahresKeys[[#This Row],[Hob4M11]]+tabNppJahresKeys[[#This Row],[Hob4M12]])/3 -> 0.04
A19: 2030 | B19: 0.2 | C19: 0.2 | D19: 0.2 | E19: 0.2 | F19: 0.2 | G19: 0.2 | H19: 0.2 | I19: 0.2 | J19: 0.2 | K19: 0.2 | L19: 0.2 | M19: 0.2 | N19: =(tabNppJahresKeys[[#This Row],[Kru6M01]]+tabNppJahresKeys[[#This Row],[Kru6M02]]+tabNppJahresKeys[[#This Row],[Kru6M03]])/3 -> 0.2 | O19: =(tabNppJahresKeys[[#This Row],[Kru6M04]]+tabNppJahresKeys[[#This Row],[Kru6M05]]+tabNppJahresKeys[[#This Row],[Kru6M06]])/3 -> 0.2 | P19: =(tabNppJahresKeys[[#This Row],[Kru6M07]]+tabNppJahresKeys[[#This Row],[Kru6M08]]+tabNppJahresKeys[[#This Row],[Kru6M09]])/3 -> 0.2 | Q19: =(tabNppJahresKeys[[#This Row],[Kru6M10]]+tabNppJahresKeys[[#This Row],[Kru6M11]]+tabNppJahresKeys[[#This Row],[Kru6M12]])/3 -> 0.2 | R19: 0.16 | S19: 0.16 | T19: 0.16 | U19: 0.16 | V19: 0.16 | W19: 0.16 | X19: 0.16 | Y19: 0.16 | Z19: 0.16 | AA19: 0.16 | AB19: 0.16 | AC19: 0.16 | AD19: =(tabNppJahresKeys[[#This Row],[Krb6M01]]+tabNppJahresKeys[[#This Row],[Krb6M02]]+tabNppJahresKeys[[#This Row],[Krb6M03]])/3 -> 0.16 | AE19: =(tabNppJahresKeys[[#This Row],[Krb6M04]]+tabNppJahresKeys[[#This Row],[Krb6M05]]+tabNppJahresKeys[[#This Row],[Krb6M06]])/3 -> 0.16 | AF19: =(tabNppJahresKeys[[#This Row],[Krb6M07]]+tabNppJahresKeys[[#This Row],[Krb6M08]]+tabNppJahresKeys[[#This Row],[Krb6M09]])/3 -> 0.16 | AG19: =(tabNppJahresKeys[[#This Row],[Krb6M10]]+tabNppJahresKeys[[#This Row],[Krb6M11]]+tabNppJahresKeys[[#This Row],[Krb6M12]])/3 -> 0.16 | AH19: 0.1 | AI19: 0.1 | AJ19: 0.1 | AK19: 0.1 | AL19: 0.1 | AM19: 0.1 | AN19: 0.1 | AO19: 0.1 | AP19: 0.1 | AQ19: 0.1 | AR19: 0.1 | AS19: 0.1 | AT19: =(tabNppJahresKeys[[#This Row],[Kgu6M01]]+tabNppJahresKeys[[#This Row],[Kgu6M02]]+tabNppJahresKeys[[#This Row],[Kgu6M03]])/3 -> 0.1 | AU19: =(tabNppJahresKeys[[#This Row],[Kgu6M04]]+tabNppJahresKeys[[#This Row],[Kgu6M05]]+tabNppJahresKeys[[#This Row],[Kgu6M06]])/3 -> 0.1 | AV19: =(tabNppJahresKeys[[#This Row],[Kgu6M07]]+tabNppJahresKeys[[#This Row],[Kgu6M08]]+tabNppJahresKeys[[#This Row],[Kgu6M09]])/3 -> 0.1 | AW19: =(tabNppJahresKeys[[#This Row],[Kgu6M10]]+tabNppJahresKeys[[#This Row],[Kgu6M11]]+tabNppJahresKeys[[#This Row],[Kgu6M12]])/3 -> 0.1 | AX19: 0.08 | AY19: 0.08 | AZ19: 0.08 | BA19: 0.08 | BB19: 0.08 | BC19: 0.08 | BD19: 0.08 | BE19: 0.08 | BF19: 0.08 | BG19: 0.08 | BH19: 0.08 | BI19: 0.08 | BJ19: =(tabNppJahresKeys[[#This Row],[Kgb6M01]]+tabNppJahresKeys[[#This Row],[Kgb6M02]]+tabNppJahresKeys[[#This Row],[Kgb6M03]])/3 -> 0.08 | BK19: =(tabNppJahresKeys[[#This Row],[Kgb6M04]]+tabNppJahresKeys[[#This Row],[Kgb6M05]]+tabNppJahresKeys[[#This Row],[Kgb6M06]])/3 -> 0.08 | BL19: =(tabNppJahresKeys[[#This Row],[Kgb6M07]]+tabNppJahresKeys[[#This Row],[Kgb6M08]]+tabNppJahresKeys[[#This Row],[Kgb6M09]])/3 -> 0.08 | BM19: =(tabNppJahresKeys[[#This Row],[Kgb6M10]]+tabNppJahresKeys[[#This Row],[Kgb6M11]]+tabNppJahresKeys[[#This Row],[Kgb6M12]])/3 -> 0.08 | BN19: 0.05333333333 | BO19: 0.05333333333 | BP19: 0.05333333333 | BQ19: 0.05333333333 | BR19: 0.05333333333 | BS19: 0.05333333333 | BT19: 0.05333333333 | BU19: 0.05333333333 | BV19: 0.05333333333 | BW19: 0.05333333333 | BX19: 0.05333333333 | BY19: 0.05333333333 | BZ19: =(tabNppJahresKeys[[#This Row],[Hou4M01]]+tabNppJahresKeys[[#This Row],[Hou4M02]]+tabNppJahresKeys[[#This Row],[Hou4M03]])/3 -> 0.05333333333 | CA19: =(tabNppJahresKeys[[#This Row],[Hou4M04]]+tabNppJahresKeys[[#This Row],[Hou4M05]]+tabNppJahresKeys[[#This Row],[Hou4M06]])/3 -> 0.05333333333 | CB19: =(tabNppJahresKeys[[#This Row],[Hou4M07]]+tabNppJahresKeys[[#This Row],[Hou4M08]]+tabNppJahresKeys[[#This Row],[Hou4M09]])/3 -> 0.05333333333 | CC19: =(tabNppJahresKeys[[#This Row],[Hou4M10]]+tabNppJahresKeys[[#This Row],[Hou4M11]]+tabNppJahresKeys[[#This Row],[Hou4M12]])/3 -> 0.05333333333 | CD19: 0.04 | CE19: 0.04 | CF19: 0.04 | CG19: 0.04 | CH19: 0.04 | CI19: 0.04 | CJ19: 0.04 | CK19: 0.04 | CL19: 0.04 | CM19: 0.04 | CN19: 0.04 | CO19: 0.04 | CP19: =(tabNppJahresKeys[[#This Row],[Hob4M01]]+tabNppJahresKeys[[#This Row],[Hob4M02]]+tabNppJahresKeys[[#This Row],[Hob4M03]])/3 -> 0.04 | CQ19: =(tabNppJahresKeys[[#This Row],[Hob4M04]]+tabNppJahresKeys[[#This Row],[Hob4M05]]+tabNppJahresKeys[[#This Row],[Hob4M06]])/3 -> 0.04 | CR19: =(tabNppJahresKeys[[#This Row],[Hob4M07]]+tabNppJahresKeys[[#This Row],[Hob4M08]]+tabNppJahresKeys[[#This Row],[Hob4M09]])/3 -> 0.04 | CS19: =(tabNppJahresKeys[[#This Row],[Hob4M10]]+tabNppJahresKeys[[#This Row],[Hob4M11]]+tabNppJahresKeys[[#This Row],[Hob4M12]])/3 -> 0.04

Sheet HT FianzKeys (hidden)
A2: 1 | B2: 2 | C2: 3 | D2: 4 | E2: 5 | F2: 6 | G2: 7 | H2: 8 | I2: 9 | J2: 10 | K2: 11 | L2: 12 | M2: 13 | N2: 14 | O2: 15 | P2: 16 | Q2: 17 | R2: 18 | S2: 19 | T2: 20 | U2: 21 | V2: 22 | W2: 23 | X2: 24 | Y2: 25 | Z2: 26 | AA2: 27 | AB2: 28 | AC2: 29 | AD2: 30 | AE2: 31 | AF2: 32 | AG2: 33 | AH2: 34 | AI2: 35 | AJ2: 36 | AK2: 37 | AL2: 38 | AM2: 39 | AN2: 40 | AO2: 41 | AP2: 42 | AQ2: 43 | AR2: 44 | AS2: 45 | AT2: 46 | AU2: 47 | AV2: 48 | AW2: 49 | AX2: 50 | AY2: 51 | AZ2: 52 | BA2: 53 | BB2: 54 | BC2: 55 | BD2: 56 | BE2: 57 | BF2: 58 | BG2: 59 | BH2: 60 | BI2: 61 | BJ2: 62 | BK2: 63 | BL2: 64 | BM2: 65
B3: Krippe-Monatswerte | N3: Krippe-Quartalswerte | R3: Kiga-Monatswerte | AD3: Kiga-Quartalswerte | AH3: Hort-Monatswerte | AT3: Hort-Quartalswerte | AX3: Pädagogische Leitung - Monatswerte | BJ3: Pädagogische Leitung - Quartalswerte
A4: Jahr | B4: KripM01 | C4: KripM02 | D4: KripM03 | E4: KripM04 | F4: KripM05 | G4: KripM06 | H4: KripM07 | I4: KripM08 | J4: KripM09 | K4: KripM10 | L4: KripM11 | M4: KripM12 | N4: KripQ01 | O4: KripQ02 | P4: KripQ03 | Q4: KripQ04 | R4: KigaM01 | S4: KigaM02 | T4: KigaM03 | U4: KigaM04 | V4: KigaM05 | W4: KigaM06 | X4: KigaM07 | Y4: KigaM08 | Z4: KigaM09 | AA4: KigaM10 | AB4: KigaM11 | AC4: KigaM12 | AD4: KigaQ01 | AE4: KigaQ02 | AF4: KigaQ03 | AG4: KigaQ04 | AH4: HortM01 | AI4: HortM02 | AJ4: HortM03 | AK4: HortM04 | AL4: HortM05 | AM4: HortM06 | AN4: HortM07 | AO4: HortM08 | AP4: HortM09 | AQ4: HortM10 | AR4: HortM11 | AS4: HortM12 | AT4: HortQ01 | AU4: HortQ02 | AV4: HortQ03 | AW4: HortQ04 | AX4: LtgM01 | AY4: LtgM02 | AZ4: LtgM03 | BA4: LtgM04 | BB4: LtgM05 | BC4: LtgM06 | BD4: LtgM07 | BE4: LtgM08 | BF4: LtgM09 | BG4: LtgM10 | BH4: LtgM11 | BI4: LtgM12 | BJ4: LtgQ01 | BK4: LtgQ02 | BL4: LtgQ03 | BM4: LtgQ04
A5: 2016 | B5: 0.874 | C5: 0.874 | D5: 0.874 | E5: 0.874 | F5: 0.874 | G5: 0.874 | H5: 0.874 | I5: 0.886 | J5: 0.886 | K5: 0.886 | L5: 0.886 | M5: 0.886 | N5: =ROUND((tabFinanzQuartFaktoren[[#This Row],[KripM01]]+tabFinanzQuartFaktoren[[#This Row],[KripM02]]+tabFinanzQuartFaktoren[[#This Row],[KripM03]])/3,3) -> 0.874 | O5: =ROUND((tabFinanzQuartFaktoren[[#This Row],[KripM04]]+tabFinanzQuartFaktoren[[#This Row],[KripM05]]+tabFinanzQuartFaktoren[[#This Row],[KripM06]])/3,3) -> 0.874 | P5: =ROUND((tabFinanzQuartFaktoren[[#This Row],[KripM07]]+tabFinanzQuartFaktoren[[#This Row],[KripM08]]+tabFinanzQuartFaktoren[[#This Row],[KripM09]])/3,3) -> 0.882 | Q5: =ROUND((tabFinanzQuartFaktoren[[#This Row],[KripM10]]+tabFinanzQuartFaktoren[[#This Row],[KripM11]]+tabFinanzQuartFaktoren[[#This Row],[KripM12]])/3,3) -> 0.886 | R5: 0.852 | S5: 0.852 | T5: 0.852 | U5: 0.852 | V5: 0.852 | W5: 0.852 | X5: 0.852 | Y5: 0.852 | Z5: 0.852 | AA5: 0.852 | AB5: 0.852 | AC5: 0.852 | AD5: =ROUND((tabFinanzQuartFaktoren[[#This Row],[KigaM01]]+tabFinanzQuartFaktoren[[#This Row],[KigaM02]]+tabFinanzQuartFaktoren[[#This Row],[KigaM03]])/3,3) -> 0.852 | AE5: =ROUND((tabFinanzQuartFaktoren[[#This Row],[KigaM04]]+tabFinanzQuartFaktoren[[#This Row],[KigaM05]]+tabFinanzQuartFaktoren[[#This Row],[KigaM06]])/3,3) -> 0.852 | AF5: =ROUND((tabFinanzQuartFaktoren[[#This Row],[KigaM07]]+tabFinanzQuartFaktoren[[#This Row],[KigaM08]]+tabFinanzQuartFaktoren[[#This Row],[KigaM09]])/3,3) -> 0.852 | AG5: =ROUND((tabFinanzQuartFaktoren[[#This Row],[KigaM10]]+tabFinanzQuartFaktoren[[#This Row],[KigaM11]]+tabFinanzQuartFaktoren[[#This Row],[KigaM12]])/3,3) -> 0.852 | AH5: 0.84 | AI5: 0.84 | AJ5: 0.84 | AK5: 0.84 | AL5: 0.84 | AM5: 0.84 | AN5: 0.84 | AO5: 0.84 | AP5: 0.84 | AQ5: 0.84 | AR5: 0.84 | AS5: 0.84 | AT5: =ROUND((tabFinanzQuartFaktoren[[#This Row],[HortM01]]+tabFinanzQuartFaktoren[[#This Row],[HortM02]]+tabFinanzQuartFaktoren[[#This Row],[HortM03]])/3,3) -> 0.84 | AU5: =ROUND((tabFinanzQuartFaktoren[[#This Row],[HortM04]]+tabFinanzQuartFaktoren[[#This Row],[HortM05]]+tabFinanzQuartFaktoren[[#This Row],[HortM06]])/3,3) -> 0.84 | AV5: =ROUND((tabFinanzQuartFaktoren[[#This Row],[HortM07]]+tabFinanzQuartFaktoren[[#This Row],[HortM08]]+tabFinanzQuartFaktoren[[#This Row],[HortM09]])/3,3) -> 0.84 | AW5: =ROUND((tabFinanzQuartFaktoren[[#This Row],[HortM10]]+tabFinanzQuartFaktoren[[#This Row],[HortM11]]+tabFinanzQuartFaktoren[[#This Row],[HortM12]])/3,3) -> 0.84 | AX5: 0.84 | AY5: 0.84 | AZ5: 0.84 | BA5: 0.84 | BB5: 0.84 | BC5: 0.84 | BD5: 0.84 | BE5: 0.84 | BF5: 0.84 | BG5: 0.84 | BH5: 0.84 | BI5: 0.84 | BJ5: =ROUND((tabFinanzQuartFaktoren[[#This Row],[LtgM01]]+tabFinanzQuartFaktoren[[#This Row],[LtgM02]]+tabFinanzQuartFaktoren[[#This Row],[LtgM03]])/3,3) -> 0.84 | BK5: =ROUND((tabFinanzQuartFaktoren[[#This Row],[LtgM04]]+tabFinanzQuartFaktoren[[#This Row],[LtgM05]]+tabFinanzQuartFaktoren[[#This Row],[LtgM06]])/3,3) -> 0.84 | BL5: =ROUND((tabFinanzQuartFaktoren[[#This Row],[LtgM07]]+tabFinanzQuartFaktoren[[#This Row],[LtgM08]]+tabFinanzQuartFaktoren[[#This Row],[LtgM09]])/3,3) -> 0.84 | BM5: =ROUND((tabFinanzQuartFaktoren[[#This Row],[LtgM10]]+tabFinanzQuartFaktoren[[#This Row],[LtgM11]]+tabFinanzQuartFaktoren[[#This Row],[LtgM12]])/3,3) -> 0.84
A6: 2017 | B6: 0.886 | C6: 0.886 | D6: 0.886 | E6: 0.886 | F6: 0.886 | G6: 0.886 | H6: 0.886 | I6: 0.886 | J6: 0.886 | K6: 0.886 | L6: 0.886 | M6: 0.886 | N6: =ROUND((tabFinanzQuartFaktoren[[#This Row],[KripM01]]+tabFinanzQuartFaktoren[[#This Row],[KripM02]]+tabFinanzQuartFaktoren[[#This Row],[KripM03]])/3,3) -> 0.886 | O6: =ROUND((tabFinanzQuartFaktoren[[#This Row],[KripM04]]+tabFinanzQuartFaktoren[[#This Row],[KripM05]]+tabFinanzQuartFaktoren[[#This Row],[KripM06]])/3,3) -> 0.886 | P6: =ROUND((tabFinanzQuartFaktoren[[#This Row],[KripM07]]+tabFinanzQuartFaktoren[[#This Row],[KripM08]]+tabFinanzQuartFaktoren[[#This Row],[KripM09]])/3,3) -> 0.886 | Q6: =ROUND((tabFinanzQuartFaktoren[[#This Row],[KripM10]]+tabFinanzQuartFaktoren[[#This Row],[KripM11]]+tabFinanzQuartFaktoren[[#This Row],[KripM12]])/3,3) -> 0.886 | R6: 0.852 | S6: 0.852 | T6: 0.852 | U6: 0.852 | V6: 0.852 | W6: 0.852 | X6: 0.852 | Y6: 0.858 | Z6: 0.858 | AA6: 0.858 | AB6: 0.858 | AC6: 0.858 | AD6: =ROUND((tabFinanzQuartFaktoren[[#This Row],[KigaM01]]+tabFinanzQuartFaktoren[[#This Row],[KigaM02]]+tabFinanzQuartFaktoren[[#This Row],[KigaM03]])/3,3) -> 0.852 | AE6: =ROUND((tabFinanzQuartFaktoren[[#This Row],[KigaM04]]+tabFinanzQuartFaktoren[[#This Row],[KigaM05]]+tabFinanzQuartFaktoren[[#This Row],[KigaM06]])/3,3) -> 0.852 | AF6: =ROUND((tabFinanzQuartFaktoren[[#This Row],[KigaM07]]+tabFinanzQuartFaktoren[[#This Row],[KigaM08]]+tabFinanzQuartFaktoren[[#This Row],[KigaM09]])/3,3) -> 0.856 | AG6: =ROUND((tabFinanzQuartFaktoren[[#This Row],[KigaM10]]+tabFinanzQuartFaktoren[[#This Row],[KigaM11]]+tabFinanzQuartFaktoren[[#This Row],[KigaM12]])/3,3) -> 0.858 | AH6: 0.84 | AI6: 0.84 | AJ6: 0.84 | AK6: 0.84 | AL6: 0.84 | AM6: 0.84 | AN6: 0.84 | AO6: 0.84 | AP6: 0.84 | AQ6: 0.84 | AR6: 0.84 | AS6: 0.84 | AT6: =ROUND((tabFinanzQuartFaktoren[[#This Row],[HortM01]]+tabFinanzQuartFaktoren[[#This Row],[HortM02]]+tabFinanzQuartFaktoren[[#This Row],[HortM03]])/3,3) -> 0.84 | AU6: =ROUND((tabFinanzQuartFaktoren[[#This Row],[HortM04]]+tabFinanzQuartFaktoren[[#This Row],[HortM05]]+tabFinanzQuartFaktoren[[#This Row],[HortM06]])/3,3) -> 0.84 | AV6: =ROUND((tabFinanzQuartFaktoren[[#This Row],[HortM07]]+tabFinanzQuartFaktoren[[#This Row],[HortM08]]+tabFinanzQuartFaktoren[[#This Row],[HortM09]])/3,3) -> 0.84 | AW6: =ROUND((tabFinanzQuartFaktoren[[#This Row],[HortM10]]+tabFinanzQuartFaktoren[[#This Row],[HortM11]]+tabFinanzQuartFaktoren[[#This Row],[HortM12]])/3,3) -> 0.84 | AX6: 0.84 | AY6: 0.84 | AZ6: 0.84 | BA6: 0.84 | BB6: 0.84 | BC6: 0.84 | BD6: 0.84 | BE6: 0.84 | BF6: 0.84 | BG6: 0.84 | BH6: 0.84 | BI6: 0.84 | BJ6: =ROUND((tabFinanzQuartFaktoren[[#This Row],[LtgM01]]+tabFinanzQuartFaktoren[[#This Row],[LtgM02]]+tabFinanzQuartFaktoren[[#This Row],[LtgM03]])/3,3) -> 0.84 | BK6: =ROUND((tabFinanzQuartFaktoren[[#This Row],[LtgM04]]+tabFinanzQuartFaktoren[[#This Row],[LtgM05]]+tabFinanzQuartFaktoren[[#This Row],[LtgM06]])/3,3) -> 0.84 | BL6: =ROUND((tabFinanzQuartFaktoren[[#This Row],[LtgM07]]+tabFinanzQuartFaktoren[[#This Row],[LtgM08]]+tabFinanzQuartFaktoren[[#This Row],[LtgM09]])/3,3) -> 0.84 | BM6: =ROUND((tabFinanzQuartFaktoren[[#This Row],[LtgM10]]+tabFinanzQuartFaktoren[[#This Row],[LtgM11]]+tabFinanzQuartFaktoren[[#This Row],[LtgM12]])/3,3) -> 0.84
A7: 2018 | B7: 0.886 | C7: 0.886 | D7: 0.886 | E7: 0.886 | F7: 0.886 | G7: 0.886 | H7: 0.886 | I7: 0.886 | J7: 0.886 | K7: 0.886 | L7: 0.886 | M7: 0.886 | N7: =ROUND((tabFinanzQuartFaktoren[[#This Row],[KripM01]]+tabFinanzQuartFaktoren[[#This Row],[KripM02]]+tabFinanzQuartFaktoren[[#This Row],[KripM03]])/3,3) -> 0.886 | O7: =ROUND((tabFinanzQuartFaktoren[[#This Row],[KripM04]]+tabFinanzQuartFaktoren[[#This Row],[KripM05]]+tabFinanzQuartFaktoren[[#This Row],[KripM06]])/3,3) -> 0.886 | P7: =ROUND((tabFinanzQuartFaktoren[[#This Row],[KripM07]]+tabFinanzQuartFaktoren[[#This Row],[KripM08]]+tabFinanzQuartFaktoren[[#This Row],[KripM09]])/3,3) -> 0.886 | Q7: =ROUND((tabFinanzQuartFaktoren[[#This Row],[KripM10]]+tabFinanzQuartFaktoren[[#This Row],[KripM11]]+tabFinanzQuartFaktoren[[#This Row],[KripM12]])/3,3) -> 0.886 | R7: 0.858 | S7: 0.858 | T7: 0.858 | U7: 0.858 | V7: 0.858 | W7: 0.858 | X7: 0.858 | Y7: 0.864 | Z7: 0.864 | AA7: 0.864 | AB7: 0.864 | AC7: 0.864 | AD7: =ROUND((tabFinanzQuartFaktoren[[#This Row],[KigaM01]]+tabFinanzQuartFaktoren[[#This Row],[KigaM02]]+tabFinanzQuartFaktoren[[#This Row],[KigaM03]])/3,3) -> 0.858 | AE7: =ROUND((tabFinanzQuartFaktoren[[#This Row],[KigaM04]]+tabFinanzQuartFaktoren[[#This Row],[KigaM05]]+tabFinanzQuartFaktoren[[#This Row],[KigaM06]])/3,3) -> 0.858 | AF7: =ROUND((tabFinanzQuartFaktoren[[#This Row],[KigaM07]]+tabFinanzQuartFaktoren[[#This Row],[KigaM08]]+tabFinanzQuartFaktoren[[#This Row],[KigaM09]])/3,3) -> 0.862 | AG7: =ROUND((tabFinanzQuartFaktoren[[#This Row],[KigaM10]]+tabFinanzQuartFaktoren[[#This Row],[KigaM11]]+tabFinanzQuartFaktoren[[#This Row],[KigaM12]])/3,3) -> 0.864 | AH7: 0.84 | AI7: 0.84 | AJ7: 0.84 | AK7: 0.84 | AL7: 0.84 | AM7: 0.84 | AN7: 0.84 | AO7: 0.84 | AP7: 0.84 | AQ7: 0.84 | AR7: 0.84 | AS7: 0.84 | AT7: =ROUND((tabFinanzQuartFaktoren[[#This Row],[HortM01]]+tabFinanzQuartFaktoren[[#This Row],[HortM02]]+tabFinanzQuartFaktoren[[#This Row],[HortM03]])/3,3) -> 0.84 | AU7: =ROUND((tabFinanzQuartFaktoren[[#This Row],[HortM04]]+tabFinanzQuartFaktoren[[#This Row],[HortM05]]+tabFinanzQuartFaktoren[[#This Row],[HortM06]])/3,3) -> 0.84 | AV7: =ROUND((tabFinanzQuartFaktoren[[#This Row],[HortM07]]+tabFinanzQuartFaktoren[[#This Row],[HortM08]]+tabFinanzQuartFaktoren[[#This Row],[HortM09]])/3,3) -> 0.84 | AW7: =ROUND((tabFinanzQuartFaktoren[[#This Row],[HortM10]]+tabFinanzQuartFaktoren[[#This Row],[HortM11]]+tabFinanzQuartFaktoren[[#This Row],[HortM12]])/3,3) -> 0.84 | AX7: 0.84 | AY7: 0.84 | AZ7: 0.84 | BA7: 0.84 | BB7: 0.84 | BC7: 0.84 | BD7: 0.84 | BE7: 0.84 | BF7: 0.84 | BG7: 0.84 | BH7: 0.84 | BI7: 0.84 | BJ7: =ROUND((tabFinanzQuartFaktoren[[#This Row],[LtgM01]]+tabFinanzQuartFaktoren[[#This Row],[LtgM02]]+tabFinanzQuartFaktoren[[#This Row],[LtgM03]])/3,3) -> 0.84 | BK7: =ROUND((tabFinanzQuartFaktoren[[#This Row],[LtgM04]]+tabFinanzQuartFaktoren[[#This Row],[LtgM05]]+tabFinanzQuartFaktoren[[#This Row],[LtgM06]])/3,3) -> 0.84 | BL7: =ROUND((tabFinanzQuartFaktoren[[#This Row],[LtgM07]]+tabFinanzQuartFaktoren[[#This Row],[LtgM08]]+tabFinanzQuartFaktoren[[#This Row],[LtgM09]])/3,3) -> 0.84 | BM7: =ROUND((tabFinanzQuartFaktoren[[#This Row],[LtgM10]]+tabFinanzQuartFaktoren[[#This Row],[LtgM11]]+tabFinanzQuartFaktoren[[#This Row],[LtgM12]])/3,3) -> 0.84
A8: 2019 | B8: 0.886 | C8: 0.886 | D8: 0.886 | E8: 0.886 | F8: 0.886 | G8: 0.886 | H8: 0.886 | I8: 0.886 | J8: 0.886 | K8: 0.886 | L8: 0.886 | M8: 0.886 | N8: =ROUND((tabFinanzQuartFaktoren[[#This Row],[KripM01]]+tabFinanzQuartFaktoren[[#This Row],[KripM02]]+tabFinanzQuartFaktoren[[#This Row],[KripM03]])/3,3) -> 0.886 | O8: =ROUND((tabFinanzQuartFaktoren[[#This Row],[KripM04]]+tabFinanzQuartFaktoren[[#This Row],[KripM05]]+tabFinanzQuartFaktoren[[#This Row],[KripM06]])/3,3) -> 0.886 | P8: =ROUND((tabFinanzQuartFaktoren[[#This Row],[KripM07]]+tabFinanzQuartFaktoren[[#This Row],[KripM08]]+tabFinanzQuartFaktoren[[#This Row],[KripM09]])/3,3) -> 0.886 | Q8: =ROUND((tabFinanzQuartFaktoren[[#This Row],[KripM10]]+tabFinanzQuartFaktoren[[#This Row],[KripM11]]+tabFinanzQuartFaktoren[[#This Row],[KripM12]])/3,3) -> 0.886 | R8: 0.864 | S8: 0.864 | T8: 0.864 | U8: 0.864 | V8: 0.864 | W8: 0.864 | X8: 0.864 | Y8: 0.864 | Z8: 0.864 | AA8: 0.864 | AB8: 0.864 | AC8: 0.864 | AD8: =ROUND((tabFinanzQuartFaktoren[[#This Row],[KigaM01]]+tabFinanzQuartFaktoren[[#This Row],[KigaM02]]+tabFinanzQuartFaktoren[[#This Row],[KigaM03]])/3,3) -> 0.864 | AE8: =ROUND((tabFinanzQuartFaktoren[[#This Row],[KigaM04]]+tabFinanzQuartFaktoren[[#This Row],[KigaM05]]+tabFinanzQuartFaktoren[[#This Row],[KigaM06]])/3,3) -> 0.864 | AF8: =ROUND((tabFinanzQuartFaktoren[[#This Row],[KigaM07]]+tabFinanzQuartFaktoren[[#This Row],[KigaM08]]+tabFinanzQuartFaktoren[[#This Row],[KigaM09]])/3,3) -> 0.864 | AG8: =ROUND((tabFinanzQuartFaktoren[[#This Row],[KigaM10]]+tabFinanzQuartFaktoren[[#This Row],[KigaM11]]+tabFinanzQuartFaktoren[[#This Row],[KigaM12]])/3,3) -> 0.864 | AH8: 0.84 | AI8: 0.84 | AJ8: 0.84 | AK8: 0.84 | AL8: 0.84 | AM8: 0.84 | AN8: 0.84 | AO8: 0.84 | AP8: 0.84 | AQ8: 0.84 | AR8: 0.84 | AS8: 0.84 | AT8: =ROUND((tabFinanzQuartFaktoren[[#This Row],[HortM01]]+tabFinanzQuartFaktoren[[#This Row],[HortM02]]+tabFinanzQuartFaktoren[[#This Row],[HortM03]])/3,3) -> 0.84 | AU8: =ROUND((tabFinanzQuartFaktoren[[#This Row],[HortM04]]+tabFinanzQuartFaktoren[[#This Row],[HortM05]]+tabFinanzQuartFaktoren[[#This Row],[HortM06]])/3,3) -> 0.84 | AV8: =ROUND((tabFinanzQuartFaktoren[[#This Row],[HortM07]]+tabFinanzQuartFaktoren[[#This Row],[HortM08]]+tabFinanzQuartFaktoren[[#This Row],[HortM09]])/3,3) -> 0.84 | AW8: =ROUND((tabFinanzQuartFaktoren[[#This Row],[HortM10]]+tabFinanzQuartFaktoren[[#This Row],[HortM11]]+tabFinanzQuartFaktoren[[#This Row],[HortM12]])/3,3) -> 0.84 | AX8: 0.84 | AY8: 0.84 | AZ8: 0.84 | BA8: 0.84 | BB8: 0.84 | BC8: 0.84 | BD8: 0.84 | BE8: 0.84 | BF8: 0.84 | BG8: 0.84 | BH8: 0.84 | BI8: 0.84 | BJ8: =ROUND((tabFinanzQuartFaktoren[[#This Row],[LtgM01]]+tabFinanzQuartFaktoren[[#This Row],[LtgM02]]+tabFinanzQuartFaktoren[[#This Row],[LtgM03]])/3,3) -> 0.84 | BK8: =ROUND((tabFinanzQuartFaktoren[[#This Row],[LtgM04]]+tabFinanzQuartFaktoren[[#This Row],[LtgM05]]+tabFinanzQuartFaktoren[[#This Row],[LtgM06]])/3,3) -> 0.84 | BL8: =ROUND((tabFinanzQuartFaktoren[[#This Row],[LtgM07]]+tabFinanzQuartFaktoren[[#This Row],[LtgM08]]+tabFinanzQuartFaktoren[[#This Row],[LtgM09]])/3,3) -> 0.84 | BM8: =ROUND((tabFinanzQuartFaktoren[[#This Row],[LtgM10]]+tabFinanzQuartFaktoren[[#This Row],[LtgM11]]+tabFinanzQuartFaktoren[[#This Row],[LtgM12]])/3,3) -> 0.84
A9: 2020 | B9: 0.886 | C9: 0.886 | D9: 0.886 | E9: 0.886 | F9: 0.886 | G9: 0.886 | H9: 0.886 | I9: 0.886 | J9: 0.886 | K9: 0.886 | L9: 0.886 | M9: 0.886 | N9: =ROUND((tabFinanzQuartFaktoren[[#This Row],[KripM01]]+tabFinanzQuartFaktoren[[#This Row],[KripM02]]+tabFinanzQuartFaktoren[[#This Row],[KripM03]])/3,3) -> 0.886 | O9: =ROUND((tabFinanzQuartFaktoren[[#This Row],[KripM04]]+tabFinanzQuartFaktoren[[#This Row],[KripM05]]+tabFinanzQuartFaktoren[[#This Row],[KripM06]])/3,3) -> 0.886 | P9: =ROUND((tabFinanzQuartFaktoren[[#This Row],[KripM07]]+tabFinanzQuartFaktoren[[#This Row],[KripM08]]+tabFinanzQuartFaktoren[[#This Row],[KripM09]])/3,3) -> 0.886 | Q9: =ROUND((tabFinanzQuartFaktoren[[#This Row],[KripM10]]+tabFinanzQuartFaktoren[[#This Row],[KripM11]]+tabFinanzQuartFaktoren[[#This Row],[KripM12]])/3,3) -> 0.886 | R9: 0.864 | S9: 0.864 | T9: 0.864 | U9: 0.864 | V9: 0.864 | W9: 0.864 | X9: 0.864 | Y9: 0.876 | Z9: 0.876 | AA9: 0.876 | AB9: 0.876 | AC9: 0.876 | AD9: =ROUND((tabFinanzQuartFaktoren[[#This Row],[KigaM01]]+tabFinanzQuartFaktoren[[#This Row],[KigaM02]]+tabFinanzQuartFaktoren[[#This Row],[KigaM03]])/3,3) -> 0.864 | AE9: =ROUND((tabFinanzQuartFaktoren[[#This Row],[KigaM04]]+tabFinanzQuartFaktoren[[#This Row],[KigaM05]]+tabFinanzQuartFaktoren[[#This Row],[KigaM06]])/3,3) -> 0.864 | AF9: =ROUND((tabFinanzQuartFaktoren[[#This Row],[KigaM07]]+tabFinanzQuartFaktoren[[#This Row],[KigaM08]]+tabFinanzQuartFaktoren[[#This Row],[KigaM09]])/3,3) -> 0.872 | AG9: =ROUND((tabFinanzQuartFaktoren[[#This Row],[KigaM10]]+tabFinanzQuartFaktoren[[#This Row],[KigaM11]]+tabFinanzQuartFaktoren[[#This Row],[KigaM12]])/3,3) -> 0.876 | AH9: 0.84 | AI9: 0.84 | AJ9: 0.84 | AK9: 0.84 | AL9: 0.84 | AM9: 0.84 | AN9: 0.84 | AO9: 0.84 | AP9: 0.84 | AQ9: 0.84 | AR9: 0.84 | AS9: 0.84 | AT9: =ROUND((tabFinanzQuartFaktoren[[#This Row],[HortM01]]+tabFinanzQuartFaktoren[[#This Row],[HortM02]]+tabFinanzQuartFaktoren[[#This Row],[HortM03]])/3,3) -> 0.84 | AU9: =ROUND((tabFinanzQuartFaktoren[[#This Row],[HortM04]]+tabFinanzQuartFaktoren[[#This Row],[HortM05]]+tabFinanzQuartFaktoren[[#This Row],[HortM06]])/3,3) -> 0.84 | AV9: =ROUND((tabFinanzQuartFaktoren[[#This Row],[HortM07]]+tabFinanzQuartFaktoren[[#This Row],[HortM08]]+tabFinanzQuartFaktoren[[#This Row],[HortM09]])/3,3) -> 0.84 | AW9: =ROUND((tabFinanzQuartFaktoren[[#This Row],[HortM10]]+tabFinanzQuartFaktoren[[#This Row],[HortM11]]+tabFinanzQuartFaktoren[[#This Row],[HortM12]])/3,3) -> 0.84 | AX9: 0.84 | AY9: 0.84 | AZ9: 0.84 | BA9: 0.84 | BB9: 0.84 | BC9: 0.84 | BD9: 0.84 | BE9: 0.84 | BF9: 0.84 | BG9: 0.84 | BH9: 0.84 | BI9: 0.84 | BJ9: =ROUND((tabFinanzQuartFaktoren[[#This Row],[LtgM01]]+tabFinanzQuartFaktoren[[#This Row],[LtgM02]]+tabFinanzQuartFaktoren[[#This Row],[LtgM03]])/3,3) -> 0.84 | BK9: =ROUND((tabFinanzQuartFaktoren[[#This Row],[LtgM04]]+tabFinanzQuartFaktoren[[#This Row],[LtgM05]]+tabFinanzQuartFaktoren[[#This Row],[LtgM06]])/3,3) -> 0.84 | BL9: =ROUND((tabFinanzQuartFaktoren[[#This Row],[LtgM07]]+tabFinanzQuartFaktoren[[#This Row],[LtgM08]]+tabFinanzQuartFaktoren[[#This Row],[LtgM09]])/3,3) -> 0.84 | BM9: =ROUND((tabFinanzQuartFaktoren[[#This Row],[LtgM10]]+tabFinanzQuartFaktoren[[#This Row],[LtgM11]]+tabFinanzQuartFaktoren[[#This Row],[LtgM12]])/3,3) -> 0.84
A10: 2021 | B10: 0.886 | C10: 0.886 | D10: 0.886 | E10: 0.886 | F10: 0.886 | G10: 0.886 | H10: 0.886 | I10: 0.886 | J10: 0.886 | K10: 0.886 | L10: 0.886 | M10: 0.886 | N10: =ROUND((tabFinanzQuartFaktoren[[#This Row],[KripM01]]+tabFinanzQuartFaktoren[[#This Row],[KripM02]]+tabFinanzQuartFaktoren[[#This Row],[KripM03]])/3,3) -> 0.886 | O10: =ROUND((tabFinanzQuartFaktoren[[#This Row],[KripM04]]+tabFinanzQuartFaktoren[[#This Row],[KripM05]]+tabFinanzQuartFaktoren[[#This Row],[KripM06]])/3,3) -> 0.886 | P10: =ROUND((tabFinanzQuartFaktoren[[#This Row],[KripM07]]+tabFinanzQuartFaktoren[[#This Row],[KripM08]]+tabFinanzQuartFaktoren[[#This Row],[KripM09]])/3,3) -> 0.886 | Q10: =ROUND((tabFinanzQuartFaktoren[[#This Row],[KripM10]]+tabFinanzQuartFaktoren[[#This Row],[KripM11]]+tabFinanzQuartFaktoren[[#This Row],[KripM12]])/3,3) -> 0.886 | R10: 0.876 | S10: 0.876 | T10: 0.876 | U10: 0.876 | V10: 0.876 | W10: 0.876 | X10: 0.876 | Y10: 0.876 | Z10: 0.876 | AA10: 0.876 | AB10: 0.876 | AC10: 0.876 | AD10: =ROUND((tabFinanzQuartFaktoren[[#This Row],[KigaM01]]+tabFinanzQuartFaktoren[[#This Row],[KigaM02]]+tabFinanzQuartFaktoren[[#This Row],[KigaM03]])/3,3) -> 0.876 | AE10: =ROUND((tabFinanzQuartFaktoren[[#This Row],[KigaM04]]+tabFinanzQuartFaktoren[[#This Row],[KigaM05]]+tabFinanzQuartFaktoren[[#This Row],[KigaM06]])/3,3) -> 0.876 | AF10: =ROUND((tabFinanzQuartFaktoren[[#This Row],[KigaM07]]+tabFinanzQuartFaktoren[[#This Row],[KigaM08]]+tabFinanzQuartFaktoren[[#This Row],[KigaM09]])/3,3) -> 0.876 | AG10: =ROUND((tabFinanzQuartFaktoren[[#This Row],[KigaM10]]+tabFinanzQuartFaktoren[[#This Row],[KigaM11]]+tabFinanzQuartFaktoren[[#This Row],[KigaM12]])/3,3) -> 0.876 | AH10: 0.84 | AI10: 0.84 | AJ10: 0.84 | AK10: 0.84 | AL10: 0.84 | AM10: 0.84 | AN10: 0.84 | AO10: 0.84 | AP10: 0.84 | AQ10: 0.84 | AR10: 0.84 | AS10: 0.84 | AT10: =ROUND((tabFinanzQuartFaktoren[[#This Row],[HortM01]]+tabFinanzQuartFaktoren[[#This Row],[HortM02]]+tabFinanzQuartFaktoren[[#This Row],[HortM03]])/3,3) -> 0.84 | AU10: =ROUND((tabFinanzQuartFaktoren[[#This Row],[HortM04]]+tabFinanzQuartFaktoren[[#This Row],[HortM05]]+tabFinanzQuartFaktoren[[#This Row],[HortM06]])/3,3) -> 0.84 | AV10: =ROUND((tabFinanzQuartFaktoren[[#This Row],[HortM07]]+tabFinanzQuartFaktoren[[#This Row],[HortM08]]+tabFinanzQuartFaktoren[[#This Row],[HortM09]])/3,3) -> 0.84 | AW10: =ROUND((tabFinanzQuartFaktoren[[#This Row],[HortM10]]+tabFinanzQuartFaktoren[[#This Row],[HortM11]]+tabFinanzQuartFaktoren[[#This Row],[HortM12]])/3,3) -> 0.84 | AX10: 0.84 | AY10: 0.84 | AZ10: 0.84 | BA10: 0.84 | BB10: 0.84 | BC10: 0.84 | BD10: 0.84 | BE10: 0.84 | BF10: 0.84 | BG10: 0.84 | BH10: 0.84 | BI10: 0.84 | BJ10: =ROUND((tabFinanzQuartFaktoren[[#This Row],[LtgM01]]+tabFinanzQuartFaktoren[[#This Row],[LtgM02]]+tabFinanzQuartFaktoren[[#This Row],[LtgM03]])/3,3) -> 0.84 | BK10: =ROUND((tabFinanzQuartFaktoren[[#This Row],[LtgM04]]+tabFinanzQuartFaktoren[[#This Row],[LtgM05]]+tabFinanzQuartFaktoren[[#This Row],[LtgM06]])/3,3) -> 0.84 | BL10: =ROUND((tabFinanzQuartFaktoren[[#This Row],[LtgM07]]+tabFinanzQuartFaktoren[[#This Row],[LtgM08]]+tabFinanzQuartFaktoren[[#This Row],[LtgM09]])/3,3) -> 0.84 | BM10: =ROUND((tabFinanzQuartFaktoren[[#This Row],[LtgM10]]+tabFinanzQuartFaktoren[[#This Row],[LtgM11]]+tabFinanzQuartFaktoren[[#This Row],[LtgM12]])/3,3) -> 0.84
A11: 2022 | B11: 0.886 | C11: 0.886 | D11: 0.886 | E11: 0.886 | F11: 0.886 | G11: 0.886 | H11: 0.886 | I11: 0.886 | J11: 0.886 | K11: 0.886 | L11: 0.886 | M11: 0.886 | N11: =ROUND((tabFinanzQuartFaktoren[[#This Row],[KripM01]]+tabFinanzQuartFaktoren[[#This Row],[KripM02]]+tabFinanzQuartFaktoren[[#This Row],[KripM03]])/3,3) -> 0.886 | O11: =ROUND((tabFinanzQuartFaktoren[[#This Row],[KripM04]]+tabFinanzQuartFaktoren[[#This Row],[KripM05]]+tabFinanzQuartFaktoren[[#This Row],[KripM06]])/3,3) -> 0.886 | P11: =ROUND((tabFinanzQuartFaktoren[[#This Row],[KripM07]]+tabFinanzQuartFaktoren[[#This Row],[KripM08]]+tabFinanzQuartFaktoren[[#This Row],[KripM09]])/3,3) -> 0.886 | Q11: =ROUND((tabFinanzQuartFaktoren[[#This Row],[KripM10]]+tabFinanzQuartFaktoren[[#This Row],[KripM11]]+tabFinanzQuartFaktoren[[#This Row],[KripM12]])/3,3) -> 0.886 | R11: 0.876 | S11: 0.876 | T11: 0.876 | U11: 0.876 | V11: 0.876 | W11: 0.876 | X11: 0.876 | Y11: 0.876 | Z11: 0.876 | AA11: 0.876 | AB11: 0.876 | AC11: 0.876 | AD11: =ROUND((tabFinanzQuartFaktoren[[#This Row],[KigaM01]]+tabFinanzQuartFaktoren[[#This Row],[KigaM02]]+tabFinanzQuartFaktoren[[#This Row],[KigaM03]])/3,3) -> 0.876 | AE11: =ROUND((tabFinanzQuartFaktoren[[#This Row],[KigaM04]]+tabFinanzQuartFaktoren[[#This Row],[KigaM05]]+tabFinanzQuartFaktoren[[#This Row],[KigaM06]])/3,3) -> 0.876 | AF11: =ROUND((tabFinanzQuartFaktoren[[#This Row],[KigaM07]]+tabFinanzQuartFaktoren[[#This Row],[KigaM08]]+tabFinanzQuartFaktoren[[#This Row],[KigaM09]])/3,3) -> 0.876 | AG11: =ROUND((tabFinanzQuartFaktoren[[#This Row],[KigaM10]]+tabFinanzQuartFaktoren[[#This Row],[KigaM11]]+tabFinanzQuartFaktoren[[#This Row],[KigaM12]])/3,3) -> 0.876 | AH11: 0.84 | AI11: 0.84 | AJ11: 0.84 | AK11: 0.84 | AL11: 0.84 | AM11: 0.84 | AN11: 0.84 | AO11: 0.84 | AP11: 0.84 | AQ11: 0.84 | AR11: 0.84 | AS11: 0.84 | AT11: =ROUND((tabFinanzQuartFaktoren[[#This Row],[HortM01]]+tabFinanzQuartFaktoren[[#This Row],[HortM02]]+tabFinanzQuartFaktoren[[#This Row],[HortM03]])/3,3) -> 0.84 | AU11: =ROUND((tabFinanzQuartFaktoren[[#This Row],[HortM04]]+tabFinanzQuartFaktoren[[#This Row],[HortM05]]+tabFinanzQuartFaktoren[[#This Row],[HortM06]])/3,3) -> 0.84 | AV11: =ROUND((tabFinanzQuartFaktoren[[#This Row],[HortM07]]+tabFinanzQuartFaktoren[[#This Row],[HortM08]]+tabFinanzQuartFaktoren[[#This Row],[HortM09]])/3,3) -> 0.84 | AW11: =ROUND((tabFinanzQuartFaktoren[[#This Row],[HortM10]]+tabFinanzQuartFaktoren[[#This Row],[HortM11]]+tabFinanzQuartFaktoren[[#This Row],[HortM12]])/3,3) -> 0.84 | AX11: 0.84 | AY11: 0.84 | AZ11: 0.84 | BA11: 0.84 | BB11: 0.84 | BC11: 0.84 | BD11: 0.84 | BE11: 0.84 | BF11: 0.84 | BG11: 0.84 | BH11: 0.84 | BI11: 0.84 | BJ11: =ROUND((tabFinanzQuartFaktoren[[#This Row],[LtgM01]]+tabFinanzQuartFaktoren[[#This Row],[LtgM02]]+tabFinanzQuartFaktoren[[#This Row],[LtgM03]])/3,3) -> 0.84 | BK11: =ROUND((tabFinanzQuartFaktoren[[#This Row],[LtgM04]]+tabFinanzQuartFaktoren[[#This Row],[LtgM05]]+tabFinanzQuartFaktoren[[#This Row],[LtgM06]])/3,3) -> 0.84 | BL11: =ROUND((tabFinanzQuartFaktoren[[#This Row],[LtgM07]]+tabFinanzQuartFaktoren[[#This Row],[LtgM08]]+tabFinanzQuartFaktoren[[#This Row],[LtgM09]])/3,3) -> 0.84 | BM11: =ROUND((tabFinanzQuartFaktoren[[#This Row],[LtgM10]]+tabFinanzQuartFaktoren[[#This Row],[LtgM11]]+tabFinanzQuartFaktoren[[#This Row],[LtgM12]])/3,3) -> 0.84
A12: 2023 | B12: 0.886 | C12: 0.886 | D12: 0.886 | E12: 0.886 | F12: 0.886 | G12: 0.886 | H12: 0.886 | I12: 0.886 | J12: 0.886 | K12: 0.886 | L12: 0.886 | M12: 0.886 | N12: =ROUND((tabFinanzQuartFaktoren[[#This Row],[KripM01]]+tabFinanzQuartFaktoren[[#This Row],[KripM02]]+tabFinanzQuartFaktoren[[#This Row],[KripM03]])/3,3) -> 0.886 | O12: =ROUND((tabFinanzQuartFaktoren[[#This Row],[KripM04]]+tabFinanzQuartFaktoren[[#This Row],[KripM05]]+tabFinanzQuartFaktoren[[#This Row],[KripM06]])/3,3) -> 0.886 | P12: =ROUND((tabFinanzQuartFaktoren[[#This Row],[KripM07]]+tabFinanzQuartFaktoren[[#This Row],[KripM08]]+tabFinanzQuartFaktoren[[#This Row],[KripM09]])/3,3) -> 0.886 | Q12: =ROUND((tabFinanzQuartFaktoren[[#This Row],[KripM10]]+tabFinanzQuartFaktoren[[#This Row],[KripM11]]+tabFinanzQuartFaktoren[[#This Row],[KripM12]])/3,3) -> 0.886 | R12: 0.876 | S12: 0.876 | T12: 0.876 | U12: 0.876 | V12: 0.876 | W12: 0.876 | X12: 0.876 | Y12: 0.876 | Z12: 0.876 | AA12: 0.876 | AB12: 0.876 | AC12: 0.876 | AD12: =ROUND((tabFinanzQuartFaktoren[[#This Row],[KigaM01]]+tabFinanzQuartFaktoren[[#This Row],[KigaM02]]+tabFinanzQuartFaktoren[[#This Row],[KigaM03]])/3,3) -> 0.876 | AE12: =ROUND((tabFinanzQuartFaktoren[[#This Row],[KigaM04]]+tabFinanzQuartFaktoren[[#This Row],[KigaM05]]+tabFinanzQuartFaktoren[[#This Row],[KigaM06]])/3,3) -> 0.876 | AF12: =ROUND((tabFinanzQuartFaktoren[[#This Row],[KigaM07]]+tabFinanzQuartFaktoren[[#This Row],[KigaM08]]+tabFinanzQuartFaktoren[[#This Row],[KigaM09]])/3,3) -> 0.876 | AG12: =ROUND((tabFinanzQuartFaktoren[[#This Row],[KigaM10]]+tabFinanzQuartFaktoren[[#This Row],[KigaM11]]+tabFinanzQuartFaktoren[[#This Row],[KigaM12]])/3,3) -> 0.876 | AH12: 0.84 | AI12: 0.84 | AJ12: 0.84 | AK12: 0.84 | AL12: 0.84 | AM12: 0.84 | AN12: 0.84 | AO12: 0.84 | AP12: 0.84 | AQ12: 0.84 | AR12: 0.84 | AS12: 0.84 | AT12: =ROUND((tabFinanzQuartFaktoren[[#This Row],[HortM01]]+tabFinanzQuartFaktoren[[#This Row],[HortM02]]+tabFinanzQuartFaktoren[[#This Row],[HortM03]])/3,3) -> 0.84 | AU12: =ROUND((tabFinanzQuartFaktoren[[#This Row],[HortM04]]+tabFinanzQuartFaktoren[[#This Row],[HortM05]]+tabFinanzQuartFaktoren[[#This Row],[HortM06]])/3,3) -> 0.84 | AV12: =ROUND((tabFinanzQuartFaktoren[[#This Row],[HortM07]]+tabFinanzQuartFaktoren[[#This Row],[HortM08]]+tabFinanzQuartFaktoren[[#This Row],[HortM09]])/3,3) -> 0.84 | AW12: =ROUND((tabFinanzQuartFaktoren[[#This Row],[HortM10]]+tabFinanzQuartFaktoren[[#This Row],[HortM11]]+tabFinanzQuartFaktoren[[#This Row],[HortM12]])/3,3) -> 0.84 | AX12: 0.84 | AY12: 0.84 | AZ12: 0.84 | BA12: 0.84 | BB12: 0.84 | BC12: 0.84 | BD12: 0.84 | BE12: 0.84 | BF12: 0.84 | BG12: 0.84 | BH12: 0.84 | BI12: 0.84 | BJ12: =ROUND((tabFinanzQuartFaktoren[[#This Row],[LtgM01]]+tabFinanzQuartFaktoren[[#This Row],[LtgM02]]+tabFinanzQuartFaktoren[[#This Row],[LtgM03]])/3,3) -> 0.84 | BK12: =ROUND((tabFinanzQuartFaktoren[[#This Row],[LtgM04]]+tabFinanzQuartFaktoren[[#This Row],[LtgM05]]+tabFinanzQuartFaktoren[[#This Row],[LtgM06]])/3,3) -> 0.84 | BL12: =ROUND((tabFinanzQuartFaktoren[[#This Row],[LtgM07]]+tabFinanzQuartFaktoren[[#This Row],[LtgM08]]+tabFinanzQuartFaktoren[[#This Row],[LtgM09]])/3,3) -> 0.84 | BM12: =ROUND((tabFinanzQuartFaktoren[[#This Row],[LtgM10]]+tabFinanzQuartFaktoren[[#This Row],[LtgM11]]+tabFinanzQuartFaktoren[[#This Row],[LtgM12]])/3,3) -> 0.84
A13: 2024 | B13: 0.886 | C13: 0.886 | D13: 0.886 | E13: 0.886 | F13: 0.886 | G13: 0.886 | H13: 0.886 | I13: 0.886 | J13: 0.886 | K13: 0.886 | L13: 0.886 | M13: 0.886 | N13: =ROUND((tabFinanzQuartFaktoren[[#This Row],[KripM01]]+tabFinanzQuartFaktoren[[#This Row],[KripM02]]+tabFinanzQuartFaktoren[[#This Row],[KripM03]])/3,3) -> 0.886 | O13: =ROUND((tabFinanzQuartFaktoren[[#This Row],[KripM04]]+tabFinanzQuartFaktoren[[#This Row],[KripM05]]+tabFinanzQuartFaktoren[[#This Row],[KripM06]])/3,3) -> 0.886 | P13: =ROUND((tabFinanzQuartFaktoren[[#This Row],[KripM07]]+tabFinanzQuartFaktoren[[#This Row],[KripM08]]+tabFinanzQuartFaktoren[[#This Row],[KripM09]])/3,3) -> 0.886 | Q13: =ROUND((tabFinanzQuartFaktoren[[#This Row],[KripM10]]+tabFinanzQuartFaktoren[[#This Row],[KripM11]]+tabFinanzQuartFaktoren[[#This Row],[KripM12]])/3,3) -> 0.886 | R13: 0.876 | S13: 0.876 | T13: 0.876 | U13: 0.876 | V13: 0.876 | W13: 0.876 | X13: 0.876 | Y13: 0.876 | Z13: 0.876 | AA13: 0.876 | AB13: 0.876 | AC13: 0.876 | AD13: =ROUND((tabFinanzQuartFaktoren[[#This Row],[KigaM01]]+tabFinanzQuartFaktoren[[#This Row],[KigaM02]]+tabFinanzQuartFaktoren[[#This Row],[KigaM03]])/3,3) -> 0.876 | AE13: =ROUND((tabFinanzQuartFaktoren[[#This Row],[KigaM04]]+tabFinanzQuartFaktoren[[#This Row],[KigaM05]]+tabFinanzQuartFaktoren[[#This Row],[KigaM06]])/3,3) -> 0.876 | AF13: =ROUND((tabFinanzQuartFaktoren[[#This Row],[KigaM07]]+tabFinanzQuartFaktoren[[#This Row],[KigaM08]]+tabFinanzQuartFaktoren[[#This Row],[KigaM09]])/3,3) -> 0.876 | AG13: =ROUND((tabFinanzQuartFaktoren[[#This Row],[KigaM10]]+tabFinanzQuartFaktoren[[#This Row],[KigaM11]]+tabFinanzQuartFaktoren[[#This Row],[KigaM12]])/3,3) -> 0.876 | AH13: 0.84 | AI13: 0.84 | AJ13: 0.84 | AK13: 0.84 | AL13: 0.84 | AM13: 0.84 | AN13: 0.84 | AO13: 0.84 | AP13: 0.84 | AQ13: 0.84 | AR13: 0.84 | AS13: 0.84 | AT13: =ROUND((tabFinanzQuartFaktoren[[#This Row],[HortM01]]+tabFinanzQuartFaktoren[[#This Row],[HortM02]]+tabFinanzQuartFaktoren[[#This Row],[HortM03]])/3,3) -> 0.84 | AU13: =ROUND((tabFinanzQuartFaktoren[[#This Row],[HortM04]]+tabFinanzQuartFaktoren[[#This Row],[HortM05]]+tabFinanzQuartFaktoren[[#This Row],[HortM06]])/3,3) -> 0.84 | AV13: =ROUND((tabFinanzQuartFaktoren[[#This Row],[HortM07]]+tabFinanzQuartFaktoren[[#This Row],[HortM08]]+tabFinanzQuartFaktoren[[#This Row],[HortM09]])/3,3) -> 0.84 | AW13: =ROUND((tabFinanzQuartFaktoren[[#This Row],[HortM10]]+tabFinanzQuartFaktoren[[#This Row],[HortM11]]+tabFinanzQuartFaktoren[[#This Row],[HortM12]])/3,3) -> 0.84 | AX13: 0.84 | AY13: 0.84 | AZ13: 0.84 | BA13: 0.84 | BB13: 0.84 | BC13: 0.84 | BD13: 0.84 | BE13: 0.84 | BF13: 0.84 | BG13: 0.84 | BH13: 0.84 | BI13: 0.84 | BJ13: =ROUND((tabFinanzQuartFaktoren[[#This Row],[LtgM01]]+tabFinanzQuartFaktoren[[#This Row],[LtgM02]]+tabFinanzQuartFaktoren[[#This Row],[LtgM03]])/3,3) -> 0.84 | BK13: =ROUND((tabFinanzQuartFaktoren[[#This Row],[LtgM04]]+tabFinanzQuartFaktoren[[#This Row],[LtgM05]]+tabFinanzQuartFaktoren[[#This Row],[LtgM06]])/3,3) -> 0.84 | BL13: =ROUND((tabFinanzQuartFaktoren[[#This Row],[LtgM07]]+tabFinanzQuartFaktoren[[#This Row],[LtgM08]]+tabFinanzQuartFaktoren[[#This Row],[LtgM09]])/3,3) -> 0.84 | BM13: =ROUND((tabFinanzQuartFaktoren[[#This Row],[LtgM10]]+tabFinanzQuartFaktoren[[#This Row],[LtgM11]]+tabFinanzQuartFaktoren[[#This Row],[LtgM12]])/3,3) -> 0.84
A14: 2025 | B14: 0.886 | C14: 0.886 | D14: 0.886 | E14: 0.886 | F14: 0.886 | G14: 0.886 | H14: 0.886 | I14: 0.886 | J14: 0.886 | K14: 0.886 | L14: 0.886 | M14: 0.886 | N14: =ROUND((tabFinanzQuartFaktoren[[#This Row],[KripM01]]+tabFinanzQuartFaktoren[[#This Row],[KripM02]]+tabFinanzQuartFaktoren[[#This Row],[KripM03]])/3,3) -> 0.886 | O14: =ROUND((tabFinanzQuartFaktoren[[#This Row],[KripM04]]+tabFinanzQuartFaktoren[[#This Row],[KripM05]]+tabFinanzQuartFaktoren[[#This Row],[KripM06]])/3,3) -> 0.886 | P14: =ROUND((tabFinanzQuartFaktoren[[#This Row],[KripM07]]+tabFinanzQuartFaktoren[[#This Row],[KripM08]]+tabFinanzQuartFaktoren[[#This Row],[KripM09]])/3,3) -> 0.886 | Q14: =ROUND((tabFinanzQuartFaktoren[[#This Row],[KripM10]]+tabFinanzQuartFaktoren[[#This Row],[KripM11]]+tabFinanzQuartFaktoren[[#This Row],[KripM12]])/3,3) -> 0.886 | R14: 0.876 | S14: 0.876 | T14: 0.876 | U14: 0.876 | V14: 0.876 | W14: 0.876 | X14: 0.876 | Y14: 0.876 | Z14: 0.876 | AA14: 0.876 | AB14: 0.876 | AC14: 0.876 | AD14: =ROUND((tabFinanzQuartFaktoren[[#This Row],[KigaM01]]+tabFinanzQuartFaktoren[[#This Row],[KigaM02]]+tabFinanzQuartFaktoren[[#This Row],[KigaM03]])/3,3) -> 0.876 | AE14: =ROUND((tabFinanzQuartFaktoren[[#This Row],[KigaM04]]+tabFinanzQuartFaktoren[[#This Row],[KigaM05]]+tabFinanzQuartFaktoren[[#This Row],[KigaM06]])/3,3) -> 0.876 | AF14: =ROUND((tabFinanzQuartFaktoren[[#This Row],[KigaM07]]+tabFinanzQuartFaktoren[[#This Row],[KigaM08]]+tabFinanzQuartFaktoren[[#This Row],[KigaM09]])/3,3) -> 0.876 | AG14: =ROUND((tabFinanzQuartFaktoren[[#This Row],[KigaM10]]+tabFinanzQuartFaktoren[[#This Row],[KigaM11]]+tabFinanzQuartFaktoren[[#This Row],[KigaM12]])/3,3) -> 0.876 | AH14: 0.84 | AI14: 0.84 | AJ14: 0.84 | AK14: 0.84 | AL14: 0.84 | AM14: 0.84 | AN14: 0.84 | AO14: 0.84 | AP14: 0.84 | AQ14: 0.84 | AR14: 0.84 | AS14: 0.84 | AT14: =ROUND((tabFinanzQuartFaktoren[[#This Row],[HortM01]]+tabFinanzQuartFaktoren[[#This Row],[HortM02]]+tabFinanzQuartFaktoren[[#This Row],[HortM03]])/3,3) -> 0.84 | AU14: =ROUND((tabFinanzQuartFaktoren[[#This Row],[HortM04]]+tabFinanzQuartFaktoren[[#This Row],[HortM05]]+tabFinanzQuartFaktoren[[#This Row],[HortM06]])/3,3) -> 0.84 | AV14: =ROUND((tabFinanzQuartFaktoren[[#This Row],[HortM07]]+tabFinanzQuartFaktoren[[#This Row],[HortM08]]+tabFinanzQuartFaktoren[[#This Row],[HortM09]])/3,3) -> 0.84 | AW14: =ROUND((tabFinanzQuartFaktoren[[#This Row],[HortM10]]+tabFinanzQuartFaktoren[[#This Row],[HortM11]]+tabFinanzQuartFaktoren[[#This Row],[HortM12]])/3,3) -> 0.84 | AX14: 0.84 | AY14: 0.84 | AZ14: 0.84 | BA14: 0.84 | BB14: 0.84 | BC14: 0.84 | BD14: 0.84 | BE14: 0.84 | BF14: 0.84 | BG14: 0.84 | BH14: 0.84 | BI14: 0.84 | BJ14: =ROUND((tabFinanzQuartFaktoren[[#This Row],[LtgM01]]+tabFinanzQuartFaktoren[[#This Row],[LtgM02]]+tabFinanzQuartFaktoren[[#This Row],[LtgM03]])/3,3) -> 0.84 | BK14: =ROUND((tabFinanzQuartFaktoren[[#This Row],[LtgM04]]+tabFinanzQuartFaktoren[[#This Row],[LtgM05]]+tabFinanzQuartFaktoren[[#This Row],[LtgM06]])/3,3) -> 0.84 | BL14: =ROUND((tabFinanzQuartFaktoren[[#This Row],[LtgM07]]+tabFinanzQuartFaktoren[[#This Row],[LtgM08]]+tabFinanzQuartFaktoren[[#This Row],[LtgM09]])/3,3) -> 0.84 | BM14: =ROUND((tabFinanzQuartFaktoren[[#This Row],[LtgM10]]+tabFinanzQuartFaktoren[[#This Row],[LtgM11]]+tabFinanzQuartFaktoren[[#This Row],[LtgM12]])/3,3) -> 0.84
A15: 2026 | B15: 0.886 | C15: 0.886 | D15: 0.886 | E15: 0.886 | F15: 0.886 | G15: 0.886 | H15: 0.886 | I15: 0.886 | J15: 0.886 | K15: 0.886 | L15: 0.886 | M15: 0.886 | N15: =ROUND((tabFinanzQuartFaktoren[[#This Row],[KripM01]]+tabFinanzQuartFaktoren[[#This Row],[KripM02]]+tabFinanzQuartFaktoren[[#This Row],[KripM03]])/3,3) -> 0.886 | O15: =ROUND((tabFinanzQuartFaktoren[[#This Row],[KripM04]]+tabFinanzQuartFaktoren[[#This Row],[KripM05]]+tabFinanzQuartFaktoren[[#This Row],[KripM06]])/3,3) -> 0.886 | P15: =ROUND((tabFinanzQuartFaktoren[[#This Row],[KripM07]]+tabFinanzQuartFaktoren[[#This Row],[KripM08]]+tabFinanzQuartFaktoren[[#This Row],[KripM09]])/3,3) -> 0.886 | Q15: =ROUND((tabFinanzQuartFaktoren[[#This Row],[KripM10]]+tabFinanzQuartFaktoren[[#This Row],[KripM11]]+tabFinanzQuartFaktoren[[#This Row],[KripM12]])/3,3) -> 0.886 | R15: 0.876 | S15: 0.876 | T15: 0.876 | U15: 0.876 | V15: 0.876 | W15: 0.876 | X15: 0.876 | Y15: 0.876 | Z15: 0.876 | AA15: 0.876 | AB15: 0.876 | AC15: 0.876 | AD15: =ROUND((tabFinanzQuartFaktoren[[#This Row],[KigaM01]]+tabFinanzQuartFaktoren[[#This Row],[KigaM02]]+tabFinanzQuartFaktoren[[#This Row],[KigaM03]])/3,3) -> 0.876 | AE15: =ROUND((tabFinanzQuartFaktoren[[#This Row],[KigaM04]]+tabFinanzQuartFaktoren[[#This Row],[KigaM05]]+tabFinanzQuartFaktoren[[#This Row],[KigaM06]])/3,3) -> 0.876 | AF15: =ROUND((tabFinanzQuartFaktoren[[#This Row],[KigaM07]]+tabFinanzQuartFaktoren[[#This Row],[KigaM08]]+tabFinanzQuartFaktoren[[#This Row],[KigaM09]])/3,3) -> 0.876 | AG15: =ROUND((tabFinanzQuartFaktoren[[#This Row],[KigaM10]]+tabFinanzQuartFaktoren[[#This Row],[KigaM11]]+tabFinanzQuartFaktoren[[#This Row],[KigaM12]])/3,3) -> 0.876 | AH15: 0.84 | AI15: 0.84 | AJ15: 0.84 | AK15: 0.84 | AL15: 0.84 | AM15: 0.84 | AN15: 0.84 | AO15: 0.84 | AP15: 0.84 | AQ15: 0.84 | AR15: 0.84 | AS15: 0.84 | AT15: =ROUND((tabFinanzQuartFaktoren[[#This Row],[HortM01]]+tabFinanzQuartFaktoren[[#This Row],[HortM02]]+tabFinanzQuartFaktoren[[#This Row],[HortM03]])/3,3) -> 0.84 | AU15: =ROUND((tabFinanzQuartFaktoren[[#This Row],[HortM04]]+tabFinanzQuartFaktoren[[#This Row],[HortM05]]+tabFinanzQuartFaktoren[[#This Row],[HortM06]])/3,3) -> 0.84 | AV15: =ROUND((tabFinanzQuartFaktoren[[#This Row],[HortM07]]+tabFinanzQuartFaktoren[[#This Row],[HortM08]]+tabFinanzQuartFaktoren[[#This Row],[HortM09]])/3,3) -> 0.84 | AW15: =ROUND((tabFinanzQuartFaktoren[[#This Row],[HortM10]]+tabFinanzQuartFaktoren[[#This Row],[HortM11]]+tabFinanzQuartFaktoren[[#This Row],[HortM12]])/3,3) -> 0.84 | AX15: 0.84 | AY15: 0.84 | AZ15: 0.84 | BA15: 0.84 | BB15: 0.84 | BC15: 0.84 | BD15: 0.84 | BE15: 0.84 | BF15: 0.84 | BG15: 0.84 | BH15: 0.84 | BI15: 0.84 | BJ15: =ROUND((tabFinanzQuartFaktoren[[#This Row],[LtgM01]]+tabFinanzQuartFaktoren[[#This Row],[LtgM02]]+tabFinanzQuartFaktoren[[#This Row],[LtgM03]])/3,3) -> 0.84 | BK15: =ROUND((tabFinanzQuartFaktoren[[#This Row],[LtgM04]]+tabFinanzQuartFaktoren[[#This Row],[LtgM05]]+tabFinanzQuartFaktoren[[#This Row],[LtgM06]])/3,3) -> 0.84 | BL15: =ROUND((tabFinanzQuartFaktoren[[#This Row],[LtgM07]]+tabFinanzQuartFaktoren[[#This Row],[LtgM08]]+tabFinanzQuartFaktoren[[#This Row],[LtgM09]])/3,3) -> 0.84 | BM15: =ROUND((tabFinanzQuartFaktoren[[#This Row],[LtgM10]]+tabFinanzQuartFaktoren[[#This Row],[LtgM11]]+tabFinanzQuartFaktoren[[#This Row],[LtgM12]])/3,3) -> 0.84
A16: 2027 | B16: 0.886 | C16: 0.886 | D16: 0.886 | E16: 0.886 | F16: 0.886 | G16: 0.886 | H16: 0.886 | I16: 0.886 | J16: 0.886 | K16: 0.886 | L16: 0.886 | M16: 0.886 | N16: =ROUND((tabFinanzQuartFaktoren[[#This Row],[KripM01]]+tabFinanzQuartFaktoren[[#This Row],[KripM02]]+tabFinanzQuartFaktoren[[#This Row],[KripM03]])/3,3) -> 0.886 | O16: =ROUND((tabFinanzQuartFaktoren[[#This Row],[KripM04]]+tabFinanzQuartFaktoren[[#This Row],[KripM05]]+tabFinanzQuartFaktoren[[#This Row],[KripM06]])/3,3) -> 0.886 | P16: =ROUND((tabFinanzQuartFaktoren[[#This Row],[KripM07]]+tabFinanzQuartFaktoren[[#This Row],[KripM08]]+tabFinanzQuartFaktoren[[#This Row],[KripM09]])/3,3) -> 0.886 | Q16: =ROUND((tabFinanzQuartFaktoren[[#This Row],[KripM10]]+tabFinanzQuartFaktoren[[#This Row],[KripM11]]+tabFinanzQuartFaktoren[[#This Row],[KripM12]])/3,3) -> 0.886 | R16: 0.876 | S16: 0.876 | T16: 0.876 | U16: 0.876 | V16: 0.876 | W16: 0.876 | X16: 0.876 | Y16: 0.876 | Z16: 0.876 | AA16: 0.876 | AB16: 0.876 | AC16: 0.876 | AD16: =ROUND((tabFinanzQuartFaktoren[[#This Row],[KigaM01]]+tabFinanzQuartFaktoren[[#This Row],[KigaM02]]+tabFinanzQuartFaktoren[[#This Row],[KigaM03]])/3,3) -> 0.876 | AE16: =ROUND((tabFinanzQuartFaktoren[[#This Row],[KigaM04]]+tabFinanzQuartFaktoren[[#This Row],[KigaM05]]+tabFinanzQuartFaktoren[[#This Row],[KigaM06]])/3,3) -> 0.876 | AF16: =ROUND((tabFinanzQuartFaktoren[[#This Row],[KigaM07]]+tabFinanzQuartFaktoren[[#This Row],[KigaM08]]+tabFinanzQuartFaktoren[[#This Row],[KigaM09]])/3,3) -> 0.876 | AG16: =ROUND((tabFinanzQuartFaktoren[[#This Row],[KigaM10]]+tabFinanzQuartFaktoren[[#This Row],[KigaM11]]+tabFinanzQuartFaktoren[[#This Row],[KigaM12]])/3,3) -> 0.876 | AH16: 0.84 | AI16: 0.84 | AJ16: 0.84 | AK16: 0.84 | AL16: 0.84 | AM16: 0.84 | AN16: 0.84 | AO16: 0.84 | AP16: 0.84 | AQ16: 0.84 | AR16: 0.84 | AS16: 0.84 | AT16: =ROUND((tabFinanzQuartFaktoren[[#This Row],[HortM01]]+tabFinanzQuartFaktoren[[#This Row],[HortM02]]+tabFinanzQuartFaktoren[[#This Row],[HortM03]])/3,3) -> 0.84 | AU16: =ROUND((tabFinanzQuartFaktoren[[#This Row],[HortM04]]+tabFinanzQuartFaktoren[[#This Row],[HortM05]]+tabFinanzQuartFaktoren[[#This Row],[HortM06]])/3,3) -> 0.84 | AV16: =ROUND((tabFinanzQuartFaktoren[[#This Row],[HortM07]]+tabFinanzQuartFaktoren[[#This Row],[HortM08]]+tabFinanzQuartFaktoren[[#This Row],[HortM09]])/3,3) -> 0.84 | AW16: =ROUND((tabFinanzQuartFaktoren[[#This Row],[HortM10]]+tabFinanzQuartFaktoren[[#This Row],[HortM11]]+tabFinanzQuartFaktoren[[#This Row],[HortM12]])/3,3) -> 0.84 | AX16: 0.84 | AY16: 0.84 | AZ16: 0.84 | BA16: 0.84 | BB16: 0.84 | BC16: 0.84 | BD16: 0.84 | BE16: 0.84 | BF16: 0.84 | BG16: 0.84 | BH16: 0.84 | BI16: 0.84 | BJ16: =ROUND((tabFinanzQuartFaktoren[[#This Row],[LtgM01]]+tabFinanzQuartFaktoren[[#This Row],[LtgM02]]+tabFinanzQuartFaktoren[[#This Row],[LtgM03]])/3,3) -> 0.84 | BK16: =ROUND((tabFinanzQuartFaktoren[[#This Row],[LtgM04]]+tabFinanzQuartFaktoren[[#This Row],[LtgM05]]+tabFinanzQuartFaktoren[[#This Row],[LtgM06]])/3,3) -> 0.84 | BL16: =ROUND((tabFinanzQuartFaktoren[[#This Row],[LtgM07]]+tabFinanzQuartFaktoren[[#This Row],[LtgM08]]+tabFinanzQuartFaktoren[[#This Row],[LtgM09]])/3,3) -> 0.84 | BM16: =ROUND((tabFinanzQuartFaktoren[[#This Row],[LtgM10]]+tabFinanzQuartFaktoren[[#This Row],[LtgM11]]+tabFinanzQuartFaktoren[[#This Row],[LtgM12]])/3,3) -> 0.84
A17: 2028 | B17: 0.886 | C17: 0.886 | D17: 0.886 | E17: 0.886 | F17: 0.886 | G17: 0.886 | H17: 0.886 | I17: 0.886 | J17: 0.886 | K17: 0.886 | L17: 0.886 | M17: 0.886 | N17: =ROUND((tabFinanzQuartFaktoren[[#This Row],[KripM01]]+tabFinanzQuartFaktoren[[#This Row],[KripM02]]+tabFinanzQuartFaktoren[[#This Row],[KripM03]])/3,3) -> 0.886 | O17: =ROUND((tabFinanzQuartFaktoren[[#This Row],[KripM04]]+tabFinanzQuartFaktoren[[#This Row],[KripM05]]+tabFinanzQuartFaktoren[[#This Row],[KripM06]])/3,3) -> 0.886 | P17: =ROUND((tabFinanzQuartFaktoren[[#This Row],[KripM07]]+tabFinanzQuartFaktoren[[#This Row],[KripM08]]+tabFinanzQuartFaktoren[[#This Row],[KripM09]])/3,3) -> 0.886 | Q17: =ROUND((tabFinanzQuartFaktoren[[#This Row],[KripM10]]+tabFinanzQuartFaktoren[[#This Row],[KripM11]]+tabFinanzQuartFaktoren[[#This Row],[KripM12]])/3,3) -> 0.886 | R17: 0.876 | S17: 0.876 | T17: 0.876 | U17: 0.876 | V17: 0.876 | W17: 0.876 | X17: 0.876 | Y17: 0.876 | Z17: 0.876 | AA17: 0.876 | AB17: 0.876 | AC17: 0.876 | AD17: =ROUND((tabFinanzQuartFaktoren[[#This Row],[KigaM01]]+tabFinanzQuartFaktoren[[#This Row],[KigaM02]]+tabFinanzQuartFaktoren[[#This Row],[KigaM03]])/3,3) -> 0.876 | AE17: =ROUND((tabFinanzQuartFaktoren[[#This Row],[KigaM04]]+tabFinanzQuartFaktoren[[#This Row],[KigaM05]]+tabFinanzQuartFaktoren[[#This Row],[KigaM06]])/3,3) -> 0.876 | AF17: =ROUND((tabFinanzQuartFaktoren[[#This Row],[KigaM07]]+tabFinanzQuartFaktoren[[#This Row],[KigaM08]]+tabFinanzQuartFaktoren[[#This Row],[KigaM09]])/3,3) -> 0.876 | AG17: =ROUND((tabFinanzQuartFaktoren[[#This Row],[KigaM10]]+tabFinanzQuartFaktoren[[#This Row],[KigaM11]]+tabFinanzQuartFaktoren[[#This Row],[KigaM12]])/3,3) -> 0.876 | AH17: 0.84 | AI17: 0.84 | AJ17: 0.84 | AK17: 0.84 | AL17: 0.84 | AM17: 0.84 | AN17: 0.84 | AO17: 0.84 | AP17: 0.84 | AQ17: 0.84 | AR17: 0.84 | AS17: 0.84 | AT17: =ROUND((tabFinanzQuartFaktoren[[#This Row],[HortM01]]+tabFinanzQuartFaktoren[[#This Row],[HortM02]]+tabFinanzQuartFaktoren[[#This Row],[HortM03]])/3,3) -> 0.84 | AU17: =ROUND((tabFinanzQuartFaktoren[[#This Row],[HortM04]]+tabFinanzQuartFaktoren[[#This Row],[HortM05]]+tabFinanzQuartFaktoren[[#This Row],[HortM06]])/3,3) -> 0.84 | AV17: =ROUND((tabFinanzQuartFaktoren[[#This Row],[HortM07]]+tabFinanzQuartFaktoren[[#This Row],[HortM08]]+tabFinanzQuartFaktoren[[#This Row],[HortM09]])/3,3) -> 0.84 | AW17: =ROUND((tabFinanzQuartFaktoren[[#This Row],[HortM10]]+tabFinanzQuartFaktoren[[#This Row],[HortM11]]+tabFinanzQuartFaktoren[[#This Row],[HortM12]])/3,3) -> 0.84 | AX17: 0.84 | AY17: 0.84 | AZ17: 0.84 | BA17: 0.84 | BB17: 0.84 | BC17: 0.84 | BD17: 0.84 | BE17: 0.84 | BF17: 0.84 | BG17: 0.84 | BH17: 0.84 | BI17: 0.84 | BJ17: =ROUND((tabFinanzQuartFaktoren[[#This Row],[LtgM01]]+tabFinanzQuartFaktoren[[#This Row],[LtgM02]]+tabFinanzQuartFaktoren[[#This Row],[LtgM03]])/3,3) -> 0.84 | BK17: =ROUND((tabFinanzQuartFaktoren[[#This Row],[LtgM04]]+tabFinanzQuartFaktoren[[#This Row],[LtgM05]]+tabFinanzQuartFaktoren[[#This Row],[LtgM06]])/3,3) -> 0.84 | BL17: =ROUND((tabFinanzQuartFaktoren[[#This Row],[LtgM07]]+tabFinanzQuartFaktoren[[#This Row],[LtgM08]]+tabFinanzQuartFaktoren[[#This Row],[LtgM09]])/3,3) -> 0.84 | BM17: =ROUND((tabFinanzQuartFaktoren[[#This Row],[LtgM10]]+tabFinanzQuartFaktoren[[#This Row],[LtgM11]]+tabFinanzQuartFaktoren[[#This Row],[LtgM12]])/3,3) -> 0.84
A18: 2029 | B18: 0.886 | C18: 0.886 | D18: 0.886 | E18: 0.886 | F18: 0.886 | G18: 0.886 | H18: 0.886 | I18: 0.886 | J18: 0.886 | K18: 0.886 | L18: 0.886 | M18: 0.886 | N18: =ROUND((tabFinanzQuartFaktoren[[#This Row],[KripM01]]+tabFinanzQuartFaktoren[[#This Row],[KripM02]]+tabFinanzQuartFaktoren[[#This Row],[KripM03]])/3,3) -> 0.886 | O18: =ROUND((tabFinanzQuartFaktoren[[#This Row],[KripM04]]+tabFinanzQuartFaktoren[[#This Row],[KripM05]]+tabFinanzQuartFaktoren[[#This Row],[KripM06]])/3,3) -> 0.886 | P18: =ROUND((tabFinanzQuartFaktoren[[#This Row],[KripM07]]+tabFinanzQuartFaktoren[[#This Row],[KripM08]]+tabFinanzQuartFaktoren[[#This Row],[KripM09]])/3,3) -> 0.886 | Q18: =ROUND((tabFinanzQuartFaktoren[[#This Row],[KripM10]]+tabFinanzQuartFaktoren[[#This Row],[KripM11]]+tabFinanzQuartFaktoren[[#This Row],[KripM12]])/3,3) -> 0.886 | R18: 0.876 | S18: 0.876 | T18: 0.876 | U18: 0.876 | V18: 0.876 | W18: 0.876 | X18: 0.876 | Y18: 0.876 | Z18: 0.876 | AA18: 0.876 | AB18: 0.876 | AC18: 0.876 | AD18: =ROUND((tabFinanzQuartFaktoren[[#This Row],[KigaM01]]+tabFinanzQuartFaktoren[[#This Row],[KigaM02]]+tabFinanzQuartFaktoren[[#This Row],[KigaM03]])/3,3) -> 0.876 | AE18: =ROUND((tabFinanzQuartFaktoren[[#This Row],[KigaM04]]+tabFinanzQuartFaktoren[[#This Row],[KigaM05]]+tabFinanzQuartFaktoren[[#This Row],[KigaM06]])/3,3) -> 0.876 | AF18: =ROUND((tabFinanzQuartFaktoren[[#This Row],[KigaM07]]+tabFinanzQuartFaktoren[[#This Row],[KigaM08]]+tabFinanzQuartFaktoren[[#This Row],[KigaM09]])/3,3) -> 0.876 | AG18: =ROUND((tabFinanzQuartFaktoren[[#This Row],[KigaM10]]+tabFinanzQuartFaktoren[[#This Row],[KigaM11]]+tabFinanzQuartFaktoren[[#This Row],[KigaM12]])/3,3) -> 0.876 | AH18: 0.84 | AI18: 0.84 | AJ18: 0.84 | AK18: 0.84 | AL18: 0.84 | AM18: 0.84 | AN18: 0.84 | AO18: 0.84 | AP18: 0.84 | AQ18: 0.84 | AR18: 0.84 | AS18: 0.84 | AT18: =ROUND((tabFinanzQuartFaktoren[[#This Row],[HortM01]]+tabFinanzQuartFaktoren[[#This Row],[HortM02]]+tabFinanzQuartFaktoren[[#This Row],[HortM03]])/3,3) -> 0.84 | AU18: =ROUND((tabFinanzQuartFaktoren[[#This Row],[HortM04]]+tabFinanzQuartFaktoren[[#This Row],[HortM05]]+tabFinanzQuartFaktoren[[#This Row],[HortM06]])/3,3) -> 0.84 | AV18: =ROUND((tabFinanzQuartFaktoren[[#This Row],[HortM07]]+tabFinanzQuartFaktoren[[#This Row],[HortM08]]+tabFinanzQuartFaktoren[[#This Row],[HortM09]])/3,3) -> 0.84 | AW18: =ROUND((tabFinanzQuartFaktoren[[#This Row],[HortM10]]+tabFinanzQuartFaktoren[[#This Row],[HortM11]]+tabFinanzQuartFaktoren[[#This Row],[HortM12]])/3,3) -> 0.84 | AX18: 0.84 | AY18: 0.84 | AZ18: 0.84 | BA18: 0.84 | BB18: 0.84 | BC18: 0.84 | BD18: 0.84 | BE18: 0.84 | BF18: 0.84 | BG18: 0.84 | BH18: 0.84 | BI18: 0.84 | BJ18: =ROUND((tabFinanzQuartFaktoren[[#This Row],[LtgM01]]+tabFinanzQuartFaktoren[[#This Row],[LtgM02]]+tabFinanzQuartFaktoren[[#This Row],[LtgM03]])/3,3) -> 0.84 | BK18: =ROUND((tabFinanzQuartFaktoren[[#This Row],[LtgM04]]+tabFinanzQuartFaktoren[[#This Row],[LtgM05]]+tabFinanzQuartFaktoren[[#This Row],[LtgM06]])/3,3) -> 0.84 | BL18: =ROUND((tabFinanzQuartFaktoren[[#This Row],[LtgM07]]+tabFinanzQuartFaktoren[[#This Row],[LtgM08]]+tabFinanzQuartFaktoren[[#This Row],[LtgM09]])/3,3) -> 0.84 | BM18: =ROUND((tabFinanzQuartFaktoren[[#This Row],[LtgM10]]+tabFinanzQuartFaktoren[[#This Row],[LtgM11]]+tabFinanzQuartFaktoren[[#This Row],[LtgM12]])/3,3) -> 0.84
A19: 2030 | B19: 0.886 | C19: 0.886 | D19: 0.886 | E19: 0.886 | F19: 0.886 | G19: 0.886 | H19: 0.886 | I19: 0.886 | J19: 0.886 | K19: 0.886 | L19: 0.886 | M19: 0.886 | N19: =ROUND((tabFinanzQuartFaktoren[[#This Row],[KripM01]]+tabFinanzQuartFaktoren[[#This Row],[KripM02]]+tabFinanzQuartFaktoren[[#This Row],[KripM03]])/3,3) -> 0.886 | O19: =ROUND((tabFinanzQuartFaktoren[[#This Row],[KripM04]]+tabFinanzQuartFaktoren[[#This Row],[KripM05]]+tabFinanzQuartFaktoren[[#This Row],[KripM06]])/3,3) -> 0.886 | P19: =ROUND((tabFinanzQuartFaktoren[[#This Row],[KripM07]]+tabFinanzQuartFaktoren[[#This Row],[KripM08]]+tabFinanzQuartFaktoren[[#This Row],[KripM09]])/3,3) -> 0.886 | Q19: =ROUND((tabFinanzQuartFaktoren[[#This Row],[KripM10]]+tabFinanzQuartFaktoren[[#This Row],[KripM11]]+tabFinanzQuartFaktoren[[#This Row],[KripM12]])/3,3) -> 0.886 | R19: 0.876 | S19: 0.876 | T19: 0.876 | U19: 0.876 | V19: 0.876 | W19: 0.876 | X19: 0.876 | Y19: 0.876 | Z19: 0.876 | AA19: 0.876 | AB19: 0.876 | AC19: 0.876 | AD19: =ROUND((tabFinanzQuartFaktoren[[#This Row],[KigaM01]]+tabFinanzQuartFaktoren[[#This Row],[KigaM02]]+tabFinanzQuartFaktoren[[#This Row],[KigaM03]])/3,3) -> 0.876 | AE19: =ROUND((tabFinanzQuartFaktoren[[#This Row],[KigaM04]]+tabFinanzQuartFaktoren[[#This Row],[KigaM05]]+tabFinanzQuartFaktoren[[#This Row],[KigaM06]])/3,3) -> 0.876 | AF19: =ROUND((tabFinanzQuartFaktoren[[#This Row],[KigaM07]]+tabFinanzQuartFaktoren[[#This Row],[KigaM08]]+tabFinanzQuartFaktoren[[#This Row],[KigaM09]])/3,3) -> 0.876 | AG19: =ROUND((tabFinanzQuartFaktoren[[#This Row],[KigaM10]]+tabFinanzQuartFaktoren[[#This Row],[KigaM11]]+tabFinanzQuartFaktoren[[#This Row],[KigaM12]])/3,3) -> 0.876 | AH19: 0.84 | AI19: 0.84 | AJ19: 0.84 | AK19: 0.84 | AL19: 0.84 | AM19: 0.84 | AN19: 0.84 | AO19: 0.84 | AP19: 0.84 | AQ19: 0.84 | AR19: 0.84 | AS19: 0.84 | AT19: =ROUND((tabFinanzQuartFaktoren[[#This Row],[HortM01]]+tabFinanzQuartFaktoren[[#This Row],[HortM02]]+tabFinanzQuartFaktoren[[#This Row],[HortM03]])/3,3) -> 0.84 | AU19: =ROUND((tabFinanzQuartFaktoren[[#This Row],[HortM04]]+tabFinanzQuartFaktoren[[#This Row],[HortM05]]+tabFinanzQuartFaktoren[[#This Row],[HortM06]])/3,3) -> 0.84 | AV19: =ROUND((tabFinanzQuartFaktoren[[#This Row],[HortM07]]+tabFinanzQuartFaktoren[[#This Row],[HortM08]]+tabFinanzQuartFaktoren[[#This Row],[HortM09]])/3,3) -> 0.84 | AW19: =ROUND((tabFinanzQuartFaktoren[[#This Row],[HortM10]]+tabFinanzQuartFaktoren[[#This Row],[HortM11]]+tabFinanzQuartFaktoren[[#This Row],[HortM12]])/3,3) -> 0.84 | AX19: 0.84 | AY19: 0.84 | AZ19: 0.84 | BA19: 0.84 | BB19: 0.84 | BC19: 0.84 | BD19: 0.84 | BE19: 0.84 | BF19: 0.84 | BG19: 0.84 | BH19: 0.84 | BI19: 0.84 | BJ19: =ROUND((tabFinanzQuartFaktoren[[#This Row],[LtgM01]]+tabFinanzQuartFaktoren[[#This Row],[LtgM02]]+tabFinanzQuartFaktoren[[#This Row],[LtgM03]])/3,3) -> 0.84 | BK19: =ROUND((tabFinanzQuartFaktoren[[#This Row],[LtgM04]]+tabFinanzQuartFaktoren[[#This Row],[LtgM05]]+tabFinanzQuartFaktoren[[#This Row],[LtgM06]])/3,3) -> 0.84 | BL19: =ROUND((tabFinanzQuartFaktoren[[#This Row],[LtgM07]]+tabFinanzQuartFaktoren[[#This Row],[LtgM08]]+tabFinanzQuartFaktoren[[#This Row],[LtgM09]])/3,3) -> 0.84 | BM19: =ROUND((tabFinanzQuartFaktoren[[#This Row],[LtgM10]]+tabFinanzQuartFaktoren[[#This Row],[LtgM11]]+tabFinanzQuartFaktoren[[#This Row],[LtgM12]])/3,3) -> 0.84

Sheet LtgKeys (hidden)
A2: 1 | B2: 2 | C2: 3 | D2: 4 | E2: 5 | F2: 6 | G2: 7 | H2: 8 | I2: 9 | J2: 10 | K2: 11 | L2: 12 | M2: 13 | N2: 14 | O2: 15 | P2: 16 | Q2: 17 | R2: 18 | S2: 19 | T2: 20 | U2: 21 | V2: 22 | W2: 23 | X2: 24 | Y2: 25 | Z2: 26 | AA2: 27 | AB2: 28 | AC2: 29 | AD2: 30 | AE2: 31 | AF2: 32 | AG2: 33 | AH2: 34 | AI2: 35 | AJ2: 36 | AK2: 37 | AL2: 38 | AM2: 39 | AN2: 40 | AO2: 41 | AP2: 42 | AQ2: 43 | AR2: 44 | AS2: 45 | AT2: 46 | AU2: 47 | AV2: 48 | AW2: 49 | AX2: 50 | AY2: 51 | AZ2: 52 | BA2: 53 | BB2: 54 | BC2: 55 | BD2: 56 | BE2: 57 | BF2: 58 | BG2: 59 | BH2: 60 | BI2: 61 | BJ2: 62 | BK2: 63 | BL2: 64 | BM2: 65
A3: Jahr | B3: Leitrungswert bis 4 Stellen | N3: Ltg-Quartalswert bis 4 Stellen | R3: Ltg-Monatswerte vier bis 10 Stellen | AD3: Quartalswerte 4 bis 10 Stellen | AH3: Ltg-Monatswerte 10 bis 15 Stellen | AT3: Ltg-Quartalswerte 10 bis 15 Stellen | AX3: Ltg-Monatswerte über 15 Stellen | BJ3: Ltg-Quartalswerte über 15 Stellen
A4: Jahr | B4: LtgMon01 | C4: LtgMon02 | D4: LtgMon03 | E4: LtgMon04 | F4: LtgMon05 | G4: LtgMon06 | H4: LtgMon07 | I4: LtgMon08 | J4: LtgMon09 | K4: LtgMon10 | L4: LtgMon11 | M4: LtgMon12 | N4: LtgQ1 | O4: LtgQ2 | P4: LtgQ3 | Q4: LtgQ4 | R4: Ltg4b10Mon01 | S4: Ltg4b10Mon02 | T4: Ltg4b10Mon03 | U4: Ltg4b10Mon04 | V4: Ltg4b10Mon05 | W4: Ltg4b10Mon06 | X4: Ltg4b10Mon07 | Y4: Ltg4b10Mon08 | Z4: Ltg4b10Mon09 | AA4: Ltg4b10Mon10 | AB4: Ltg4b10Mon11 | AC4: Ltg4b10Mon12 | AD4: Ltg4b10Q1 | AE4: Ltg4b10Q2 | AF4: Ltg4b10Q3 | AG4: Ltg4b10Q4 | AH4: Ltg10b15Mon01 | AI4: Ltg10b15Mon02 | AJ4: Ltg10b15Mon03 | AK4: Ltg10b15Mon04 | AL4: Ltg10b15Mon05 | AM4: Ltg10b15Mon06 | AN4: Ltg10b15Mon07 | AO4: Ltg10b15Mon08 | AP4: Ltg10b15Mon09 | AQ4: Ltg10b15Mon10 | AR4: Ltg10b15Mon11 | AS4: Ltg10b15Mon12 | AT4: Ltg10b15Q1 | AU4: Ltg10b15Q2 | AV4: Ltg10b15Q3 | AW4: Ltg10b15Q4 | AX4: Ltgueb15Mon01 | AY4: Ltgueb15Mon02 | AZ4: Ltgueb15Mon03 | BA4: Ltgueb15Mon04 | BB4: Ltgueb15Mon05 | BC4: Ltgueb15Mon06 | BD4: Ltgueb15Mon07 | BE4: Ltgueb15Mon08 | BF4: Ltgueb15Mon09 | BG4: Ltgueb15Mon10 | BH4: Ltgueb15Mon11 | BI4: Ltgueb15Mon12 | BJ4: Ltgueb15Q1 | BK4: Ltgueb15Q2 | BL4: Ltgueb15Q3 | BM4: Ltgueb15Q4
A5: 2016 | B5: 0.125 | C5: 0.125 | D5: 0.125 | E5: 0.125 | F5: 0.125 | G5: 0.125 | H5: 0.125 | I5: 0.125 | J5: 0.125 | K5: 0.125 | L5: 0.125 | M5: 0.125 | N5: =(Tabelle10[[#This Row],[LtgMon01]]+Tabelle10[[#This Row],[LtgMon02]]+Tabelle10[[#This Row],[LtgMon03]])/3 -> 0.125 | O5: =(Tabelle10[[#This Row],[LtgMon04]]+Tabelle10[[#This Row],[LtgMon05]]+Tabelle10[[#This Row],[LtgMon06]])/3 -> 0.125 | P5: =(Tabelle10[[#This Row],[LtgMon07]]+Tabelle10[[#This Row],[LtgMon08]]+Tabelle10[[#This Row],[LtgMon09]])/3 -> 0.125 | Q5: =(Tabelle10[[#This Row],[LtgMon10]]+Tabelle10[[#This Row],[LtgMon11]]+Tabelle10[[#This Row],[LtgMon12]])/3 -> 0.125 | R5: 0.25 | S5: 0.25 | T5: 0.25 | U5: 0.25 | V5: 0.25 | W5: 0.25 | X5: 0.25 | Y5: 0.25 | Z5: 0.25 | AA5: 0.25 | AB5: 0.25 | AC5: 0.25 | AD5: =(Tabelle10[[#This Row],[Ltg4b10Mon01]]+Tabelle10[[#This Row],[Ltg4b10Mon02]]+Tabelle10[[#This Row],[Ltg4b10Mon03]])/3 -> 0.25 | AE5: =(Tabelle10[[#This Row],[Ltg4b10Mon04]]+Tabelle10[[#This Row],[Ltg4b10Mon05]]+Tabelle10[[#This Row],[Ltg4b10Mon06]])/3 -> 0.25 | AF5: =(Tabelle10[[#This Row],[Ltg4b10Mon07]]+Tabelle10[[#This Row],[Ltg4b10Mon08]]+Tabelle10[[#This Row],[Ltg4b10Mon09]])/3 -> 0.25 | AG5: =(Tabelle10[[#This Row],[Ltg4b10Mon10]]+Tabelle10[[#This Row],[Ltg4b10Mon11]]+Tabelle10[[#This Row],[Ltg4b10Mon12]])/3 -> 0.25 | AH5: 0.375 | AI5: 0.375 | AJ5: 0.375 | AK5: 0.375 | AL5: 0.375 | AM5: 0.375 | AN5: 0.375 | AO5: 0.375 | AP5: 0.375 | AQ5: 0.375 | AR5: 0.375 | AS5: 0.375 | AT5: =(Tabelle10[[#This Row],[Ltg10b15Mon01]]+Tabelle10[[#This Row],[Ltg10b15Mon02]]+Tabelle10[[#This Row],[Ltg10b15Mon03]])/3 -> 0.375 | AU5: =(Tabelle10[[#This Row],[Ltg10b15Mon04]]+Tabelle10[[#This Row],[Ltg10b15Mon05]]+Tabelle10[[#This Row],[Ltg10b15Mon06]])/3 -> 0.375 | AV5: =(Tabelle10[[#This Row],[Ltg10b15Mon07]]+Tabelle10[[#This Row],[Ltg10b15Mon08]]+Tabelle10[[#This Row],[Ltg10b15Mon09]])/3 -> 0.375 | AW5: =(Tabelle10[[#This Row],[Ltg10b15Mon10]]+Tabelle10[[#This Row],[Ltg10b15Mon11]]+Tabelle10[[#This Row],[Ltg10b15Mon12]])/3 -> 0.375 | AX5: 0.5 | AY5: 0.5 | AZ5: 0.5 | BA5: 0.5 | BB5: 0.5 | BC5: 0.5 | BD5: 0.5 | BE5: 0.5 | BF5: 0.5 | BG5: 0.5 | BH5: 0.5 | BI5: 0.5 | BJ5: =(Tabelle10[[#This Row],[Ltgueb15Mon01]]+Tabelle10[[#This Row],[Ltgueb15Mon02]]+Tabelle10[[#This Row],[Ltgueb15Mon03]])/3 -> 0.5 | BK5: =(Tabelle10[[#This Row],[Ltgueb15Mon04]]+Tabelle10[[#This Row],[Ltgueb15Mon05]]+Tabelle10[[#This Row],[Ltgueb15Mon06]])/3 -> 0.5 | BL5: =(Tabelle10[[#This Row],[Ltgueb15Mon07]]+Tabelle10[[#This Row],[Ltgueb15Mon08]]+Tabelle10[[#This Row],[Ltgueb15Mon09]])/3 -> 0.5 | BM5: =(Tabelle10[[#This Row],[Ltgueb15Mon10]]+Tabelle10[[#This Row],[Ltgueb15Mon12]]+Tabelle10[[#This Row],[Ltgueb15Mon11]])/3 -> 0.5
A6: 2017 | B6: 0.125 | C6: 0.125 | D6: 0.125 | E6: 0.125 | F6: 0.125 | G6: 0.125 | H6: 0.125 | I6: 0.125 | J6: 0.125 | K6: =0.125+0.0625 -> 0.1875 | L6: =0.125+0.0625 -> 0.1875 | M6: 0.1875 | N6: =(Tabelle10[[#This Row],[LtgMon01]]+Tabelle10[[#This Row],[LtgMon02]]+Tabelle10[[#This Row],[LtgMon03]])/3 -> 0.125 | O6: =(Tabelle10[[#This Row],[LtgMon04]]+Tabelle10[[#This Row],[LtgMon05]]+Tabelle10[[#This Row],[LtgMon06]])/3 -> 0.125 | P6: =(Tabelle10[[#This Row],[LtgMon07]]+Tabelle10[[#This Row],[LtgMon08]]+Tabelle10[[#This Row],[LtgMon09]])/3 -> 0.125 | Q6: =(Tabelle10[[#This Row],[LtgMon10]]+Tabelle10[[#This Row],[LtgMon11]]+Tabelle10[[#This Row],[LtgMon12]])/3 -> 0.1875 | R6: 0.25 | S6: 0.25 | T6: 0.25 | U6: 0.25 | V6: 0.25 | W6: 0.25 | X6: 0.25 | Y6: 0.25 | Z6: 0.25 | AA6: =0.25+0.0625 -> 0.3125 | AB6: =0.25+0.0625 -> 0.3125 | AC6: 0.3125 | AD6: =(Tabelle10[[#This Row],[Ltg4b10Mon01]]+Tabelle10[[#This Row],[Ltg4b10Mon02]]+Tabelle10[[#This Row],[Ltg4b10Mon03]])/3 -> 0.25 | AE6: =(Tabelle10[[#This Row],[Ltg4b10Mon04]]+Tabelle10[[#This Row],[Ltg4b10Mon05]]+Tabelle10[[#This Row],[Ltg4b10Mon06]])/3 -> 0.25 | AF6: =(Tabelle10[[#This Row],[Ltg4b10Mon07]]+Tabelle10[[#This Row],[Ltg4b10Mon08]]+Tabelle10[[#This Row],[Ltg4b10Mon09]])/3 -> 0.25 | AG6: =(Tabelle10[[#This Row],[Ltg4b10Mon10]]+Tabelle10[[#This Row],[Ltg4b10Mon11]]+Tabelle10[[#This Row],[Ltg4b10Mon12]])/3 -> 0.3125 | AH6: 0.375 | AI6: 0.375 | AJ6: 0.375 | AK6: 0.375 | AL6: 0.375 | AM6: 0.375 | AN6: 0.375 | AO6: 0.375 | AP6: 0.375 | AQ6: =0.375+0.0625 -> 0.4375 | AR6: 0.4375 | AS6: 0.4375 | AT6: =(Tabelle10[[#This Row],[Ltg10b15Mon01]]+Tabelle10[[#This Row],[Ltg10b15Mon02]]+Tabelle10[[#This Row],[Ltg10b15Mon03]])/3 -> 0.375 | AU6: =(Tabelle10[[#This Row],[Ltg10b15Mon04]]+Tabelle10[[#This Row],[Ltg10b15Mon05]]+Tabelle10[[#This Row],[Ltg10b15Mon06]])/3 -> 0.375 | AV6: =(Tabelle10[[#This Row],[Ltg10b15Mon07]]+Tabelle10[[#This Row],[Ltg10b15Mon08]]+Tabelle10[[#This Row],[Ltg10b15Mon09]])/3 -> 0.375 | AW6: =(Tabelle10[[#This Row],[Ltg10b15Mon10]]+Tabelle10[[#This Row],[Ltg10b15Mon11]]+Tabelle10[[#This Row],[Ltg10b15Mon12]])/3 -> 0.4375 | AX6: =0.5 -> 0.5 | AY6: =0.5 -> 0.5 | AZ6: 0.5 | BA6: 0.5 | BB6: 0.5 | BC6: 0.5 | BD6: 0.5 | BE6: 0.5 | BF6: 0.5 | BG6: =0.5+0.0625 -> 0.5625 | BH6: =0.5+0.0625 -> 0.5625 | BI6: 0.5625 | BJ6: =(Tabelle10[[#This Row],[Ltgueb15Mon01]]+Tabelle10[[#This Row],[Ltgueb15Mon02]]+Tabelle10[[#This Row],[Ltgueb15Mon03]])/3 -> 0.5 | BK6: =(Tabelle10[[#This Row],[Ltgueb15Mon04]]+Tabelle10[[#This Row],[Ltgueb15Mon05]]+Tabelle10[[#This Row],[Ltgueb15Mon06]])/3 -> 0.5 | BL6: =(Tabelle10[[#This Row],[Ltgueb15Mon07]]+Tabelle10[[#This Row],[Ltgueb15Mon08]]+Tabelle10[[#This Row],[Ltgueb15Mon09]])/3 -> 0.5 | BM6: =(Tabelle10[[#This Row],[Ltgueb15Mon10]]+Tabelle10[[#This Row],[Ltgueb15Mon12]]+Tabelle10[[#This Row],[Ltgueb15Mon11]])/3 -> 0.5625
A7: 2018 | B7: =0.1875 -> 0.1875 | C7: =0.1875 -> 0.1875 | D7: 0.1875 | E7: 0.1875 | F7: 0.1875 | G7: 0.1875 | H7: 0.1875 | I7: 0.1875 | J7: 0.1875 | K7: 0.1875 | L7: 0.1875 | M7: 0.1875 | N7: =(Tabelle10[[#This Row],[LtgMon01]]+Tabelle10[[#This Row],[LtgMon02]]+Tabelle10[[#This Row],[LtgMon03]])/3 -> 0.1875 | O7: =(Tabelle10[[#This Row],[LtgMon04]]+Tabelle10[[#This Row],[LtgMon05]]+Tabelle10[[#This Row],[LtgMon06]])/3 -> 0.1875 | P7: =(Tabelle10[[#This Row],[LtgMon07]]+Tabelle10[[#This Row],[LtgMon08]]+Tabelle10[[#This Row],[LtgMon09]])/3 -> 0.1875 | Q7: =(Tabelle10[[#This Row],[LtgMon10]]+Tabelle10[[#This Row],[LtgMon11]]+Tabelle10[[#This Row],[LtgMon12]])/3 -> 0.1875 | R7: =0.3125 -> 0.3125 | S7: =0.3125 -> 0.3125 | T7: 0.3125 | U7: 0.3125 | V7: 0.3125 | W7: 0.3125 | X7: 0.3125 | Y7: 0.3125 | Z7: 0.3125 | AA7: 0.3125 | AB7: 0.3125 | AC7: 0.3125 | AD7: =(Tabelle10[[#This Row],[Ltg4b10Mon01]]+Tabelle10[[#This Row],[Ltg4b10Mon02]]+Tabelle10[[#This Row],[Ltg4b10Mon03]])/3 -> 0.3125 | AE7: =(Tabelle10[[#This Row],[Ltg4b10Mon04]]+Tabelle10[[#This Row],[Ltg4b10Mon05]]+Tabelle10[[#This Row],[Ltg4b10Mon06]])/3 -> 0.3125 | AF7: =(Tabelle10[[#This Row],[Ltg4b10Mon07]]+Tabelle10[[#This Row],[Ltg4b10Mon08]]+Tabelle10[[#This Row],[Ltg4b10Mon09]])/3 -> 0.3125 | AG7: =(Tabelle10[[#This Row],[Ltg4b10Mon10]]+Tabelle10[[#This Row],[Ltg4b10Mon11]]+Tabelle10[[#This Row],[Ltg4b10Mon12]])/3 -> 0.3125 | AH7: =0.375+0.0625 -> 0.4375 | AI7: =0.375+0.0625 -> 0.4375 | AJ7: 0.4375 | AK7: 0.4375 | AL7: 0.4375 | AM7: 0.4375 | AN7: 0.4375 | AO7: 0.4375 | AP7: 0.4375 | AQ7: 0.4375 | AR7: 0.4375 | AS7: 0.4375 | AT7: =(Tabelle10[[#This Row],[Ltg10b15Mon01]]+Tabelle10[[#This Row],[Ltg10b15Mon02]]+Tabelle10[[#This Row],[Ltg10b15Mon03]])/3 -> 0.4375 | AU7: =(Tabelle10[[#This Row],[Ltg10b15Mon04]]+Tabelle10[[#This Row],[Ltg10b15Mon05]]+Tabelle10[[#This Row],[Ltg10b15Mon06]])/3 -> 0.4375 | AV7: =(Tabelle10[[#This Row],[Ltg10b15Mon07]]+Tabelle10[[#This Row],[Ltg10b15Mon08]]+Tabelle10[[#This Row],[Ltg10b15Mon09]])/3 -> 0.4375 | AW7: =(Tabelle10[[#This Row],[Ltg10b15Mon10]]+Tabelle10[[#This Row],[Ltg10b15Mon11]]+Tabelle10[[#This Row],[Ltg10b15Mon12]])/3 -> 0.4375 | AX7: =0.5+0.0625 -> 0.5625 | AY7: =0.5+0.0625 -> 0.5625 | AZ7: 0.5625 | BA7: 0.5625 | BB7: 0.5625 | BC7: 0.5625 | BD7: 0.5625 | BE7: 0.5625 | BF7: 0.5625 | BG7: 0.5625 | BH7: 0.5625 | BI7: 0.5625 | BJ7: =(Tabelle10[[#This Row],[Ltgueb15Mon01]]+Tabelle10[[#This Row],[Ltgueb15Mon02]]+Tabelle10[[#This Row],[Ltgueb15Mon03]])/3 -> 0.5625 | BK7: =(Tabelle10[[#This Row],[Ltgueb15Mon04]]+Tabelle10[[#This Row],[Ltgueb15Mon05]]+Tabelle10[[#This Row],[Ltgueb15Mon06]])/3 -> 0.5625 | BL7: =(Tabelle10[[#This Row],[Ltgueb15Mon07]]+Tabelle10[[#This Row],[Ltgueb15Mon08]]+Tabelle10[[#This Row],[Ltgueb15Mon09]])/3 -> 0.5625 | BM7: =(Tabelle10[[#This Row],[Ltgueb15Mon10]]+Tabelle10[[#This Row],[Ltgueb15Mon12]]+Tabelle10[[#This Row],[Ltgueb15Mon11]])/3 -> 0.5625
A8: 2019 | B8: =0.1875 -> 0.1875 | C8: 0.1875 | D8: 0.1875 | E8: 0.1875 | F8: 0.1875 | G8: 0.1875 | H8: 0.1875 | I8: 0.1875 | J8: 0.1875 | K8: 0.1875 | L8: 0.1875 | M8: 0.1875 | N8: =(Tabelle10[[#This Row],[LtgMon01]]+Tabelle10[[#This Row],[LtgMon02]]+Tabelle10[[#This Row],[LtgMon03]])/3 -> 0.1875 | O8: =(Tabelle10[[#This Row],[LtgMon04]]+Tabelle10[[#This Row],[LtgMon05]]+Tabelle10[[#This Row],[LtgMon06]])/3 -> 0.1875 | P8: =(Tabelle10[[#This Row],[LtgMon07]]+Tabelle10[[#This Row],[LtgMon08]]+Tabelle10[[#This Row],[LtgMon09]])/3 -> 0.1875 | Q8: =(Tabelle10[[#This Row],[LtgMon10]]+Tabelle10[[#This Row],[LtgMon11]]+Tabelle10[[#This Row],[LtgMon12]])/3 -> 0.1875 | R8: =0.3125 -> 0.3125 | S8: 0.3125 | T8: 0.3125 | U8: 0.3125 | V8: 0.3125 | W8: 0.3125 | X8: 0.3125 | Y8: 0.3125 | Z8: 0.3125 | AA8: 0.3125 | AB8: 0.3125 | AC8: 0.3125 | AD8: =(Tabelle10[[#This Row],[Ltg4b10Mon01]]+Tabelle10[[#This Row],[Ltg4b10Mon02]]+Tabelle10[[#This Row],[Ltg4b10Mon03]])/3 -> 0.3125 | AE8: =(Tabelle10[[#This Row],[Ltg4b10Mon04]]+Tabelle10[[#This Row],[Ltg4b10Mon05]]+Tabelle10[[#This Row],[Ltg4b10Mon06]])/3 -> 0.3125 | AF8: =(Tabelle10[[#This Row],[Ltg4b10Mon07]]+Tabelle10[[#This Row],[Ltg4b10Mon08]]+Tabelle10[[#This Row],[Ltg4b10Mon09]])/3 -> 0.3125 | AG8: =(Tabelle10[[#This Row],[Ltg4b10Mon10]]+Tabelle10[[#This Row],[Ltg4b10Mon11]]+Tabelle10[[#This Row],[Ltg4b10Mon12]])/3 -> 0.3125 | AH8: =0.375+0.0625 -> 0.4375 | AI8: =0.375+0.0625 -> 0.4375 | AJ8: 0.4375 | AK8: 0.4375 | AL8: 0.4375 | AM8: 0.4375 | AN8: 0.4375 | AO8: 0.4375 | AP8: 0.4375 | AQ8: 0.4375 | AR8: 0.4375 | AS8: 0.4375 | AT8: =(Tabelle10[[#This Row],[Ltg10b15Mon01]]+Tabelle10[[#This Row],[Ltg10b15Mon02]]+Tabelle10[[#This Row],[Ltg10b15Mon03]])/3 -> 0.4375 | AU8: =(Tabelle10[[#This Row],[Ltg10b15Mon04]]+Tabelle10[[#This Row],[Ltg10b15Mon05]]+Tabelle10[[#This Row],[Ltg10b15Mon06]])/3 -> 0.4375 | AV8: =(Tabelle10[[#This Row],[Ltg10b15Mon07]]+Tabelle10[[#This Row],[Ltg10b15Mon08]]+Tabelle10[[#This Row],[Ltg10b15Mon09]])/3 -> 0.4375 | AW8: =(Tabelle10[[#This Row],[Ltg10b15Mon10]]+Tabelle10[[#This Row],[Ltg10b15Mon11]]+Tabelle10[[#This Row],[Ltg10b15Mon12]])/3 -> 0.4375 | AX8: =0.5+0.0625 -> 0.5625 | AY8: 0.5625 | AZ8: 0.5625 | BA8: 0.5625 | BB8: 0.5625 | BC8: 0.5625 | BD8: 0.5625 | BE8: 0.5625 | BF8: 0.5625 | BG8: 0.5625 | BH8: 0.5625 | BI8: 0.5625 | BJ8: =(Tabelle10[[#This Row],[Ltgueb15Mon01]]+Tabelle10[[#This Row],[Ltgueb15Mon02]]+Tabelle10[[#This Row],[Ltgueb15Mon03]])/3 -> 0.5625 | BK8: =(Tabelle10[[#This Row],[Ltgueb15Mon04]]+Tabelle10[[#This Row],[Ltgueb15Mon05]]+Tabelle10[[#This Row],[Ltgueb15Mon06]])/3 -> 0.5625 | BL8: =(Tabelle10[[#This Row],[Ltgueb15Mon07]]+Tabelle10[[#This Row],[Ltgueb15Mon08]]+Tabelle10[[#This Row],[Ltgueb15Mon09]])/3 -> 0.5625 | BM8: =(Tabelle10[[#This Row],[Ltgueb15Mon10]]+Tabelle10[[#This Row],[Ltgueb15Mon12]]+Tabelle10[[#This Row],[Ltgueb15Mon11]])/3 -> 0.5625
A9: 2020 | B9: 0.1875 | C9: 0.1875 | D9: 0.1875 | E9: 0.1875 | F9: 0.1875 | G9: 0.1875 | H9: 0.1875 | I9: 0.1875 | J9: 0.1875 | K9: 0.1875 | L9: 0.1875 | M9: 0.1875 | N9: =(Tabelle10[[#This Row],[LtgMon01]]+Tabelle10[[#This Row],[LtgMon02]]+Tabelle10[[#This Row],[LtgMon03]])/3 -> 0.1875 | O9: =(Tabelle10[[#This Row],[LtgMon04]]+Tabelle10[[#This Row],[LtgMon05]]+Tabelle10[[#This Row],[LtgMon06]])/3 -> 0.1875 | P9: =(Tabelle10[[#This Row],[LtgMon07]]+Tabelle10[[#This Row],[LtgMon08]]+Tabelle10[[#This Row],[LtgMon09]])/3 -> 0.1875 | Q9: =(Tabelle10[[#This Row],[LtgMon10]]+Tabelle10[[#This Row],[LtgMon11]]+Tabelle10[[#This Row],[LtgMon12]])/3 -> 0.1875 | R9: 0.3125 | S9: 0.3125 | T9: 0.3125 | U9: 0.3125 | V9: 0.3125 | W9: 0.3125 | X9: 0.3125 | Y9: 0.3125 | Z9: 0.3125 | AA9: 0.3125 | AB9: 0.3125 | AC9: 0.3125 | AD9: =(Tabelle10[[#This Row],[Ltg4b10Mon01]]+Tabelle10[[#This Row],[Ltg4b10Mon02]]+Tabelle10[[#This Row],[Ltg4b10Mon03]])/3 -> 0.3125 | AE9: =(Tabelle10[[#This Row],[Ltg4b10Mon04]]+Tabelle10[[#This Row],[Ltg4b10Mon05]]+Tabelle10[[#This Row],[Ltg4b10Mon06]])/3 -> 0.3125 | AF9: =(Tabelle10[[#This Row],[Ltg4b10Mon07]]+Tabelle10[[#This Row],[Ltg4b10Mon08]]+Tabelle10[[#This Row],[Ltg4b10Mon09]])/3 -> 0.3125 | AG9: =(Tabelle10[[#This Row],[Ltg4b10Mon10]]+Tabelle10[[#This Row],[Ltg4b10Mon11]]+Tabelle10[[#This Row],[Ltg4b10Mon12]])/3 -> 0.3125 | AH9: 0.4375 | AI9: 0.4375 | AJ9: 0.4375 | AK9: 0.4375 | AL9: 0.4375 | AM9: 0.4375 | AN9: 0.4375 | AO9: 0.4375 | AP9: 0.4375 | AQ9: 0.4375 | AR9: 0.4375 | AS9: 0.4375 | AT9: =(Tabelle10[[#This Row],[Ltg10b15Mon01]]+Tabelle10[[#This Row],[Ltg10b15Mon02]]+Tabelle10[[#This Row],[Ltg10b15Mon03]])/3 -> 0.4375 | AU9: =(Tabelle10[[#This Row],[Ltg10b15Mon04]]+Tabelle10[[#This Row],[Ltg10b15Mon05]]+Tabelle10[[#This Row],[Ltg10b15Mon06]])/3 -> 0.4375 | AV9: =(Tabelle10[[#This Row],[Ltg10b15Mon07]]+Tabelle10[[#This Row],[Ltg10b15Mon08]]+Tabelle10[[#This Row],[Ltg10b15Mon09]])/3 -> 0.4375 | AW9: =(Tabelle10[[#This Row],[Ltg10b15Mon10]]+Tabelle10[[#This Row],[Ltg10b15Mon11]]+Tabelle10[[#This Row],[Ltg10b15Mon12]])/3 -> 0.4375 | AX9: 0.5625 | AY9: 0.5625 | AZ9: 0.5625 | BA9: 0.5625 | BB9: 0.5625 | BC9: 0.5625 | BD9: 0.5625 | BE9: 0.5625 | BF9: 0.5625 | BG9: 0.5625 | BH9: 0.5625 | BI9: 0.5625 | BJ9: =(Tabelle10[[#This Row],[Ltgueb15Mon01]]+Tabelle10[[#This Row],[Ltgueb15Mon02]]+Tabelle10[[#This Row],[Ltgueb15Mon03]])/3 -> 0.5625 | BK9: =(Tabelle10[[#This Row],[Ltgueb15Mon04]]+Tabelle10[[#This Row],[Ltgueb15Mon05]]+Tabelle10[[#This Row],[Ltgueb15Mon06]])/3 -> 0.5625 | BL9: =(Tabelle10[[#This Row],[Ltgueb15Mon07]]+Tabelle10[[#This Row],[Ltgueb15Mon08]]+Tabelle10[[#This Row],[Ltgueb15Mon09]])/3 -> 0.5625 | BM9: =(Tabelle10[[#This Row],[Ltgueb15Mon10]]+Tabelle10[[#This Row],[Ltgueb15Mon12]]+Tabelle10[[#This Row],[Ltgueb15Mon11]])/3 -> 0.5625
A10: 2021 | B10: 0.1875 | C10: 0.1875 | D10: 0.1875 | E10: 0.1875 | F10: 0.1875 | G10: 0.1875 | H10: 0.1875 | I10: 0.1875 | J10: 0.1875 | K10: 0.1875 | L10: 0.1875 | M10: 0.1875 | N10: =(Tabelle10[[#This Row],[LtgMon01]]+Tabelle10[[#This Row],[LtgMon02]]+Tabelle10[[#This Row],[LtgMon03]])/3 -> 0.1875 | O10: =(Tabelle10[[#This Row],[LtgMon04]]+Tabelle10[[#This Row],[LtgMon05]]+Tabelle10[[#This Row],[LtgMon06]])/3 -> 0.1875 | P10: =(Tabelle10[[#This Row],[LtgMon07]]+Tabelle10[[#This Row],[LtgMon08]]+Tabelle10[[#This Row],[LtgMon09]])/3 -> 0.1875 | Q10: =(Tabelle10[[#This Row],[LtgMon10]]+Tabelle10[[#This Row],[LtgMon11]]+Tabelle10[[#This Row],[LtgMon12]])/3 -> 0.1875 | R10: 0.3125 | S10: 0.3125 | T10: 0.3125 | U10: 0.3125 | V10: 0.3125 | W10: 0.3125 | X10: 0.3125 | Y10: 0.3125 | Z10: 0.3125 | AA10: 0.3125 | AB10: 0.3125 | AC10: 0.3125 | AD10: =(Tabelle10[[#This Row],[Ltg4b10Mon01]]+Tabelle10[[#This Row],[Ltg4b10Mon02]]+Tabelle10[[#This Row],[Ltg4b10Mon03]])/3 -> 0.3125 | AE10: =(Tabelle10[[#This Row],[Ltg4b10Mon04]]+Tabelle10[[#This Row],[Ltg4b10Mon05]]+Tabelle10[[#This Row],[Ltg4b10Mon06]])/3 -> 0.3125 | AF10: =(Tabelle10[[#This Row],[Ltg4b10Mon07]]+Tabelle10[[#This Row],[Ltg4b10Mon08]]+Tabelle10[[#This Row],[Ltg4b10Mon09]])/3 -> 0.3125 | AG10: =(Tabelle10[[#This Row],[Ltg4b10Mon10]]+Tabelle10[[#This Row],[Ltg4b10Mon11]]+Tabelle10[[#This Row],[Ltg4b10Mon12]])/3 -> 0.3125 | AH10: 0.4375 | AI10: 0.4375 | AJ10: 0.4375 | AK10: 0.4375 | AL10: 0.4375 | AM10: 0.4375 | AN10: 0.4375 | AO10: 0.4375 | AP10: 0.4375 | AQ10: 0.4375 | AR10: 0.4375 | AS10: 0.4375 | AT10: =(Tabelle10[[#This Row],[Ltg10b15Mon01]]+Tabelle10[[#This Row],[Ltg10b15Mon02]]+Tabelle10[[#This Row],[Ltg10b15Mon03]])/3 -> 0.4375 | AU10: =(Tabelle10[[#This Row],[Ltg10b15Mon04]]+Tabelle10[[#This Row],[Ltg10b15Mon05]]+Tabelle10[[#This Row],[Ltg10b15Mon06]])/3 -> 0.4375 | AV10: =(Tabelle10[[#This Row],[Ltg10b15Mon07]]+Tabelle10[[#This Row],[Ltg10b15Mon08]]+Tabelle10[[#This Row],[Ltg10b15Mon09]])/3 -> 0.4375 | AW10: =(Tabelle10[[#This Row],[Ltg10b15Mon10]]+Tabelle10[[#This Row],[Ltg10b15Mon11]]+Tabelle10[[#This Row],[Ltg10b15Mon12]])/3 -> 0.4375 | AX10: 0.5625 | AY10: 0.5625 | AZ10: 0.5625 | BA10: 0.5625 | BB10: 0.5625 | BC10: 0.5625 | BD10: 0.5625 | BE10: 0.5625 | BF10: 0.5625 | BG10: 0.5625 | BH10: 0.5625 | BI10: 0.5625 | BJ10: =(Tabelle10[[#This Row],[Ltgueb15Mon01]]+Tabelle10[[#This Row],[Ltgueb15Mon02]]+Tabelle10[[#This Row],[Ltgueb15Mon03]])/3 -> 0.5625 | BK10: =(Tabelle10[[#This Row],[Ltgueb15Mon04]]+Tabelle10[[#This Row],[Ltgueb15Mon05]]+Tabelle10[[#This Row],[Ltgueb15Mon06]])/3 -> 0.5625 | BL10: =(Tabelle10[[#This Row],[Ltgueb15Mon07]]+Tabelle10[[#This Row],[Ltgueb15Mon08]]+Tabelle10[[#This Row],[Ltgueb15Mon09]])/3 -> 0.5625 | BM10: =(Tabelle10[[#This Row],[Ltgueb15Mon10]]+Tabelle10[[#This Row],[Ltgueb15Mon12]]+Tabelle10[[#This Row],[Ltgueb15Mon11]])/3 -> 0.5625
A11: 2022 | B11: 0.1875 | C11: 0.1875 | D11: 0.1875 | E11: 0.1875 | F11: 0.1875 | G11: 0.1875 | H11: 0.1875 | I11: 0.1875 | J11: 0.1875 | K11: 0.1875 | L11: 0.1875 | M11: 0.1875 | N11: =(Tabelle10[[#This Row],[LtgMon01]]+Tabelle10[[#This Row],[LtgMon02]]+Tabelle10[[#This Row],[LtgMon03]])/3 -> 0.1875 | O11: =(Tabelle10[[#This Row],[LtgMon04]]+Tabelle10[[#This Row],[LtgMon05]]+Tabelle10[[#This Row],[LtgMon06]])/3 -> 0.1875 | P11: =(Tabelle10[[#This Row],[LtgMon07]]+Tabelle10[[#This Row],[LtgMon08]]+Tabelle10[[#This Row],[LtgMon09]])/3 -> 0.1875 | Q11: =(Tabelle10[[#This Row],[LtgMon10]]+Tabelle10[[#This Row],[LtgMon11]]+Tabelle10[[#This Row],[LtgMon12]])/3 -> 0.1875 | R11: 0.3125 | S11: 0.3125 | T11: 0.3125 | U11: 0.3125 | V11: 0.3125 | W11: 0.3125 | X11: 0.3125 | Y11: 0.3125 | Z11: 0.3125 | AA11: 0.3125 | AB11: 0.3125 | AC11: 0.3125 | AD11: =(Tabelle10[[#This Row],[Ltg4b10Mon01]]+Tabelle10[[#This Row],[Ltg4b10Mon02]]+Tabelle10[[#This Row],[Ltg4b10Mon03]])/3 -> 0.3125 | AE11: =(Tabelle10[[#This Row],[Ltg4b10Mon04]]+Tabelle10[[#This Row],[Ltg4b10Mon05]]+Tabelle10[[#This Row],[Ltg4b10Mon06]])/3 -> 0.3125 | AF11: =(Tabelle10[[#This Row],[Ltg4b10Mon07]]+Tabelle10[[#This Row],[Ltg4b10Mon08]]+Tabelle10[[#This Row],[Ltg4b10Mon09]])/3 -> 0.3125 | AG11: =(Tabelle10[[#This Row],[Ltg4b10Mon10]]+Tabelle10[[#This Row],[Ltg4b10Mon11]]+Tabelle10[[#This Row],[Ltg4b10Mon12]])/3 -> 0.3125 | AH11: 0.4375 | AI11: 0.4375 | AJ11: 0.4375 | AK11: 0.4375 | AL11: 0.4375 | AM11: 0.4375 | AN11: 0.4375 | AO11: 0.4375 | AP11: 0.4375 | AQ11: 0.4375 | AR11: 0.4375 | AS11: 0.4375 | AT11: =(Tabelle10[[#This Row],[Ltg10b15Mon01]]+Tabelle10[[#This Row],[Ltg10b15Mon02]]+Tabelle10[[#This Row],[Ltg10b15Mon03]])/3 -> 0.4375 | AU11: =(Tabelle10[[#This Row],[Ltg10b15Mon04]]+Tabelle10[[#This Row],[Ltg10b15Mon05]]+Tabelle10[[#This Row],[Ltg10b15Mon06]])/3 -> 0.4375 | AV11: =(Tabelle10[[#This Row],[Ltg10b15Mon07]]+Tabelle10[[#This Row],[Ltg10b15Mon08]]+Tabelle10[[#This Row],[Ltg10b15Mon09]])/3 -> 0.4375 | AW11: =(Tabelle10[[#This Row],[Ltg10b15Mon10]]+Tabelle10[[#This Row],[Ltg10b15Mon11]]+Tabelle10[[#This Row],[Ltg10b15Mon12]])/3 -> 0.4375 | AX11: 0.5625 | AY11: 0.5625 | AZ11: 0.5625 | BA11: 0.5625 | BB11: 0.5625 | BC11: 0.5625 | BD11: 0.5625 | BE11: 0.5625 | BF11: 0.5625 | BG11: 0.5625 | BH11: 0.5625 | BI11: 0.5625 | BJ11: =(Tabelle10[[#This Row],[Ltgueb15Mon01]]+Tabelle10[[#This Row],[Ltgueb15Mon02]]+Tabelle10[[#This Row],[Ltgueb15Mon03]])/3 -> 0.5625 | BK11: =(Tabelle10[[#This Row],[Ltgueb15Mon04]]+Tabelle10[[#This Row],[Ltgueb15Mon05]]+Tabelle10[[#This Row],[Ltgueb15Mon06]])/3 -> 0.5625 | BL11: =(Tabelle10[[#This Row],[Ltgueb15Mon07]]+Tabelle10[[#This Row],[Ltgueb15Mon08]]+Tabelle10[[#This Row],[Ltgueb15Mon09]])/3 -> 0.5625 | BM11: =(Tabelle10[[#This Row],[Ltgueb15Mon10]]+Tabelle10[[#This Row],[Ltgueb15Mon12]]+Tabelle10[[#This Row],[Ltgueb15Mon11]])/3 -> 0.5625
A12: 2023 | B12: 0.1875 | C12: 0.1875 | D12: 0.1875 | E12: 0.1875 | F12: 0.1875 | G12: 0.1875 | H12: 0.1875 | I12: 0.1875 | J12: 0.1875 | K12: 0.1875 | L12: 0.1875 | M12: 0.1875 | N12: =(Tabelle10[[#This Row],[LtgMon01]]+Tabelle10[[#This Row],[LtgMon02]]+Tabelle10[[#This Row],[LtgMon03]])/3 -> 0.1875 | O12: =(Tabelle10[[#This Row],[LtgMon04]]+Tabelle10[[#This Row],[LtgMon05]]+Tabelle10[[#This Row],[LtgMon06]])/3 -> 0.1875 | P12: =(Tabelle10[[#This Row],[LtgMon07]]+Tabelle10[[#This Row],[LtgMon08]]+Tabelle10[[#This Row],[LtgMon09]])/3 -> 0.1875 | Q12: =(Tabelle10[[#This Row],[LtgMon10]]+Tabelle10[[#This Row],[LtgMon11]]+Tabelle10[[#This Row],[LtgMon12]])/3 -> 0.1875 | R12: 0.3125 | S12: 0.3125 | T12: 0.3125 | U12: 0.3125 | V12: 0.3125 | W12: 0.3125 | X12: 0.3125 | Y12: 0.3125 | Z12: 0.3125 | AA12: 0.3125 | AB12: 0.3125 | AC12: 0.3125 | AD12: =(Tabelle10[[#This Row],[Ltg4b10Mon01]]+Tabelle10[[#This Row],[Ltg4b10Mon02]]+Tabelle10[[#This Row],[Ltg4b10Mon03]])/3 -> 0.3125 | AE12: =(Tabelle10[[#This Row],[Ltg4b10Mon04]]+Tabelle10[[#This Row],[Ltg4b10Mon05]]+Tabelle10[[#This Row],[Ltg4b10Mon06]])/3 -> 0.3125 | AF12: =(Tabelle10[[#This Row],[Ltg4b10Mon07]]+Tabelle10[[#This Row],[Ltg4b10Mon08]]+Tabelle10[[#This Row],[Ltg4b10Mon09]])/3 -> 0.3125 | AG12: =(Tabelle10[[#This Row],[Ltg4b10Mon10]]+Tabelle10[[#This Row],[Ltg4b10Mon11]]+Tabelle10[[#This Row],[Ltg4b10Mon12]])/3 -> 0.3125 | AH12: 0.4375 | AI12: 0.4375 | AJ12: 0.4375 | AK12: 0.4375 | AL12: 0.4375 | AM12: 0.4375 | AN12: 0.4375 | AO12: 0.4375 | AP12: 0.4375 | AQ12: 0.4375 | AR12: 0.4375 | AS12: 0.4375 | AT12: =(Tabelle10[[#This Row],[Ltg10b15Mon01]]+Tabelle10[[#This Row],[Ltg10b15Mon02]]+Tabelle10[[#This Row],[Ltg10b15Mon03]])/3 -> 0.4375 | AU12: =(Tabelle10[[#This Row],[Ltg10b15Mon04]]+Tabelle10[[#This Row],[Ltg10b15Mon05]]+Tabelle10[[#This Row],[Ltg10b15Mon06]])/3 -> 0.4375 | AV12: =(Tabelle10[[#This Row],[Ltg10b15Mon07]]+Tabelle10[[#This Row],[Ltg10b15Mon08]]+Tabelle10[[#This Row],[Ltg10b15Mon09]])/3 -> 0.4375 | AW12: =(Tabelle10[[#This Row],[Ltg10b15Mon10]]+Tabelle10[[#This Row],[Ltg10b15Mon11]]+Tabelle10[[#This Row],[Ltg10b15Mon12]])/3 -> 0.4375 | AX12: 0.5625 | AY12: 0.5625 | AZ12: 0.5625 | BA12: 0.5625 | BB12: 0.5625 | BC12: 0.5625 | BD12: 0.5625 | BE12: 0.5625 | BF12: 0.5625 | BG12: 0.5625 | BH12: 0.5625 | BI12: 0.5625 | BJ12: =(Tabelle10[[#This Row],[Ltgueb15Mon01]]+Tabelle10[[#This Row],[Ltgueb15Mon02]]+Tabelle10[[#This Row],[Ltgueb15Mon03]])/3 -> 0.5625 | BK12: =(Tabelle10[[#This Row],[Ltgueb15Mon04]]+Tabelle10[[#This Row],[Ltgueb15Mon05]]+Tabelle10[[#This Row],[Ltgueb15Mon06]])/3 -> 0.5625 | BL12: =(Tabelle10[[#This Row],[Ltgueb15Mon07]]+Tabelle10[[#This Row],[Ltgueb15Mon08]]+Tabelle10[[#This Row],[Ltgueb15Mon09]])/3 -> 0.5625 | BM12: =(Tabelle10[[#This Row],[Ltgueb15Mon10]]+Tabelle10[[#This Row],[Ltgueb15Mon12]]+Tabelle10[[#This Row],[Ltgueb15Mon11]])/3 -> 0.5625
A13: 2024 | B13: 0.1875 | C13: 0.1875 | D13: 0.1875 | E13: 0.1875 | F13: 0.1875 | G13: 0.1875 | H13: 0.1875 | I13: 0.1875 | J13: 0.1875 | K13: 0.1875 | L13: 0.1875 | M13: 0.1875 | N13: =(Tabelle10[[#This Row],[LtgMon01]]+Tabelle10[[#This Row],[LtgMon02]]+Tabelle10[[#This Row],[LtgMon03]])/3 -> 0.1875 | O13: =(Tabelle10[[#This Row],[LtgMon04]]+Tabelle10[[#This Row],[LtgMon05]]+Tabelle10[[#This Row],[LtgMon06]])/3 -> 0.1875 | P13: =(Tabelle10[[#This Row],[LtgMon07]]+Tabelle10[[#This Row],[LtgMon08]]+Tabelle10[[#This Row],[LtgMon09]])/3 -> 0.1875 | Q13: =(Tabelle10[[#This Row],[LtgMon10]]+Tabelle10[[#This Row],[LtgMon11]]+Tabelle10[[#This Row],[LtgMon12]])/3 -> 0.1875 | R13: 0.3125 | S13: 0.3125 | T13: 0.3125 | U13: 0.3125 | V13: 0.3125 | W13: 0.3125 | X13: 0.3125 | Y13: 0.3125 | Z13: 0.3125 | AA13: 0.3125 | AB13: 0.3125 | AC13: 0.3125 | AD13: =(Tabelle10[[#This Row],[Ltg4b10Mon01]]+Tabelle10[[#This Row],[Ltg4b10Mon02]]+Tabelle10[[#This Row],[Ltg4b10Mon03]])/3 -> 0.3125 | AE13: =(Tabelle10[[#This Row],[Ltg4b10Mon04]]+Tabelle10[[#This Row],[Ltg4b10Mon05]]+Tabelle10[[#This Row],[Ltg4b10Mon06]])/3 -> 0.3125 | AF13: =(Tabelle10[[#This Row],[Ltg4b10Mon07]]+Tabelle10[[#This Row],[Ltg4b10Mon08]]+Tabelle10[[#This Row],[Ltg4b10Mon09]])/3 -> 0.3125 | AG13: =(Tabelle10[[#This Row],[Ltg4b10Mon10]]+Tabelle10[[#This Row],[Ltg4b10Mon11]]+Tabelle10[[#This Row],[Ltg4b10Mon12]])/3 -> 0.3125 | AH13: 0.4375 | AI13: 0.4375 | AJ13: 0.4375 | AK13: 0.4375 | AL13: 0.4375 | AM13: 0.4375 | AN13: 0.4375 | AO13: 0.4375 | AP13: 0.4375 | AQ13: 0.4375 | AR13: 0.4375 | AS13: 0.4375 | AT13: =(Tabelle10[[#This Row],[Ltg10b15Mon01]]+Tabelle10[[#This Row],[Ltg10b15Mon02]]+Tabelle10[[#This Row],[Ltg10b15Mon03]])/3 -> 0.4375 | AU13: =(Tabelle10[[#This Row],[Ltg10b15Mon04]]+Tabelle10[[#This Row],[Ltg10b15Mon05]]+Tabelle10[[#This Row],[Ltg10b15Mon06]])/3 -> 0.4375 | AV13: =(Tabelle10[[#This Row],[Ltg10b15Mon07]]+Tabelle10[[#This Row],[Ltg10b15Mon08]]+Tabelle10[[#This Row],[Ltg10b15Mon09]])/3 -> 0.4375 | AW13: =(Tabelle10[[#This Row],[Ltg10b15Mon10]]+Tabelle10[[#This Row],[Ltg10b15Mon11]]+Tabelle10[[#This Row],[Ltg10b15Mon12]])/3 -> 0.4375 | AX13: 0.5625 | AY13: 0.5625 | AZ13: 0.5625 | BA13: 0.5625 | BB13: 0.5625 | BC13: 0.5625 | BD13: 0.5625 | BE13: 0.5625 | BF13: 0.5625 | BG13: 0.5625 | BH13: 0.5625 | BI13: 0.5625 | BJ13: =(Tabelle10[[#This Row],[Ltgueb15Mon01]]+Tabelle10[[#This Row],[Ltgueb15Mon02]]+Tabelle10[[#This Row],[Ltgueb15Mon03]])/3 -> 0.5625 | BK13: =(Tabelle10[[#This Row],[Ltgueb15Mon04]]+Tabelle10[[#This Row],[Ltgueb15Mon05]]+Tabelle10[[#This Row],[Ltgueb15Mon06]])/3 -> 0.5625 | BL13: =(Tabelle10[[#This Row],[Ltgueb15Mon07]]+Tabelle10[[#This Row],[Ltgueb15Mon08]]+Tabelle10[[#This Row],[Ltgueb15Mon09]])/3 -> 0.5625 | BM13: =(Tabelle10[[#This Row],[Ltgueb15Mon10]]+Tabelle10[[#This Row],[Ltgueb15Mon12]]+Tabelle10[[#This Row],[Ltgueb15Mon11]])/3 -> 0.5625
A14: 2025 | B14: 0.1875 | C14: 0.1875 | D14: 0.1875 | E14: 0.1875 | F14: 0.1875 | G14: 0.1875 | H14: 0.1875 | I14: 0.1875 | J14: 0.1875 | K14: 0.1875 | L14: 0.1875 | M14: 0.1875 | N14: =(Tabelle10[[#This Row],[LtgMon01]]+Tabelle10[[#This Row],[LtgMon02]]+Tabelle10[[#This Row],[LtgMon03]])/3 -> 0.1875 | O14: =(Tabelle10[[#This Row],[LtgMon04]]+Tabelle10[[#This Row],[LtgMon05]]+Tabelle10[[#This Row],[LtgMon06]])/3 -> 0.1875 | P14: =(Tabelle10[[#This Row],[LtgMon07]]+Tabelle10[[#This Row],[LtgMon08]]+Tabelle10[[#This Row],[LtgMon09]])/3 -> 0.1875 | Q14: =(Tabelle10[[#This Row],[LtgMon10]]+Tabelle10[[#This Row],[LtgMon11]]+Tabelle10[[#This Row],[LtgMon12]])/3 -> 0.1875 | R14: 0.3125 | S14: 0.3125 | T14: 0.3125 | U14: 0.3125 | V14: 0.3125 | W14: 0.3125 | X14: 0.3125 | Y14: 0.3125 | Z14: 0.3125 | AA14: 0.3125 | AB14: 0.3125 | AC14: 0.3125 | AD14: =(Tabelle10[[#This Row],[Ltg4b10Mon01]]+Tabelle10[[#This Row],[Ltg4b10Mon02]]+Tabelle10[[#This Row],[Ltg4b10Mon03]])/3 -> 0.3125 | AE14: =(Tabelle10[[#This Row],[Ltg4b10Mon04]]+Tabelle10[[#This Row],[Ltg4b10Mon05]]+Tabelle10[[#This Row],[Ltg4b10Mon06]])/3 -> 0.3125 | AF14: =(Tabelle10[[#This Row],[Ltg4b10Mon07]]+Tabelle10[[#This Row],[Ltg4b10Mon08]]+Tabelle10[[#This Row],[Ltg4b10Mon09]])/3 -> 0.3125 | AG14: =(Tabelle10[[#This Row],[Ltg4b10Mon10]]+Tabelle10[[#This Row],[Ltg4b10Mon11]]+Tabelle10[[#This Row],[Ltg4b10Mon12]])/3 -> 0.3125 | AH14: 0.4375 | AI14: 0.4375 | AJ14: 0.4375 | AK14: 0.4375 | AL14: 0.4375 | AM14: 0.4375 | AN14: 0.4375 | AO14: 0.4375 | AP14: 0.4375 | AQ14: 0.4375 | AR14: 0.4375 | AS14: 0.4375 | AT14: =(Tabelle10[[#This Row],[Ltg10b15Mon01]]+Tabelle10[[#This Row],[Ltg10b15Mon02]]+Tabelle10[[#This Row],[Ltg10b15Mon03]])/3 -> 0.4375 | AU14: =(Tabelle10[[#This Row],[Ltg10b15Mon04]]+Tabelle10[[#This Row],[Ltg10b15Mon05]]+Tabelle10[[#This Row],[Ltg10b15Mon06]])/3 -> 0.4375 | AV14: =(Tabelle10[[#This Row],[Ltg10b15Mon07]]+Tabelle10[[#This Row],[Ltg10b15Mon08]]+Tabelle10[[#This Row],[Ltg10b15Mon09]])/3 -> 0.4375 | AW14: =(Tabelle10[[#This Row],[Ltg10b15Mon10]]+Tabelle10[[#This Row],[Ltg10b15Mon11]]+Tabelle10[[#This Row],[Ltg10b15Mon12]])/3 -> 0.4375 | AX14: 0.5625 | AY14: 0.5625 | AZ14: 0.5625 | BA14: 0.5625 | BB14: 0.5625 | BC14: 0.5625 | BD14: 0.5625 | BE14: 0.5625 | BF14: 0.5625 | BG14: 0.5625 | BH14: 0.5625 | BI14: 0.5625 | BJ14: =(Tabelle10[[#This Row],[Ltgueb15Mon01]]+Tabelle10[[#This Row],[Ltgueb15Mon02]]+Tabelle10[[#This Row],[Ltgueb15Mon03]])/3 -> 0.5625 | BK14: =(Tabelle10[[#This Row],[Ltgueb15Mon04]]+Tabelle10[[#This Row],[Ltgueb15Mon05]]+Tabelle10[[#This Row],[Ltgueb15Mon06]])/3 -> 0.5625 | BL14: =(Tabelle10[[#This Row],[Ltgueb15Mon07]]+Tabelle10[[#This Row],[Ltgueb15Mon08]]+Tabelle10[[#This Row],[Ltgueb15Mon09]])/3 -> 0.5625 | BM14: =(Tabelle10[[#This Row],[Ltgueb15Mon10]]+Tabelle10[[#This Row],[Ltgueb15Mon12]]+Tabelle10[[#This Row],[Ltgueb15Mon11]])/3 -> 0.5625
A15: 2026 | B15: 0.1875 | C15: 0.1875 | D15: 0.1875 | E15: 0.1875 | F15: 0.1875 | G15: 0.1875 | H15: 0.1875 | I15: 0.1875 | J15: 0.1875 | K15: 0.1875 | L15: 0.1875 | M15: 0.1875 | N15: =(Tabelle10[[#This Row],[LtgMon01]]+Tabelle10[[#This Row],[LtgMon02]]+Tabelle10[[#This Row],[LtgMon03]])/3 -> 0.1875 | O15: =(Tabelle10[[#This Row],[LtgMon04]]+Tabelle10[[#This Row],[LtgMon05]]+Tabelle10[[#This Row],[LtgMon06]])/3 -> 0.1875 | P15: =(Tabelle10[[#This Row],[LtgMon07]]+Tabelle10[[#This Row],[LtgMon08]]+Tabelle10[[#This Row],[LtgMon09]])/3 -> 0.1875 | Q15: =(Tabelle10[[#This Row],[LtgMon10]]+Tabelle10[[#This Row],[LtgMon11]]+Tabelle10[[#This Row],[LtgMon12]])/3 -> 0.1875 | R15: 0.3125 | S15: 0.3125 | T15: 0.3125 | U15: 0.3125 | V15: 0.3125 | W15: 0.3125 | X15: 0.3125 | Y15: 0.3125 | Z15: 0.3125 | AA15: 0.3125 | AB15: 0.3125 | AC15: 0.3125 | AD15: =(Tabelle10[[#This Row],[Ltg4b10Mon01]]+Tabelle10[[#This Row],[Ltg4b10Mon02]]+Tabelle10[[#This Row],[Ltg4b10Mon03]])/3 -> 0.3125 | AE15: =(Tabelle10[[#This Row],[Ltg4b10Mon04]]+Tabelle10[[#This Row],[Ltg4b10Mon05]]+Tabelle10[[#This Row],[Ltg4b10Mon06]])/3 -> 0.3125 | AF15: =(Tabelle10[[#This Row],[Ltg4b10Mon07]]+Tabelle10[[#This Row],[Ltg4b10Mon08]]+Tabelle10[[#This Row],[Ltg4b10Mon09]])/3 -> 0.3125 | AG15: =(Tabelle10[[#This Row],[Ltg4b10Mon10]]+Tabelle10[[#This Row],[Ltg4b10Mon11]]+Tabelle10[[#This Row],[Ltg4b10Mon12]])/3 -> 0.3125 | AH15: 0.4375 | AI15: 0.4375 | AJ15: 0.4375 | AK15: 0.4375 | AL15: 0.4375 | AM15: 0.4375 | AN15: 0.4375 | AO15: 0.4375 | AP15: 0.4375 | AQ15: 0.4375 | AR15: 0.4375 | AS15: 0.4375 | AT15: =(Tabelle10[[#This Row],[Ltg10b15Mon01]]+Tabelle10[[#This Row],[Ltg10b15Mon02]]+Tabelle10[[#This Row],[Ltg10b15Mon03]])/3 -> 0.4375 | AU15: =(Tabelle10[[#This Row],[Ltg10b15Mon04]]+Tabelle10[[#This Row],[Ltg10b15Mon05]]+Tabelle10[[#This Row],[Ltg10b15Mon06]])/3 -> 0.4375 | AV15: =(Tabelle10[[#This Row],[Ltg10b15Mon07]]+Tabelle10[[#This Row],[Ltg10b15Mon08]]+Tabelle10[[#This Row],[Ltg10b15Mon09]])/3 -> 0.4375 | AW15: =(Tabelle10[[#This Row],[Ltg10b15Mon10]]+Tabelle10[[#This Row],[Ltg10b15Mon11]]+Tabelle10[[#This Row],[Ltg10b15Mon12]])/3 -> 0.4375 | AX15: 0.5625 | AY15: 0.5625 | AZ15: 0.5625 | BA15: 0.5625 | BB15: 0.5625 | BC15: 0.5625 | BD15: 0.5625 | BE15: 0.5625 | BF15: 0.5625 | BG15: 0.5625 | BH15: 0.5625 | BI15: 0.5625 | BJ15: =(Tabelle10[[#This Row],[Ltgueb15Mon01]]+Tabelle10[[#This Row],[Ltgueb15Mon02]]+Tabelle10[[#This Row],[Ltgueb15Mon03]])/3 -> 0.5625 | BK15: =(Tabelle10[[#This Row],[Ltgueb15Mon04]]+Tabelle10[[#This Row],[Ltgueb15Mon05]]+Tabelle10[[#This Row],[Ltgueb15Mon06]])/3 -> 0.5625 | BL15: =(Tabelle10[[#This Row],[Ltgueb15Mon07]]+Tabelle10[[#This Row],[Ltgueb15Mon08]]+Tabelle10[[#This Row],[Ltgueb15Mon09]])/3 -> 0.5625 | BM15: =(Tabelle10[[#This Row],[Ltgueb15Mon10]]+Tabelle10[[#This Row],[Ltgueb15Mon12]]+Tabelle10[[#This Row],[Ltgueb15Mon11]])/3 -> 0.5625
A16: 2027 | B16: 0.1875 | C16: 0.1875 | D16: 0.1875 | E16: 0.1875 | F16: 0.1875 | G16: 0.1875 | H16: 0.1875 | I16: 0.1875 | J16: 0.1875 | K16: 0.1875 | L16: 0.1875 | M16: 0.1875 | N16: =(Tabelle10[[#This Row],[LtgMon01]]+Tabelle10[[#This Row],[LtgMon02]]+Tabelle10[[#This Row],[LtgMon03]])/3 -> 0.1875 | O16: =(Tabelle10[[#This Row],[LtgMon04]]+Tabelle10[[#This Row],[LtgMon05]]+Tabelle10[[#This Row],[LtgMon06]])/3 -> 0.1875 | P16: =(Tabelle10[[#This Row],[LtgMon07]]+Tabelle10[[#This Row],[LtgMon08]]+Tabelle10[[#This Row],[LtgMon09]])/3 -> 0.1875 | Q16: =(Tabelle10[[#This Row],[LtgMon10]]+Tabelle10[[#This Row],[LtgMon11]]+Tabelle10[[#This Row],[LtgMon12]])/3 -> 0.1875 | R16: 0.3125 | S16: 0.3125 | T16: 0.3125 | U16: 0.3125 | V16: 0.3125 | W16: 0.3125 | X16: 0.3125 | Y16: 0.3125 | Z16: 0.3125 | AA16: 0.3125 | AB16: 0.3125 | AC16: 0.3125 | AD16: =(Tabelle10[[#This Row],[Ltg4b10Mon01]]+Tabelle10[[#This Row],[Ltg4b10Mon02]]+Tabelle10[[#This Row],[Ltg4b10Mon03]])/3 -> 0.3125 | AE16: =(Tabelle10[[#This Row],[Ltg4b10Mon04]]+Tabelle10[[#This Row],[Ltg4b10Mon05]]+Tabelle10[[#This Row],[Ltg4b10Mon06]])/3 -> 0.3125 | AF16: =(Tabelle10[[#This Row],[Ltg4b10Mon07]]+Tabelle10[[#This Row],[Ltg4b10Mon08]]+Tabelle10[[#This Row],[Ltg4b10Mon09]])/3 -> 0.3125 | AG16: =(Tabelle10[[#This Row],[Ltg4b10Mon10]]+Tabelle10[[#This Row],[Ltg4b10Mon11]]+Tabelle10[[#This Row],[Ltg4b10Mon12]])/3 -> 0.3125 | AH16: 0.4375 | AI16: 0.4375 | AJ16: 0.4375 | AK16: 0.4375 | AL16: 0.4375 | AM16: 0.4375 | AN16: 0.4375 | AO16: 0.4375 | AP16: 0.4375 | AQ16: 0.4375 | AR16: 0.4375 | AS16: 0.4375 | AT16: =(Tabelle10[[#This Row],[Ltg10b15Mon01]]+Tabelle10[[#This Row],[Ltg10b15Mon02]]+Tabelle10[[#This Row],[Ltg10b15Mon03]])/3 -> 0.4375 | AU16: =(Tabelle10[[#This Row],[Ltg10b15Mon04]]+Tabelle10[[#This Row],[Ltg10b15Mon05]]+Tabelle10[[#This Row],[Ltg10b15Mon06]])/3 -> 0.4375 | AV16: =(Tabelle10[[#This Row],[Ltg10b15Mon07]]+Tabelle10[[#This Row],[Ltg10b15Mon08]]+Tabelle10[[#This Row],[Ltg10b15Mon09]])/3 -> 0.4375 | AW16: =(Tabelle10[[#This Row],[Ltg10b15Mon10]]+Tabelle10[[#This Row],[Ltg10b15Mon11]]+Tabelle10[[#This Row],[Ltg10b15Mon12]])/3 -> 0.4375 | AX16: 0.5625 | AY16: 0.5625 | AZ16: 0.5625 | BA16: 0.5625 | BB16: 0.5625 | BC16: 0.5625 | BD16: 0.5625 | BE16: 0.5625 | BF16: 0.5625 | BG16: 0.5625 | BH16: 0.5625 | BI16: 0.5625 | BJ16: =(Tabelle10[[#This Row],[Ltgueb15Mon01]]+Tabelle10[[#This Row],[Ltgueb15Mon02]]+Tabelle10[[#This Row],[Ltgueb15Mon03]])/3 -> 0.5625 | BK16: =(Tabelle10[[#This Row],[Ltgueb15Mon04]]+Tabelle10[[#This Row],[Ltgueb15Mon05]]+Tabelle10[[#This Row],[Ltgueb15Mon06]])/3 -> 0.5625 | BL16: =(Tabelle10[[#This Row],[Ltgueb15Mon07]]+Tabelle10[[#This Row],[Ltgueb15Mon08]]+Tabelle10[[#This Row],[Ltgueb15Mon09]])/3 -> 0.5625 | BM16: =(Tabelle10[[#This Row],[Ltgueb15Mon10]]+Tabelle10[[#This Row],[Ltgueb15Mon12]]+Tabelle10[[#This Row],[Ltgueb15Mon11]])/3 -> 0.5625
A17: 2028 | B17: 0.1875 | C17: 0.1875 | D17: 0.1875 | E17: 0.1875 | F17: 0.1875 | G17: 0.1875 | H17: 0.1875 | I17: 0.1875 | J17: 0.1875 | K17: 0.1875 | L17: 0.1875 | M17: 0.1875 | N17: =(Tabelle10[[#This Row],[LtgMon01]]+Tabelle10[[#This Row],[LtgMon02]]+Tabelle10[[#This Row],[LtgMon03]])/3 -> 0.1875 | O17: =(Tabelle10[[#This Row],[LtgMon04]]+Tabelle10[[#This Row],[LtgMon05]]+Tabelle10[[#This Row],[LtgMon06]])/3 -> 0.1875 | P17: =(Tabelle10[[#This Row],[LtgMon07]]+Tabelle10[[#This Row],[LtgMon08]]+Tabelle10[[#This Row],[LtgMon09]])/3 -> 0.1875 | Q17: =(Tabelle10[[#This Row],[LtgMon10]]+Tabelle10[[#This Row],[LtgMon11]]+Tabelle10[[#This Row],[LtgMon12]])/3 -> 0.1875 | R17: 0.3125 | S17: 0.3125 | T17: 0.3125 | U17: 0.3125 | V17: 0.3125 | W17: 0.3125 | X17: 0.3125 | Y17: 0.3125 | Z17: 0.3125 | AA17: 0.3125 | AB17: 0.3125 | AC17: 0.3125 | AD17: =(Tabelle10[[#This Row],[Ltg4b10Mon01]]+Tabelle10[[#This Row],[Ltg4b10Mon02]]+Tabelle10[[#This Row],[Ltg4b10Mon03]])/3 -> 0.3125 | AE17: =(Tabelle10[[#This Row],[Ltg4b10Mon04]]+Tabelle10[[#This Row],[Ltg4b10Mon05]]+Tabelle10[[#This Row],[Ltg4b10Mon06]])/3 -> 0.3125 | AF17: =(Tabelle10[[#This Row],[Ltg4b10Mon07]]+Tabelle10[[#This Row],[Ltg4b10Mon08]]+Tabelle10[[#This Row],[Ltg4b10Mon09]])/3 -> 0.3125 | AG17: =(Tabelle10[[#This Row],[Ltg4b10Mon10]]+Tabelle10[[#This Row],[Ltg4b10Mon11]]+Tabelle10[[#This Row],[Ltg4b10Mon12]])/3 -> 0.3125 | AH17: 0.4375 | AI17: 0.4375 | AJ17: 0.4375 | AK17: 0.4375 | AL17: 0.4375 | AM17: 0.4375 | AN17: 0.4375 | AO17: 0.4375 | AP17: 0.4375 | AQ17: 0.4375 | AR17: 0.4375 | AS17: 0.4375 | AT17: =(Tabelle10[[#This Row],[Ltg10b15Mon01]]+Tabelle10[[#This Row],[Ltg10b15Mon02]]+Tabelle10[[#This Row],[Ltg10b15Mon03]])/3 -> 0.4375 | AU17: =(Tabelle10[[#This Row],[Ltg10b15Mon04]]+Tabelle10[[#This Row],[Ltg10b15Mon05]]+Tabelle10[[#This Row],[Ltg10b15Mon06]])/3 -> 0.4375 | AV17: =(Tabelle10[[#This Row],[Ltg10b15Mon07]]+Tabelle10[[#This Row],[Ltg10b15Mon08]]+Tabelle10[[#This Row],[Ltg10b15Mon09]])/3 -> 0.4375 | AW17: =(Tabelle10[[#This Row],[Ltg10b15Mon10]]+Tabelle10[[#This Row],[Ltg10b15Mon11]]+Tabelle10[[#This Row],[Ltg10b15Mon12]])/3 -> 0.4375 | AX17: 0.5625 | AY17: 0.5625 | AZ17: 0.5625 | BA17: 0.5625 | BB17: 0.5625 | BC17: 0.5625 | BD17: 0.5625 | BE17: 0.5625 | BF17: 0.5625 | BG17: 0.5625 | BH17: 0.5625 | BI17: 0.5625 | BJ17: =(Tabelle10[[#This Row],[Ltgueb15Mon01]]+Tabelle10[[#This Row],[Ltgueb15Mon02]]+Tabelle10[[#This Row],[Ltgueb15Mon03]])/3 -> 0.5625 | BK17: =(Tabelle10[[#This Row],[Ltgueb15Mon04]]+Tabelle10[[#This Row],[Ltgueb15Mon05]]+Tabelle10[[#This Row],[Ltgueb15Mon06]])/3 -> 0.5625 | BL17: =(Tabelle10[[#This Row],[Ltgueb15Mon07]]+Tabelle10[[#This Row],[Ltgueb15Mon08]]+Tabelle10[[#This Row],[Ltgueb15Mon09]])/3 -> 0.5625 | BM17: =(Tabelle10[[#This Row],[Ltgueb15Mon10]]+Tabelle10[[#This Row],[Ltgueb15Mon12]]+Tabelle10[[#This Row],[Ltgueb15Mon11]])/3 -> 0.5625
A18: 2029 | B18: 0.1875 | C18: 0.1875 | D18: 0.1875 | E18: 0.1875 | F18: 0.1875 | G18: 0.1875 | H18: 0.1875 | I18: 0.1875 | J18: 0.1875 | K18: 0.1875 | L18: 0.1875 | M18: 0.1875 | N18: =(Tabelle10[[#This Row],[LtgMon01]]+Tabelle10[[#This Row],[LtgMon02]]+Tabelle10[[#This Row],[LtgMon03]])/3 -> 0.1875 | O18: =(Tabelle10[[#This Row],[LtgMon04]]+Tabelle10[[#This Row],[LtgMon05]]+Tabelle10[[#This Row],[LtgMon06]])/3 -> 0.1875 | P18: =(Tabelle10[[#This Row],[LtgMon07]]+Tabelle10[[#This Row],[LtgMon08]]+Tabelle10[[#This Row],[LtgMon09]])/3 -> 0.1875 | Q18: =(Tabelle10[[#This Row],[LtgMon10]]+Tabelle10[[#This Row],[LtgMon11]]+Tabelle10[[#This Row],[LtgMon12]])/3 -> 0.1875 | R18: 0.3125 | S18: 0.3125 | T18: 0.3125 | U18: 0.3125 | V18: 0.3125 | W18: 0.3125 | X18: 0.3125 | Y18: 0.3125 | Z18: 0.3125 | AA18: 0.3125 | AB18: 0.3125 | AC18: 0.3125 | AD18: =(Tabelle10[[#This Row],[Ltg4b10Mon01]]+Tabelle10[[#This Row],[Ltg4b10Mon02]]+Tabelle10[[#This Row],[Ltg4b10Mon03]])/3 -> 0.3125 | AE18: =(Tabelle10[[#This Row],[Ltg4b10Mon04]]+Tabelle10[[#This Row],[Ltg4b10Mon05]]+Tabelle10[[#This Row],[Ltg4b10Mon06]])/3 -> 0.3125 | AF18: =(Tabelle10[[#This Row],[Ltg4b10Mon07]]+Tabelle10[[#This Row],[Ltg4b10Mon08]]+Tabelle10[[#This Row],[Ltg4b10Mon09]])/3 -> 0.3125 | AG18: =(Tabelle10[[#This Row],[Ltg4b10Mon10]]+Tabelle10[[#This Row],[Ltg4b10Mon11]]+Tabelle10[[#This Row],[Ltg4b10Mon12]])/3 -> 0.3125 | AH18: 0.4375 | AI18: 0.4375 | AJ18: 0.4375 | AK18: 0.4375 | AL18: 0.4375 | AM18: 0.4375 | AN18: 0.4375 | AO18: 0.4375 | AP18: 0.4375 | AQ18: 0.4375 | AR18: 0.4375 | AS18: 0.4375 | AT18: =(Tabelle10[[#This Row],[Ltg10b15Mon01]]+Tabelle10[[#This Row],[Ltg10b15Mon02]]+Tabelle10[[#This Row],[Ltg10b15Mon03]])/3 -> 0.4375 | AU18: =(Tabelle10[[#This Row],[Ltg10b15Mon04]]+Tabelle10[[#This Row],[Ltg10b15Mon05]]+Tabelle10[[#This Row],[Ltg10b15Mon06]])/3 -> 0.4375 | AV18: =(Tabelle10[[#This Row],[Ltg10b15Mon07]]+Tabelle10[[#This Row],[Ltg10b15Mon08]]+Tabelle10[[#This Row],[Ltg10b15Mon09]])/3 -> 0.4375 | AW18: =(Tabelle10[[#This Row],[Ltg10b15Mon10]]+Tabelle10[[#This Row],[Ltg10b15Mon11]]+Tabelle10[[#This Row],[Ltg10b15Mon12]])/3 -> 0.4375 | AX18: 0.5625 | AY18: 0.5625 | AZ18: 0.5625 | BA18: 0.5625 | BB18: 0.5625 | BC18: 0.5625 | BD18: 0.5625 | BE18: 0.5625 | BF18: 0.5625 | BG18: 0.5625 | BH18: 0.5625 | BI18: 0.5625 | BJ18: =(Tabelle10[[#This Row],[Ltgueb15Mon01]]+Tabelle10[[#This Row],[Ltgueb15Mon02]]+Tabelle10[[#This Row],[Ltgueb15Mon03]])/3 -> 0.5625 | BK18: =(Tabelle10[[#This Row],[Ltgueb15Mon04]]+Tabelle10[[#This Row],[Ltgueb15Mon05]]+Tabelle10[[#This Row],[Ltgueb15Mon06]])/3 -> 0.5625 | BL18: =(Tabelle10[[#This Row],[Ltgueb15Mon07]]+Tabelle10[[#This Row],[Ltgueb15Mon08]]+Tabelle10[[#This Row],[Ltgueb15Mon09]])/3 -> 0.5625 | BM18: =(Tabelle10[[#This Row],[Ltgueb15Mon10]]+Tabelle10[[#This Row],[Ltgueb15Mon12]]+Tabelle10[[#This Row],[Ltgueb15Mon11]])/3 -> 0.5625
A19: 2030 | B19: 0.1875 | C19: 0.1875 | D19: 0.1875 | E19: 0.1875 | F19: 0.1875 | G19: 0.1875 | H19: 0.1875 | I19: 0.1875 | J19: 0.1875 | K19: 0.1875 | L19: 0.1875 | M19: 0.1875 | N19: =(Tabelle10[[#This Row],[LtgMon01]]+Tabelle10[[#This Row],[LtgMon02]]+Tabelle10[[#This Row],[LtgMon03]])/3 -> 0.1875 | O19: =(Tabelle10[[#This Row],[LtgMon04]]+Tabelle10[[#This Row],[LtgMon05]]+Tabelle10[[#This Row],[LtgMon06]])/3 -> 0.1875 | P19: =(Tabelle10[[#This Row],[LtgMon07]]+Tabelle10[[#This Row],[LtgMon08]]+Tabelle10[[#This Row],[LtgMon09]])/3 -> 0.1875 | Q19: =(Tabelle10[[#This Row],[LtgMon10]]+Tabelle10[[#This Row],[LtgMon11]]+Tabelle10[[#This Row],[LtgMon12]])/3 -> 0.1875 | R19: 0.3125 | S19: 0.3125 | T19: 0.3125 | U19: 0.3125 | V19: 0.3125 | W19: 0.3125 | X19: 0.3125 | Y19: 0.3125 | Z19: 0.3125 | AA19: 0.3125 | AB19: 0.3125 | AC19: 0.3125 | AD19: =(Tabelle10[[#This Row],[Ltg4b10Mon01]]+Tabelle10[[#This Row],[Ltg4b10Mon02]]+Tabelle10[[#This Row],[Ltg4b10Mon03]])/3 -> 0.3125 | AE19: =(Tabelle10[[#This Row],[Ltg4b10Mon04]]+Tabelle10[[#This Row],[Ltg4b10Mon05]]+Tabelle10[[#This Row],[Ltg4b10Mon06]])/3 -> 0.3125 | AF19: =(Tabelle10[[#This Row],[Ltg4b10Mon07]]+Tabelle10[[#This Row],[Ltg4b10Mon08]]+Tabelle10[[#This Row],[Ltg4b10Mon09]])/3 -> 0.3125 | AG19: =(Tabelle10[[#This Row],[Ltg4b10Mon10]]+Tabelle10[[#This Row],[Ltg4b10Mon11]]+Tabelle10[[#This Row],[Ltg4b10Mon12]])/3 -> 0.3125 | AH19: 0.4375 | AI19: 0.4375 | AJ19: 0.4375 | AK19: 0.4375 | AL19: 0.4375 | AM19: 0.4375 | AN19: 0.4375 | AO19: 0.4375 | AP19: 0.4375 | AQ19: 0.4375 | AR19: 0.4375 | AS19: 0.4375 | AT19: =(Tabelle10[[#This Row],[Ltg10b15Mon01]]+Tabelle10[[#This Row],[Ltg10b15Mon02]]+Tabelle10[[#This Row],[Ltg10b15Mon03]])/3 -> 0.4375 | AU19: =(Tabelle10[[#This Row],[Ltg10b15Mon04]]+Tabelle10[[#This Row],[Ltg10b15Mon05]]+Tabelle10[[#This Row],[Ltg10b15Mon06]])/3 -> 0.4375 | AV19: =(Tabelle10[[#This Row],[Ltg10b15Mon07]]+Tabelle10[[#This Row],[Ltg10b15Mon08]]+Tabelle10[[#This Row],[Ltg10b15Mon09]])/3 -> 0.4375 | AW19: =(Tabelle10[[#This Row],[Ltg10b15Mon10]]+Tabelle10[[#This Row],[Ltg10b15Mon11]]+Tabelle10[[#This Row],[Ltg10b15Mon12]])/3 -> 0.4375 | AX19: 0.5625 | AY19: 0.5625 | AZ19: 0.5625 | BA19: 0.5625 | BB19: 0.5625 | BC19: 0.5625 | BD19: 0.5625 | BE19: 0.5625 | BF19: 0.5625 | BG19: 0.5625 | BH19: 0.5625 | BI19: 0.5625 | BJ19: =(Tabelle10[[#This Row],[Ltgueb15Mon01]]+Tabelle10[[#This Row],[Ltgueb15Mon02]]+Tabelle10[[#This Row],[Ltgueb15Mon03]])/3 -> 0.5625 | BK19: =(Tabelle10[[#This Row],[Ltgueb15Mon04]]+Tabelle10[[#This Row],[Ltgueb15Mon05]]+Tabelle10[[#This Row],[Ltgueb15Mon06]])/3 -> 0.5625 | BL19: =(Tabelle10[[#This Row],[Ltgueb15Mon07]]+Tabelle10[[#This Row],[Ltgueb15Mon08]]+Tabelle10[[#This Row],[Ltgueb15Mon09]])/3 -> 0.5625 | BM19: =(Tabelle10[[#This Row],[Ltgueb15Mon10]]+Tabelle10[[#This Row],[Ltgueb15Mon12]]+Tabelle10[[#This Row],[Ltgueb15Mon11]])/3 -> 0.5625

Sheet QUART I
B2: =CONCATENATE("Personalbe- und abrechnungsdatei Land Brandenburg ",TEXT(J8,),". Quartal ",TEXT(intAntragsJahr," 0000")) -> Personalbe- und abrechnungsdatei Land Brandenburg I. Quartal 2020 | AN2: =CONCATENATE("Programmversion ",Start!J19," - Stand: ",TEXT(Start!J20,"tt.MM.jjjj")) -> Programmversion 2020.1.0.1 - Stand: 24.11.2020
C4: Antragsteller (Kitaträger) | V4: Kindertagesstätte
C6: zuständig. Bearbeiter/in | M6: Fon | U6: Fax | AD6: E-Mail
C8: Antragsjahr | D8: 2020 | H8: Quartal | J8: =ROMAN(1) -> I | P8: mit Stichtag | Q8: =strStischtagQ1 -> 01.12.2019 | AD8: Gesamtkapazität der Einrichtung | AE8: 0 | AM8: Bearbeitungsdatum
B10: =IF(intAntragsJahr>=2017,"Leitungssockel ab Oktober 2017 ","") -> Leitungssockel ab Oktober 2017 | D10: =IF(intAntragsJahr>=2017,CONCATENATE("Anzahl der in ",intAntragsJahr-1," im Jahres-Ø betreuten Kinder "),"") -> Anzahl der in 2019 im Jahres-Ø betreuten Kinder | Q10: 0 | U10: =IF(intAntragsJahr>=2017,"vom MBJS gem. § 3 Abs. 1 KitaLAV festgelegter Jahresbetrag (VZÄ) ","") -> vom MBJS gem. § 3 Abs. 1 KitaLAV festgelegter Jahresbetrag (VZÄ) | AN10: 0
D12: Werte für das I. Quartal
B13: Stellen-SOLL gem. § 10 KitaG | D13: =CONCATENATE("Kinderzahlen 01.12.",Jahr-1) -> Kinderzahlen 01.12.2019 | J13: VbE | AN13: =CONCATENATE("Jahr ",Jahr," ","I. Quartal") -> Jahr 2020 I. Quartal
B14: Krippenkinder über 6 Std. | D14: 0 | H14: =Q1_key_Kr_ueb_6 -> 0.2 | J14: =ROUND(D14*Q1_key_Kr_ueb_6,3) -> 0 | AN14: =ROUND((J14),3) -> 0
B15: Krippenkinder bis 6 Stunden | D15: 0 | H15: =Q1_key_Kr_bis_6 -> 0.16 | J15: =ROUND(D15*Q1_key_Kr_bis_6,3) -> 0 | AN15: =ROUND((J15),3) -> 0
B16: Summe Krippenkinder | D16: =SUM(D14:D15) -> 0 | J16: =SUM(J14:J15) -> 0 | AN16: =SUM(AN14:AN15) -> 0 | AP16: =AN14+AN15 -> 0
D17: 7
B18: Kindergartenkinder über 6 Std. | D18: 0 | H18: =Q1_key_Kg_ueb_6 -> 0.09090909091 | J18: =ROUND(D18*Q1_key_Kg_ueb_6,3) -> 0 | AN18: =ROUND((J18),3) -> 0
B19: Kindergartenkinder bis 6 Stunden | D19: 0 | H19: =Q1_key_Kg_bis_6 -> 0.07272727273 | J19: =ROUND(D19*Q1_key_Kg_bis_6,3) -> 0 | AN19: =ROUND((J19),3) -> 0
B20: Summe Kindergartenkinder | D20: =SUM(D18:D19) -> 0 | J20: =SUM(J18:J19) -> 0 | AN20: =SUM(AN18:AN19) -> 0 | AP20: =AN18+AN19 -> 0 | AS20: =IF((AN30<AN28),AN28-AN30,0) -> 0 | AU20: =AN16/AN28 -> 
B22: HortKinder über 4 Std. | D22: 0 | H22: =Q1_key_Ho_ueb_4 -> 0.05333333333 | J22: =ROUND(D22*Q1_key_Ho_ueb_4,3) -> 0 | AN22: =ROUND((J22),3) -> 0 | AU22: =AN20/AN28 -> 
B23: Hortkinder bis 4 Stunden | D23: 0 | H23: =Q1_key_Ho_bis_4 -> 0.04 | J23: =ROUND(D23*Q1_key_Ho_bis_4,3) -> 0 | AN23: =ROUND((J23),3) -> 0 | AU23: =AN24/AN28 -> 
B24: Summe Hortkinder | D24: =SUM(D22:D23) -> 0 | J24: =SUM(J22:J23) -> 0 | AN24: =SUM(AN22:AN23) -> 0 | AP24: =AN23+AN22 -> 0 | AU24: =SUM(AU20:AU23) -> 
B26: Summe aller Kinder | D26: =D16+D20+D24 -> 0 | J26: =J16+J20+J24 -> 0 | AP26: =SUM(AP16:AP24) -> 0
AM28: Stellen-Soll (ohne pädagogische Leitung) per I. Quartal | AN28: =AN16+AN20+AN24 -> 0 | AT28: anerk. Krip. Q1 | AU28: =ROUND(AN16-(AS20*AU20),5) -> 
AM30: Stellen-Ist (ohne PL) per I. Quartal | AN30: =Q1DsIstStellen -> 0 | AT30: anerk. Kiga Q1 | AU30: =ROUND(AN20-(AU22*AS20),5) -> 
AN31: 6.1
AM32: anerkannte Stellen ohne PL (Soll, höchstens aber ist) per I. Quartal | AN32: =IF(AN30>AN28,AN28,AN30) -> 0 | AT32: anerk. Hort Q1 | AU32: =ROUND(AN24-(AU23*AS20),5) -> 
B34: Angabe der Stellenanteile (VbE) mit 3 Dezimalstellen | H34: I. Quart. | Y34: dav. anerkannte Stellen im Altersbereich Kinderkrippe | AN34: =IFERROR(Q1anerkanntStellenKrip,0) -> 0 | AU34: =SUM(AU28:AU32) -> 
B35: informativ f. PL-Berechnung: bes. Förderbedarf | H35: 0 | Y35: dav. anerkannte Stellen im Altersbereich Kindergarten | AN35: =IFERROR(Q1anerkanntStelKiga,0) -> 0
B36: Basiswert f. Berechnung des PL-Stellenanteils | H36: =NurSollNppQ1+Q1sonstStellLtg -> 0 | Y36: dav. anerkannte Stellen im Altersbereich Kinderhort | AN36: =IFERROR(Q1anerkanntStelHort,0) -> 0
B37: =IF(intAntragsJahr<2017,"Stellenanteil PL gem. § 5 KitaPersV","PL gem. § 5 KitaPersV ab 10/17 mit 0,0625 Sockel") -> PL gem. § 5 KitaPersV ab 10/17 mit 0,0625 Sockel | H37: =IF(AND(Q1BasisWertLtg<=4,Q1BasisWertLtg>0),LtgBis4Q1,IF(AND(Q1BasisWertLtg<=10,Q1BasisWertLtg>0),LtgGr4Bis10Q1,IF(AND(Q1BasisWertLtg<=15,Q1BasisWertLtg>0),LtgGr10Bis15Q1,IF(AND(Q1BasisWertLtg>15,Q1BasisWertLtg>0),LtgGr15Q1,0)))) -> 0 | W37: Verhältnis Stellen-IST zum Stellen-SOLL per I. Quart. | AL37: =IFERROR(Q1IstNpp/Q1SollNpp,0) -> 0
D39: Stellen-SOLL (nur pädagogische Leitung) | S39: nur I. Quartal | T39: =ROUND(Q1SollLtgStel,4) -> 0
D41: tatsächliche Stellen-IST (nur PL) | S41: nur I. Quartal | T41: =Q1DsIstLtgStellen -> 0
D43: anerk. Stellen pädagogische Leitung | S43: nur I. Quartal | T43: =IF(Q1IstLtgStel>Q1DsLtgSollStel,Q1DsLtgSollStel,Q1IstLtgStel) -> 0
B46: Ø Jahrespersonalkostensatz notw. Päd. Pers. ohne PL 100% (€) | M46: 0 | AD46: Ø Jahrespersonalkostensatz Päd. Ltg. 100% (€) | AE46: 0
B47: Hinweis: Hier gem. § 16 Abs. 2 KitaG als Bemessungsgröße die Durchschnittssätze der jeweils gültigen Vergütungsregeleung eingeben (kann quartalsweise überschrieben werden).
B48: Zuschuss für das päd. Pers. Im Altersbereich Kinderkrippe per I. Quartal | AL48: =CONCATENATE("im I. Quartal ",TEXT(KripQ1FinanzFakt*100,"#0,0"),"% ","der Personalkosten ") -> im I. Quartal 88,6% der Personalkosten | AN48: =IFERROR(ROUND(Q1anerkanntStellenKrip*Q1DsKripFinanzFakt*Q1NppWert/4,2),0) -> 0 | AQ48: LtgStellSockelAbzug | AR48: =IF(intAntragsJahr=2017,0,LtgSockelQ1) -> 0.0625 | AS48: =IF(intAntragsJahr=2017,0,LtgSockelQ2) -> 0.0625 | AT48: =IF(intAntragsJahr=2017,0,LtgSockelQ3) -> 0.0625 | AU48: =IF(intAntragsJahr=2017,LtgSockelQ4/4,LtgSockelQ4) -> 0.0625
B49: Zuschuss für das päd. Pers. Im Altersbereich Kindergarten per I. Quartal | AL49: =CONCATENATE("im I. Quartal ",TEXT(Q1KigaFinanzFakt*100,"#0,0"),"% ","der Personalkosten ") -> im I. Quartal 86,4% der Personalkosten | AN49: =IFERROR(ROUND(Q1anerkanntStelKiga*Q1DsKigaFinanzFakt*Q1NppWert/4,2),0) -> 0 | AR49: =ROUND(LtgSockelBetrag*LtgSockelQ1/4,2) -> 0 | AS49: =ROUND(LtgSockelBetrag*LtgSockelQ2/4,2) -> 0 | AT49: =ROUND(LtgSockelBetrag*LtgSockelQ3/4,2) -> 0 | AU49: =ROUND(LtgSockelBetrag*LtgSockelQ4/4,2) -> 0
B50: Zuschuss für das päd. Pers. Im Altersbereich Kinderhort per I. Quartal | AL50: =CONCATENATE("im I. Quartal ",TEXT(Q1HortFinanzFakt*100,"#0,0"),"% ","der Personalkosten ") -> im I. Quartal 84,0% der Personalkosten | AN50: =IFERROR(ROUND(Q1anerkanntStelHort*Q1DsHortFinanzFakt*Q1NppWert/4,2),) -> 0 | AQ50: Leitungssockel | AR50: =IF(intAntragsJahr=2017,0,IF(intAntragsJahr>=2018,0.0625,0)) -> 0.0625 | AS50: =IF(intAntragsJahr=2017,0,IF(intAntragsJahr>=2018,0.0625,0)) -> 0.0625 | AT50: =IF(intAntragsJahr=2017,0,IF(intAntragsJahr>=2018,0.0625,0)) -> 0.0625 | AU50: =IF(intAntragsJahr>=2017,0.0625,0) -> 0.0625
B52: =IF(intAntragsJahr>=2017,"Ausgleichsbetrag gem. § 3 Abs. 1 KitaLAV für den Leitungssockel in Höhe von 0,0625 Stellen ","") -> Ausgleichsbetrag gem. § 3 Abs. 1 KitaLAV für den Leitungssockel in Höhe von 0,0625 Stellen | AL52: =IF(intAntragsJahr>=2017,"im I. Quartal Sockelbetrag-Ausgleichsbetrag","") -> im I. Quartal Sockelbetrag-Ausgleichsbetrag | AN52: =LtgSockelBetragQ1 -> 0
B53: Zuschuss für die Pädagogische Leitung | AL53: =CONCATENATE("im I. Quartal ",TEXT(LtgQ1FinanzFakt*100,"#0,0"),"% ","der Personalkosten ") -> im I. Quartal 84,0% der Personalkosten | AM53: = | AN53: =ROUND((Q1PlWert*(Q1anerkStelPl-LtgStellSockelAbzugQ1)*Q1DsLtgFinanzFakt/4),2) -> 0 | AQ53: Sollwert | AR53: =Q1anerkanntStellen*Q1NppWert/4 -> 0 | AS53: =Q1anerkanntStellen*Q1NppWert/4 -> 0 | AT53: =Q1anerkanntStellen*Q1NppWert/4 -> 0
B54: Summe der Zuschüsse für das päd. Personal einschl. PL per I. Quartal | AN54: =SUM(AN48:AN53) -> 0 | AQ54: Istwert | AR54: =DSUM(tabJahresPersonal[[#Headers],[#Data]],tabJahresPersonal[[#Headers],[Stel01]],SuchKrittabPersonal)*Q1NppWert/4 -> 0 | AS54: =DSUM(tabJahresPersonal[[#Headers],[#Data]],tabJahresPersonal[[#Headers],[Stel02]],SuchKrittabPersonal)*Q1NppWert/4 -> 0 | AT54: =DSUM(tabJahresPersonal[[#Headers],[#Data]],tabJahresPersonal[[#Headers],[Stel03]],SuchKrittabPersonal)*Q1NppWert/4 -> 0
B55: =IF(Q1SumKinder>Q1Kapaz,"ACHTUNG!!! Im I. Quartal wurde die Gesamtkapazität","Der Träger versichert, dass sowohl die Gesamtkapazität als auch evtl.") -> Der Träger versichert, dass sowohl die Gesamtkapazität als auch evtl. | AQ55: Differenz | AR55: =(AR53-AR54) -> 0 | AS55: =(AS53-AS54) -> 0 | AT55: =(AT53-AT54) -> 0
B56: =IF(Q1SumKinder>Q1Kapaz,"der Einrichtung lt. Betriebserlaubnis nicht eingehalten!","Teilkapazitäten für spezifische Altersbereiche eingehalten wurden.") -> Teilkapazitäten für spezifische Altersbereiche eingehalten wurden.
N57: Rechtsverbindliche Unterschrift des Trägers für die Richtigkeit der vorstehend gemachten Angaben

Sheet QUART II
B2: =CONCATENATE("Personalbe- und abrechnungsdatei Land Brandenburg ",TEXT(J8,),". Quartal ",TEXT(intAntragsJahr," 0000")) -> Personalbe- und abrechnungsdatei Land Brandenburg II. Quartal 2020 | AN2: =VersionsAnzeige -> Programmversion 2020.1.0.1 - Stand: 24.11.2020
C4: Antragsteller (Kitaträger) | D4: =strTraegerName -> 0 | V4: Kindertagesstätte | Y4: =strKitaName -> 0
Y5: =strKitaName -> 0
C6: zuständig. Bearbeiter/in | D6: =strBearbeiter -> 0 | M6: Fon | N6: =strKitaTel -> 0 | U6: Fax | V6: =strTraegerFax -> 0 | AD6: E-Mail | AE6: =strTraegerEmail -> 0
C8: Antragsjahr | D8: =intAntragsJahr -> 2020 | H8: Quartal | J8: =ROMAN(2) -> II | P8: mit Stichtag | Q8: =strStischtagQ2 -> 01.03.2020 | AD8: Gesamtkapazität der Einrichtung | AE8: 0 | AM8: Bearbeitungsdatum
B10: ='QUART I'!B10:C10 -> Leitungssockel ab Oktober 2017 | D10: ='QUART I'!D10:P10 -> Anzahl der in 2019 im Jahres-Ø betreuten Kinder | Q10: ='QUART I'!Q10:R10 -> 0 | U10: ='QUART I'!U10:AM10 -> vom MBJS gem. § 3 Abs. 1 KitaLAV festgelegter Jahresbetrag (VZÄ) | AN10: =LtgSockelBetrag -> 0
D12: Werte für das I. Quartal | M12: Werte für das II. Quartal
B13: Stellen-SOLL gem. § 10 KitaG | D13: =CONCATENATE("Kinderzahlen 01.12.",Jahr-1) -> Kinderzahlen 01.12.2019 | J13: VbE | M13: =CONCATENATE("Kinderzahlen 01.03.",Jahr) -> Kinderzahlen 01.03.2020 | S13: VbE | AN13: =CONCATENATE("Jahr ",Jahr," ","I.-II. Quartal") -> Jahr 2020 I.-II. Quartal
B14: Krippenkinder über 6 Std. | D14: ='QUART I'!D14:G14 -> 0 | H14: =Q1_key_Kr_ueb_6 -> 0.2 | J14: ='QUART I'!J14:K14 -> 0 | M14: 0 | Q14: =Q2_key_Kr_ueb_6 -> 0.2 | S14: =ROUND(M14*Q2_key_Kr_ueb_6,3) -> 0 | AN14: =ROUND((J14+S14)/2,3) -> 0
B15: Krippenkinder bis 6 Stunden | D15: ='QUART I'!D15:G15 -> 0 | H15: =Q1_key_Kr_bis_6 -> 0.16 | J15: ='QUART I'!J15:K15 -> 0 | M15: 0 | Q15: =Q2_key_Kr_bis_6 -> 0.16 | S15: =ROUND(M15*Q2_key_Kr_bis_6,3) -> 0 | AN15: =ROUND((J15+S15)/2,3) -> 0
B16: Summe Krippenkinder | D16: =SUM(D14:D15) -> 0 | J16: =SUM(J14:J15) -> 0 | M16: =SUM(M14:M15) -> 0 | S16: =SUM(S14:S15) -> 0 | AN16: =SUM(AN14:AN15) -> 0 | AP16: =AN14+AN15 -> 0
B18: Kindergartenkinder über 6 Std. | D18: ='QUART I'!D18:G18 -> 0 | H18: =Q1_key_Kg_ueb_6 -> 0.09090909091 | J18: ='QUART I'!J18:K18 -> 0 | M18: 0 | Q18: =Q2_key_Kg_ueb_6 -> 0.09090909091 | S18: =ROUND(M18*Q2_key_Kg_ueb_6,3) -> 0 | AN18: =ROUND((J18+S18)/2,3) -> 0
B19: Kindergartenkinder bis 6 Stunden | D19: ='QUART I'!D19:G19 -> 0 | H19: =Q1_key_Kg_bis_6 -> 0.07272727273 | J19: ='QUART I'!J19:K19 -> 0 | M19: 0 | Q19: =Q2_key_Kg_bis_6 -> 0.07272727273 | S19: =ROUND(M19*Q2_key_Kg_bis_6,3) -> 0 | AN19: =ROUND((J19+S19)/2,3) -> 0
B20: Summe Kindergartenkinder | D20: =SUM(D18:D19) -> 0 | J20: =SUM(J18:J19) -> 0 | M20: =SUM(M18:M19) -> 0 | S20: =SUM(S18:S19) -> 0 | AN20: =SUM(AN18:AN19) -> 0 | AP20: =AN18+AN19 -> 0 | AS20: =IF((AN30<AN28),AN28-AN30,0) -> 0 | AU20: =AN16/AN28 -> 
B22: HortKinder über 4 Std. | D22: ='QUART I'!D22:G22 -> 0 | H22: =Q1_key_Ho_ueb_4 -> 0.05333333333 | J22: ='QUART I'!J22:K22 -> 0 | M22: 0 | Q22: =Q2_key_Ho_ueb_4 -> 0.05333333333 | S22: =ROUND(M22*Q2_key_Ho_ueb_4,3) -> 0 | AN22: =ROUND((J22+S22)/2,3) -> 0 | AU22: =AN20/AN28 -> 
B23: Hortkinder bis 4 Stunden | D23: ='QUART I'!D23:G23 -> 0 | H23: =Q1_key_Ho_bis_4 -> 0.04 | J23: ='QUART I'!J23:K23 -> 0 | M23: 0 | Q23: =Q2_key_Ho_bis_4 -> 0.04 | S23: =ROUND(M23*Q2_key_Ho_bis_4,3) -> 0 | AN23: =ROUND((J23+S23)/2,3) -> 0 | AU23: =AN24/AN28 -> 
B24: Summe Hortkinder | D24: =SUM(D22:D23) -> 0 | J24: =SUM(J22:J23) -> 0 | M24: =SUM(M22:M23) -> 0 | S24: =SUM(S22:S23) -> 0 | AN24: =SUM(AN22:AN23) -> 0 | AP24: =AN23+AN22 -> 0 | AU24: =SUM(AU20:AU23) -> 
B26: Summe aller Kinder | D26: =D16+D20+D24 -> 0 | J26: =J16+J20+J24 -> 0 | M26: =M16+M20+M24 -> 0 | S26: =S16+S20+S24 -> 0 | AP26: =SUM(AP16:AP24) -> 0
AM28: Stellen-Soll (ohne pädagogische Leitung) per II. Quartal | AN28: =AN16+AN20+AN24 -> 0 | AT28: anerk. Krip. Q2 | AU28: =ROUND(AN16-(AS20*AU20),3) -> 
AM30: Stellen-Ist (ohne PL) per II. Quartal | AN30: =Q2DsIstStellen -> 0 | AT30: anerk. Kiga Q2 | AU30: =ROUND(AN20-(AU22*AS20),3) -> 
AN31: 6.1
AM32: anerkannte Stellen ohne PL (Soll, höchstens aber ist) per II. Quartal | AN32: =IF(AN30>AN28,AN28,AN30) -> 0 | AT32: anerk. Hort Q2 | AU32: =ROUND(AN24-(AU23*AS20),3) -> 
B34: Angabe der Stellenanteile (VbE) mit 3 Dezimalstellen | H34: I. Quart. | L34: II. Quart. | Y34: dav. anerkannte Stellen im Altersbereich Kinderkrippe | AN34: =IFERROR(Q2anerkanntStellenKrip,0) -> 0 | AU34: =SUM(AU28:AU32) -> 
B35: informativ f. PL-Berechnung: bes. Förderbedarf | H35: =Q1sonstStellLtg -> 0 | L35: 0 | Y35: dav. anerkannte Stellen im Altersbereich Kindergarten | AN35: =IFERROR(Q2anerkanntStelKiga,0) -> 0
B36: Basiswert f. Berechnung des PL-Stellenanteils | H36: =Q1BasisWertLtg -> 0 | L36: =NurSollNppQ2+Q2sonstStellLtg -> 0 | Y36: dav. anerkannte Stellen im Altersbereich Kinderhort | AN36: =IFERROR(Q2anerkanntStelHort,0) -> 0
B37: ='QUART I'!B37 -> PL gem. § 5 KitaPersV ab 10/17 mit 0,0625 Sockel | H37: =Q1SollLtgStel -> 0 | L37: =IF(AND(Q2BasisWertLtg<=4,Q2BasisWertLtg>0),LtgBis4Q2,IF(AND(Q2BasisWertLtg<=10,Q2BasisWertLtg>0),LtgGr4Bis10Q2,IF(AND(Q2BasisWertLtg<=15,Q2BasisWertLtg>0),LtgGr10Bis15Q2,IF(AND(Q2BasisWertLtg>15,Q2BasisWertLtg>0),LtgGr15Q2,0)))) -> 0 | W37: Verhältnis Stellen-IST zum Stellen-SOLL per II. Quart. | AL37: =IFERROR(Q2IstNpp/Q2StelSollNpp,0) -> 0
D39: Stellen-SOLL (nur pädagogische Leitung) | S39: bis zum II. Quartal | T39: =ROUND((Q1SollLtgStel+Q2SollLtgStel)/2,4) -> 0
D41: tatsächliche Stellen-IST (nur PL) | S41: bis zum II. Quartal | T41: =Q2DsIstLtgStellen -> 0
D43: anerk. Stellen pädagogische Leitung | S43: bis zum II. Quartal | T43: =IF(T41>T39,T39,T41) -> 0
B46: Ø Jahrespersonalkostensatz notw. Päd. Pers. ohne PL 100% (€) | M46: 0 | AD46: Ø Jahrespersonalkostensatz Päd. Ltg. 100% (€) | AE46: 0
B47: Hinweis: Hier gem. § 16 Abs. 2 KitaG als Bemessungsgröße die Durchschnittssätze der jeweils gültigen Vergütungsregeleung eingeben (kann quartalsweise überschrieben werden).
B48: Zuschuss für das päd. Pers. Im Altersbereich Kinderkrippe per II. Quartal | AL48: =CONCATENATE("im II. Quartal ",TEXT(KripQ2FinanzFakt*100,"#0,0"),"% ","der Personalkosten ") -> im II. Quartal 88,6% der Personalkosten | AN48: =IFERROR(ROUND((Q2anerkanntStellenKrip*Q2DsKripFinanzFakt*Q2NppWert*2/4),2),0) -> 0
B49: Zuschuss für das päd. Pers. Im Altersbereich Kindergarten per II. Quartal | AL49: =CONCATENATE("im II. Quartal ",TEXT(Q1KigaFinanzFakt*100,"#0,0"),"% ","der Personalkosten ") -> im II. Quartal 86,4% der Personalkosten | AN49: =IFERROR(ROUND((Q2anerkanntStelKiga*Q2DsKigaFinanzFakt*Q2NppWert*2/4),2),0) -> 0
B50: Zuschuss für das päd. Pers. Im Altersbereich Kinderhort per II. Quartal | AL50: =CONCATENATE("im II. Quartal ",TEXT(Q2HortFinanzFakt*100,"#0,0"),"% ","der Personalkosten ") -> im II. Quartal 84,0% der Personalkosten | AN50: =IFERROR(ROUND((Q2anerkanntStelHort*Q2DsHortFinanzFakt*Q2NppWert*2/4),2),0) -> 0
B52: =IF(intAntragsJahr>=2017,"Ausgleichsbetrag gem. § 3 Abs. 1 KitaLAV für den Leitungssockel in Höhe von 0,0625 Stellen ","") -> Ausgleichsbetrag gem. § 3 Abs. 1 KitaLAV für den Leitungssockel in Höhe von 0,0625 Stellen | AL52: =IF(intAntragsJahr>=2017,"im II. Quartal Leitungssockel-Ausgleichsbetrag","") -> im II. Quartal Leitungssockel-Ausgleichsbetrag | AN52: =LtgSockelBetragQ1+LtgSockelBetragQ2 -> 0
B53: Zuschuss für die Pädagogische Leitung | R53: =CONCATENATE("PL I. Quartal ",TEXT(Q1DsLtgFinanzFakt*100,"#0,0"),"% ","der Personalkosten ") -> PL I. Quartal 84,0% der Personalkosten | AL53: =CONCATENATE(" + PL nur II. Quartal ",TEXT(LtgQ2FinanzFakt*100,"#0,0"),"% ","der Personalkosten ") -> + PL nur II. Quartal 84,0% der Personalkosten | AN53: =ROUND(Q2PlWert*(Q2anerkStelPl-LtgStellSockelAbzugQ2)*Q2DsLtgFinanzFakt*2/4,2) -> 0
B54: Summe der Zuschüsse für das päd. Personal einschl. PL per II. Quartal | AN54: =SUM(AN48:AN53) -> 0
AL55: abzüglich bereits erhaltenem Zuschuss für I. Quartal | AN55: =Q1BruttoZuschuss -> 0
AL56: zu zahlender Zuschuss für II. Quartal | AN56: =Q2BruttoZuschuss-Q1BruttoZuschuss -> 0
B57: =IF(Q2SumKinder>Q2Kapaz,"ACHTUNG!!! Im II. Quartal wurde die Gesamtkapazität","Der Träger versichert, dass sowohl die Gesamtkapazität als auch evtl.") -> Der Träger versichert, dass sowohl die Gesamtkapazität als auch evtl.
B58: =IF(Q2SumKinder>Q2Kapaz,"der Einrichtung lt. Betriebserlaubnis nicht eingehalten!","Teilkapazitäten für spezifische Altersbereiche eingehalten wurden.") -> Teilkapazitäten für spezifische Altersbereiche eingehalten wurden.
O59: Rechtsverbindliche Unterschrift des Trägers für die Richtigkeit der vorstehend gemachten Angaben

Sheet QUART III
B2: =CONCATENATE("Personalbe- und abrechnungsdatei Land Brandenburg ",TEXT(J8,),". Quartal ",TEXT(intAntragsJahr," 0000")) -> Personalbe- und abrechnungsdatei Land Brandenburg III. Quartal 2020 | AN2: =VersionsAnzeige -> Programmversion 2020.1.0.1 - Stand: 24.11.2020
C4: Antragsteller (Kitaträger) | D4: =strTraegerName -> 0 | V4: Kindertagesstätte | Y4: =strKitaName -> 0
C6: zuständig. Bearbeiter/in | D6: =strBearbeiter -> 0 | M6: Fon | N6: =strKitaTel -> 0 | U6: Fax | V6: =strTraegerFax -> 0 | AD6: E-Mail | AE6: =strTraegerEmail -> 0
C8: Antragsjahr | D8: =intAntragsJahr -> 2020 | H8: Quartal | J8: =ROMAN(3) -> III | P8: mit Stichtag | Q8: =strStischtagQ3 -> 01.06.2020 | AD8: Gesamtkapazität der Einrichtung | AE8: 0 | AM8: Bearbeitungsdatum
B10: ='QUART I'!B10:C10 -> Leitungssockel ab Oktober 2017 | D10: ='QUART I'!D10:P10 -> Anzahl der in 2019 im Jahres-Ø betreuten Kinder | Q10: ='QUART I'!Q10:R10 -> 0 | U10: ='QUART I'!U10:AM10 -> vom MBJS gem. § 3 Abs. 1 KitaLAV festgelegter Jahresbetrag (VZÄ) | AN10: =LtgSockelBetrag -> 0
B13: Stellen-SOLL gem. § 10 KitaG | D13: =CONCATENATE("Kinderzahlen 01.12.",Jahr-1) -> Kinderzahlen 01.12.2019 | J13: VbE | M13: =CONCATENATE("Kinderzahlen 01.03.",Jahr) -> Kinderzahlen 01.03.2020 | S13: VbE | V13: =CONCATENATE("Kinderzahlen 01.06.",Jahr) -> Kinderzahlen 01.06.2020 | AB13: VbE | AN13: =CONCATENATE("Jahr ",Jahr," ","I.-III. Quartal") -> Jahr 2020 I.-III. Quartal
B14: Krippenkinder über 6 Std. | D14: ='QUART I'!D14:G14 -> 0 | H14: =Q1_key_Kr_ueb_6 -> 0.2 | J14: =ROUND(D14*Q1_key_Kr_ueb_6,3) -> 0 | M14: ='QUART II'!M14:P14 -> 0 | Q14: =Q2_key_Kr_ueb_6 -> 0.2 | S14: =ROUND(M14*Q2_key_Kr_ueb_6,3) -> 0 | V14: 0 | Z14: =Q3_key_Kr_ueb_6 -> 0.2 | AB14: =ROUND(V14*Q3_key_Kr_ueb_6,3) -> 0 | AN14: =ROUND((J14+S14+AB14)/3,3) -> 0
B15: Krippenkinder bis 6 Stunden | D15: ='QUART I'!D15:G15 -> 0 | H15: =Q1_key_Kr_bis_6 -> 0.16 | J15: =ROUND(D15*Q1_key_Kr_bis_6,3) -> 0 | M15: ='QUART II'!M15:P15 -> 0 | Q15: =Q2_key_Kr_bis_6 -> 0.16 | S15: =ROUND(M15*Q2_key_Kr_bis_6,3) -> 0 | V15: 0 | Z15: =Q3_key_Kr_bis_6 -> 0.16 | AB15: =ROUND(V15*Q3_key_Kr_bis_6,3) -> 0 | AN15: =ROUND((J15+S15+AB15+AK15)/3,3) -> 0
B16: Summe Krippenkinder | D16: =SUM(D14:D15) -> 0 | J16: =SUM(J14:J15) -> 0 | M16: =SUM(M14:M15) -> 0 | S16: =SUM(S14:S15) -> 0 | V16: =SUM(V14:V15) -> 0 | AB16: =SUM(AB14:AB15) -> 0 | AN16: =SUM(AN14:AN15) -> 0 | AP16: =AN14+AN15 -> 0
B18: Kindergartenkinder über 6 Std. | D18: ='QUART I'!D18:G18 -> 0 | H18: =Q1_key_Kg_ueb_6 -> 0.09090909091 | J18: =ROUND(D18*Q1_key_Kg_ueb_6,3) -> 0 | M18: ='QUART II'!M18:P18 -> 0 | Q18: =Q2_key_Kg_ueb_6 -> 0.09090909091 | S18: =ROUND(M18*Q2_key_Kg_ueb_6,3) -> 0 | V18: 0 | Z18: =Q3_key_Kg_ueb_6 -> 0.09696969697 | AB18: =ROUND(V18*Q3_key_Kg_ueb_6,3) -> 0 | AN18: =ROUND((J18+S18+AB18)/3,3) -> 0
B19: Kindergartenkinder bis 6 Stunden | D19: ='QUART I'!D19:G19 -> 0 | H19: =Q1_key_Kg_bis_6 -> 0.07272727273 | J19: =ROUND(D19*Q1_key_Kg_bis_6,3) -> 0 | M19: ='QUART II'!M19:P19 -> 0 | Q19: =Q2_key_Kg_bis_6 -> 0.07272727273 | S19: =ROUND(M19*Q2_key_Kg_bis_6,3) -> 0 | V19: 0 | Z19: =Q3_key_Kg_bis_6 -> 0.07757575758 | AB19: =ROUND(V19*Q3_key_Kg_bis_6,3) -> 0 | AN19: =ROUND((J19+S19+AB19)/3,3) -> 0
B20: Summe Kindergartenkinder | D20: =SUM(D18:D19) -> 0 | J20: =SUM(J18:J19) -> 0 | M20: =SUM(M18:M19) -> 0 | S20: =SUM(S18:S19) -> 0 | V20: =SUM(V18:V19) -> 0 | AB20: =SUM(AB18:AB19) -> 0 | AN20: =SUM(AN18:AN19) -> 0 | AP20: =AN18+AN19 -> 0 | AS20: =IF((AN30<AN28),AN28-AN30,0) -> 0 | AU20: =AN16/AN28 -> 
B22: HortKinder über 4 Std. | D22: ='QUART I'!D22:G22 -> 0 | H22: =Q1_key_Ho_ueb_4 -> 0.05333333333 | J22: =ROUND(D22*Q1_key_Ho_ueb_4,3) -> 0 | M22: ='QUART II'!M22:P22 -> 0 | Q22: =Q2_key_Ho_ueb_4 -> 0.05333333333 | S22: =ROUND(M22*Q2_key_Ho_ueb_4,3) -> 0 | V22: 0 | Z22: =Q3_key_Ho_ueb_4 -> 0.05333333333 | AB22: =ROUND(V22*Q3_key_Ho_ueb_4,3) -> 0 | AN22: =ROUND((J22+S22+AB22)/3,3) -> 0 | AU22: =AN20/AN28 -> 
B23: Hortkinder bis 4 Stunden | D23: ='QUART I'!D23:G23 -> 0 | H23: =Q1_key_Ho_bis_4 -> 0.04 | J23: =ROUND(D23*Q1_key_Ho_bis_4,3) -> 0 | M23: ='QUART II'!M23:P23 -> 0 | Q23: =Q2_key_Ho_bis_4 -> 0.04 | S23: =ROUND(M23*Q2_key_Ho_bis_4,3) -> 0 | V23: 0 | Z23: =Q3_key_Ho_bis_4 -> 0.04 | AB23: =ROUND(V23*Q3_key_Ho_bis_4,3) -> 0 | AN23: =ROUND((J23+S23+AB23)/3,3) -> 0 | AU23: =AN24/AN28 -> 
B24: Summe Hortkinder | D24: =SUM(D22:D23) -> 0 | J24: =SUM(J22:J23) -> 0 | M24: =SUM(M22:M23) -> 0 | S24: =SUM(S22:S23) -> 0 | V24: =SUM(V22:V23) -> 0 | AB24: =SUM(AB22:AB23) -> 0 | AN24: =SUM(AN22:AN23) -> 0 | AP24: =AN23+AN22 -> 0 | AU24: =SUM(AU20:AU23) -> 
B26: Summe aller Kinder | D26: =D16+D20+D24 -> 0 | J26: =J16+J20+J24 -> 0 | M26: =M16+M20+M24 -> 0 | S26: =S16+S20+S24 -> 0 | V26: =V16+V20+V24 -> 0 | AB26: =AB16+AB20+AB24 -> 0 | AP26: =SUM(AP16:AP24) -> 0
AM28: Stellen-Soll (ohne pädagogische Leitung) per III. Quartal | AN28: =AN16+AN20+AN24 -> 0 | AT28: anerk. Krip. | AU28: =ROUND(AN16-(AS20*AU20),5) -> 
AM30: Stellen-Ist (ohne PL) per III. Quartal | AN30: =Q3DsIstStellen -> 0 | AT30: anerk. Kiga | AU30: =ROUND(AN20-(AU22*AS20),5) -> 
AN31: 6.1
AM32: anerkannte Stellen ohne PL (Soll, höchstens aber ist) per III. Quartal | AN32: =IF(AN30>AN28,AN28,AN30) -> 0 | AT32: anerk. Hort | AU32: =ROUND(AN24-(AU23*AS20),5) -> 
B34: Angabe der Stellenanteile (VbE) mit 3 Dezimalstellen | H34: I. Quart. | L34: II. Quart. | P34: III. Quart. | Y34: dav. anerkannte Stellen im Altersbereich Kinderkrippe | AN34: =IFERROR(Q3anerkanntStellenKrip,0) -> 0 | AU34: =SUM(AU28:AU32) -> 
B35: informativ f. PL-Berechnung: bes. Förderbedarf | H35: =Q1sonstStellLtg -> 0 | L35: =Q2sonstStellLtg -> 0 | P35: 0 | Y35: dav. anerkannte Stellen im Altersbereich Kindergarten | AN35: =IFERROR(Q3anerkanntStelKiga,0) -> 0
B36: Basiswert f. Berechnung des PL-Stellenanteils | H36: =Q1BasisWertLtg -> 0 | L36: =Q2BasisWertLtg -> 0 | P36: =NurSollNppQ3+Q3sonstStellLtg -> 0 | Y36: dav. anerkannte Stellen im Altersbereich Kinderhort | AN36: =IFERROR(Q3anerkanntStelHort,0) -> 0
B37: ='QUART I'!B37 -> PL gem. § 5 KitaPersV ab 10/17 mit 0,0625 Sockel | H37: =Q1SollLtgStel -> 0 | L37: =Q2SollLtgStel -> 0 | P37: =IF(AND(Q3BasisWertLtg<=4,Q3BasisWertLtg>0),LtgBis4Q3,IF(AND(Q3BasisWertLtg<=10,Q3BasisWertLtg>0),LtgGr4Bis10Q3,IF(AND(Q3BasisWertLtg<=15,Q3BasisWertLtg>0),LtgGr10Bis15Q3,IF(AND(Q3BasisWertLtg>15,Q3BasisWertLtg>0),LtgGr15Q3,0)))) -> 0 | W37: Verhältnis Stellen-IST zum Stellen-SOLL per III. Quart. | AL37: =IFERROR(Q3IstNpp/Q3StelSollNpp,0) -> 0
D39: Stellen-SOLL (nur pädagogische Leitung) | S39: bis zum III. Quartal | T39: =ROUND((Q1SollLtgStel+Q2SollLtgStel+Q3SollLtgStel)/3,4) -> 0
D41: tatsächliche Stellen-IST (nur PL) | S41: bis zum III. Quartal | T41: =Q3DsIstLtgStellen -> 0
D43: anerk. Stellen pädagogische Leitung | S43: bis zum III. Quartal | T43: =IF(T41>T39,T39,T41) -> 0
B46: Ø Jahrespersonalkostensatz notw. Päd. Pers. ohne PL 100% (€) | M46: 0 | AD46: Ø Jahrespersonalkostensatz Päd. Ltg. 100% (€) | AE46: 0
B47: Hinweis: Hier gem. § 16 Abs. 2 KitaG als Bemessungsgröße die Durchschnittssätze der jeweils gültigen Vergütungsregeleung eingeben (kann quartalsweise überschrieben werden).
B48: Zuschuss für das päd. Pers. Im Altersbereich Kinderkrippe per III. Quartal | AL48: =CONCATENATE("im III. Quartal ",TEXT(KripQ3FinanzFakt*100,"#0,0"),"% ","der Personalkosten ") -> im III. Quartal 88,6% der Personalkosten | AN48: =IFERROR(ROUND(Q3anerkanntStellenKrip*Q3DsKripFinanzFakt*Q3NppWert*3/4,2),0) -> 0
B49: Zuschuss für das päd. Pers. Im Altersbereich Kindergarten per III. Quartal | AL49: =CONCATENATE("im III. Quartal ",TEXT(KigaQ3FinanzFakt*100,"#0,0"),"% ","der Personalkosten ") -> im III. Quartal 87,2% der Personalkosten | AN49: =IFERROR(ROUND(Q3anerkanntStelKiga*Q3DsKigaFinanzFakt*Q3NppWert*3/4,2),0) -> 0
B50: Zuschuss für das päd. Pers. Im Altersbereich Kinderhort per III. Quartal | AL50: =CONCATENATE("im III. Quartal ",TEXT(HortQ3FinanzFakt*100,"#0,0"),"% ","der Personalkosten ") -> im III. Quartal 84,0% der Personalkosten | AN50: =IFERROR(ROUND(Q3anerkanntStelHort*Q3DsHortFinanzFakt*Q3NppWert*3/4,2),0) -> 0
B52: =IF(intAntragsJahr>=2017,"Ausgleichsbetrag gem. § 3 Abs. 1 KitaLAV für den Leitungssockel in Höhe von 0,0625 Stellen ","") -> Ausgleichsbetrag gem. § 3 Abs. 1 KitaLAV für den Leitungssockel in Höhe von 0,0625 Stellen | AL52: =IF(intAntragsJahr>=2017,"im III. Quartal Leitungssockel-Ausgleichsbetrag","") -> im III. Quartal Leitungssockel-Ausgleichsbetrag | AN52: =LtgSockelBetragQ1+LtgSockelBetragQ2+LtgSockelBetragQ3 -> 0
B53: Zuschuss für die Pädagogische Leitung | AL53: =CONCATENATE("im III. Quartal ",TEXT(LtgQ3FinanzFakt*100,"#0,0"),"% ","der Personalkosten ") -> im III. Quartal 84,0% der Personalkosten | AN53: =ROUND(Q3PlWert*(Q3anerkStelPl-LtgStellSockelAbzugQ3)*Q3DsLtgFinanzFakt*3/4,2) -> 0
B54: Summe der Zuschüsse für das päd. Personal einschl. PL per III. Quartal | AN54: =SUM(AN48:AN53) -> 0
AL55: abzüglich bereits erhaltenem Zuschuss für die Quartale I und II | AN55: =Q2BruttoZuschuss -> 0
AL56: zu zahlender Zuschuss für III. Quartal | AN56: =Q3BruttoZuschuss-Q2BruttoZuschuss -> 0
B57: =IF(Q3SumKinder>Q3Kapaz,"ACHTUNG!!! Im III. Quartal wurde die Gesamtkapazität","Der Träger versichert, dass sowohl die Gesamtkapazität als auch evtl.") -> Der Träger versichert, dass sowohl die Gesamtkapazität als auch evtl.
B58: =IF(Q3SumKinder>Q3Kapaz,"der Einrichtung lt. Betriebserlaubnis nicht eingehalten!","Teilkapazitäten für spezifische Altersbereiche eingehalten wurden.") -> Teilkapazitäten für spezifische Altersbereiche eingehalten wurden.
O59: Rechtsverbindliche Unterschrift des Trägers für die Richtigkeit der vorstehend gemachten Angaben

Sheet QUART IV
B2: =CONCATENATE("Personalbe- und abrechnungsdatei Land Brandenburg ",TEXT(J8,),". Quartal ",TEXT(intAntragsJahr," 0000")) -> Personalbe- und abrechnungsdatei Land Brandenburg IV. Quartal 2020 | AN2: =VersionsAnzeige -> Programmversion 2020.1.0.1 - Stand: 24.11.2020
C4: Antragsteller (Kitaträger) | D4: =strTraegerName -> 0 | V4: Kindertagesstätte | Y4: =strKitaName -> 0
C6: zuständig. Bearbeiter/in | D6: =strBearbeiter -> 0 | M6: Fon | N6: =strKitaTel -> 0 | U6: Fax | V6: =strTraegerFax -> 0 | AD6: E-Mail | AE6: =strTraegerEmail -> 0
C8: Antragsjahr | D8: =intAntragsJahr -> 2020 | H8: Quartal | J8: =ROMAN(4) -> IV | P8: mit Stichtag | Q8: =strStischtagQ4 -> 01.09.2020 | AD8: Gesamtkapazität der Einrichtung | AE8: 0 | AM8: Bearbeitungsdatum
B10: ='QUART I'!B10:C10 -> Leitungssockel ab Oktober 2017 | D10: ='QUART I'!D10:P10 -> Anzahl der in 2019 im Jahres-Ø betreuten Kinder | Q10: ='QUART I'!Q10:R10 -> 0 | U10: ='QUART I'!U10:AM10 -> vom MBJS gem. § 3 Abs. 1 KitaLAV festgelegter Jahresbetrag (VZÄ) | AN10: =LtgSockelBetrag -> 0
B13: Stellen-SOLL gem. § 10 KitaG | D13: =CONCATENATE("Kinderzahlen 01.12.",Jahr-1) -> Kinderzahlen 01.12.2019 | J13: VbE | M13: =CONCATENATE("Kinderzahlen 01.03.",Jahr) -> Kinderzahlen 01.03.2020 | S13: VbE | V13: =CONCATENATE("Kinderzahlen 01.06.",Jahr) -> Kinderzahlen 01.06.2020 | AB13: VbE | AE13: =CONCATENATE("Kinderzahlen 01.09.",Jahr) -> Kinderzahlen 01.09.2020 | AK13: VbE | AN13: =CONCATENATE("Jahr ",Jahr," ","I.-IV. Quartal") -> Jahr 2020 I.-IV. Quartal
B14: Krippenkinder über 6 Std. | D14: ='QUART I'!D14:G14 -> 0 | H14: =Q1_key_Kr_ueb_6 -> 0.2 | J14: =ROUND(D14*Q1_key_Kr_ueb_6,3) -> 0 | M14: ='QUART II'!M14:P14 -> 0 | Q14: =Q2_key_Kr_ueb_6 -> 0.2 | S14: =ROUND(M14*Q2_key_Kr_ueb_6,3) -> 0 | V14: ='QUART III'!V14:Y14 -> 0 | Z14: =Q3_key_Kr_ueb_6 -> 0.2 | AB14: =ROUND(V14*Q3_key_Kr_ueb_6,3) -> 0 | AE14: 0 | AI14: =Q4_key_Kr_ueb_6 -> 0.2 | AK14: =ROUND(AE14*Q4_key_Kr_ueb_6,3) -> 0 | AN14: =ROUND((J14+S14+AB14+AK14)/4,3) -> 0
B15: Krippenkinder bis 6 Stunden | D15: ='QUART I'!D15:G15 -> 0 | H15: =Q1_key_Kr_bis_6 -> 0.16 | J15: =ROUND(D15*Q1_key_Kr_bis_6,3) -> 0 | M15: ='QUART II'!M15:P15 -> 0 | Q15: =Q2_key_Kr_bis_6 -> 0.16 | S15: =ROUND(M15*Q2_key_Kr_bis_6,3) -> 0 | V15: ='QUART III'!V15:Y15 -> 0 | Z15: =Q3_key_Kr_bis_6 -> 0.16 | AB15: =ROUND(V15*Q3_key_Kr_bis_6,3) -> 0 | AE15: 0 | AI15: =Q4_key_Kr_bis_6 -> 0.16 | AK15: =ROUND(AE15*Q4_key_Kr_bis_6,3) -> 0 | AN15: =ROUND((J15+S15+AB15+AK15)/4,3) -> 0
B16: Summe Krippenkinder | D16: =SUM(D14:D15) -> 0 | J16: =SUM(J14:J15) -> 0 | M16: =SUM(M14:M15) -> 0 | S16: =SUM(S14:S15) -> 0 | V16: =SUM(V14:V15) -> 0 | AB16: =SUM(AB14:AB15) -> 0 | AE16: =SUM(AE14:AE15) -> 0 | AK16: =SUM(AK14:AK15) -> 0 | AN16: =SUM(AN14:AN15) -> 0 | AP16: =AN14+AN15 -> 0
B18: Kindergartenkinder über 6 Std. | D18: ='QUART I'!D18:G18 -> 0 | H18: =Q1_key_Kg_ueb_6 -> 0.09090909091 | J18: =ROUND(D18*Q1_key_Kg_ueb_6,3) -> 0 | M18: ='QUART II'!M18:P18 -> 0 | Q18: =Q2_key_Kg_ueb_6 -> 0.09090909091 | S18: =ROUND(M18*Q2_key_Kg_ueb_6,3) -> 0 | V18: ='QUART III'!V18:Y18 -> 0 | Z18: =Q3_key_Kg_ueb_6 -> 0.09696969697 | AB18: =ROUND(V18*Q3_key_Kg_ueb_6,3) -> 0 | AE18: 0 | AI18: =Q4_key_Kg_ueb_6 -> 0.1 | AK18: =ROUND(AE18*Q4_key_Kg_ueb_6,3) -> 0 | AN18: =ROUND((J18+S18+AB18+AK18)/4,3) -> 0
B19: Kindergartenkinder bis 6 Stunden | D19: ='QUART I'!D19:G19 -> 0 | H19: =Q1_key_Kg_bis_6 -> 0.07272727273 | J19: =ROUND(D19*Q1_key_Kg_bis_6,3) -> 0 | M19: ='QUART II'!M19:P19 -> 0 | Q19: =Q2_key_Kg_bis_6 -> 0.07272727273 | S19: =ROUND(M19*Q2_key_Kg_bis_6,3) -> 0 | V19: ='QUART III'!V19:Y19 -> 0 | Z19: =Q3_key_Kg_bis_6 -> 0.07757575758 | AB19: =ROUND(V19*Q3_key_Kg_bis_6,3) -> 0 | AE19: 0 | AI19: =Q4_key_Kg_bis_6 -> 0.08 | AK19: =ROUND(AE19*Q4_key_Kg_bis_6,3) -> 0 | AN19: =ROUND((J19+S19+AB19+AK19)/4,3) -> 0
B20: Summe Kindergartenkinder | D20: =SUM(D18:D19) -> 0 | J20: =SUM(J18:J19) -> 0 | M20: =SUM(M18:M19) -> 0 | S20: =SUM(S18:S19) -> 0 | V20: =SUM(V18:V19) -> 0 | AB20: =SUM(AB18:AB19) -> 0 | AE20: =SUM(AE18:AE19) -> 0 | AK20: =SUM(AK18:AK19) -> 0 | AN20: =SUM(AN18:AN19) -> 0 | AP20: =AN18+AN19 -> 0 | AS20: =IF((AN30<AN28),AN28-AN30,0) -> 0 | AU20: =AN16/AN28 -> 
B22: HortKinder über 4 Std. | D22: ='QUART I'!D22:G22 -> 0 | H22: =Q1_key_Ho_ueb_4 -> 0.05333333333 | J22: =ROUND(D22*Q1_key_Ho_ueb_4,3) -> 0 | M22: ='QUART II'!M22:P22 -> 0 | Q22: =Q2_key_Ho_ueb_4 -> 0.05333333333 | S22: =ROUND(M22*Q2_key_Ho_ueb_4,3) -> 0 | V22: ='QUART III'!V22:Y22 -> 0 | Z22: =Q3_key_Ho_ueb_4 -> 0.05333333333 | AB22: =ROUND(V22*Q3_key_Ho_ueb_4,3) -> 0 | AE22: 0 | AI22: =Q4_key_Ho_ueb_4 -> 0.05333333333 | AK22: =ROUND(AE22*Q4_key_Ho_ueb_4,3) -> 0 | AN22: =ROUND((J22+S22+AB22+AK22)/4,3) -> 0 | AU22: =AN20/AN28 -> 
B23: Hortkinder bis 4 Stunden | D23: ='QUART I'!D23:G23 -> 0 | H23: =Q1_key_Ho_bis_4 -> 0.04 | J23: =ROUND(D23*Q1_key_Ho_bis_4,3) -> 0 | M23: ='QUART II'!M23:P23 -> 0 | Q23: =Q2_key_Ho_bis_4 -> 0.04 | S23: =ROUND(M23*Q2_key_Ho_bis_4,3) -> 0 | V23: ='QUART III'!V23:Y23 -> 0 | Z23: =Q3_key_Ho_bis_4 -> 0.04 | AB23: =ROUND(V23*Q3_key_Ho_bis_4,3) -> 0 | AE23: 0 | AI23: =Q4_key_Ho_bis_4 -> 0.04 | AK23: =ROUND(AE23*Q4_key_Ho_bis_4,3) -> 0 | AN23: =ROUND((J23+S23+AB23+AK23)/4,3) -> 0 | AU23: =AN24/AN28 -> 
B24: Summe Hortkinder | D24: =SUM(D22:D23) -> 0 | J24: =SUM(J22:J23) -> 0 | M24: =SUM(M22:M23) -> 0 | S24: =SUM(S22:S23) -> 0 | V24: =SUM(V22:V23) -> 0 | AB24: =SUM(AB22:AB23) -> 0 | AE24: =SUM(AE22:AE23) -> 0 | AK24: =SUM(AK22:AK23) -> 0 | AN24: =SUM(AN22:AN23) -> 0 | AP24: =AN23+AN22 -> 0 | AU24: =SUM(AU20:AU23) -> 
B26: Summe aller Kinder | D26: =D16+D20+D24 -> 0 | J26: =J16+J20+J24 -> 0 | M26: =M16+M20+M24 -> 0 | S26: =S16+S20+S24 -> 0 | V26: =V16+V20+V24 -> 0 | AB26: =AB16+AB20+AB24 -> 0 | AE26: =AE16+AE20+AE24 -> 0 | AK26: =AK16+AK20+AK24 -> 0 | AP26: =SUM(AP16:AP24) -> 0
AM28: Stellen-Soll (ohne pädagogische Leitung) per IV. Quartal | AN28: =AN16+AN20+AN24 -> 0 | AT28: anerk. Krip. | AU28: =ROUND(AN16-(AS20*AU20),3) -> 
AM30: Stellen-Ist (ohne PL) per IV. Quartal | AN30: =Q4DsIstStellen -> 0 | AR30: =_xlfn.FORMULATEXT(Q4IstNpp) -> =Q4DsIstStellen | AT30: anerk. Kiga | AU30: =ROUND(AN20-(AU22*AS20),3) -> 
AN31: 6.1
AM32: anerkannte Stellen ohne PL (Soll, höchstens aber ist) per IV. Quartal | AN32: =IF(AN30>AN28,AN28,AN30) -> 0 | AT32: anerk. Hort | AU32: =ROUND(AN24-(AU23*AS20),3) -> 
B34: Angabe der Stellenanteile (VbE) mit 3 Dezimalstellen | H34: I. Quart. | L34: II. Quart. | P34: III. Quart. | T34: IV. Quart. | Y34: dav. anerkannte Stellen im Altersbereich Kinderkrippe | AN34: =IFERROR(Q4anerkanntStellenKrip,0) -> 0 | AU34: =SUM(AU28:AU32) -> 
B35: informativ f. PL-Berechnung: bes. Förderbedarf | H35: =Q1sonstStellLtg -> 0 | L35: =Q2sonstStellLtg -> 0 | P35: =Q3sonstStellLtg -> 0 | T35: 0 | Y35: dav. anerkannte Stellen im Altersbereich Kindergarten | AN35: =IFERROR(Q4anerkanntStelKiga,0) -> 0
B36: Basiswert f. Berechnung des PL-Stellenanteils | H36: =Q1BasisWertLtg -> 0 | L36: =Q2BasisWertLtg -> 0 | P36: =Q3BasisWertLtg -> 0 | T36: =NurQ4SollNpp+Q4sonstStellLtg -> 0 | Y36: dav. anerkannte Stellen im Altersbereich Kinderhort | AN36: =IFERROR(Q4anerkanntStelHort,0) -> 0
B37: ='QUART I'!B37 -> PL gem. § 5 KitaPersV ab 10/17 mit 0,0625 Sockel | H37: =Q1SollLtgStel -> 0 | L37: =Q2SollLtgStel -> 0 | P37: =Q3SollLtgStel -> 0 | T37: =IF(AND(BasisWertpLq4<=4,BasisWertpLq4>0),LtgBis4Q4,IF(AND(BasisWertpLq4<=10,BasisWertpLq4>0),LtgGr4Bis10Q4,IF(AND(BasisWertpLq4<=15,BasisWertpLq4>0),LtgGr10Bis15Q4,IF(AND(BasisWertpLq4>15,BasisWertpLq4>0),LtgGr15Q4,0)))) -> 0 | W37: Verhältnis Stellen-IST zum Stellen-SOLL per IV. Quart. | AL37: =IFERROR(Q4IstNpp/Q4StelSollNpp,0) -> 0 | AN37: =SUM(AN34:AN36) -> 0
D39: Stellen-SOLL (nur pädagogische Leitung) | S39: bis zum IV. Quartal | T39: =ROUND((Q1SollLtgStel+Q2SollLtgStel+Q3SollLtgStel+Q4SollLtgStel)/4,4) -> 0
D41: tatsächliche Stellen-IST (nur PL) | S41: bis zum IV. Quartal | T41: =Q4DsIstLtgStellen -> 0
D43: anerk. Stellen pädagogische Leitung | S43: bis zum IV. Quartal | T43: =IF(T41>T39,T39,T41) -> 0 | AU43: =_xlfn.FORMULATEXT(Q4IstNpp) -> =Q4DsIstStellen
B46: Ø Jahrespersonalkostensatz notw. Päd. Pers. ohne PL 100% (€) | M46: 0 | AD46: Ø Jahrespersonalkostensatz Päd. Ltg. 100% (€) | AE46: 0
B47: Hinweis: Hier gem. § 16 Abs. 2 KitaG als Bemessungsgröße die Durchschnittssätze der jeweils gültigen Vergütungsregeleung eingeben (kann quartalsweise überschrieben werden). | AU47: =IF(_xlfn.ISFORMULA(Q4IstNpp),TRUE,FALSE) -> TRUE
B48: Zuschuss für das päd. Pers. Im Altersbereich Kinderkrippe per IV. Quartal | AL48: =CONCATENATE("im IV. Quartal ",TEXT(KripQ4FinanzFakt*100,"#0,0"),"% ","der Personalkosten ") -> im IV. Quartal 88,6% der Personalkosten | AN48: =IFERROR(ROUND(Q4anerkanntStellenKrip*Q4DsKripFinanzFakt*Q4NppWert,2),0) -> 0
B49: Zuschuss für das päd. Pers. Im Altersbereich Kindergarten per IV. Quartal | AL49: =CONCATENATE("im IV. Quartal ",TEXT(KigaQ4FinanzFakt*100,"#0,0"),"% ","der Personalkosten ") -> im IV. Quartal 87,6% der Personalkosten | AN49: =IFERROR(ROUND(Q4anerkanntStelKiga*Q4DsKigaFinanzFakt*Q4NppWert,2),0) -> 0 | AU49: =ISERROR(AU47) -> FALSE
B50: Zuschuss für das päd. Pers. Im Altersbereich Kinderhort per IV. Quartal | AL50: =CONCATENATE("im IV. Quartal ",TEXT(HortQ4FinanzFakt*100,"#0,0"),"% ","der Personalkosten ") -> im IV. Quartal 84,0% der Personalkosten | AN50: =IFERROR(ROUND(Q4anerkanntStelHort*Q4DsHortFinanzFakt*Q4NppWert,2),0) -> 0 | AR50: =Q4DsIstStellen -> 0
AU51: =TEXT(intAntragsJahr,"0000") -> 2020
B52: =IF(intAntragsJahr>=2017,"Ausgleichsbetrag gem. § 3 Abs. 1 KitaLAV für den Leitungssockel in Höhe von 0,0625 Stellen ","") -> Ausgleichsbetrag gem. § 3 Abs. 1 KitaLAV für den Leitungssockel in Höhe von 0,0625 Stellen | AL52: =IF(intAntragsJahr>=2017,"im IV. Quartal Leitungssockel-Ausgleichsbetrag","") -> im IV. Quartal Leitungssockel-Ausgleichsbetrag | AN52: =LtgSockelBetragQ1+LtgSockelBetragQ2+LtgSockelBetragQ3+LtgSockelBetragQ4 -> 0
B53: Zuschuss für die Pädagogische Leitung | AL53: =CONCATENATE("im IV. Quartal ",TEXT(LtgQ4FinanzFakt*100,"#0,0"),"% ","der Personalkosten ") -> im IV. Quartal 84,0% der Personalkosten | AN53: =ROUND(PlWertQ4*(Q4anerkStelPl-LtgStellSockelAbzugQ4)*Q4DsLtgFinanzFakt,2) -> 0
B54: Summe der Zuschüsse für das päd. Personal einschl. PL per IV. Quartal | AN54: =SUM(AN48:AN53) -> 0 | AU54: =TEXT(J8,) -> IV
AL55: abzüglich bereits erhaltenem Zuschuss für die Quartale I, II und III | AN55: =Q3BruttoZuschuss -> 0
AL56: zu zahlender Zuschuss für IV. Quartal | AN56: =Q4BruttoZuschuss-AN55 -> 0
B57: =IF(Q4SumKinder>Q4Kapaz,"ACHTUNG!!! Im IV. Quartal wurde die Gesamtkapazität","Der Träger versichert, dass sowohl die Gesamtkapazität als auch evtl.") -> Der Träger versichert, dass sowohl die Gesamtkapazität als auch evtl.
B58: =IF(Q4SumKinder>Q4Kapaz,"der Einrichtung lt. Betriebserlaubnis nicht eingehalten!","Teilkapazitäten für spezifische Altersbereiche eingehalten wurden.") -> Teilkapazitäten für spezifische Altersbereiche eingehalten wurden.
O59: Rechtsverbindliche Unterschrift des Trägers für die Richtigkeit der vorstehend gemachten Angaben

Sheet Para10KitaPersV (hidden)
B2: JahresIndex | C2: WertBisAug | D2: WertAbAug
B3: 201600 | C3: 1 | D3: 1
B4: 201601 | C4: 0.7 | D4: 0.7
B5: 201602 | C5: 0.7 | D5: 0.7
B6: 201603 | C6: 0.7 | D6: 0.7
B7: 201604 | C7: 0.7 | D7: 0.7
B8: 201605 | C8: 0.7 | D8: 0.7
B9: 201700 | C9: 1 | D9: 1
B10: 201701 | C10: 0.7 | D10: 0.8
B11: 201702 | C11: 0.7 | D11: 0.7
B12: 201703 | C12: 0.7 | D12: 1
B13: 201704 | C13: 0.7 | D13: 0.7
B14: 201705 | C14: 0.7 | D14: 0.7
B15: 201800 | C15: 1 | D15: 1
B16: 201801 | C16: 0.8 | D16: 0.8
B17: 201802 | C17: 0.7 | D17: 0.7
B18: 201803 | C18: 1 | D18: 1
B19: 201804 | C19: 0.7 | D19: 0.7
B20: 201805 | C20: 0.7 | D20: 0.7

Sheet Personal
E1: Mitarbeiter auswählen: | H1: =Jahr -> 2020 | I1: 1 | J1: =IF(G2="Nein",INDEX(tabJahresPersonal[#All],NppSucher+1,1),"?????") -> ???? | K1: 1 | L1: Mausklick auf den Button links öffnet einen Eingabedialog zur Bearbeitung des pädagogischen Personals
E2: Neuen Mitarbeiter anlegen?: | F2: Nein | G2: Nein
X3: Mon01 | Y3: Mon02 | Z3: Mon03 | AA3: Mon04 | AB3: Mon05 | AC3: Mon06 | AD3: Mon07 | AE3: Mon08 | AF3: Mon09 | AG3: Mon10 | AH3: Mon11 | AI3: Mon12
W4: IstNurQart | Z4: =ROUND(AVERAGE(X6:Z6),3) -> 0 | AC4: =ROUND(AVERAGE(AA6:AC6),3) -> 0 | AF4: =ROUND(AVERAGE(AD6:AF6),3) -> 0 | AI4: =ROUND(AVERAGE(AG6:AI6),3) -> 0
W5: IstDSQart | Z5: =ROUND(AVERAGE(X6:Z6),3) -> 0 | AC5: =ROUND(AVERAGE(X6:AC6),3) -> 0 | AF5: =ROUND(AVERAGE(X6:AF6),3) -> 0 | AI5: =ROUND(AVERAGE(X6:AI6),3) -> 0
F6: Stel01 | G6: Stel02 | H6: Stel01 | I6: Stel02 | J6: Stel03 | K6: Stel04 | L6: Stel05 | M6: Stel06 | N6: Stel07 | O6: Stel08 | P6: Stel09 | Q6: Stel10 | R6: Stel11 | S6: Stel12 | T6: JahresStelle | W6: IstSumMon | X6: =DSUM(tabJahresPersonal[[#Headers],[#Data]],tabJahresPersonal[[#Headers],[Stel01]],SuchKrittabPersonal) -> 0 | Y6: =DSUM(tabJahresPersonal[[#Headers],[#Data]],tabJahresPersonal[[#Headers],[Stel02]],SuchKrittabPersonal) -> 0 | Z6: =DSUM(tabJahresPersonal[[#Headers],[#Data]],tabJahresPersonal[[#Headers],[Stel03]],SuchKrittabPersonal) -> 0 | AA6: =DSUM(tabJahresPersonal[[#Headers],[#Data]],tabJahresPersonal[[#Headers],[Stel04]],SuchKrittabPersonal) -> 0 | AB6: =DSUM(tabJahresPersonal[[#Headers],[#Data]],tabJahresPersonal[[#Headers],[Stel05]],SuchKrittabPersonal) -> 0 | AC6: =DSUM(tabJahresPersonal[[#Headers],[#Data]],tabJahresPersonal[[#Headers],[Stel06]],SuchKrittabPersonal) -> 0 | AD6: =DSUM(tabJahresPersonal[[#Headers],[#Data]],tabJahresPersonal[[#Headers],[Stel07]],SuchKrittabPersonal) -> 0 | AE6: =DSUM(tabJahresPersonal[[#Headers],[#Data]],tabJahresPersonal[[#Headers],[Stel08]],SuchKrittabPersonal) -> 0 | AF6: =DSUM(tabJahresPersonal[[#Headers],[#Data]],tabJahresPersonal[[#Headers],[Stel09]],SuchKrittabPersonal) -> 0 | AG6: =DSUM(tabJahresPersonal[[#Headers],[#Data]],tabJahresPersonal[[#Headers],[Stel10]],SuchKrittabPersonal) -> 0 | AH6: =DSUM(tabJahresPersonal[[#Headers],[#Data]],tabJahresPersonal[[#Headers],[Stel11]],SuchKrittabPersonal) -> 0 | AI6: =DSUM(tabJahresPersonal[[#Headers],[#Data]],tabJahresPersonal[[#Headers],[Stel12]],SuchKrittabPersonal) -> 0
X7: =DAVERAGE(tabJahresPersonal[[#Headers],[#Data]],tabJahresPersonal[[#Headers],[Stel01]],F6:T7) -> 0
X8: =DAVERAGE(tabJahresPersonal[[#Headers],[#Data]],tabJahresPersonal[[#Headers],[Stel01]],F6:T7) -> 0
B10: =CONCATENATE(" NPP-Controlling Land Brandenburg ","Angaben vom: ",IF(NppAnbtragsDatum>0,TEXT(NppAnbtragsDatum,"TT.MM.JJJJ"),""),", Antragsjahr: ",TEXT(intAntragsJahr," 0000")) -> NPP-Controlling Land Brandenburg Angaben vom: , Antragsjahr: 2020 | Q10: =VersionsAnzeige -> Programmversion 2020.1.0.1 - Stand: 24.11.2020
B12: Antragsteller (Kitaträger): | D12: ='QUART I'!D4:Q4 -> 0 | K12: Kindertagesstätte: | L12: =strKitaName -> 0
B14: zuständig. Bearbeiter/in: | D14: =strBearbeiter -> 0 | H14: Fon: | I14: =strKitaTel -> 0 | K14: Fax: | L14: =strTraegerFax -> 0 | N14: E-Mail | O14: =strTraegerEmail -> 0
B16: Antragsjahr: | D16: =intAntragsJahr -> 2020 | I16: Angaben zum Tarifvertrag: | P16: Bearbeitungsdatum:
D18: Separate Quartalsbetrachtung | H18: ø bis zum jeweiligen Quartal
D19: I. Quartal | E19: II. Quartal | F19: III. Quartal | G19: IV. Quartal | H19: I. Quartal | I19: II. Quartal | J19: III. Quartal | K19: IV. Quartal
B20: Übersicht Stellen-SOLL NPP | D20: =NurQ1SollNpp -> 0 | E20: =NurQ2SollNpp -> 0 | F20: =NurQ3SollNpp -> 0 | G20: =NurQ4SollNpp -> 0 | H20: =Q1SollNpp -> 0 | I20: =Q2StelSollNpp -> 0 | J20: =Q3StelSollNpp -> 0 | K20: =Q4StelSollNpp -> 0
B21: Übersicht Stellen-Ist NPP | D21: =NurQ1IstStellen -> 0 | E21: =NurQ2IstStellen -> 0 | F21: =NurQ3IstStellen -> 0 | G21: =NurQ4IstStellen -> 0 | H21: =Q1DsIstStellen -> 0 | I21: =Q2DsIstStellen -> 0 | J21: =Q3DsIstStellen -> 0 | K21: =Q4DsIstStellen -> 0 | L21: rechtsverbindl. Unterschrift des Trägers für die Richtigkeit der gemachten Angaben
B22: Differenz | D22: =(D20-D21)*-1 -> 0 | E22: =(E20-E21)*-1 -> 0 | F22: =(F20-F21)*-1 -> 0 | G22: =(G20-G21)*-1 -> 0 | H22: =(H20-H21)*-1 -> 0 | I22: 0 | J22: 0 | K22: 0 | L22: Name hier in Druckbuchstaben eintragen:
B24: Personal-Nummer | D24: Teil-Kraft? | E24: =CONCATENATE("Wochenstunden für das pädagogische Personal der einzelnen Monate im Antragsjahr: ",intAntragsJahr) -> Wochenstunden für das pädagogische Personal der einzelnen Monate im Antragsjahr: 2020 | Q24: ø Jahresstelle | R24: =CONCATENATE("Personalstelle für das pädagogische Personal der einzelnen Monate im Antragsjahr: ",intAntragsJahr) -> Personalstelle für das pädagogische Personal der einzelnen Monate im Antragsjahr: 2020 | AD24: ø Quartalsstellen
B25: Personal_Id | C25: IstP10_2b4 | D25: Ist§10(2b4) | E25: Ws1 | F25: Ws2 | G25: Ws3 | H25: Ws4 | I25: Ws5 | J25: Ws6 | K25: Ws7 | L25: Ws8 | M25: Ws9 | N25: Ws10 | O25: Ws11 | P25: Ws12 | Q25: JahresStelle | R25: Stel01 | S25: Stel02 | T25: Stel03 | U25: Stel04 | V25: Stel05 | W25: Stel06 | X25: Stel07 | Y25: Stel08 | Z25: Stel09 | AA25: Stel10 | AB25: Stel11 | AC25: Stel12 | AD25: StelQ1 | AE25: StelQ2 | AF25: StelQ3 | AG25: StelQ4 | AH25: JahresIstPK | AI25: P10Bis7 | AJ25: P10Ab8
B26: ???? | C26: 0 | D26: =IF(tabJahresPersonal[IstP10_2b4]=0,"nein",IF(tabJahresPersonal[IstP10_2b4]=1,"§ 10 (2) 70%/80%",IF(tabJahresPersonal[IstP10_2b4]=2,"§ 10 (3) 70%",IF(tabJahresPersonal[IstP10_2b4]=3,"§ 10 (4) 100%",IF(tabJahresPersonal[IstP10_2b4]=4,"§ 10 (4) 70%",IF(tabJahresPersonal[IstP10_2b4]=5,"§ 10 (2) 70%","")))))) -> nein | E26: 0 | F26: 0 | G26: 0 | H26: 0 | I26: 0 | J26: 0 | K26: 0 | L26: 0 | M26: 0 | N26: 0 | O26: 0 | P26: 0 | Q26: =ROUND(SUM(tabJahresPersonal[[#This Row],[Stel01]]:tabJahresPersonal[[#This Row],[Stel12]])/12,3) -> 0 | R26: =ROUND(E26*$AI26/Wochenarbeitszeit,3) -> 0 | S26: 0 | T26: 0 | U26: 0 | V26: 0 | W26: 0 | X26: 0 | Y26: =ROUND(L26*$AJ26/Wochenarbeitszeit,3) -> 0 | Z26: =ROUND(M26*$AJ26/Wochenarbeitszeit,3) -> 0 | AA26: =ROUND(N26*$AJ26/Wochenarbeitszeit,3) -> 0 | AB26: =ROUND(O26*$AJ26/Wochenarbeitszeit,3) -> 0 | AC26: =ROUND(P26*$AJ26/Wochenarbeitszeit,3) -> 0 | AD26: =ROUND((tabJahresPersonal[[#This Row],[Stel01]]+tabJahresPersonal[[#This Row],[Stel02]]+tabJahresPersonal[[#This Row],[Stel03]])/3,3) -> 0 | AE26: =ROUND((tabJahresPersonal[[#This Row],[Stel04]]+tabJahresPersonal[[#This Row],[Stel05]]+tabJahresPersonal[[#This Row],[Stel06]])/3,3) -> 0 | AF26: =ROUND((tabJahresPersonal[[#This Row],[Stel07]]+tabJahresPersonal[[#This Row],[Stel08]]+tabJahresPersonal[[#This Row],[Stel09]])/3,3) -> 0 | AG26: =ROUND((tabJahresPersonal[[#This Row],[Stel10]]+tabJahresPersonal[[#This Row],[Stel11]]+tabJahresPersonal[[#This Row],[Stel12]])/3,3) -> 0 | AH26: 0 | AI26: =VLOOKUP(IF(Jahr<2017,2016*100+tabJahresPersonal[IstP10_2b4],IF(Jahr=2017,2017*100+tabJahresPersonal[IstP10_2b4],2018*100+tabJahresPersonal[IstP10_2b4])),tabParag10[],2,FALSE) -> 1 | AJ26: =VLOOKUP(IF(Jahr<2017,2016*100+tabJahresPersonal[IstP10_2b4],IF(Jahr=2017,2017*100+tabJahresPersonal[IstP10_2b4],2018*100+tabJahresPersonal[IstP10_2b4])),tabParag10[],3,FALSE) -> 1

Sheet Ltg-Personal
F1: Mitarbeiter auswählen : | J1: 1 | K1: =IF(G2="nein",INDEX(tabJahresLtgPersonal[#All],gesuchterLtg+1,1),"????") -> ???? | M1: Mausklick auf den Button links öffnet einen Eingabedialog zur Bearbeitung des pädagogischen Leitungs-Personals
F2: Neuanlage einer Leitungsperson? : | G2: Nein
Y4: Mon01 | Z4: Mon02 | AA4: Mon03 | AB4: Mon04 | AC4: Mon05 | AD4: Mon06 | AE4: Mon07 | AF4: Mon08 | AG4: Mon09 | AH4: Mon10 | AI4: Mon11 | AJ4: Mon12
AA5: =ROUND(AVERAGE(Y7:AA7),4) -> 0 | AD5: =ROUND(AVERAGE(AB7:AD7),4) -> 0 | AG5: =ROUND(AVERAGE(AE7:AG7),4) -> 0 | AJ5: =ROUND(AVERAGE(AH7:AJ7),4) -> 0
X6: IstDSQart | AA6: =ROUND(AVERAGE(Y7:AA7),4) -> 0 | AD6: =ROUND(AVERAGE(AB7:AD7),4) -> 0 | AG6: =ROUND(AVERAGE(Y7:AG7),4) -> 0 | AJ6: =ROUND(AVERAGE(Y7:AJ7),4) -> 0
G7: Stel01 | H7: Stel02 | I7: Stel01 | J7: Stel02 | K7: Stel03 | L7: Stel04 | M7: Stel05 | N7: Stel06 | O7: Stel07 | P7: Stel08 | Q7: Stel09 | R7: Stel10 | S7: Stel11 | T7: Stel12 | U7: JahresStelle | X7: IstSumMon | Y7: =DSUM(tabJahresLtgPersonal[[#Headers],[#Data]],tabJahresLtgPersonal[[#Headers],[Stel01]],SuchKrittabPersonal) -> 0 | Z7: =DSUM(tabJahresLtgPersonal[[#Headers],[#Data]],tabJahresLtgPersonal[[#Headers],[Stel02]],SuchKrittabPersonal) -> 0 | AA7: =DSUM(tabJahresLtgPersonal[[#Headers],[#Data]],tabJahresLtgPersonal[[#Headers],[Stel03]],SuchKrittabPersonal) -> 0 | AB7: =DSUM(tabJahresLtgPersonal[[#Headers],[#Data]],tabJahresLtgPersonal[[#Headers],[Stel04]],SuchKrittabPersonal) -> 0 | AC7: =DSUM(tabJahresLtgPersonal[[#Headers],[#Data]],tabJahresLtgPersonal[[#Headers],[Stel05]],SuchKrittabPersonal) -> 0 | AD7: =DSUM(tabJahresLtgPersonal[[#Headers],[#Data]],tabJahresLtgPersonal[[#Headers],[Stel06]],SuchKrittabPersonal) -> 0 | AE7: =DSUM(tabJahresLtgPersonal[[#Headers],[#Data]],tabJahresLtgPersonal[[#Headers],[Stel07]],SuchKrittabPersonal) -> 0 | AF7: =DSUM(tabJahresLtgPersonal[[#Headers],[#Data]],tabJahresLtgPersonal[[#Headers],[Stel08]],SuchKrittabPersonal) -> 0 | AG7: =DSUM(tabJahresLtgPersonal[[#Headers],[#Data]],tabJahresLtgPersonal[[#Headers],[Stel09]],SuchKrittabPersonal) -> 0 | AH7: =DSUM(tabJahresLtgPersonal[[#Headers],[#Data]],tabJahresLtgPersonal[[#Headers],[Stel10]],SuchKrittabPersonal) -> 0 | AI7: =DSUM(tabJahresLtgPersonal[[#Headers],[#Data]],tabJahresLtgPersonal[[#Headers],[Stel11]],SuchKrittabPersonal) -> 0 | AJ7: =DSUM(tabJahresLtgPersonal[[#Headers],[#Data]],tabJahresLtgPersonal[[#Headers],[Stel12]],SuchKrittabPersonal) -> 0
Y8: =DAVERAGE(tabJahresLtgPersonal[[#Headers],[#Data]],tabJahresLtgPersonal[[#Headers],[Stel01]],G7:U8) -> 0
Y9: =DAVERAGE(tabJahresLtgPersonal[[#Headers],[#Data]],tabJahresLtgPersonal[[#Headers],[Stel01]],G7:U8) -> 0
D10: Separate Quartalsbetrachtung | H10: ø bis zum jeweiligen Quartal
D11: I. Quartal | E11: II. Quartal | F11: III. Quartal | G11: IV. Quartal | H11: I. Quartal | I11: II. Quartal | J11: III. Quartal | K11: IV. Quartal
B12: Übersicht Stellen-SOLL NPP | D12: =Q1SollLtgStel -> 0 | E12: =Q2SollLtgStel -> 0 | F12: =Q3SollLtgStel -> 0 | G12: =Q4SollLtgStel -> 0 | H12: =Q1DsLtgSollStel -> 0 | I12: =Q2DsLtgSollStel -> 0 | J12: =Q3DsLtgSollStel -> 0 | K12: =Q4DsLtgSollStel -> 0
B13: Übersicht Stellen-Ist NPP | D13: =NurQ1IstLtgStellen -> 0 | E13: =NurQ2IstLtgStellen -> 0 | F13: =NurQ3IstLtgStellen -> 0 | G13: =NurQ4IstLtgStellen -> 0 | H13: =Q1DsIstLtgStellen -> 0 | I13: =Q2DsIstLtgStellen -> 0 | J13: =Q3DsIstLtgStellen -> 0 | K13: =Q4DsIstLtgStellen -> 0
B14: Differenz | D14: =(D12-D13)*-1 -> 0 | E14: =(E12-E13)*-1 -> 0 | F14: 0 | G14: 0 | H14: 0 | I14: 0 | J14: 0 | K14: 0
B16: Personal-Nummer | D16: Teil-Kraft? | E16: =CONCATENATE("Wochenstunden für das Leitungspersonal der einzelnen Monate im Antragsjahr: ",intAntragsJahr) -> Wochenstunden für das Leitungspersonal der einzelnen Monate im Antragsjahr: 2020 | Q16: ø Jahresstelle | R16: =CONCATENATE("Personalstellen für das Leitungspersonal der einzelnen Monate im Antragsjahr: ",intAntragsJahr) -> Personalstellen für das Leitungspersonal der einzelnen Monate im Antragsjahr: 2020 | AD16: ø Qaurtalsstelle für Leitung
B17: Personal_Id | C17: IstP10_2b4 | D17: Ist§10(2b4) | E17: Ws1 | F17: Ws2 | G17: Ws3 | H17: Ws4 | I17: Ws5 | J17: Ws6 | K17: Ws7 | L17: Ws8 | M17: Ws9 | N17: Ws10 | O17: Ws11 | P17: Ws12 | Q17: JahresStelle | R17: Stel01 | S17: Stel02 | T17: Stel03 | U17: Stel04 | V17: Stel05 | W17: Stel06 | X17: Stel07 | Y17: Stel08 | Z17: Stel09 | AA17: Stel10 | AB17: Stel11 | AC17: Stel12 | AD17: StelQ1 | AE17: StelQ2 | AF17: StelQ3 | AG17: StelQ4 | AH17: JahresIstPK | AI17: P10Bis7 | AJ17: P10Ab8
B18: ???? | C18: FALSE | D18: =IF(tabJahresLtgPersonal[IstP10_2b4]=0,"nein",IF(tabJahresLtgPersonal[IstP10_2b4]=1,"§ 10 (2) 70%/80%",IF(tabJahresLtgPersonal[IstP10_2b4]=2,"§ 10 (3) 70%",IF(tabJahresLtgPersonal[IstP10_2b4]=3,"§ 10 (4) 100%",IF(tabJahresLtgPersonal[IstP10_2b4]=4,"§ 10 (4) 70%",IF(tabJahresLtgPersonal[IstP10_2b4]=5,"§ 10 (2) 70%","")))))) ->  | E18: 0 | F18: 0 | G18: 0 | H18: 0 | I18: 0 | J18: 0 | K18: 0 | L18: 0 | M18: 0 | N18: 0 | O18: 0 | P18: 0 | Q18: =ROUND(SUM(tabJahresLtgPersonal[[#This Row],[Stel01]]:tabJahresLtgPersonal[[#This Row],[Stel12]])/12,3) -> 0 | R18: =ROUND(E18*$AI18/Wochenarbeitszeit,3) -> 0 | S18: 0 | T18: 0 | U18: 0 | V18: 0 | W18: 0 | X18: 0 | Y18: =ROUND(L18*$AJ18/Wochenarbeitszeit,3) -> 0 | Z18: =ROUND(M18*$AJ18/Wochenarbeitszeit,3) -> 0 | AA18: =ROUND(N18*$AJ18/Wochenarbeitszeit,3) -> 0 | AB18: =ROUND(O18*$AJ18/Wochenarbeitszeit,3) -> 0 | AC18: =ROUND(P18*$AJ18/Wochenarbeitszeit,3) -> 0 | AD18: =ROUND((tabJahresLtgPersonal[[#This Row],[Stel01]]+tabJahresLtgPersonal[[#This Row],[Stel02]]+tabJahresLtgPersonal[[#This Row],[Stel03]])/3,4) -> 0 | AE18: =ROUND((tabJahresLtgPersonal[[#This Row],[Stel04]]+tabJahresLtgPersonal[[#This Row],[Stel05]]+tabJahresLtgPersonal[[#This Row],[Stel06]])/3,4) -> 0 | AF18: =ROUND((tabJahresLtgPersonal[[#This Row],[Stel07]]+tabJahresLtgPersonal[[#This Row],[Stel08]]+tabJahresLtgPersonal[[#This Row],[Stel09]])/3,4) -> 0 | AG18: =ROUND((tabJahresLtgPersonal[[#This Row],[Stel10]]+tabJahresLtgPersonal[[#This Row],[Stel11]]+tabJahresLtgPersonal[[#This Row],[Stel12]])/3,4) -> 0 | AH18: 0 | AI18: =VLOOKUP(IF(Jahr<2017,2016*100+tabJahresLtgPersonal[IstP10_2b4],IF(Jahr=2017,2017*100+tabJahresLtgPersonal[IstP10_2b4],2018*100+tabJahresLtgPersonal[IstP10_2b4])),tabParag10[],2,FALSE) -> 1 | AJ18: =VLOOKUP(IF(Jahr<2017,2016*100+tabJahresLtgPersonal[IstP10_2b4],IF(Jahr=2017,2017*100+tabJahresLtgPersonal[IstP10_2b4],2018*100+tabJahresLtgPersonal[IstP10_2b4])),tabParag10[],3,FALSE) -> 1

Sheet Personal (2) (hidden)
F2: Stel01 | G2: Stel02 | H2: Stel01 | I2: Stel02 | J2: Stel03 | K2: Stel04 | L2: Stel05 | M2: Stel06 | N2: Stel07 | O2: Stel08 | P2: Stel09 | Q2: Stel10 | R2: Stel11 | S2: Stel12 | T2: JahresStelle | X2: =DSUM(tabPersonalTest[[#Headers],[#Data]],tabPersonalTest[[#Headers],[Stel01]],'Personal (2)'!SuchKrittabPersonal) -> 4.375 | Y2: =DSUM(tabPersonalTest[[#Headers],[#Data]],tabPersonalTest[[#Headers],[Stel02]],SuchKrittabPersonal) -> 4.25 | Z2: =DSUM(tabPersonalTest[[#Headers],[#Data]],tabPersonalTest[[#Headers],[Stel03]],SuchKrittabPersonal) -> 4.268 | AA2: =DSUM(tabPersonalTest[[#Headers],[#Data]],tabPersonalTest[[#Headers],[Stel04]],SuchKrittabPersonal) -> 4.425 | AB2: =DSUM(tabPersonalTest[[#Headers],[#Data]],tabPersonalTest[[#Headers],[Stel05]],SuchKrittabPersonal) -> 4.425 | AC2: =DSUM(tabPersonalTest[[#Headers],[#Data]],tabPersonalTest[[#Headers],[Stel06]],SuchKrittabPersonal) -> 4.475 | AD2: =DSUM(tabPersonalTest[[#Headers],[#Data]],tabPersonalTest[[#Headers],[Stel07]],SuchKrittabPersonal) -> 4.475 | AE2: =DSUM(tabPersonalTest[[#Headers],[#Data]],tabPersonalTest[[#Headers],[Stel08]],SuchKrittabPersonal) -> 4.5 | AF2: =DSUM(tabPersonalTest[[#Headers],[#Data]],tabPersonalTest[[#Headers],[Stel09]],SuchKrittabPersonal) -> 4.325 | AG2: =DSUM(tabPersonalTest[[#Headers],[#Data]],tabPersonalTest[[#Headers],[Stel10]],SuchKrittabPersonal) -> 4.325 | AH2: =DSUM(tabPersonalTest[[#Headers],[#Data]],tabPersonalTest[[#Headers],[Stel11]],SuchKrittabPersonal) -> 4.375 | AI2: =DSUM(tabPersonalTest[[#Headers],[#Data]],tabPersonalTest[[#Headers],[Stel12]],SuchKrittabPersonal) -> 4.375 | AJ2: =DSUM(tabPersonalTest[[#Headers],[#Data]],tabPersonalTest[[#Headers],[Stel12]],SuchKrittabPersonal) -> 4.375
X3: =DAVERAGE(tab,tabPersonalTest[[#Headers],[JahresIstPK]],SuchKrittabPersonal) ->  | Y3: =DAVERAGE(tabPersonalTest[[#Headers],[#Data]],tabPersonalTest[[#Headers],[JahresIstPK]],SuchKrittabPersonal) -> 42197.394
B5: Personal_Id | C5: IstP10_2b4 | D5: Ws1 | E5: Ws2 | F5: Ws3 | G5: Ws4 | H5: Ws5 | I5: Ws6 | J5: Ws7 | K5: Ws8 | L5: Ws9 | M5: Ws10 | N5: Ws11 | O5: Ws12 | P5: Stel01 | Q5: Stel02 | R5: Stel03 | S5: Stel04 | T5: Stel05 | U5: Stel06 | V5: Stel07 | W5: Stel08 | X5: Stel09 | Y5: Stel10 | Z5: Stel11 | AA5: Stel12 | AB5: StelQ1 | AC5: StelQ2 | AD5: StelQ3 | AE5: StelQ4 | AF5: JahresStelle | AG5: JahresIstPK
B6: 1 | C6: FALSE | D6: 40 | E6: 35 | F6: 33.73 | G6: 40 | H6: 40 | I6: 40 | J6: 40 | K6: 40 | L6: 40 | M6: 40 | N6: 40 | O6: 40 | P6: =IF($C6=FALSE,ROUND(D6/Wochenarbeitszeit,3),ROUND(D6*0.7/Wochenarbeitszeit,3)) -> 1 | Q6: 0.875 | R6: 0.843 | S6: 1 | T6: 1 | U6: 1 | V6: 1 | W6: 1 | X6: 1 | Y6: 1 | Z6: 1 | AA6: 1 | AB6: =ROUND((tabPersonalTest[[#This Row],[Stel01]]+tabPersonalTest[[#This Row],[Stel02]]+tabPersonalTest[[#This Row],[Stel03]])/3,3) -> 0.906 | AC6: =ROUND((tabPersonalTest[[#This Row],[Stel04]]+tabPersonalTest[[#This Row],[Stel05]]+tabPersonalTest[[#This Row],[Stel06]])/3,3) -> 1 | AD6: =ROUND((tabPersonalTest[[#This Row],[Stel07]]+tabPersonalTest[[#This Row],[Stel08]]+tabPersonalTest[[#This Row],[Stel09]])/3,3) -> 1 | AE6: =ROUND((tabPersonalTest[[#This Row],[Stel10]]+tabPersonalTest[[#This Row],[Stel11]]+tabPersonalTest[[#This Row],[Stel12]])/3,3) -> 1 | AF6: =ROUND(SUM(tabPersonalTest[[#This Row],[Stel01]]:tabPersonalTest[[#This Row],[Stel12]])/12,3) -> 0.977 | AG6: 47768.23
B7: 2 | C7: FALSE | D7: 35 | E7: 35 | F7: 35 | G7: 35 | H7: 35 | I7: 35 | J7: 35 | K7: 35 | L7: 35 | M7: 35 | N7: 35 | O7: 35 | P7: 0.875 | Q7: 0.875 | R7: 0.875 | S7: 0.875 | T7: 0.875 | U7: 0.875 | V7: 0.875 | W7: 0.875 | X7: 0.875 | Y7: 0.875 | Z7: 0.875 | AA7: 0.875 | AB7: =ROUND((tabPersonalTest[[#This Row],[Stel01]]+tabPersonalTest[[#This Row],[Stel02]]+tabPersonalTest[[#This Row],[Stel03]])/3,3) -> 0.875 | AC7: =ROUND((tabPersonalTest[[#This Row],[Stel04]]+tabPersonalTest[[#This Row],[Stel05]]+tabPersonalTest[[#This Row],[Stel06]])/3,3) -> 0.875 | AD7: =ROUND((tabPersonalTest[[#This Row],[Stel07]]+tabPersonalTest[[#This Row],[Stel08]]+tabPersonalTest[[#This Row],[Stel09]])/3,3) -> 0.875 | AE7: =ROUND((tabPersonalTest[[#This Row],[Stel10]]+tabPersonalTest[[#This Row],[Stel11]]+tabPersonalTest[[#This Row],[Stel12]])/3,3) -> 0.875 | AF7: =ROUND(SUM(tabPersonalTest[[#This Row],[Stel01]]:tabPersonalTest[[#This Row],[Stel12]])/12,3) -> 0.875 | AG7: 32678.37
B8: 3 | C8: FALSE | D8: 30 | E8: 30 | F8: 30 | G8: 30 | H8: 30 | I8: 30 | J8: 30 | K8: 30 | L8: 30 | M8: 30 | N8: 30 | O8: 30 | P8: 0.75 | Q8: 0.75 | R8: 0.75 | S8: 0.75 | T8: 0.75 | U8: 0.75 | V8: 0.75 | W8: 0.75 | X8: 0.75 | Y8: 0.75 | Z8: 0.75 | AA8: 0.75 | AB8: =ROUND((tabPersonalTest[[#This Row],[Stel01]]+tabPersonalTest[[#This Row],[Stel02]]+tabPersonalTest[[#This Row],[Stel03]])/3,3) -> 0.75 | AC8: =ROUND((tabPersonalTest[[#This Row],[Stel04]]+tabPersonalTest[[#This Row],[Stel05]]+tabPersonalTest[[#This Row],[Stel06]])/3,3) -> 0.75 | AD8: =ROUND((tabPersonalTest[[#This Row],[Stel07]]+tabPersonalTest[[#This Row],[Stel08]]+tabPersonalTest[[#This Row],[Stel09]])/3,3) -> 0.75 | AE8: =ROUND((tabPersonalTest[[#This Row],[Stel10]]+tabPersonalTest[[#This Row],[Stel11]]+tabPersonalTest[[#This Row],[Stel12]])/3,3) -> 0.75 | AF8: =ROUND(SUM(tabPersonalTest[[#This Row],[Stel01]]:tabPersonalTest[[#This Row],[Stel12]])/12,3) -> 0.75 | AG8: 36879.29
B9: 4 | C9: FALSE | D9: 38 | E9: 38 | F9: 38 | G9: 38 | H9: 38 | I9: 38 | J9: 38 | K9: 38 | L9: 38 | M9: 38 | N9: 38 | O9: 38 | P9: 0.95 | Q9: 0.95 | R9: 0.95 | S9: 0.95 | T9: 0.95 | U9: 0.95 | V9: 0.95 | W9: 0.95 | X9: 0.95 | Y9: 0.95 | Z9: 0.95 | AA9: 0.95 | AB9: =ROUND((tabPersonalTest[[#This Row],[Stel01]]+tabPersonalTest[[#This Row],[Stel02]]+tabPersonalTest[[#This Row],[Stel03]])/3,3) -> 0.95 | AC9: =ROUND((tabPersonalTest[[#This Row],[Stel04]]+tabPersonalTest[[#This Row],[Stel05]]+tabPersonalTest[[#This Row],[Stel06]])/3,3) -> 0.95 | AD9: =ROUND((tabPersonalTest[[#This Row],[Stel07]]+tabPersonalTest[[#This Row],[Stel08]]+tabPersonalTest[[#This Row],[Stel09]])/3,3) -> 0.95 | AE9: =ROUND((tabPersonalTest[[#This Row],[Stel10]]+tabPersonalTest[[#This Row],[Stel11]]+tabPersonalTest[[#This Row],[Stel12]])/3,3) -> 0.95 | AF9: =ROUND(SUM(tabPersonalTest[[#This Row],[Stel01]]:tabPersonalTest[[#This Row],[Stel12]])/12,3) -> 0.95 | AG9: 55965.59
B10: 5 | C10: FALSE | D10: 32 | E10: 32 | F10: 34 | G10: 34 | H10: 34 | I10: 36 | J10: 36 | K10: 37 | L10: 30 | M10: 30 | N10: 32 | O10: 32 | P10: 0.8 | Q10: 0.8 | R10: 0.85 | S10: 0.85 | T10: 0.85 | U10: 0.9 | V10: 0.9 | W10: 0.925 | X10: 0.75 | Y10: 0.75 | Z10: 0.8 | AA10: 0.8 | AB10: =ROUND((tabPersonalTest[[#This Row],[Stel01]]+tabPersonalTest[[#This Row],[Stel02]]+tabPersonalTest[[#This Row],[Stel03]])/3,3) -> 0.817 | AC10: =ROUND((tabPersonalTest[[#This Row],[Stel04]]+tabPersonalTest[[#This Row],[Stel05]]+tabPersonalTest[[#This Row],[Stel06]])/3,3) -> 0.867 | AD10: =ROUND((tabPersonalTest[[#This Row],[Stel07]]+tabPersonalTest[[#This Row],[Stel08]]+tabPersonalTest[[#This Row],[Stel09]])/3,3) -> 0.858 | AE10: =ROUND((tabPersonalTest[[#This Row],[Stel10]]+tabPersonalTest[[#This Row],[Stel11]]+tabPersonalTest[[#This Row],[Stel12]])/3,3) -> 0.783 | AF10: =ROUND(SUM(tabPersonalTest[[#This Row],[Stel01]]:tabPersonalTest[[#This Row],[Stel12]])/12,3) -> 0.831 | AG10: 37695.49
C11: FALSE | D11: 0 | E11: 0 | F11: 0 | G11: 0 | H11: 0 | I11: 0 | J11: 0 | K11: 0 | L11: 0 | M11: 0 | N11: 0 | O11: 0 | P11: 0 | Q11: 0 | R11: 0 | S11: 0 | T11: 0 | U11: 0 | V11: 0 | W11: 0 | X11: 0 | Y11: 0 | Z11: 0 | AA11: 0 | AB11: =ROUND((tabPersonalTest[[#This Row],[Stel01]]+tabPersonalTest[[#This Row],[Stel02]]+tabPersonalTest[[#This Row],[Stel03]])/3,3) -> 0 | AC11: =ROUND((tabPersonalTest[[#This Row],[Stel04]]+tabPersonalTest[[#This Row],[Stel05]]+tabPersonalTest[[#This Row],[Stel06]])/3,3) -> 0 | AD11: =ROUND((tabPersonalTest[[#This Row],[Stel07]]+tabPersonalTest[[#This Row],[Stel08]]+tabPersonalTest[[#This Row],[Stel09]])/3,3) -> 0 | AE11: =ROUND((tabPersonalTest[[#This Row],[Stel10]]+tabPersonalTest[[#This Row],[Stel11]]+tabPersonalTest[[#This Row],[Stel12]])/3,3) -> 0 | AF11: =ROUND(SUM(tabPersonalTest[[#This Row],[Stel01]]:tabPersonalTest[[#This Row],[Stel12]])/12,3) -> 0
C12: FALSE | D12: 0 | E12: 0 | F12: 0 | G12: 0 | H12: 0 | I12: 0 | J12: 0 | K12: 0 | L12: 0 | M12: 0 | N12: 0 | O12: 0 | P12: 0 | Q12: 0 | R12: 0 | S12: 0 | T12: 0 | U12: 0 | V12: 0 | W12: 0 | X12: 0 | Y12: 0 | Z12: 0 | AA12: 0 | AB12: =ROUND((tabPersonalTest[[#This Row],[Stel01]]+tabPersonalTest[[#This Row],[Stel02]]+tabPersonalTest[[#This Row],[Stel03]])/3,3) -> 0 | AC12: =ROUND((tabPersonalTest[[#This Row],[Stel04]]+tabPersonalTest[[#This Row],[Stel05]]+tabPersonalTest[[#This Row],[Stel06]])/3,3) -> 0 | AD12: =ROUND((tabPersonalTest[[#This Row],[Stel07]]+tabPersonalTest[[#This Row],[Stel08]]+tabPersonalTest[[#This Row],[Stel09]])/3,3) -> 0 | AE12: =ROUND((tabPersonalTest[[#This Row],[Stel10]]+tabPersonalTest[[#This Row],[Stel11]]+tabPersonalTest[[#This Row],[Stel12]])/3,3) -> 0 | AF12: =ROUND(SUM(tabPersonalTest[[#This Row],[Stel01]]:tabPersonalTest[[#This Row],[Stel12]])/12,3) -> 0
C13: FALSE | D13: 0 | E13: 0 | F13: 0 | G13: 0 | H13: 0 | I13: 0 | J13: 0 | K13: 0 | L13: 0 | M13: 0 | N13: 0 | O13: 0 | P13: 0 | Q13: 0 | R13: 0 | S13: 0 | T13: 0 | U13: 0 | V13: 0 | W13: 0 | X13: 0 | Y13: 0 | Z13: 0 | AA13: 0 | AB13: =ROUND((tabPersonalTest[[#This Row],[Stel01]]+tabPersonalTest[[#This Row],[Stel02]]+tabPersonalTest[[#This Row],[Stel03]])/3,3) -> 0 | AC13: =ROUND((tabPersonalTest[[#This Row],[Stel04]]+tabPersonalTest[[#This Row],[Stel05]]+tabPersonalTest[[#This Row],[Stel06]])/3,3) -> 0 | AD13: =ROUND((tabPersonalTest[[#This Row],[Stel07]]+tabPersonalTest[[#This Row],[Stel08]]+tabPersonalTest[[#This Row],[Stel09]])/3,3) -> 0 | AE13: =ROUND((tabPersonalTest[[#This Row],[Stel10]]+tabPersonalTest[[#This Row],[Stel11]]+tabPersonalTest[[#This Row],[Stel12]])/3,3) -> 0 | AF13: =ROUND(SUM(tabPersonalTest[[#This Row],[Stel01]]:tabPersonalTest[[#This Row],[Stel12]])/12,3) -> 0
C14: FALSE | D14: 0 | E14: 0 | F14: 0 | G14: 0 | H14: 0 | I14: 0 | J14: 0 | K14: 0 | L14: 0 | M14: 0 | N14: 0 | O14: 0 | P14: 0 | Q14: 0 | R14: 0 | S14: 0 | T14: 0 | U14: 0 | V14: 0 | W14: 0 | X14: 0 | Y14: 0 | Z14: 0 | AA14: 0 | AB14: =ROUND((tabPersonalTest[[#This Row],[Stel01]]+tabPersonalTest[[#This Row],[Stel02]]+tabPersonalTest[[#This Row],[Stel03]])/3,3) -> 0 | AC14: =ROUND((tabPersonalTest[[#This Row],[Stel04]]+tabPersonalTest[[#This Row],[Stel05]]+tabPersonalTest[[#This Row],[Stel06]])/3,3) -> 0 | AD14: =ROUND((tabPersonalTest[[#This Row],[Stel07]]+tabPersonalTest[[#This Row],[Stel08]]+tabPersonalTest[[#This Row],[Stel09]])/3,3) -> 0 | AE14: =ROUND((tabPersonalTest[[#This Row],[Stel10]]+tabPersonalTest[[#This Row],[Stel11]]+tabPersonalTest[[#This Row],[Stel12]])/3,3) -> 0 | AF14: =ROUND(SUM(tabPersonalTest[[#This Row],[Stel01]]:tabPersonalTest[[#This Row],[Stel12]])/12,3) -> 0
C15: FALSE | D15: 0 | E15: 0 | F15: 0 | G15: 0 | H15: 0 | I15: 0 | J15: 0 | K15: 0 | L15: 0 | M15: 0 | N15: 0 | O15: 0 | P15: 0 | Q15: 0 | R15: 0 | S15: 0 | T15: 0 | U15: 0 | V15: 0 | W15: 0 | X15: 0 | Y15: 0 | Z15: 0 | AA15: 0 | AB15: =ROUND((tabPersonalTest[[#This Row],[Stel01]]+tabPersonalTest[[#This Row],[Stel02]]+tabPersonalTest[[#This Row],[Stel03]])/3,3) -> 0 | AC15: =ROUND((tabPersonalTest[[#This Row],[Stel04]]+tabPersonalTest[[#This Row],[Stel05]]+tabPersonalTest[[#This Row],[Stel06]])/3,3) -> 0 | AD15: =ROUND((tabPersonalTest[[#This Row],[Stel07]]+tabPersonalTest[[#This Row],[Stel08]]+tabPersonalTest[[#This Row],[Stel09]])/3,3) -> 0 | AE15: =ROUND((tabPersonalTest[[#This Row],[Stel10]]+tabPersonalTest[[#This Row],[Stel11]]+tabPersonalTest[[#This Row],[Stel12]])/3,3) -> 0 | AF15: =ROUND(SUM(tabPersonalTest[[#This Row],[Stel01]]:tabPersonalTest[[#This Row],[Stel12]])/12,3) -> 0
P16: =IF($C16=FALSE,ROUND(D16/Wochenarbeitszeit,3),ROUND(D16*0.7/Wochenarbeitszeit,3)) -> 0 | Q16: 0 | R16: 0 | S16: 0 | T16: 0 | U16: 0 | V16: 0 | W16: 0 | X16: 0 | Y16: 0 | Z16: 0 | AA16: 0 | AB16: =ROUND((tabPersonalTest[[#This Row],[Stel01]]+tabPersonalTest[[#This Row],[Stel02]]+tabPersonalTest[[#This Row],[Stel03]])/3,3) -> 0 | AC16: =ROUND((tabPersonalTest[[#This Row],[Stel04]]+tabPersonalTest[[#This Row],[Stel05]]+tabPersonalTest[[#This Row],[Stel06]])/3,3) -> 0 | AD16: =ROUND((tabPersonalTest[[#This Row],[Stel07]]+tabPersonalTest[[#This Row],[Stel08]]+tabPersonalTest[[#This Row],[Stel09]])/3,3) -> 0 | AE16: =ROUND((tabPersonalTest[[#This Row],[Stel10]]+tabPersonalTest[[#This Row],[Stel11]]+tabPersonalTest[[#This Row],[Stel12]])/3,3) -> 0 | AF16: =ROUND(SUM(tabPersonalTest[[#This Row],[Stel01]]:tabPersonalTest[[#This Row],[Stel12]])/12,3) -> 0
P17: 0 | Q17: 0 | R17: 0 | S17: 0 | T17: 0 | U17: 0 | V17: 0 | W17: 0 | X17: 0 | Y17: 0 | Z17: 0 | AA17: 0 | AB17: =ROUND((tabPersonalTest[[#This Row],[Stel01]]+tabPersonalTest[[#This Row],[Stel02]]+tabPersonalTest[[#This Row],[Stel03]])/3,3) -> 0 | AC17: =ROUND((tabPersonalTest[[#This Row],[Stel04]]+tabPersonalTest[[#This Row],[Stel05]]+tabPersonalTest[[#This Row],[Stel06]])/3,3) -> 0 | AD17: =ROUND((tabPersonalTest[[#This Row],[Stel07]]+tabPersonalTest[[#This Row],[Stel08]]+tabPersonalTest[[#This Row],[Stel09]])/3,3) -> 0 | AE17: =ROUND((tabPersonalTest[[#This Row],[Stel10]]+tabPersonalTest[[#This Row],[Stel11]]+tabPersonalTest[[#This Row],[Stel12]])/3,3) -> 0 | AF17: =ROUND(SUM(tabPersonalTest[[#This Row],[Stel01]]:tabPersonalTest[[#This Row],[Stel12]])/12,3) -> 0
B18: Ergebnis | D18: =SUBTOTAL(109,tabPersonalTest[Ws1]) -> 175 | E18: =SUBTOTAL(109,tabPersonalTest[Ws2]) -> 170 | F18: =SUBTOTAL(109,tabPersonalTest[Ws3]) -> 170.73 | G18: =SUBTOTAL(109,tabPersonalTest[Ws4]) -> 177 | H18: =SUBTOTAL(109,tabPersonalTest[Ws5]) -> 177 | I18: =SUBTOTAL(109,tabPersonalTest[Ws6]) -> 179 | J18: =SUBTOTAL(109,tabPersonalTest[Ws7]) -> 179 | K18: =SUBTOTAL(109,tabPersonalTest[Ws8]) -> 180 | L18: =SUBTOTAL(109,tabPersonalTest[Ws9]) -> 173 | M18: =SUBTOTAL(109,tabPersonalTest[Ws10]) -> 173 | N18: =SUBTOTAL(109,tabPersonalTest[Ws11]) -> 175 | O18: =SUBTOTAL(109,tabPersonalTest[Ws12]) -> 175 | P18: =SUBTOTAL(109,tabPersonalTest[Stel01]) -> 4.375 | Q18: =SUBTOTAL(109,tabPersonalTest[Stel02]) -> 4.25 | R18: =SUBTOTAL(109,tabPersonalTest[Stel03]) -> 4.268 | S18: =SUBTOTAL(109,tabPersonalTest[Stel04]) -> 4.425 | T18: =SUBTOTAL(109,tabPersonalTest[Stel05]) -> 4.425 | U18: =SUBTOTAL(109,tabPersonalTest[Stel06]) -> 4.475 | V18: =SUBTOTAL(109,tabPersonalTest[Stel07]) -> 4.475 | W18: =SUBTOTAL(109,tabPersonalTest[Stel08]) -> 4.5 | X18: =SUBTOTAL(109,tabPersonalTest[Stel09]) -> 4.325 | Y18: =SUBTOTAL(109,tabPersonalTest[Stel10]) -> 4.325 | Z18: =SUBTOTAL(109,tabPersonalTest[Stel11]) -> 4.375 | AA18: =SUBTOTAL(109,tabPersonalTest[Stel12]) -> 4.375 | AB18: =SUBTOTAL(109,tabPersonalTest[StelQ1]) -> 4.298 | AC18: =SUBTOTAL(109,tabPersonalTest[StelQ2]) -> 4.442 | AD18: =SUBTOTAL(109,tabPersonalTest[StelQ3]) -> 4.433 | AE18: =SUBTOTAL(109,tabPersonalTest[StelQ4]) -> 4.358 | AF18: =SUBTOTAL(109,tabPersonalTest[JahresStelle]) -> 4.383 | AG18: =SUBTOTAL(101,tabPersonalTest[JahresIstPK]) -> 42197.394
